Workbook

Sheet Disclaimer
B11: Programme Area: | E11: Carbon Capture and Storage
B13: Project: | D13: Next Gen Capture Tech Benchmarking and Performance Analysis
B15: Title: | C15: Benchmarking and Performance Analysis of Future CO2 Capture Technologies – Economic Model
B19: Abstract:
B20: This spreadsheet model was produced as part of the CCS Capture Benchmarking Study, and provides a techno-economic analysis of the performance of four state-of-the art power generation/CO2 capture designs (coal with post-combustion capture, coal with gasification/pre-combustion capture, coal with oxy-firing and combined cycle gas turbine with post-combustion capture). The spreadsheet enables ‘what if’ calculations of costs for designs with 85%, 90% and 95% capture rates. Outputs include capital costs, operating costs, cost of capture and levelised cost of electricity (LCOE). The spreadsheet concentrates on power generation, capture and compression, but allows manual input of transport and storage costs to provide overall figures. The model is partly superseded by work undertaken and reported in the Benchmark Refresh project.
B33: Context:
B34: This project provided ETI with an objective view of the techno-economic performance of a range of current and next generation CO2 capture technologies including pre and post combustion and oxyfuel CCS plant. The analysis that underpins these benchmarking studies was based on coal and gas fired power station designs typical of those found in the UK and considered parameters such as power station capital cost, efficiency and levelised cost of electricity (with and without CCS).
B46: Disclaimer:
B47: The Energy Technologies Institute is making this document available to use under the Energy Technologies Institute Open Licence for Materials. Please refer to the Energy Technologies Institute website for the terms and conditions of this licence. The Information is licensed ‘as is’ and the Energy Technologies Institute excludes all representations, warranties, obligations and liabilities in relation to the Information to the maximum extent permitted by law. The Energy Technologies Institute is not liable for any errors or omissions in the Information and shall not be liable for any loss, injury or damage of any kind caused by its use. This exclusion of liability includes, but is not limited to, any direct, indirect, special, incidental, consequential, punitive, or exemplary damages in each case such as loss of revenue, data, anticipated profits, and lost business. The Energy Technologies Institute does not guarantee the continued supply of the Information. Notwithstanding any statement to the contrary contained on the face of this document, the Energy Technologies Institute confirms that the authors of the document have consented to its publication by the Energy Technologies Institute.

Sheet Title Page
B7: THE ENERGY TECHNOLOGIES INSTITUTE
B9: Benchmarking and Performance Analysis of Next Generation Carbon Capture Technologies
B11: Economic Model

Sheet Contents
B2: ='Title Page'!B9 -> Benchmarking and Performance Analysis of Next Generation Carbon Capture Technologies
B4: General Information | E4: Model Contents
E6: Title Page | F6: Introduction page
B7: Author | C7: Tim Bullen, Foster Wheeler | E7: Contents | F7: This page, tracks version control and changes
B8: Purpose | E8: Input Data | F8: General input values for all calculations & scenario selection.
B9: Scope | E9: IGCC with CC | F9: Cash flow analysis for the IGCC case with carbon capture
B10: Basis | E10: IGCC without CC | F10: Cash flow analysis for the IGCC case without carbon capture
E11: CCGT with 90% CC | F11: Cash flow analysis for the CCGT case with 90% carbon capture
B12: Version Control | E12: CCGT with 75% CC | F12: Cash flow analysis for the CCGT case with 75% carbon capture
E13: CCGT without CC | F13: Cash flow analysis for the CCGT case without carbon capture
B14: Status | C14: Final | E14: USCPC with CC | F14: Cash flow analysis for the USCPC case with carbon capture
B15: Release Date | C15: 3rd November 2009 | E15: USCPC without CC | F15: Cash flow analysis for the USCPC case without carbon capture
B16: Version Number | C16: 1 | E16: Oxyfuel with CC | F16: Cash flow analysis for the oxyfuel case with carbon capture
B17: Version History | C17: 1.0 - Amendment to CAPEX estimate for WP1 report | E17: Summary Results | F17: Summary of key results
E22: Running Procedures
B24: Comments | E24: Save the file under a new filename
E25: Enter a unique identifier for the dataset
E26: Enter any required adjustments on the "Input Data" dataset only. Update the individual economic
E27: model sheets by pressing the "Update Economic Model" button.
E28: Check data and verify reports. Print out required reports

Sheet Input Data
A1: Benchmarking and Performance Analysis of Next Generation Carbon Capture Technologies
A3: Input Data
F5: IGCC with CC | M5: IGCC without CC | T5: CCGT with 90% CC | AA5: CCGT without CC | AH5: USCPC with CC | AO5: USCPC without CC | AV5: OxyFuel | BE5: CCGT with 75% CC
E7: Raw Value | F7: Adj. Factor | G7: Adjusted Value | L7: Raw Value | M7: Adj. Factor | N7: Adjusted Value | S7: Raw Value | T7: Adj. Factor | U7: Adjusted Value | Z7: Raw Value | AA7: Adj. Factor | AB7: Adjusted Value | AG7: Raw Value | AH7: Adj. Factor | AI7: Adjusted Value | AN7: Raw Value | AO7: Adj. Factor | AP7: Adjusted Value | AU7: Raw Value | AV7: Adj. Factor | AW7: Adjusted Value | BD7: Raw Value | BE7: Adj. Factor | BF7: Adjusted Value
A8: Data From Process Simulations
A10: Power / Performance Data | G10: =IF(PRODUCT(F11:F23)=1,0,1) -> 0 | N10: =IF(PRODUCT(M11:M23)=1,0,1) -> 0 | U10: =IF(PRODUCT(T11:T23)=1,0,1) -> 0 | AB10: =IF(PRODUCT(AA11:AA23)=1,0,1) -> 0 | AI10: =IF(PRODUCT(AH11:AH23)=1,0,1) -> 0 | AP10: =IF(PRODUCT(AO11:AO23)=1,0,1) -> 0 | AW10: =IF(PRODUCT(AV11:AV23)=1,0,1) -> 0 | BF10: =IF(PRODUCT(BE11:BE23)=1,0,1) -> 0
A11: Installed Gross Capacity | D11: MWe | E11: =SUM(E12:E14) -> 923.8 | F11: n/a | G11: =E11 -> 923.8 | H11: =IF(G10=1,"Performance Data: User Adjusted","") ->  | L11: =SUM(L12:L14) -> 878.1 | M11: n/a | N11: =L11 -> 878.1 | O11: =IF(N10=1,"Performance Data: User Adjusted","") ->  | S11: =SUM(S12:S14) -> 955.3 | T11: n/a | U11: =S11 -> 955.3 | V11: =IF(U10=1,"Performance Data: User Adjusted","") ->  | Z11: =SUM(Z12:Z14) -> 1037.6 | AA11: n/a | AB11: =Z11 -> 1037.6 | AC11: =IF(AB10=1,"Performance Data: User Adjusted","") ->  | AG11: =SUM(AG12:AG14) -> 745.7 | AH11: n/a | AI11: =AG11 -> 745.7 | AJ11: =IF(AI10=1,"Performance Data: User Adjusted","") ->  | AN11: =SUM(AN12:AN14) -> 836.2 | AO11: n/a | AP11: =AN11 -> 836.2 | AQ11: =IF(AP10=1,"Performance Data: User Adjusted","") ->  | AU11: =SUM(AU12:AU14) -> 855.4 | AV11: n/a | AW11: =AU11 -> 855.4 | AX11: =IF(AW10=1,"Performance Data: User Adjusted","") ->  | BD11: 970.7 | BE11: n/a | BF11: =BD11 -> 970.7 | BG11: =IF(BF10=1,"Performance Data: User Adjusted","") -> 
B12: Gas Turbines | D12: MWe | E12: 544.4 | F12: n/a | G12: =E12 -> 544.4 | L12: 514.5 | M12: n/a | N12: =L12 -> 514.5 | S12: 729.1 | T12: n/a | U12: =S12 -> 729.1 | Z12: 729.1 | AA12: n/a | AB12: =Z12 -> 729.1 | AG12: n/a | AH12: n/a | AI12: n/a | AN12: n/a | AO12: n/a | AP12: n/a | AU12: n/a | AV12: n/a | AW12: n/a | BD12: 729.1 | BE12: n/a | BF12: =BD12 -> 729.1
B13: Steam Turbine | D13: MWe | E13: 379.4 | F13: n/a | G13: =E13 -> 379.4 | L13: 363.6 | M13: n/a | N13: =L13 -> 363.6 | S13: 226.2 | T13: n/a | U13: =S13 -> 226.2 | Z13: 308.5 | AA13: n/a | AB13: =Z13 -> 308.5 | AG13: 745.7 | AH13: n/a | AI13: =AG13 -> 745.7 | AN13: 836.2 | AO13: n/a | AP13: =AN13 -> 836.2 | AU13: 855.4 | AV13: n/a | AW13: =AU13 -> 855.4 | BD13: 241.6 | BE13: n/a | BF13: =BD13 -> 241.6
B14: Expansion Turbine | D14: MWe | E14: 0 | F14: n/a | G14: =E14 -> 0 | L14: 0 | M14: n/a | N14: =L14 -> 0 | S14: 0 | T14: n/a | U14: =S14 -> 0 | Z14: 0 | AA14: n/a | AB14: =Z14*AA14 ->  | AG14: 0 | AH14: 1 | AI14: =AG14*AH14 -> 0 | AN14: 0 | AO14: 1 | AP14: =AN14*AO14 -> 0 | AU14: 0 | AV14: 1 | AW14: =AU14*AV14 -> 0 | BD14: 0 | BE14: n/a | BF14: =BD14 -> 0
A15: Total Auxiliary Load | D15: MWe | E15: =SUM(E16:E21) -> 223.7 | F15: n/a | G15: =SUM(G16:G21) -> 223.7 | L15: =SUM(L16:L21) -> 132 | M15: n/a | N15: =SUM(N16:N21) -> 132 | S15: =SUM(S16:S21) -> 113 | T15: n/a | U15: =SUM(U16:U21) -> 113 | Z15: =SUM(Z16:Z21) -> 46.8 | AA15: n/a | AB15: =SUM(AB16:AB21) -> 46.8 | AG15: =SUM(AG16:AG21) -> 119 | AH15: n/a | AI15: =SUM(AI16:AI21) -> 119 | AN15: =SUM(AN16:AN21) -> 57 | AO15: n/a | AP15: =SUM(AP16:AP21) -> 57 | AU15: =SUM(AU16:AU21) -> 249.8 | AV15: n/a | AW15: =SUM(AW16:AW21) -> 249.8 | BD15: 98.4 | BE15: n/a | BF15: =SUM(BF16:BF21) -> 98.4
B16: Air Separation Unit | D16: MWe | E16: 101.6 | F16: 1 | G16: =E16*F16 -> 101.6 | L16: 95.7 | M16: 1 | N16: =L16*M16 -> 95.7 | S16: n/a | T16: n/a | U16: n/a | Z16: n/a | AA16: n/a | AB16: n/a | AG16: n/a | AH16: n/a | AI16: n/a | AN16: n/a | AO16: n/a | AP16: n/a | AU16: 91.5 | AV16: 1 | AW16: 91.5 | BD16: n/a | BE16: n/a | BF16: n/a
B17: Gasification island / Boiler | D17: MWe | E17: 13 | F17: 1 | G17: 13 | L17: 11.6 | M17: 1 | N17: =L17*M17 -> 11.6 | S17: n/a | T17: n/a | U17: n/a | Z17: n/a | AA17: n/a | AB17: n/a | AG17: n/a | AH17: n/a | AI17: n/a | AN17: n/a | AO17: n/a | AP17: n/a | AU17: n/a | AV17: n/a | AW17: n/a | BD17: n/a | BE17: n/a | BF17: n/a
B18: Power Island | D18: MWe | E18: 7.6 | F18: 1 | G18: 7.6 | L18: 10.5 | M18: 1 | N18: =L18*M18 -> 10.5 | S18: 39.3 | T18: 1 | U18: =S18*T18 -> 39.3 | Z18: 40.1 | AA18: 1 | AB18: =Z18*AA18 -> 40.1 | AG18: 29 | AH18: 1 | AI18: =AG18*AH18 -> 29 | AN18: 29.1 | AO18: 1 | AP18: =AN18*AO18 -> 29.1 | AU18: 28.2 | AV18: 1 | AW18: 28.2 | BD18: 39.4 | BE18: 1 | BF18: =BD18*BE18 -> 39.4
B19: Acid Gas Removal Unit | D19: MWe | E19: 30.8 | F19: 1 | G19: 30.8 | L19: 0.3 | M19: 1 | N19: =L19*M19 -> 0.3 | S19: 32.8 | T19: 1 | U19: =S19*T19 -> 32.8 | Z19: n/a | AA19: n/a | AB19: n/a | AG19: 7.4 | AH19: 1 | AI19: =AG19*AH19 -> 7.4 | AN19: n/a | AO19: n/a | AP19: n/a | AU19: n/a | AV19: n/a | AW19: n/a | BD19: 27.4 | BE19: 1 | BF19: =BD19*BE19 -> 27.4
B20: CO2 Compression | D20: MWe | E20: 47.9 | F20: 1 | G20: 47.9 | L20: n/a | M20: n/a | N20: n/a | S20: 27.7 | T20: 1 | U20: =S20*T20 -> 27.7 | Z20: 0 | AA20: 1 | AB20: =Z20*AA20 -> 0 | AG20: 48.6 | AH20: 1 | AI20: =AG20*AH20 -> 48.6 | AN20: n/a | AO20: n/a | AP20: n/a | AU20: 91.4 | AV20: 1 | AW20: 91.4 | BD20: 23.2 | BE20: 1 | BF20: =BD20*BE20 -> 23.2
B21: Other Units (offsites & Utilities) | D21: MWe | E21: 22.8 | F21: 1 | G21: 22.8 | L21: 13.9 | M21: 1 | N21: =L21*M21 -> 13.9 | S21: 13.2 | T21: 1 | U21: =S21*T21 -> 13.2 | Z21: 6.7 | AA21: 1 | AB21: =Z21*AA21 -> 6.7 | AG21: 34 | AH21: 1 | AI21: =AG21*AH21 -> 34 | AN21: 27.9 | AO21: 1 | AP21: =AN21*AO21 -> 27.9 | AU21: 38.7 | AV21: 1 | AW21: 38.7 | BD21: 8.4 | BE21: 1 | BF21: =BD21*BE21 -> 8.4
A22: Gross Power Output | D22: MWe | E22: =E11 -> 923.8 | F22: n/a | G22: =E22 -> 923.8 | L22: =L11 -> 878.1 | M22: n/a | N22: =L22 -> 878.1 | S22: =S11 -> 955.3 | T22: n/a | U22: =S22 -> 955.3 | Z22: =Z11 -> 1037.6 | AA22: n/a | AB22: =Z22 -> 1037.6 | AG22: =AG11 -> 745.7 | AH22: n/a | AI22: =AG22 -> 745.7 | AN22: =AN11 -> 836.2 | AO22: n/a | AP22: =AN22 -> 836.2 | AU22: =AU11 -> 855.4 | AV22: n/a | AW22: =AU22 -> 855.4 | BD22: 970.7 | BE22: n/a | BF22: =BD22 -> 970.7
A23: Net Power Export (New & Clean) | D23: MWe | E23: =E22-E15 -> 700.1 | F23: n/a | G23: =G22-G15 -> 700.1 | L23: =L22-L15 -> 746.1 | M23: n/a | N23: =N22-N15 -> 746.1 | S23: =S22-S15 -> 842.3 | T23: n/a | U23: =U22-U15 -> 842.3 | Z23: =Z22-Z15 -> 990.8 | AA23: n/a | AB23: =AB22-AB15 -> 990.8 | AG23: =AG22-AG15 -> 626.7 | AH23: n/a | AI23: =AI22-AI15 -> 626.7 | AN23: =AN22-AN15 -> 779.2 | AO23: n/a | AP23: =AP22-AP15 -> 779.2 | AU23: =AU22-AU15 -> 605.6 | AV23: n/a | AW23: =AW22-AW15 -> 605.6 | BD23: =BD22-BD15 -> 872.3 | BE23: n/a | BF23: =BF22-BF15 -> 872.3
A25: Feedstocks
B26: Feedstock rate | C26: Coal | D26: te/hr | E26: =6559/24 -> 273.2916667 | F26: n/a | G26: =E26 -> 273.2916667 | L26: =5539/24 -> 230.7916667 | M26: n/a | N26: =L26 -> 230.7916667 | S26: n/a | T26: n/a | U26: n/a | Z26: n/a | AA26: n/a | AB26: n/a | AG26: =6163/24 -> 256.7916667 | AH26: n/a | AI26: =AG26 -> 256.7916667 | AN26: =6163/24 -> 256.7916667 | AO26: n/a | AP26: =AN26 -> 256.7916667 | AU26: 257 | AV26: n/a | AW26: =AU26 -> 257 | BD26: n/a | BE26: n/a | BF26: n/a
C27: Natural Gas | D27: te/hr | E27: n/a | F27: n/a | G27: =E27 -> n/a | L27: n/a | M27: n/a | N27: n/a | S27: =3070/24 -> 127.9166667 | T27: n/a | U27: =S27 -> 127.9166667 | Z27: =3070/24 -> 127.9166667 | AA27: n/a | AB27: =Z27 -> 127.9166667 | AG27: n/a | AH27: n/a | AI27: n/a | AN27: n/a | AO27: n/a | AP27: n/a | AU27: n/a | AV27: n/a | AW27: n/a | BD27: =3070/24 -> 127.9166667 | BE27: n/a | BF27: =BD27 -> 127.9166667
B28: Oxygen Consumption | D28: te/hr | E28: =4709/24 -> 196.2083333 | F28: n/a | G28: =E28 -> 196.2083333 | L28: =4243/24 -> 176.7916667 | M28: n/a | N28: =L28 -> 176.7916667 | S28: n/a | T28: n/a | U28: n/a | Z28: n/a | AA28: n/a | AB28: n/a | AG28: n/a | AH28: n/a | AI28: n/a | AN28: n/a | AO28: n/a | AP28: n/a | AU28: 569 | AV28: n/a | AW28: =AU28 -> 569 | BD28: n/a | BE28: n/a | BF28: n/a
A30: Carbon Dioxide
B31: CO2 Produced | D31: te/hr | E31: =E32+E33 -> 647.2083333 | F31: n/a | G31: =E31 -> 647.2083333 | L31: =L32+L33 -> 548 | M31: n/a | N31: =L31 -> 548 | S31: =S32+S33 -> 346.8333333 | T31: n/a | U31: =S31 -> 346.8333333 | Z31: =Z32+Z33 -> 347 | AA31: n/a | AB31: =Z31 -> 347 | AG31: =AG32+AG33 -> 608.1666667 | AH31: n/a | AI31: =AG31 -> 608.1666667 | AN31: =AN32+AN33 -> 608 | AO31: n/a | AP31: =AN31 -> 608 | AU31: =AU32+AU33 -> 607.9 | AV31: n/a | AW31: =AU31 -> 607.9 | BD31: =BD32+BD33 -> 347.1 | BE31: n/a | BF31: =BD31 -> 347.1
B32: CO2 Captured | D32: te/hr | E32: =13976/24 -> 582.3333333 | F32: n/a | G32: =E32 -> 582.3333333 | L32: 0 | M32: n/a | N32: =L32 -> 0 | S32: =7508/24 -> 312.8333333 | T32: n/a | U32: =S32 -> 312.8333333 | Z32: 0 | AA32: n/a | AB32: =Z32 -> 0 | AG32: =13132/24 -> 547.1666667 | AH32: n/a | AI32: =AG32 -> 547.1666667 | AN32: 0 | AO32: n/a | AP32: =AN32 -> 0 | AU32: =13183.6/24 -> 549.3166667 | AV32: n/a | AW32: =AU32 -> 549.3166667 | BD32: 261.1 | BE32: n/a | BF32: =BD32 -> 261.1
B33: CO2 Emissions | D33: te/hr | E33: =1557/24 -> 64.875 | F33: n/a | G33: =E33 -> 64.875 | L33: 548 | M33: n/a | N33: =L33 -> 548 | S33: 34 | T33: n/a | U33: =S33 -> 34 | Z33: 347 | AA33: n/a | AB33: =Z33 -> 347 | AG33: 61 | AH33: n/a | AI33: =AG33 -> 61 | AN33: 608 | AO33: n/a | AP33: =AN33 -> 608 | AU33: =1406/24 -> 58.58333333 | AV33: n/a | AW33: =AU33 -> 58.58333333 | BD33: 86 | BE33: n/a | BF33: =BD33 -> 86
B34: Specific CO2 Emissions | D34: g / kWhr (Net) | E34: 92.7 | F34: n/a | G34: =E34 -> 92.7 | L34: 735 | M34: n/a | N34: =L34 -> 735 | S34: 41 | T34: n/a | U34: =S34 -> 41 | Z34: 350 | AA34: n/a | AB34: =Z34 -> 350 | AG34: 97 | AH34: n/a | AI34: =AG34 -> 97 | AN34: 781 | AO34: n/a | AP34: =AN34 -> 781 | AU34: 96.7 | AV34: n/a | AW34: =AU34 -> 96.7 | BD34: 98.5 | BE34: n/a | BF34: =BD34 -> 98.5
A36: Other Products
B37: Sulphur Produced | D37: te/hr | E37: 2.3 | F37: n/a | G37: =E37 -> 2.3 | L37: 1.95 | M37: n/a | N37: =L37 -> 1.95 | S37: n/a | T37: n/a | U37: =S37 -> n/a | Z37: n/a | AA37: n/a | AB37: =Z37 -> n/a | AG37: n/a | AH37: n/a | AI37: =AG37 -> n/a | AN37: n/a | AO37: n/a | AP37: =AN37 -> n/a | AU37: n/a | AV37: n/a | AW37: =AU37 -> n/a | BD37: n/a | BE37: n/a | BF37: =BD37 -> n/a
B38: Hydrogen Produced (ex syngas production unit) | D38: te/hr | E38: 133.8 | F38: n/a | G38: =E38 -> 133.8 | L38: 398.3 | M38: n/a | N38: =L38 -> 398.3 | S38: n/a | T38: n/a | U38: n/a | Z38: n/a | AA38: n/a | AB38: n/a | AG38: n/a | AH38: n/a | AI38: n/a | AN38: n/a | AO38: n/a | AP38: n/a | AU38: n/a | AV38: n/a | AW38: n/a | BD38: n/a | BE38: n/a | BF38: n/a
A40: Waste | D40: te/hr | E40: 42 | F40: n/a | G40: =E40 -> 42 | L40: 35.6 | M40: n/a | N40: =L40 -> 35.6 | S40: 0 | T40: n/a | U40: =S40 -> 0 | Z40: 0 | AA40: n/a | AB40: =Z40 -> 0 | AG40: 33 | AH40: n/a | AI40: =AG40 -> 33 | AN40: 33 | AO40: n/a | AP40: =AN40 -> 33 | AU40: 33 | AV40: n/a | AW40: =AU40 -> 33 | BD40: 0 | BE40: n/a | BF40: =BD40 -> 0
A43: User Input Variables
A45: Data From CAPEX and OPEX Estimates
A47: Capital Cost Data | G47: =IF(PRODUCT(F48:F57)=1,0,1) -> 0 | N47: =IF(PRODUCT(M48:M57)=1,0,1) -> 0 | U47: =IF(PRODUCT(T48:T57)=1,0,1) -> 0 | AB47: =IF(PRODUCT(AA48:AA57)=1,0,1) -> 0 | AI47: =IF(PRODUCT(AH48:AH57)=1,0,1) -> 0 | AP47: =IF(PRODUCT(AO48:AO57)=1,0,1) -> 0 | AW47: =IF(PRODUCT(AV48:AV57)=1,0,1) -> 0 | BF47: =IF(PRODUCT(BE48:BE57)=1,0,1) -> 0
B48: Coal Drying | C48: Installed Cost | D48: UK£(million) | E48: 0 | F48: 1 | G48: =E48*F48 -> 0 | H48: =IF(G47=1,"Capital and Cost Data: User Adjusted","") ->  | L48: 0 | M48: 1 | N48: =L48*M48 -> 0 | O48: =IF(N47=1,"Capital and Cost Data: User Adjusted","") ->  | S48: 0 | T48: 1 | U48: =S48*T48 -> 0 | V48: =IF(U47=1,"Capital and Cost Data: User Adjusted","") ->  | Z48: 0 | AA48: 1 | AB48: =Z48*AA48 -> 0 | AC48: =IF(AB47=1,"Capital and Cost Data: User Adjusted","") ->  | AG48: 0 | AH48: 1 | AI48: =AG48*AH48 -> 0 | AJ48: =IF(AI47=1,"Capital and Cost Data: User Adjusted","") ->  | AN48: 0 | AO48: 1 | AP48: =AN48*AO48 -> 0 | AQ48: =IF(AP47=1,"Capital and Cost Data: User Adjusted","") ->  | AU48: 0 | AV48: 1 | AW48: =AU48*AV48 -> 0 | AX48: =IF(AW47=1,"Capital and Cost Data: User Adjusted","") ->  | BD48: 0 | BE48: 1 | BF48: =BD48*BE48 -> 0 | BG48: =IF(BF47=1,"Capital and Cost Data: User Adjusted","") -> 
B49: Gasification | C49: Installed Cost | D49: UK£(million) | E49: 238.9 | F49: 1 | G49: 238.9 | L49: 214.5 | M49: 1 | N49: 214.5 | S49: 0 | T49: 1 | U49: 0 | Z49: 0 | AA49: 1 | AB49: 0 | AG49: 556.7 | AH49: 1 | AI49: 556.7 | AN49: 550.5 | AO49: 1 | AP49: 550.5 | AU49: 556.7 | AV49: 1 | AW49: 556.7 | BD49: 0 | BE49: 1 | BF49: 0
B50: Air Separation | C50: Installed Cost | D50: UK£(million) | E50: 104.1 | F50: 1 | G50: 104.1 | L50: 92.8 | M50: 1 | N50: 92.8 | S50: 0 | T50: 1 | U50: 0 | Z50: 0 | AA50: 1 | AB50: 0 | AG50: 0 | AH50: 1 | AI50: 0 | AN50: 0 | AO50: 1 | AP50: 0 | AU50: 241.7 | AV50: 1 | AW50: 241.7 | BD50: 0 | BE50: 1 | BF50: 0
B51: Acid Gas Removal | C51: Installed Cost | D51: UK£(million) | E51: 121 | F51: 1 | G51: 121 | L51: 62.5 | M51: 1 | N51: 62.5 | S51: 240.9 | T51: 1 | U51: 240.9 | Z51: 0 | AA51: 1 | AB51: 0 | AG51: 262.1 | AH51: 1 | AI51: 262.1 | AN51: 0 | AO51: 1 | AP51: 0 | AU51: 0 | AV51: 1 | AW51: 0 | BD51: 214 | BE51: 1 | BF51: 214
B52: CO2 Compression Unit | C52: Installed Cost | D52: UK£(million) | E52: 61.7 | F52: 1 | G52: 61.7 | L52: 0 | M52: 1 | N52: 0 | S52: 69.5 | T52: 1 | U52: 69.5 | Z52: 0 | AA52: 1 | AB52: 0 | AG52: 90.6 | AH52: 1 | AI52: 90.6 | AN52: 0 | AO52: 1 | AP52: 0 | AU52: 155.6 | AV52: 1 | AW52: 155.6 | BD52: 61.9 | BE52: 1 | BF52: 61.9
B53: CO2 Drying Unit | C53: Installed Cost | D53: UK£(million) | E53: 0 | F53: 1 | G53: 0 | L53: 0 | M53: 1 | N53: 0 | S53: 0 | T53: 1 | U53: 0 | Z53: 0 | AA53: 1 | AB53: 0 | AG53: 0 | AH53: 1 | AI53: 0 | AN53: 0 | AO53: 1 | AP53: 0 | AU53: 0 | AV53: 1 | AW53: 0 | BD53: 0 | BE53: 1 | BF53: 0
B54: Sulphur Plant | C54: Installed Cost | D54: UK£(million) | E54: 33.1 | F54: 1 | G54: 33.1 | L54: 29.6 | M54: 1 | N54: 29.6 | S54: 0 | T54: 1 | U54: 0 | Z54: 0 | AA54: 1 | AB54: 0 | AG54: 0 | AH54: 1 | AI54: 0 | AN54: 0 | AO54: 1 | AP54: 0 | AU54: 0 | AV54: 1 | AW54: 0 | BD54: 0 | BE54: 1 | BF54: 0
B55: Power Island | C55: Installed Cost | D55: UK£(million) | E55: 341.1 | F55: 1 | G55: 341.1 | L55: 341.8 | M55: 1 | N55: 341.8 | S55: 319.7 | T55: 1 | U55: 319.7 | Z55: 302.5 | AA55: 1 | AB55: 302.5 | AG55: 150.9 | AH55: 1 | AI55: 150.9 | AN55: 185.3 | AO55: 1 | AP55: 185.3 | AU55: 167.5 | AV55: 1 | AW55: 167.5 | BD55: 319.7 | BE55: 1 | BF55: 319.7
B56: Syngas Treatment Plant | C56: Installed Cost | D56: UK£(million) | E56: 66 | F56: 1 | G56: 66 | L56: 46.2 | M56: 1 | N56: 46.2 | S56: 0 | T56: 1 | U56: 0 | Z56: 0 | AA56: 1 | AB56: 0 | AG56: 0 | AH56: 1 | AI56: 0 | AN56: 0 | AO56: 1 | AP56: 0 | AU56: 0 | AV56: 1 | AW56: 0 | BD56: 0 | BE56: 1 | BF56: 0
B57: Offsite & Utilities | C57: Installed Cost | D57: UK£(million) | E57: 145.6 | F57: 1 | G57: 145.6 | L57: 122.6 | M57: 1 | N57: 122.6 | S57: 101.3 | T57: 1 | U57: 101.3 | Z57: 86.4 | AA57: 1 | AB57: 86.4 | AG57: 87.9 | AH57: 1 | AI57: 87.9 | AN57: 78.3 | AO57: 1 | AP57: 78.3 | AU57: 233.2 | AV57: 1 | AW57: 233.2 | BD57: 101.3 | BE57: 1 | BF57: 101.3
B60: TOTAL | C60: Installed Cost | D60: UK£(million) | E60: =SUM(E48:E59) -> 1111.5 | F60: n/a | G60: =SUM(G48:G59) -> 1111.5 | L60: =SUM(L48:L59) -> 910 | M60: n/a | N60: =SUM(N48:N59) -> 910 | S60: =SUM(S48:S59) -> 731.4 | T60: n/a | U60: =SUM(U48:U59) -> 731.4 | Z60: =SUM(Z48:Z59) -> 388.9 | AA60: n/a | AB60: =SUM(AB48:AB59) -> 388.9 | AG60: =SUM(AG48:AG59) -> 1148.2 | AH60: n/a | AI60: =SUM(AI48:AI59) -> 1148.2 | AN60: =SUM(AN48:AN59) -> 814.1 | AO60: n/a | AP60: =SUM(AP48:AP59) -> 814.1 | AU60: =SUM(AU48:AU59) -> 1354.7 | AV60: n/a | AW60: =SUM(AW48:AW59) -> 1354.7 | BD60: =SUM(BD48:BD59) -> 696.9 | BE60: n/a | BF60: =SUM(BF48:BF59) -> 696.9
G63: =IF(PRODUCT(F64:F67)=1,0,1) -> 0 | N63: =IF(PRODUCT(M64:M67)=1,0,1) -> 0 | U63: =IF(PRODUCT(T64:T67)=1,0,1) -> 0 | AB63: =IF(PRODUCT(AA64:AA67)=1,0,1) -> 0 | AI63: =IF(PRODUCT(AH64:AH67)=1,0,1) -> 0 | AP63: =IF(PRODUCT(AO64:AO67)=1,0,1) -> 0 | AW63: =IF(PRODUCT(AV64:AV67)=1,0,1) -> 0 | BF63: =IF(PRODUCT(BE64:BE67)=1,0,1) -> 0
B64: Contingency | E64: 0.25 | F64: 1 | G64: =E64*F64 -> 0.25 | H64: =IF(G63=1,"Data: User Adjusted","") ->  | L64: 0.25 | M64: 1 | N64: =L64*M64 -> 0.25 | O64: =IF(N63=1,"Data: User Adjusted","") ->  | S64: 0.25 | T64: 1 | U64: =S64*T64 -> 0.25 | V64: =IF(U63=1,"Data: User Adjusted","") ->  | Z64: 0.25 | AA64: 1 | AB64: =Z64*AA64 -> 0.25 | AC64: =IF(AB63=1,"Data: User Adjusted","") ->  | AG64: 0.25 | AH64: 1 | AI64: =AG64*AH64 -> 0.25 | AJ64: =IF(AI63=1,"Data: User Adjusted","") ->  | AN64: 0.25 | AO64: 1 | AP64: =AN64*AO64 -> 0.25 | AQ64: =IF(AP63=1,"Data: User Adjusted","") ->  | AU64: 0.25 | AV64: 1 | AW64: =AU64*AV64 -> 0.25 | AX64: =IF(AW63=1,"Data: User Adjusted","") ->  | BD64: 0.25 | BE64: 1 | BF64: =BD64*BE64 -> 0.25 | BG64: =IF(BF63=1,"Data: User Adjusted","") -> 
B65: Land purchase, surveys | E65: 0.05 | F65: 1 | G65: =E65*F65 -> 0.05 | L65: 0.05 | M65: 1 | N65: =L65*M65 -> 0.05 | S65: 0.05 | T65: 1 | U65: =S65*T65 -> 0.05 | Z65: 0.05 | AA65: 1 | AB65: =Z65*AA65 -> 0.05 | AG65: 0.05 | AH65: 1 | AI65: =AG65*AH65 -> 0.05 | AN65: 0.05 | AO65: 1 | AP65: =AN65*AO65 -> 0.05 | AU65: 0.05 | AV65: 1 | AW65: =AU65*AV65 -> 0.05 | BD65: 0.05 | BE65: 1 | BF65: =BD65*BE65 -> 0.05
B66: Fees | E66: 0.1 | F66: 1 | G66: =E66*F66 -> 0.1 | L66: 0.1 | M66: 1 | N66: =L66*M66 -> 0.1 | S66: 0.1 | T66: 1 | U66: =S66*T66 -> 0.1 | Z66: 0.1 | AA66: 1 | AB66: =Z66*AA66 -> 0.1 | AG66: 0.1 | AH66: 1 | AI66: =AG66*AH66 -> 0.1 | AN66: 0.1 | AO66: 1 | AP66: =AN66*AO66 -> 0.1 | AU66: 0.1 | AV66: 1 | AW66: =AU66*AV66 -> 0.1 | BD66: 0.1 | BE66: 1 | BF66: =BD66*BE66 -> 0.1
B67: Discounted Rate | E67: 0.1 | F67: 1 | G67: =E67*F67 -> 0.1 | L67: 0.1 | M67: 1 | N67: =L67*M67 -> 0.1 | S67: 0.1 | T67: 1 | U67: =S67*T67 -> 0.1 | Z67: 0.1 | AA67: 1 | AB67: =Z67*AA67 -> 0.1 | AG67: 0.1 | AH67: 1 | AI67: =AG67*AH67 -> 0.1 | AN67: 0.1 | AO67: 1 | AP67: =AN67*AO67 -> 0.1 | AU67: 0.1 | AV67: 1 | AW67: =AU67*AV67 -> 0.1 | BD67: 0.1 | BE67: 1 | BF67: =BD67*BE67 -> 0.1
A69: Operating Cost Data
G70: =IF(PRODUCT(F71:F76,F78:F81)=1,0,1) -> 0 | N70: =IF(PRODUCT(M71:M76,M78:M81)=1,0,1) -> 0 | U70: =IF(PRODUCT(T71:T76,T78:T81)=1,0,1) -> 0 | AB70: =IF(PRODUCT(AA71:AA76,AA78:AA81)=1,0,1) -> 0 | AI70: =IF(PRODUCT(AH71:AH76,AH78:AH81)=1,0,1) -> 0 | AP70: =IF(PRODUCT(AO71:AO76,AO78:AO81)=1,0,1) -> 0 | AW70: =IF(PRODUCT(AV71:AV76,AV78:AV81)=1,0,1) -> 0 | BF70: =IF(PRODUCT(BE71:BE76,BE78:BE81)=1,0,1) -> 0
B71: Coal Price | D71: UK£/te | E71: 65 | F71: 1 | G71: =E71*F71 -> 65 | H71: =IF(G70=1,"Operating Data: User Adjusted","") ->  | L71: 65 | M71: 1 | N71: =L71*M71 -> 65 | O71: =IF(N70=1,"Operating Data: User Adjusted","") ->  | S71: n/a | T71: n/a | U71: n/a | V71: =IF(U70=1,"Operating Data: User Adjusted","") ->  | Z71: n/a | AA71: n/a | AB71: n/a | AC71: =IF(AB70=1,"Operating Data: User Adjusted","") ->  | AG71: 65 | AH71: 1 | AI71: =AG71*AH71 -> 65 | AJ71: =IF(AI70=1,"Operating Data: User Adjusted","") ->  | AN71: 65 | AO71: 1 | AP71: =AN71*AO71 -> 65 | AQ71: =IF(AP70=1,"Operating Data: User Adjusted","") ->  | AU71: 65 | AV71: 1 | AW71: =AU71*AV71 -> 65 | AX71: =IF(AW70=1,"Operating Data: User Adjusted","") ->  | BD71: n/a | BE71: n/a | BF71: n/a | BG71: =IF(BF70=1,"Operating Data: User Adjusted","") -> 
B72: Maintenance | D72: UK£(million)/year | E72: 39.72 | F72: 1 | G72: =E72*F72 -> 39.72 | L72: 34.22 | M72: 1 | N72: =L72*M72 -> 34.22 | S72: 25.5 | T72: 1 | U72: =S72*T72 -> 25.5 | Z72: 16.6 | AA72: 1 | AB72: =Z72*AA72 -> 16.6 | AG72: 40.1 | AH72: 1 | AI72: =AG72*AH72 -> 40.1 | AN72: 32.6 | AO72: 1 | AP72: =AN72*AO72 -> 32.6 | AU72: 44.5 | AV72: 1 | AW72: =AU72*AV72 -> 44.5 | BD72: 24.6 | BE72: 1 | BF72: =BD72*BE72 -> 24.6
B73: Waste Disposal | D73: UK£/te | E73: 6 | F73: 1 | G73: =E73*F73 -> 6 | L73: 6 | M73: 1 | N73: =L73*M73 -> 6 | S73: n/a | T73: n/a | U73: n/a | Z73: n/a | AA73: n/a | AB73: n/a | AG73: 6 | AH73: 1 | AI73: =AG73*AH73 -> 6 | AN73: 6 | AO73: 1 | AP73: =AN73*AO73 -> 6 | AU73: 6 | AV73: 1 | AW73: =AU73*AV73 -> 6 | BD73: n/a | BE73: n/a | BF73: n/a
B74: Chemicals & Consumables | D74: UK£(million)/year | E74: 3.79 | F74: 1 | G74: =E74*F74 -> 3.79 | L74: 2.48 | M74: 1 | N74: =L74*M74 -> 2.48 | S74: 1.2 | T74: 1 | U74: =S74*T74 -> 1.2 | Z74: 0.001 | AA74: 1 | AB74: =Z74*AA74 -> 0.001 | AG74: 15.2 | AH74: 1 | AI74: =AG74*AH74 -> 15.2 | AN74: 5.7 | AO74: 1 | AP74: =AN74*AO74 -> 5.7 | AU74: 0.1 | AV74: 1 | AW74: =AU74*AV74 -> 0.1 | BD74: 0.98 | BE74: 1 | BF74: =BD74*BE74 -> 0.98
B76: Natural Gas Price | D76: UK£/te | E76: n/a | F76: 1 | G76: n/a | L76: n/a | M76: n/a | N76: n/a | S76: 265 | T76: 1 | U76: =S76*T76 -> 265 | Z76: 265 | AA76: 1 | AB76: =Z76*AA76 -> 265 | AG76: n/a | AH76: 1 | AI76: n/a | AN76: n/a | AO76: 1 | AP76: n/a | AU76: n/a | AV76: 1 | AW76: n/a | BD76: 265 | BE76: 1 | BF76: =BD76*BE76 -> 265
B77: CO2 Emissions | D77: UK£/te | E77: 0 | F77: 0 | G77: =E77+F77 -> 0 | L77: 0 | M77: 0 | N77: =L77+M77 -> 0 | S77: 0 | T77: 0 | U77: =S77+T77 -> 0 | Z77: 0 | AA77: 0 | AB77: =Z77+AA77 -> 0 | AG77: 0 | AH77: 0 | AI77: =AG77+AH77 -> 0 | AN77: 0 | AO77: 0 | AP77: =AN77+AO77 -> 0 | AU77: 0 | AV77: 0 | AW77: =AU77+AV77 -> 0 | BD77: 0 | BE77: 0 | BF77: =BD77+BE77 -> 0
B78: Number of operations personnel | E78: 128 | F78: 1 | G78: =E78*F78 -> 128 | L78: 115 | M78: 1 | N78: =L78*M78 -> 115 | S78: 60 | T78: 1 | U78: 60 | Z78: 40 | AA78: 1 | AB78: 40 | AG78: 115 | AH78: 1 | AI78: =AG78*AH78 -> 115 | AN78: 105 | AO78: 1 | AP78: =AN78*AO78 -> 105 | AU78: 128 | AV78: 1 | AW78: =AU78*AV78 -> 128 | BD78: 60 | BE78: 1 | BF78: 60
B79: Average salary options personnel | E79: 0.05 | F79: 1 | G79: =E79*F79 -> 0.05 | L79: 0.05 | M79: 1 | N79: =L79*M79 -> 0.05 | S79: 0.05 | T79: 1 | U79: 0.05 | Z79: 0.05 | AA79: 1 | AB79: 0.05 | AG79: 0.05 | AH79: 1 | AI79: =AG79*AH79 -> 0.05 | AN79: 0.05 | AO79: 1 | AP79: =AN79*AO79 -> 0.05 | AU79: 0.05 | AV79: 1 | AW79: =AU79*AV79 -> 0.05 | BD79: 0.05 | BE79: 1 | BF79: 0.05
B80: Admin allowance (% of operation personnel cost) | E80: 0.3 | F80: 1 | G80: =E80*F80 -> 0.3 | L80: 0.3 | M80: 1 | N80: =L80*M80 -> 0.3 | S80: 0.3 | T80: 1 | U80: 0.3 | Z80: 0.3 | AA80: 1 | AB80: 0.3 | AG80: 0.3 | AH80: 1 | AI80: =AG80*AH80 -> 0.3 | AN80: 0.3 | AO80: 1 | AP80: =AN80*AO80 -> 0.3 | AU80: 0.3 | AV80: 1 | AW80: =AU80*AV80 -> 0.3 | BD80: 0.3 | BE80: 1 | BF80: 0.3
B81: Insurance | E81: 0.02 | F81: 1 | G81: =E81*F81 -> 0.02 | L81: 0.02 | M81: 1 | N81: =L81*M81 -> 0.02 | S81: 0.02 | T81: 1 | U81: 0.02 | Z81: 0.02 | AA81: 1 | AB81: 0.02 | AG81: 0.02 | AH81: 1 | AI81: =AG81*AH81 -> 0.02 | AN81: 0.02 | AO81: 1 | AP81: =AN81*AO81 -> 0.02 | AU81: 0.02 | AV81: 1 | AW81: =AU81*AV81 -> 0.02 | BD81: 0.02 | BE81: 1 | BF81: 0.02
A83: Revenue Variables | G83: =IF(PRODUCT(F84:F86)=1,0,1) -> 0 | N83: =IF(PRODUCT(M84:M86)=1,0,1) -> 0 | U83: =IF(PRODUCT(T84:T86)=1,0,1) -> 0 | AB83: =IF(PRODUCT(AA84:AA86)=1,0,1) -> 0 | AI83: =IF(PRODUCT(AH84:AH86)=1,0,1) -> 0 | AP83: =IF(PRODUCT(AO84:AO86)=1,0,1) -> 0 | AW83: =IF(PRODUCT(AV84:AV86)=1,0,1) -> 0 | BF83: =IF(PRODUCT(BE84:BE86)=1,0,1) -> 0
B84: Sulphur Price | D84: UK£/te | E84: 40 | F84: 1 | G84: =E84*F84 -> 40 | H84: =IF(G83=1,"Revenue Data: User Adjusted","") ->  | L84: 40 | M84: 1 | N84: =L84*M84 -> 40 | O84: =IF(N83=1,"Revenue Data: User Adjusted","") ->  | S84: n/a | T84: n/a | U84: n/a | V84: =IF(U83=1,"Revenue Data: User Adjusted","") ->  | Z84: n/a | AA84: n/a | AB84: n/a | AC84: =IF(AB83=1,"Revenue Data: User Adjusted","") ->  | AG84: n/a | AH84: n/a | AI84: n/a | AJ84: =IF(AI83=1,"Revenue Data: User Adjusted","") ->  | AN84: n/a | AO84: n/a | AP84: n/a | AQ84: =IF(AP83=1,"Revenue Data: User Adjusted","") ->  | AU84: n/a | AV84: n/a | AW84: n/a | AX84: =IF(AW83=1,"Revenue Data: User Adjusted","") ->  | BD84: n/a | BE84: n/a | BF84: n/a | BG84: =IF(BF83=1,"Revenue Data: User Adjusted","") -> 
B85: Hydrogen Price | D85: UK£/te | E85: =2*1000/1.53 -> 1307.189542 | F85: 1 | G85: =E85*F85 -> 1307.189542 | L85: =2*1000/1.53 -> 1307.189542 | M85: 1 | N85: =L85*M85 -> 1307.189542 | S85: n/a | T85: n/a | U85: n/a | Z85: n/a | AA85: n/a | AB85: n/a | AG85: n/a | AH85: n/a | AI85: n/a | AN85: n/a | AO85: n/a | AP85: n/a | AU85: n/a | AV85: n/a | AW85: n/a | BD85: n/a | BE85: n/a | BF85: n/a
B86: Discount Rate | D86: % | E86: 0.1 | F86: 1 | G86: =E86*F86 -> 0.1 | L86: 0.1 | M86: 1 | N86: =L86*M86 -> 0.1 | S86: 0.1 | T86: 1 | U86: =S86*T86 -> 0.1 | Z86: 0.1 | AA86: 1 | AB86: =Z86*AA86 -> 0.1 | AG86: 0.1 | AH86: 1 | AI86: =AG86*AH86 -> 0.1 | AN86: 0.1 | AO86: 1 | AP86: =AN86*AO86 -> 0.1 | AU86: 0.1 | AV86: 1 | AW86: =AU86*AV86 -> 0.1 | BD86: 0.1 | BE86: 1 | BF86: =BD86*BE86 -> 0.1
F88: =F89+E89 -> 30 | M88: =M89+L89 -> 30 | T88: =T89+S89 -> 20 | AA88: =AA89+Z89 -> 20 | AH88: =AH89+AG89 -> 30 | AO88: =AO89+AN89 -> 30 | AV88: =AV89+AU89 -> 30 | BE88: =BE89+BD89 -> 20
A89: Project Life (can be 20, 25 or 30 years) | D89: years | E89: 30 | F89: 0 | G89: =IF(F88<=20,20,IF(F88<=25,25,IF(F88>25,30,30))) -> 30 | L89: 30 | M89: 0 | N89: =IF(M88<=20,20,IF(M88<=25,25,IF(M88>25,30,30))) -> 30 | S89: 20 | T89: 0 | U89: =IF(T88<=20,20,IF(T88<=25,25,IF(T88>25,30,30))) -> 20 | Z89: 20 | AA89: 0 | AB89: =IF(AA88<=20,20,IF(AA88<=25,25,IF(AA88>25,30,30))) -> 20 | AG89: 30 | AH89: 0 | AI89: =IF(AH88<=20,20,IF(AH88<=25,25,IF(AH88>25,30,30))) -> 30 | AN89: 30 | AO89: 0 | AP89: =IF(AO88<=20,20,IF(AO88<=25,25,IF(AO88>25,30,30))) -> 30 | AU89: 30 | AV89: 0 | AW89: =IF(AV88<=20,20,IF(AV88<=25,25,IF(AV88>25,30,30))) -> 30 | BD89: 20 | BE89: 0 | BF89: =IF(BE88<=20,20,IF(BE88<=25,25,IF(BE88>25,30,30))) -> 20
A91: Project Internal Rate of Return
A93: Year 1 of Plant | G93: 2012 | N93: 2012 | U93: 2012 | AB93: 2012 | AI93: 2012 | AP93: 2012 | AW93: 2012 | BF93: 2012
A95: Expenditure factor
B96: Start Project year 1 | G96: 0.25 | N96: 0.25 | U96: 0.25 | AB96: 0.25 | AI96: 0.25 | AP96: 0.25 | AW96: 0.25 | BF96: 0.25
B97: Start Project year 2 | G97: 0.45 | N97: 0.45 | U97: 0.45 | AB97: 0.45 | AI97: 0.45 | AP97: 0.45 | AW97: 0.45 | BF97: 0.45
B98: Start Project year 3 | G98: 0.3 | N98: 0.3 | U98: 0.3 | AB98: 0.3 | AI98: 0.3 | AP98: 0.3 | AW98: 0.3 | BF98: 0.3
A100: Factors | E100: Load | G100: Availability | L100: Load | N100: Availability | S100: Load | T100: Availability | Z100: Load | AA100: Availability | AG100: Load | AH100: Availability | AN100: Load | AO100: Availability | AU100: Load | AV100: Availability | BD100: Load | BE100: Availability
E101: H2 Prod'n | F101: Power Island | G101: H2 Prod'n | H101: Power Island | L101: H2 Prod'n | M101: Power Island | N101: H2 Prod'n | O101: Power Island
C102: =IF(G89>1, IF(G89>10,"Year 1",""),"") -> Year 1 | D102: =IF(C102="Year 1",G93,"") -> 2012 | E102: 1 | F102: 1 | G102: 0.65 | H102: 0.65 | I102: =IF(F102*H102>E102*G102,"PI (LFxA) > H2 (LFx A)"," ") ->  | J102: =IF(N89>1, IF(N89>10,"Year 1",""),"") -> Year 1 | K102: =IF(J102="Year 1",N93,"") -> 2012 | L102: 1 | M102: 1 | N102: 0.65 | O102: 0.65 | P102: =IF(M102*O102>L102*N102,"PI (LFxA) > H2 (LFx A)"," ") ->  | Q102: =IF(U89>1, IF(U89>10,"Year 1",""),"") -> Year 1 | R102: =IF(Q102="Year 1",U93,"") -> 2012 | S102: 1 | T102: 0.65 | X102: =IF(AB89>1, IF(AB89>10,"Year 1",""),"") -> Year 1 | Y102: =IF(X102="Year 1",AB93,"") -> 2012 | Z102: 1 | AA102: 0.65 | AE102: =IF(AI89>1, IF(AI89>10,"Year 1",""),"") -> Year 1 | AF102: =IF(AE102="Year 1",AI93,"") -> 2012 | AG102: 1 | AH102: 0.65 | AL102: =IF(AP89>1, IF(AP89>10,"Year 1",""),"") -> Year 1 | AM102: =IF(AL102="Year 1",AP93,"") -> 2012 | AN102: 1 | AO102: 0.65 | AS102: =IF(AW89>1, IF(AW89>10,"Year 1",""),"") -> Year 1 | AT102: =IF(AS102="Year 1",AW93,"") -> 2012 | AU102: 1 | AV102: 0.65 | BB102: =IF(BF89>1, IF(BF89>10,"Year 1",""),"") -> Year 1 | BC102: =IF(BB102="Year 1",BF93,"") -> 2012 | BD102: 1 | BE102: 0.65
C103: =IF(G89>1, IF(G89>10,"Year 2",""),"") -> Year 2 | D103: =IF(C103="Year 2",D102+1,"") -> 2013 | E103: 1 | F103: 1 | G103: 0.75 | H103: 0.75 | I103: =IF(F103*H103>E103*G103,"PI (LFxA) > H2 (LFx A)"," ") ->  | J103: =IF(N89>1, IF(N89>10,"Year 2",""),"") -> Year 2 | K103: =IF(J103="Year 2",K102+1,"") -> 2013 | L103: 1 | M103: 1 | N103: 0.75 | O103: 0.75 | P103: =IF(M103*O103>L103*N103,"PI (LFxA) > H2 (LFx A)"," ") ->  | Q103: =IF(U89>1, IF(U89>10,"Year 2",""),"") -> Year 2 | R103: =IF(Q103="Year 2",R102+1,"") -> 2013 | S103: 1 | T103: 0.75 | X103: =IF(AB89>1, IF(AB89>10,"Year 2",""),"") -> Year 2 | Y103: =IF(X103="Year 2",Y102+1,"") -> 2013 | Z103: 1 | AA103: 0.75 | AE103: =IF(AI89>1, IF(AI89>10,"Year 2",""),"") -> Year 2 | AF103: =IF(AE103="Year 2",AF102+1,"") -> 2013 | AG103: 1 | AH103: 0.75 | AL103: =IF(AP89>1, IF(AP89>10,"Year 2",""),"") -> Year 2 | AM103: =IF(AL103="Year 2",AM102+1,"") -> 2013 | AN103: 1 | AO103: 0.75 | AS103: =IF(AW89>1, IF(AW89>10,"Year 2",""),"") -> Year 2 | AT103: =IF(AS103="Year 2",AT102+1,"") -> 2013 | AU103: 1 | AV103: 0.75 | BB103: =IF(BF89>1, IF(BF89>10,"Year 2",""),"") -> Year 2 | BC103: =IF(BB103="Year 2",BC102+1,"") -> 2013 | BD103: 1 | BE103: 0.75
C104: =IF(G89>1, IF(G89>10,"Year 3",""),"") -> Year 3 | D104: =IF(C104="Year 3",D103+1,"") -> 2014 | E104: 1 | F104: 1 | G104: 0.85 | H104: 0.85 | J104: =IF(N89>1, IF(N89>10,"Year 3",""),"") -> Year 3 | K104: =IF(J104="Year 3",K103+1,"") -> 2014 | L104: 1 | M104: 1 | N104: 0.85 | O104: 0.85 | Q104: =IF(U89>1, IF(U89>10,"Year 3",""),"") -> Year 3 | R104: =IF(Q104="Year 3",R103+1,"") -> 2014 | S104: 1 | T104: 0.85 | X104: =IF(AB89>1, IF(AB89>10,"Year 3",""),"") -> Year 3 | Y104: =IF(X104="Year 3",Y103+1,"") -> 2014 | Z104: 1 | AA104: 0.85 | AE104: =IF(AI89>1, IF(AI89>10,"Year 3",""),"") -> Year 3 | AF104: =IF(AE104="Year 3",AF103+1,"") -> 2014 | AG104: 1 | AH104: 0.85 | AL104: =IF(AP89>1, IF(AP89>10,"Year 3",""),"") -> Year 3 | AM104: =IF(AL104="Year 3",AM103+1,"") -> 2014 | AN104: 1 | AO104: 0.85 | AS104: =IF(AW89>1, IF(AW89>10,"Year 3",""),"") -> Year 3 | AT104: =IF(AS104="Year 3",AT103+1,"") -> 2014 | AU104: 1 | AV104: 0.85 | BB104: =IF(BF89>1, IF(BF89>10,"Year 3",""),"") -> Year 3 | BC104: =IF(BB104="Year 3",BC103+1,"") -> 2014 | BD104: 1 | BE104: 0.85
C105: =IF(G89>1, IF(G89>10,"Year 4",""),"") -> Year 4 | D105: =IF(C105="Year 4",D104+1,"") -> 2015 | E105: 1 | F105: 1 | G105: 0.85 | H105: 0.85 | J105: =IF(N89>1, IF(N89>10,"Year 4",""),"") -> Year 4 | K105: =IF(J105="Year 4",K104+1,"") -> 2015 | L105: 1 | M105: 1 | N105: 0.85 | O105: 0.85 | Q105: =IF(U89>1, IF(U89>10,"Year 4",""),"") -> Year 4 | R105: =IF(Q105="Year 4",R104+1,"") -> 2015 | S105: 1 | T105: 0.85 | X105: =IF(AB89>1, IF(AB89>10,"Year 4",""),"") -> Year 4 | Y105: =IF(X105="Year 4",Y104+1,"") -> 2015 | Z105: 1 | AA105: 0.85 | AE105: =IF(AI89>1, IF(AI89>10,"Year 4",""),"") -> Year 4 | AF105: =IF(AE105="Year 4",AF104+1,"") -> 2015 | AG105: 1 | AH105: 0.85 | AL105: =IF(AP89>1, IF(AP89>10,"Year 4",""),"") -> Year 4 | AM105: =IF(AL105="Year 4",AM104+1,"") -> 2015 | AN105: 1 | AO105: 0.85 | AS105: =IF(AW89>1, IF(AW89>10,"Year 4",""),"") -> Year 4 | AT105: =IF(AS105="Year 4",AT104+1,"") -> 2015 | AU105: 1 | AV105: 0.85 | BB105: =IF(BF89>1, IF(BF89>10,"Year 4",""),"") -> Year 4 | BC105: =IF(BB105="Year 4",BC104+1,"") -> 2015 | BD105: 1 | BE105: 0.85
C106: =IF(G89>1, IF(G89>10,"Year 5",""),"") -> Year 5 | D106: =IF(C106="Year 5",D105+1,"") -> 2016 | E106: 1 | F106: 1 | G106: 0.85 | H106: 0.85 | J106: =IF(N89>1, IF(N89>10,"Year 5",""),"") -> Year 5 | K106: =IF(J106="Year 5",K105+1,"") -> 2016 | L106: 1 | M106: 1 | N106: 0.85 | O106: 0.85 | Q106: =IF(U89>1, IF(U89>10,"Year 5",""),"") -> Year 5 | R106: =IF(Q106="Year 5",R105+1,"") -> 2016 | S106: 1 | T106: 0.85 | X106: =IF(AB89>1, IF(AB89>10,"Year 5",""),"") -> Year 5 | Y106: =IF(X106="Year 5",Y105+1,"") -> 2016 | Z106: 1 | AA106: 0.85 | AE106: =IF(AI89>1, IF(AI89>10,"Year 5",""),"") -> Year 5 | AF106: =IF(AE106="Year 5",AF105+1,"") -> 2016 | AG106: 1 | AH106: 0.85 | AL106: =IF(AP89>1, IF(AP89>10,"Year 5",""),"") -> Year 5 | AM106: =IF(AL106="Year 5",AM105+1,"") -> 2016 | AN106: 1 | AO106: 0.85 | AS106: =IF(AW89>1, IF(AW89>10,"Year 5",""),"") -> Year 5 | AT106: =IF(AS106="Year 5",AT105+1,"") -> 2016 | AU106: 1 | AV106: 0.85 | BB106: =IF(BF89>1, IF(BF89>10,"Year 5",""),"") -> Year 5 | BC106: =IF(BB106="Year 5",BC105+1,"") -> 2016 | BD106: 1 | BE106: 0.85
C107: =IF(G89>1, IF(G89>10,"Year 6",""),"") -> Year 6 | D107: =IF(C107="Year 6",D106+1,"") -> 2017 | E107: 1 | F107: 1 | G107: 0.85 | H107: 0.85 | J107: =IF(N89>1, IF(N89>10,"Year 6",""),"") -> Year 6 | K107: =IF(J107="Year 6",K106+1,"") -> 2017 | L107: 1 | M107: 1 | N107: 0.85 | O107: 0.85 | Q107: =IF(U89>1, IF(U89>10,"Year 6",""),"") -> Year 6 | R107: =IF(Q107="Year 6",R106+1,"") -> 2017 | S107: 1 | T107: 0.85 | X107: =IF(AB89>1, IF(AB89>10,"Year 6",""),"") -> Year 6 | Y107: =IF(X107="Year 6",Y106+1,"") -> 2017 | Z107: 1 | AA107: 0.85 | AE107: =IF(AI89>1, IF(AI89>10,"Year 6",""),"") -> Year 6 | AF107: =IF(AE107="Year 6",AF106+1,"") -> 2017 | AG107: 1 | AH107: 0.85 | AL107: =IF(AP89>1, IF(AP89>10,"Year 6",""),"") -> Year 6 | AM107: =IF(AL107="Year 6",AM106+1,"") -> 2017 | AN107: 1 | AO107: 0.85 | AS107: =IF(AW89>1, IF(AW89>10,"Year 6",""),"") -> Year 6 | AT107: =IF(AS107="Year 6",AT106+1,"") -> 2017 | AU107: 1 | AV107: 0.85 | BB107: =IF(BF89>1, IF(BF89>10,"Year 6",""),"") -> Year 6 | BC107: =IF(BB107="Year 6",BC106+1,"") -> 2017 | BD107: 1 | BE107: 0.85
C108: =IF(G89>1, IF(G89>10,"Year 7",""),"") -> Year 7 | D108: =IF(C108="Year 7",D107+1,"") -> 2018 | E108: 1 | F108: 1 | G108: 0.85 | H108: 0.85 | J108: =IF(N89>1, IF(N89>10,"Year 7",""),"") -> Year 7 | K108: =IF(J108="Year 7",K107+1,"") -> 2018 | L108: 1 | M108: 1 | N108: 0.85 | O108: 0.85 | Q108: =IF(U89>1, IF(U89>10,"Year 7",""),"") -> Year 7 | R108: =IF(Q108="Year 7",R107+1,"") -> 2018 | S108: 1 | T108: 0.85 | X108: =IF(AB89>1, IF(AB89>10,"Year 7",""),"") -> Year 7 | Y108: =IF(X108="Year 7",Y107+1,"") -> 2018 | Z108: 1 | AA108: 0.85 | AE108: =IF(AI89>1, IF(AI89>10,"Year 7",""),"") -> Year 7 | AF108: =IF(AE108="Year 7",AF107+1,"") -> 2018 | AG108: 1 | AH108: 0.85 | AL108: =IF(AP89>1, IF(AP89>10,"Year 7",""),"") -> Year 7 | AM108: =IF(AL108="Year 7",AM107+1,"") -> 2018 | AN108: 1 | AO108: 0.85 | AS108: =IF(AW89>1, IF(AW89>10,"Year 7",""),"") -> Year 7 | AT108: =IF(AS108="Year 7",AT107+1,"") -> 2018 | AU108: 1 | AV108: 0.85 | BB108: =IF(BF89>1, IF(BF89>10,"Year 7",""),"") -> Year 7 | BC108: =IF(BB108="Year 7",BC107+1,"") -> 2018 | BD108: 1 | BE108: 0.85
C109: =IF(G89>1, IF(G89>10,"Year 8",""),"") -> Year 8 | D109: =IF(C109="Year 8",D108+1,"") -> 2019 | E109: 1 | F109: 1 | G109: 0.85 | H109: 0.85 | J109: =IF(N89>1, IF(N89>10,"Year 8",""),"") -> Year 8 | K109: =IF(J109="Year 8",K108+1,"") -> 2019 | L109: 1 | M109: 1 | N109: 0.85 | O109: 0.85 | Q109: =IF(U89>1, IF(U89>10,"Year 8",""),"") -> Year 8 | R109: =IF(Q109="Year 8",R108+1,"") -> 2019 | S109: 1 | T109: 0.85 | X109: =IF(AB89>1, IF(AB89>10,"Year 8",""),"") -> Year 8 | Y109: =IF(X109="Year 8",Y108+1,"") -> 2019 | Z109: 1 | AA109: 0.85 | AE109: =IF(AI89>1, IF(AI89>10,"Year 8",""),"") -> Year 8 | AF109: =IF(AE109="Year 8",AF108+1,"") -> 2019 | AG109: 1 | AH109: 0.85 | AL109: =IF(AP89>1, IF(AP89>10,"Year 8",""),"") -> Year 8 | AM109: =IF(AL109="Year 8",AM108+1,"") -> 2019 | AN109: 1 | AO109: 0.85 | AS109: =IF(AW89>1, IF(AW89>10,"Year 8",""),"") -> Year 8 | AT109: =IF(AS109="Year 8",AT108+1,"") -> 2019 | AU109: 1 | AV109: 0.85 | BB109: =IF(BF89>1, IF(BF89>10,"Year 8",""),"") -> Year 8 | BC109: =IF(BB109="Year 8",BC108+1,"") -> 2019 | BD109: 1 | BE109: 0.85
C110: =IF(G89>1, IF(G89>10,"Year 9",""),"") -> Year 9 | D110: =IF(C110="Year 9",D109+1,"") -> 2020 | E110: 1 | F110: 1 | G110: 0.85 | H110: 0.85 | J110: =IF(N89>1, IF(N89>10,"Year 9",""),"") -> Year 9 | K110: =IF(J110="Year 9",K109+1,"") -> 2020 | L110: 1 | M110: 1 | N110: 0.85 | O110: 0.85 | Q110: =IF(U89>1, IF(U89>10,"Year 9",""),"") -> Year 9 | R110: =IF(Q110="Year 9",R109+1,"") -> 2020 | S110: 1 | T110: 0.85 | X110: =IF(AB89>1, IF(AB89>10,"Year 9",""),"") -> Year 9 | Y110: =IF(X110="Year 9",Y109+1,"") -> 2020 | Z110: 1 | AA110: 0.85 | AE110: =IF(AI89>1, IF(AI89>10,"Year 9",""),"") -> Year 9 | AF110: =IF(AE110="Year 9",AF109+1,"") -> 2020 | AG110: 1 | AH110: 0.85 | AL110: =IF(AP89>1, IF(AP89>10,"Year 9",""),"") -> Year 9 | AM110: =IF(AL110="Year 9",AM109+1,"") -> 2020 | AN110: 1 | AO110: 0.85 | AS110: =IF(AW89>1, IF(AW89>10,"Year 9",""),"") -> Year 9 | AT110: =IF(AS110="Year 9",AT109+1,"") -> 2020 | AU110: 1 | AV110: 0.85 | BB110: =IF(BF89>1, IF(BF89>10,"Year 9",""),"") -> Year 9 | BC110: =IF(BB110="Year 9",BC109+1,"") -> 2020 | BD110: 1 | BE110: 0.85
C111: =IF(G89>1, IF(G89>10,"Year 10",""),"") -> Year 10 | D111: =IF(C111="Year 10",D110+1,"") -> 2021 | E111: 1 | F111: 1 | G111: 0.85 | H111: 0.85 | J111: =IF(N89>1, IF(N89>10,"Year 10",""),"") -> Year 10 | K111: =IF(J111="Year 10",K110+1,"") -> 2021 | L111: 1 | M111: 1 | N111: 0.85 | O111: 0.85 | Q111: =IF(U89>1, IF(U89>10,"Year 10",""),"") -> Year 10 | R111: =IF(Q111="Year 10",R110+1,"") -> 2021 | S111: 1 | T111: 0.85 | X111: =IF(AB89>1, IF(AB89>10,"Year 10",""),"") -> Year 10 | Y111: =IF(X111="Year 10",Y110+1,"") -> 2021 | Z111: 1 | AA111: 0.85 | AE111: =IF(AI89>1, IF(AI89>10,"Year 10",""),"") -> Year 10 | AF111: =IF(AE111="Year 10",AF110+1,"") -> 2021 | AG111: 1 | AH111: 0.85 | AL111: =IF(AP89>1, IF(AP89>10,"Year 10",""),"") -> Year 10 | AM111: =IF(AL111="Year 10",AM110+1,"") -> 2021 | AN111: 1 | AO111: 0.85 | AS111: =IF(AW89>1, IF(AW89>10,"Year 10",""),"") -> Year 10 | AT111: =IF(AS111="Year 10",AT110+1,"") -> 2021 | AU111: 1 | AV111: 0.85 | BB111: =IF(BF89>1, IF(BF89>10,"Year 10",""),"") -> Year 10 | BC111: =IF(BB111="Year 10",BC110+1,"") -> 2021 | BD111: 1 | BE111: 0.85
C112: =IF(G89>1, IF(G89>10,"Year 11",""),"") -> Year 11 | D112: =IF(C112="Year 11",D111+1,"") -> 2022 | E112: 1 | F112: 1 | G112: 0.85 | H112: 0.85 | J112: =IF(N89>1, IF(N89>10,"Year 11",""),"") -> Year 11 | K112: =IF(J112="Year 11",K111+1,"") -> 2022 | L112: 1 | M112: 1 | N112: 0.85 | O112: 0.85 | Q112: =IF(U89>1, IF(U89>10,"Year 11",""),"") -> Year 11 | R112: =IF(Q112="Year 11",R111+1,"") -> 2022 | S112: 1 | T112: 0.85 | X112: =IF(AB89>1, IF(AB89>10,"Year 11",""),"") -> Year 11 | Y112: =IF(X112="Year 11",Y111+1,"") -> 2022 | Z112: 1 | AA112: 0.85 | AE112: =IF(AI89>1, IF(AI89>10,"Year 11",""),"") -> Year 11 | AF112: =IF(AE112="Year 11",AF111+1,"") -> 2022 | AG112: 1 | AH112: 0.85 | AL112: =IF(AP89>1, IF(AP89>10,"Year 11",""),"") -> Year 11 | AM112: =IF(AL112="Year 11",AM111+1,"") -> 2022 | AN112: 1 | AO112: 0.85 | AS112: =IF(AW89>1, IF(AW89>10,"Year 11",""),"") -> Year 11 | AT112: =IF(AS112="Year 11",AT111+1,"") -> 2022 | AU112: 1 | AV112: 0.85 | BB112: =IF(BF89>1, IF(BF89>10,"Year 11",""),"") -> Year 11 | BC112: =IF(BB112="Year 11",BC111+1,"") -> 2022 | BD112: 1 | BE112: 0.85
C113: =IF(G89>1, IF(G89>10,"Year 12",""),"") -> Year 12 | D113: =IF(C113="Year 12",D112+1,"") -> 2023 | E113: 1 | F113: 1 | G113: 0.85 | H113: 0.85 | J113: =IF(N89>1, IF(N89>10,"Year 12",""),"") -> Year 12 | K113: =IF(J113="Year 12",K112+1,"") -> 2023 | L113: 1 | M113: 1 | N113: 0.85 | O113: 0.85 | Q113: =IF(U89>1, IF(U89>10,"Year 12",""),"") -> Year 12 | R113: =IF(Q113="Year 12",R112+1,"") -> 2023 | S113: 1 | T113: 0.85 | X113: =IF(AB89>1, IF(AB89>10,"Year 12",""),"") -> Year 12 | Y113: =IF(X113="Year 12",Y112+1,"") -> 2023 | Z113: 1 | AA113: 0.85 | AE113: =IF(AI89>1, IF(AI89>10,"Year 12",""),"") -> Year 12 | AF113: =IF(AE113="Year 12",AF112+1,"") -> 2023 | AG113: 1 | AH113: 0.85 | AL113: =IF(AP89>1, IF(AP89>10,"Year 12",""),"") -> Year 12 | AM113: =IF(AL113="Year 12",AM112+1,"") -> 2023 | AN113: 1 | AO113: 0.85 | AS113: =IF(AW89>1, IF(AW89>10,"Year 12",""),"") -> Year 12 | AT113: =IF(AS113="Year 12",AT112+1,"") -> 2023 | AU113: 1 | AV113: 0.85 | BB113: =IF(BF89>1, IF(BF89>10,"Year 12",""),"") -> Year 12 | BC113: =IF(BB113="Year 12",BC112+1,"") -> 2023 | BD113: 1 | BE113: 0.85
C114: =IF(G89>1, IF(G89>11,"Year 13",""),"") -> Year 13 | D114: =IF(C114="Year 13",D113+1,"") -> 2024 | E114: 1 | F114: 1 | G114: 0.85 | H114: 0.85 | J114: =IF(N89>1, IF(N89>11,"Year 13",""),"") -> Year 13 | K114: =IF(J114="Year 13",K113+1,"") -> 2024 | L114: 1 | M114: 1 | N114: 0.85 | O114: 0.85 | Q114: =IF(U89>1, IF(U89>11,"Year 13",""),"") -> Year 13 | R114: =IF(Q114="Year 13",R113+1,"") -> 2024 | S114: 1 | T114: 0.85 | X114: =IF(AB89>1, IF(AB89>11,"Year 13",""),"") -> Year 13 | Y114: =IF(X114="Year 13",Y113+1,"") -> 2024 | Z114: 1 | AA114: 0.85 | AE114: =IF(AI89>1, IF(AI89>11,"Year 13",""),"") -> Year 13 | AF114: =IF(AE114="Year 13",AF113+1,"") -> 2024 | AG114: 1 | AH114: 0.85 | AL114: =IF(AP89>1, IF(AP89>11,"Year 13",""),"") -> Year 13 | AM114: =IF(AL114="Year 13",AM113+1,"") -> 2024 | AN114: 1 | AO114: 0.85 | AS114: =IF(AW89>1, IF(AW89>11,"Year 13",""),"") -> Year 13 | AT114: =IF(AS114="Year 13",AT113+1,"") -> 2024 | AU114: 1 | AV114: 0.85 | BB114: =IF(BF89>1, IF(BF89>11,"Year 13",""),"") -> Year 13 | BC114: =IF(BB114="Year 13",BC113+1,"") -> 2024 | BD114: 1 | BE114: 0.85
C115: =IF(G89>1, IF(G89>12,"Year 14",""),"") -> Year 14 | D115: =IF(C115="Year 14",D114+1,"") -> 2025 | E115: 1 | F115: 1 | G115: 0.85 | H115: 0.85 | J115: =IF(N89>1, IF(N89>12,"Year 14",""),"") -> Year 14 | K115: =IF(J115="Year 14",K114+1,"") -> 2025 | L115: 1 | M115: 1 | N115: 0.85 | O115: 0.85 | Q115: =IF(U89>1, IF(U89>12,"Year 14",""),"") -> Year 14 | R115: =IF(Q115="Year 14",R114+1,"") -> 2025 | S115: 1 | T115: 0.85 | X115: =IF(AB89>1, IF(AB89>12,"Year 14",""),"") -> Year 14 | Y115: =IF(X115="Year 14",Y114+1,"") -> 2025 | Z115: 1 | AA115: 0.85 | AE115: =IF(AI89>1, IF(AI89>12,"Year 14",""),"") -> Year 14 | AF115: =IF(AE115="Year 14",AF114+1,"") -> 2025 | AG115: 1 | AH115: 0.85 | AL115: =IF(AP89>1, IF(AP89>12,"Year 14",""),"") -> Year 14 | AM115: =IF(AL115="Year 14",AM114+1,"") -> 2025 | AN115: 1 | AO115: 0.85 | AS115: =IF(AW89>1, IF(AW89>12,"Year 14",""),"") -> Year 14 | AT115: =IF(AS115="Year 14",AT114+1,"") -> 2025 | AU115: 1 | AV115: 0.85 | BB115: =IF(BF89>1, IF(BF89>12,"Year 14",""),"") -> Year 14 | BC115: =IF(BB115="Year 14",BC114+1,"") -> 2025 | BD115: 1 | BE115: 0.85
C116: =IF(G89>1, IF(G89>13,"Year 15",""),"") -> Year 15 | D116: =IF(C116="Year 15",D115+1,"") -> 2026 | E116: 1 | F116: 1 | G116: 0.85 | H116: 0.85 | J116: =IF(N89>1, IF(N89>13,"Year 15",""),"") -> Year 15 | K116: =IF(J116="Year 15",K115+1,"") -> 2026 | L116: 1 | M116: 1 | N116: 0.85 | O116: 0.85 | Q116: =IF(U89>1, IF(U89>13,"Year 15",""),"") -> Year 15 | R116: =IF(Q116="Year 15",R115+1,"") -> 2026 | S116: 1 | T116: 0.85 | X116: =IF(AB89>1, IF(AB89>13,"Year 15",""),"") -> Year 15 | Y116: =IF(X116="Year 15",Y115+1,"") -> 2026 | Z116: 1 | AA116: 0.85 | AE116: =IF(AI89>1, IF(AI89>13,"Year 15",""),"") -> Year 15 | AF116: =IF(AE116="Year 15",AF115+1,"") -> 2026 | AG116: 1 | AH116: 0.85 | AL116: =IF(AP89>1, IF(AP89>13,"Year 15",""),"") -> Year 15 | AM116: =IF(AL116="Year 15",AM115+1,"") -> 2026 | AN116: 1 | AO116: 0.85 | AS116: =IF(AW89>1, IF(AW89>13,"Year 15",""),"") -> Year 15 | AT116: =IF(AS116="Year 15",AT115+1,"") -> 2026 | AU116: 1 | AV116: 0.85 | BB116: =IF(BF89>1, IF(BF89>13,"Year 15",""),"") -> Year 15 | BC116: =IF(BB116="Year 15",BC115+1,"") -> 2026 | BD116: 1 | BE116: 0.85
C117: =IF(G89>1, IF(G89>14,"Year 16",""),"") -> Year 16 | D117: =IF(C117="Year 16",D116+1,"") -> 2027 | E117: 1 | F117: 1 | G117: 0.85 | H117: 0.85 | J117: =IF(N89>1, IF(N89>14,"Year 16",""),"") -> Year 16 | K117: =IF(J117="Year 16",K116+1,"") -> 2027 | L117: 1 | M117: 1 | N117: 0.85 | O117: 0.85 | Q117: =IF(U89>1, IF(U89>14,"Year 16",""),"") -> Year 16 | R117: =IF(Q117="Year 16",R116+1,"") -> 2027 | S117: 1 | T117: 0.85 | X117: =IF(AB89>1, IF(AB89>14,"Year 16",""),"") -> Year 16 | Y117: =IF(X117="Year 16",Y116+1,"") -> 2027 | Z117: 1 | AA117: 0.85 | AE117: =IF(AI89>1, IF(AI89>14,"Year 16",""),"") -> Year 16 | AF117: =IF(AE117="Year 16",AF116+1,"") -> 2027 | AG117: 1 | AH117: 0.85 | AL117: =IF(AP89>1, IF(AP89>14,"Year 16",""),"") -> Year 16 | AM117: =IF(AL117="Year 16",AM116+1,"") -> 2027 | AN117: 1 | AO117: 0.85 | AS117: =IF(AW89>1, IF(AW89>14,"Year 16",""),"") -> Year 16 | AT117: =IF(AS117="Year 16",AT116+1,"") -> 2027 | AU117: 1 | AV117: 0.85 | BB117: =IF(BF89>1, IF(BF89>14,"Year 16",""),"") -> Year 16 | BC117: =IF(BB117="Year 16",BC116+1,"") -> 2027 | BD117: 1 | BE117: 0.85
C118: =IF(G89>1, IF(G89>15,"Year 17",""),"") -> Year 17 | D118: =IF(C118="Year 17",D117+1,"") -> 2028 | E118: 1 | F118: 1 | G118: 0.85 | H118: 0.85 | J118: =IF(N89>1, IF(N89>15,"Year 17",""),"") -> Year 17 | K118: =IF(J118="Year 17",K117+1,"") -> 2028 | L118: 1 | M118: 1 | N118: 0.85 | O118: 0.85 | Q118: =IF(U89>1, IF(U89>15,"Year 17",""),"") -> Year 17 | R118: =IF(Q118="Year 17",R117+1,"") -> 2028 | S118: 1 | T118: 0.85 | X118: =IF(AB89>1, IF(AB89>15,"Year 17",""),"") -> Year 17 | Y118: =IF(X118="Year 17",Y117+1,"") -> 2028 | Z118: 1 | AA118: 0.85 | AE118: =IF(AI89>1, IF(AI89>15,"Year 17",""),"") -> Year 17 | AF118: =IF(AE118="Year 17",AF117+1,"") -> 2028 | AG118: 1 | AH118: 0.85 | AL118: =IF(AP89>1, IF(AP89>15,"Year 17",""),"") -> Year 17 | AM118: =IF(AL118="Year 17",AM117+1,"") -> 2028 | AN118: 1 | AO118: 0.85 | AS118: =IF(AW89>1, IF(AW89>15,"Year 17",""),"") -> Year 17 | AT118: =IF(AS118="Year 17",AT117+1,"") -> 2028 | AU118: 1 | AV118: 0.85 | BB118: =IF(BF89>1, IF(BF89>15,"Year 17",""),"") -> Year 17 | BC118: =IF(BB118="Year 17",BC117+1,"") -> 2028 | BD118: 1 | BE118: 0.85
C119: =IF(G89>1, IF(G89>16,"Year 18",""),"") -> Year 18 | D119: =IF(C119="Year 18",D118+1,"") -> 2029 | E119: 1 | F119: 1 | G119: 0.85 | H119: 0.85 | J119: =IF(N89>1, IF(N89>16,"Year 18",""),"") -> Year 18 | K119: =IF(J119="Year 18",K118+1,"") -> 2029 | L119: 1 | M119: 1 | N119: 0.85 | O119: 0.85 | Q119: =IF(U89>1, IF(U89>16,"Year 18",""),"") -> Year 18 | R119: =IF(Q119="Year 18",R118+1,"") -> 2029 | S119: 1 | T119: 0.85 | X119: =IF(AB89>1, IF(AB89>16,"Year 18",""),"") -> Year 18 | Y119: =IF(X119="Year 18",Y118+1,"") -> 2029 | Z119: 1 | AA119: 0.85 | AE119: =IF(AI89>1, IF(AI89>16,"Year 18",""),"") -> Year 18 | AF119: =IF(AE119="Year 18",AF118+1,"") -> 2029 | AG119: 1 | AH119: 0.85 | AL119: =IF(AP89>1, IF(AP89>16,"Year 18",""),"") -> Year 18 | AM119: =IF(AL119="Year 18",AM118+1,"") -> 2029 | AN119: 1 | AO119: 0.85 | AS119: =IF(AW89>1, IF(AW89>16,"Year 18",""),"") -> Year 18 | AT119: =IF(AS119="Year 18",AT118+1,"") -> 2029 | AU119: 1 | AV119: 0.85 | BB119: =IF(BF89>1, IF(BF89>16,"Year 18",""),"") -> Year 18 | BC119: =IF(BB119="Year 18",BC118+1,"") -> 2029 | BD119: 1 | BE119: 0.85
C120: =IF(G89>1, IF(G89>17,"Year 19",""),"") -> Year 19 | D120: =IF(C120="Year 19",D119+1,"") -> 2030 | E120: 1 | F120: 1 | G120: 0.85 | H120: 0.85 | J120: =IF(N89>1, IF(N89>17,"Year 19",""),"") -> Year 19 | K120: =IF(J120="Year 19",K119+1,"") -> 2030 | L120: 1 | M120: 1 | N120: 0.85 | O120: 0.85 | Q120: =IF(U89>1, IF(U89>17,"Year 19",""),"") -> Year 19 | R120: =IF(Q120="Year 19",R119+1,"") -> 2030 | S120: 1 | T120: 0.85 | X120: =IF(AB89>1, IF(AB89>17,"Year 19",""),"") -> Year 19 | Y120: =IF(X120="Year 19",Y119+1,"") -> 2030 | Z120: 1 | AA120: 0.85 | AE120: =IF(AI89>1, IF(AI89>17,"Year 19",""),"") -> Year 19 | AF120: =IF(AE120="Year 19",AF119+1,"") -> 2030 | AG120: 1 | AH120: 0.85 | AL120: =IF(AP89>1, IF(AP89>17,"Year 19",""),"") -> Year 19 | AM120: =IF(AL120="Year 19",AM119+1,"") -> 2030 | AN120: 1 | AO120: 0.85 | AS120: =IF(AW89>1, IF(AW89>17,"Year 19",""),"") -> Year 19 | AT120: =IF(AS120="Year 19",AT119+1,"") -> 2030 | AU120: 1 | AV120: 0.85 | BB120: =IF(BF89>1, IF(BF89>17,"Year 19",""),"") -> Year 19 | BC120: =IF(BB120="Year 19",BC119+1,"") -> 2030 | BD120: 1 | BE120: 0.85
C121: =IF(G89>1, IF(G89>18,"Year 20",""),"") -> Year 20 | D121: =IF(C121="Year 20",D120+1,"") -> 2031 | E121: 1 | F121: 1 | G121: 0.85 | H121: 0.85 | J121: =IF(N89>1, IF(N89>18,"Year 20",""),"") -> Year 20 | K121: =IF(J121="Year 20",K120+1,"") -> 2031 | L121: 1 | M121: 1 | N121: 0.85 | O121: 0.85 | Q121: =IF(U89>1, IF(U89>18,"Year 20",""),"") -> Year 20 | R121: =IF(Q121="Year 20",R120+1,"") -> 2031 | S121: 1 | T121: 0.85 | X121: =IF(AB89>1, IF(AB89>18,"Year 20",""),"") -> Year 20 | Y121: =IF(X121="Year 20",Y120+1,"") -> 2031 | Z121: 1 | AA121: 0.85 | AE121: =IF(AI89>1, IF(AI89>18,"Year 20",""),"") -> Year 20 | AF121: =IF(AE121="Year 20",AF120+1,"") -> 2031 | AG121: 1 | AH121: 0.85 | AL121: =IF(AP89>1, IF(AP89>18,"Year 20",""),"") -> Year 20 | AM121: =IF(AL121="Year 20",AM120+1,"") -> 2031 | AN121: 1 | AO121: 0.85 | AS121: =IF(AW89>1, IF(AW89>18,"Year 20",""),"") -> Year 20 | AT121: =IF(AS121="Year 20",AT120+1,"") -> 2031 | AU121: 1 | AV121: 0.85 | BB121: =IF(BF89>1, IF(BF89>18,"Year 20",""),"") -> Year 20 | BC121: =IF(BB121="Year 20",BC120+1,"") -> 2031 | BD121: 1 | BE121: 0.85
C122: =IF(G89>1, IF(G89>19,"Year 21",""),"") -> Year 21 | D122: =IF(C122="Year 21",D121+1,"") -> 2032 | E122: 1 | F122: 1 | G122: 0.85 | H122: 0.85 | J122: =IF(N89>1, IF(N89>19,"Year 21",""),"") -> Year 21 | K122: =IF(J122="Year 21",K121+1,"") -> 2032 | L122: 1 | M122: 1 | N122: 0.85 | O122: 0.85 | Q122: =IF(U89>1, IF(U89>19,"Year 21",""),"") -> Year 21 | R122: =IF(Q122="Year 21",R121+1,"") -> 2032 | S122: 1 | T122: 0.85 | X122: =IF(AB89>1, IF(AB89>19,"Year 21",""),"") -> Year 21 | Y122: =IF(X122="Year 21",Y121+1,"") -> 2032 | Z122: 1 | AA122: 0.85 | AE122: =IF(AI89>1, IF(AI89>19,"Year 21",""),"") -> Year 21 | AF122: =IF(AE122="Year 21",AF121+1,"") -> 2032 | AG122: 1 | AH122: 0.85 | AL122: =IF(AP89>1, IF(AP89>19,"Year 21",""),"") -> Year 21 | AM122: =IF(AL122="Year 21",AM121+1,"") -> 2032 | AN122: 1 | AO122: 0.85 | AS122: =IF(AW89>1, IF(AW89>19,"Year 21",""),"") -> Year 21 | AT122: =IF(AS122="Year 21",AT121+1,"") -> 2032 | AU122: 1 | AV122: 0.85 | BB122: =IF(BF89>1, IF(BF89>19,"Year 21",""),"") -> Year 21 | BC122: =IF(BB122="Year 21",BC121+1,"") -> 2032 | BD122: 1 | BE122: 0.85
C123: =IF(G89>1, IF(G89>20,"Year 22",""),"") -> Year 22 | D123: =IF(C123="Year 22",D122+1,"") -> 2033 | E123: 1 | F123: 1 | G123: 0.85 | H123: 0.85 | J123: =IF(N89>1, IF(N89>20,"Year 22",""),"") -> Year 22 | K123: =IF(J123="Year 22",K122+1,"") -> 2033 | L123: 1 | M123: 1 | N123: 0.85 | O123: 0.85 | Q123: =IF(U89>1, IF(U89>20,"Year 22",""),"") ->  | R123: =IF(Q123="Year 22",R122+1,"") ->  | S123: 1 | T123: 0.85 | X123: =IF(AB89>1, IF(AB89>20,"Year 22",""),"") ->  | Y123: =IF(X123="Year 22",Y122+1,"") ->  | Z123: 1 | AA123: 0.85 | AE123: =IF(AI89>1, IF(AI89>20,"Year 22",""),"") -> Year 22 | AF123: =IF(AE123="Year 22",AF122+1,"") -> 2033 | AG123: 1 | AH123: 0.85 | AL123: =IF(AP89>1, IF(AP89>20,"Year 22",""),"") -> Year 22 | AM123: =IF(AL123="Year 22",AM122+1,"") -> 2033 | AN123: 1 | AO123: 0.85 | AS123: =IF(AW89>1, IF(AW89>20,"Year 22",""),"") -> Year 22 | AT123: =IF(AS123="Year 22",AT122+1,"") -> 2033 | AU123: 1 | AV123: 0.85 | BB123: =IF(BF89>1, IF(BF89>20,"Year 22",""),"") ->  | BC123: =IF(BB123="Year 22",BC122+1,"") ->  | BD123: 1 | BE123: 0.85
C124: =IF(G89>1, IF(G89>21,"Year 23",""),"") -> Year 23 | D124: =IF(C124="Year 23",D123+1,"") -> 2034 | E124: 1 | F124: 1 | G124: 0.85 | H124: 0.85 | J124: =IF(N89>1, IF(N89>21,"Year 23",""),"") -> Year 23 | K124: =IF(J124="Year 23",K123+1,"") -> 2034 | L124: 1 | M124: 1 | N124: 0.85 | O124: 0.85 | Q124: =IF(U89>1, IF(U89>21,"Year 23",""),"") ->  | R124: =IF(Q124="Year 23",R123+1,"") ->  | S124: 1 | T124: 0.85 | X124: =IF(AB89>1, IF(AB89>21,"Year 23",""),"") ->  | Y124: =IF(X124="Year 23",Y123+1,"") ->  | Z124: 1 | AA124: 0.85 | AE124: =IF(AI89>1, IF(AI89>21,"Year 23",""),"") -> Year 23 | AF124: =IF(AE124="Year 23",AF123+1,"") -> 2034 | AG124: 1 | AH124: 0.85 | AL124: =IF(AP89>1, IF(AP89>21,"Year 23",""),"") -> Year 23 | AM124: =IF(AL124="Year 23",AM123+1,"") -> 2034 | AN124: 1 | AO124: 0.85 | AS124: =IF(AW89>1, IF(AW89>21,"Year 23",""),"") -> Year 23 | AT124: =IF(AS124="Year 23",AT123+1,"") -> 2034 | AU124: 1 | AV124: 0.85 | BB124: =IF(BF89>1, IF(BF89>21,"Year 23",""),"") ->  | BC124: =IF(BB124="Year 23",BC123+1,"") ->  | BD124: 1 | BE124: 0.85
C125: =IF(G89>1, IF(G89>22,"Year 24",""),"") -> Year 24 | D125: =IF(C125="Year 24",D124+1,"") -> 2035 | E125: 1 | F125: 1 | G125: 0.85 | H125: 0.85 | J125: =IF(N89>1, IF(N89>22,"Year 24",""),"") -> Year 24 | K125: =IF(J125="Year 24",K124+1,"") -> 2035 | L125: 1 | M125: 1 | N125: 0.85 | O125: 0.85 | Q125: =IF(U89>1, IF(U89>22,"Year 24",""),"") ->  | R125: =IF(Q125="Year 24",R124+1,"") ->  | S125: 1 | T125: 0.85 | X125: =IF(AB89>1, IF(AB89>22,"Year 24",""),"") ->  | Y125: =IF(X125="Year 24",Y124+1,"") ->  | Z125: 1 | AA125: 0.85 | AE125: =IF(AI89>1, IF(AI89>22,"Year 24",""),"") -> Year 24 | AF125: =IF(AE125="Year 24",AF124+1,"") -> 2035 | AG125: 1 | AH125: 0.85 | AL125: =IF(AP89>1, IF(AP89>22,"Year 24",""),"") -> Year 24 | AM125: =IF(AL125="Year 24",AM124+1,"") -> 2035 | AN125: 1 | AO125: 0.85 | AS125: =IF(AW89>1, IF(AW89>22,"Year 24",""),"") -> Year 24 | AT125: =IF(AS125="Year 24",AT124+1,"") -> 2035 | AU125: 1 | AV125: 0.85 | BB125: =IF(BF89>1, IF(BF89>22,"Year 24",""),"") ->  | BC125: =IF(BB125="Year 24",BC124+1,"") ->  | BD125: 1 | BE125: 0.85
C126: =IF(G89>1, IF(G89>23,"Year 25",""),"") -> Year 25 | D126: =IF(C126="Year 25",D125+1,"") -> 2036 | E126: 1 | F126: 1 | G126: 0.85 | H126: 0.85 | J126: =IF(N89>1, IF(N89>23,"Year 25",""),"") -> Year 25 | K126: =IF(J126="Year 25",K125+1,"") -> 2036 | L126: 1 | M126: 1 | N126: 0.85 | O126: 0.85 | Q126: =IF(U89>1, IF(U89>23,"Year 25",""),"") ->  | R126: =IF(Q126="Year 25",R125+1,"") ->  | S126: 1 | T126: 0.85 | X126: =IF(AB89>1, IF(AB89>23,"Year 25",""),"") ->  | Y126: =IF(X126="Year 25",Y125+1,"") ->  | Z126: 1 | AA126: 0.85 | AE126: =IF(AI89>1, IF(AI89>23,"Year 25",""),"") -> Year 25 | AF126: =IF(AE126="Year 25",AF125+1,"") -> 2036 | AG126: 1 | AH126: 0.85 | AL126: =IF(AP89>1, IF(AP89>23,"Year 25",""),"") -> Year 25 | AM126: =IF(AL126="Year 25",AM125+1,"") -> 2036 | AN126: 1 | AO126: 0.85 | AS126: =IF(AW89>1, IF(AW89>23,"Year 25",""),"") -> Year 25 | AT126: =IF(AS126="Year 25",AT125+1,"") -> 2036 | AU126: 1 | AV126: 0.85 | BB126: =IF(BF89>1, IF(BF89>23,"Year 25",""),"") ->  | BC126: =IF(BB126="Year 25",BC125+1,"") ->  | BD126: 1 | BE126: 0.85
C127: =IF(G89>1, IF(G89>24,"Year 26",""),"") -> Year 26 | D127: =IF(C127="Year 26",D126+1,"") -> 2037 | E127: 1 | F127: 1 | G127: 0.85 | H127: 0.85 | J127: =IF(N89>1, IF(N89>24,"Year 26",""),"") -> Year 26 | K127: =IF(J127="Year 26",K126+1,"") -> 2037 | L127: 1 | M127: 1 | N127: 0.85 | O127: 0.85 | Q127: =IF(U89>1, IF(U89>24,"Year 26",""),"") ->  | R127: =IF(Q127="Year 26",R126+1,"") ->  | S127: 1 | T127: 0.85 | X127: =IF(AB89>1, IF(AB89>24,"Year 26",""),"") ->  | Y127: =IF(X127="Year 26",Y126+1,"") ->  | Z127: 1 | AA127: 0.85 | AE127: =IF(AI89>1, IF(AI89>24,"Year 26",""),"") -> Year 26 | AF127: =IF(AE127="Year 26",AF126+1,"") -> 2037 | AG127: 1 | AH127: 0.85 | AL127: =IF(AP89>1, IF(AP89>24,"Year 26",""),"") -> Year 26 | AM127: =IF(AL127="Year 26",AM126+1,"") -> 2037 | AN127: 1 | AO127: 0.85 | AS127: =IF(AW89>1, IF(AW89>24,"Year 26",""),"") -> Year 26 | AT127: =IF(AS127="Year 26",AT126+1,"") -> 2037 | AU127: 1 | AV127: 0.85 | BB127: =IF(BF89>1, IF(BF89>24,"Year 26",""),"") ->  | BC127: =IF(BB127="Year 26",BC126+1,"") ->  | BD127: 1 | BE127: 0.85
C128: =IF(G89>1, IF(G89>25,"Year 27",""),"") -> Year 27 | D128: =IF(C128="Year 27",D127+1,"") -> 2038 | E128: 1 | F128: 1 | G128: 0.85 | H128: 0.85 | J128: =IF(N89>1, IF(N89>25,"Year 27",""),"") -> Year 27 | K128: =IF(J128="Year 27",K127+1,"") -> 2038 | L128: 1 | M128: 1 | N128: 0.85 | O128: 0.85 | Q128: =IF(U89>1, IF(U89>25,"Year 27",""),"") ->  | R128: =IF(Q128="Year 27",R127+1,"") ->  | S128: 1 | T128: 0.85 | X128: =IF(AB89>1, IF(AB89>25,"Year 27",""),"") ->  | Y128: =IF(X128="Year 27",Y127+1,"") ->  | Z128: 1 | AA128: 0.85 | AE128: =IF(AI89>1, IF(AI89>25,"Year 27",""),"") -> Year 27 | AF128: =IF(AE128="Year 27",AF127+1,"") -> 2038 | AG128: 1 | AH128: 0.85 | AL128: =IF(AP89>1, IF(AP89>25,"Year 27",""),"") -> Year 27 | AM128: =IF(AL128="Year 27",AM127+1,"") -> 2038 | AN128: 1 | AO128: 0.85 | AS128: =IF(AW89>1, IF(AW89>25,"Year 27",""),"") -> Year 27 | AT128: =IF(AS128="Year 27",AT127+1,"") -> 2038 | AU128: 1 | AV128: 0.85 | BB128: =IF(BF89>1, IF(BF89>25,"Year 27",""),"") ->  | BC128: =IF(BB128="Year 27",BC127+1,"") ->  | BD128: 1 | BE128: 0.85
C129: =IF(G89>1, IF(G89>26,"Year 28",""),"") -> Year 28 | D129: =IF(C129="Year 28",D128+1,"") -> 2039 | E129: 1 | F129: 1 | G129: 0.85 | H129: 0.85 | J129: =IF(N89>1, IF(N89>26,"Year 28",""),"") -> Year 28 | K129: =IF(J129="Year 28",K128+1,"") -> 2039 | L129: 1 | M129: 1 | N129: 0.85 | O129: 0.85 | Q129: =IF(U89>1, IF(U89>26,"Year 28",""),"") ->  | R129: =IF(Q129="Year 28",R128+1,"") ->  | S129: 1 | T129: 0.85 | X129: =IF(AB89>1, IF(AB89>26,"Year 28",""),"") ->  | Y129: =IF(X129="Year 28",Y128+1,"") ->  | Z129: 1 | AA129: 0.85 | AE129: =IF(AI89>1, IF(AI89>26,"Year 28",""),"") -> Year 28 | AF129: =IF(AE129="Year 28",AF128+1,"") -> 2039 | AG129: 1 | AH129: 0.85 | AL129: =IF(AP89>1, IF(AP89>26,"Year 28",""),"") -> Year 28 | AM129: =IF(AL129="Year 28",AM128+1,"") -> 2039 | AN129: 1 | AO129: 0.85 | AS129: =IF(AW89>1, IF(AW89>26,"Year 28",""),"") -> Year 28 | AT129: =IF(AS129="Year 28",AT128+1,"") -> 2039 | AU129: 1 | AV129: 0.85 | BB129: =IF(BF89>1, IF(BF89>26,"Year 28",""),"") ->  | BC129: =IF(BB129="Year 28",BC128+1,"") ->  | BD129: 1 | BE129: 0.85
C130: =IF(G89>1, IF(G89>27,"Year 29",""),"") -> Year 29 | D130: =IF(C130="Year 29",D129+1,"") -> 2040 | E130: 1 | F130: 1 | G130: 0.85 | H130: 0.85 | J130: =IF(N89>1, IF(N89>27,"Year 29",""),"") -> Year 29 | K130: =IF(J130="Year 29",K129+1,"") -> 2040 | L130: 1 | M130: 1 | N130: 0.85 | O130: 0.85 | Q130: =IF(U89>1, IF(U89>27,"Year 29",""),"") ->  | R130: =IF(Q130="Year 29",R129+1,"") ->  | S130: 1 | T130: 0.85 | X130: =IF(AB89>1, IF(AB89>27,"Year 29",""),"") ->  | Y130: =IF(X130="Year 29",Y129+1,"") ->  | Z130: 1 | AA130: 0.85 | AE130: =IF(AI89>1, IF(AI89>27,"Year 29",""),"") -> Year 29 | AF130: =IF(AE130="Year 29",AF129+1,"") -> 2040 | AG130: 1 | AH130: 0.85 | AL130: =IF(AP89>1, IF(AP89>27,"Year 29",""),"") -> Year 29 | AM130: =IF(AL130="Year 29",AM129+1,"") -> 2040 | AN130: 1 | AO130: 0.85 | AS130: =IF(AW89>1, IF(AW89>27,"Year 29",""),"") -> Year 29 | AT130: =IF(AS130="Year 29",AT129+1,"") -> 2040 | AU130: 1 | AV130: 0.85 | BB130: =IF(BF89>1, IF(BF89>27,"Year 29",""),"") ->  | BC130: =IF(BB130="Year 29",BC129+1,"") ->  | BD130: 1 | BE130: 0.85
C131: =IF(G89>1, IF(G89>28,"Year 30",""),"") -> Year 30 | D131: =IF(C131="Year 30",D130+1,"") -> 2041 | E131: 1 | F131: 1 | G131: 0.85 | H131: 0.85 | J131: =IF(N89>1, IF(N89>28,"Year 30",""),"") -> Year 30 | K131: =IF(J131="Year 30",K130+1,"") -> 2041 | L131: 1 | M131: 1 | N131: 0.85 | O131: 0.85 | Q131: =IF(U89>1, IF(U89>28,"Year 30",""),"") ->  | R131: =IF(Q131="Year 30",R130+1,"") ->  | S131: 1 | T131: 0.85 | X131: =IF(AB89>1, IF(AB89>28,"Year 30",""),"") ->  | Y131: =IF(X131="Year 30",Y130+1,"") ->  | Z131: 1 | AA131: 0.85 | AE131: =IF(AI89>1, IF(AI89>28,"Year 30",""),"") -> Year 30 | AF131: =IF(AE131="Year 30",AF130+1,"") -> 2041 | AG131: 1 | AH131: 0.85 | AL131: =IF(AP89>1, IF(AP89>28,"Year 30",""),"") -> Year 30 | AM131: =IF(AL131="Year 30",AM130+1,"") -> 2041 | AN131: 1 | AO131: 0.85 | AS131: =IF(AW89>1, IF(AW89>28,"Year 30",""),"") -> Year 30 | AT131: =IF(AS131="Year 30",AT130+1,"") -> 2041 | AU131: 1 | AV131: 0.85 | BB131: =IF(BF89>1, IF(BF89>28,"Year 30",""),"") ->  | BC131: =IF(BB131="Year 30",BC130+1,"") ->  | BD131: 1 | BE131: 0.85
C132: =IF(G89>1, IF(G89>29,"Year 31",""),"") -> Year 31 | D132: =IF(C132="Year 31",D131+1,"") -> 2042 | E132: 1 | F132: 1 | G132: 0.85 | H132: 0.85 | J132: =IF(N89>1, IF(N89>29,"Year 31",""),"") -> Year 31 | K132: =IF(J132="Year 31",K131+1,"") -> 2042 | L132: 1 | M132: 1 | N132: 0.85 | O132: 0.85 | Q132: =IF(U89>1, IF(U89>29,"Year 31",""),"") ->  | R132: =IF(Q132="Year 31",R131+1,"") ->  | S132: 1 | T132: 0.85 | X132: =IF(AB89>1, IF(AB89>29,"Year 31",""),"") ->  | Y132: =IF(X132="Year 31",Y131+1,"") ->  | Z132: 1 | AA132: 0.85 | AE132: =IF(AI89>1, IF(AI89>29,"Year 31",""),"") -> Year 31 | AF132: =IF(AE132="Year 31",AF131+1,"") -> 2042 | AG132: 1 | AH132: 0.85 | AL132: =IF(AP89>1, IF(AP89>29,"Year 31",""),"") -> Year 31 | AM132: =IF(AL132="Year 31",AM131+1,"") -> 2042 | AN132: 1 | AO132: 0.85 | AS132: =IF(AW89>1, IF(AW89>29,"Year 31",""),"") -> Year 31 | AT132: =IF(AS132="Year 31",AT131+1,"") -> 2042 | AU132: 1 | AV132: 0.85 | BB132: =IF(BF89>1, IF(BF89>29,"Year 31",""),"") ->  | BC132: =IF(BB132="Year 31",BC131+1,"") ->  | BD132: 1 | BE132: 0.85
B133: =IF(G89>1, IF(G89>30,"Year 32",""),"") -> 
B134: =IF(G89>1, IF(G89>33,"Year 35",""),"") -> 

Sheet IGCC w CC
B4: Production | G4: Capital Expenditure | I4: UK£ (million) | K4: Operating Costs | L4: UK£ (million/year) | P4: Revenues
B5: Coal feedrate | D5: te/h | E5: ='Input Data'!G26 -> 273.2916667 | G5: Installed cost | I5: ='Input Data'!G60 -> 1111.5 | K5: Fuel Cost | M5: ='Input Data'!G71 -> 65 | N5: UK£/te | P5: Levelised Cost of Electricity | Q5: UK£/kWh | R5: 0.07620794305
B6: Net power ouput | D6: MW | E6: ='Input Data'!G23 -> 700.1 | G6: Land purchase, surveys | I6: ='Input Data'!E65 -> 0.05 | K6: Maintenance | M6: ='Input Data'!G72 -> 39.72 | N6: UK£/year | P6: Sulphur Price | Q6: UK£/te | R6: ='Input Data'!G84 -> 40
B7: Sulphur for export | D7: te/h | E7: ='Input Data'!G37 -> 2.3 | G7: Fees | I7: ='Input Data'!E66 -> 0.1 | K7: CO2 Emissions | M7: ='Input Data'!G77 -> 0 | N7: UK£/te | P7: Hydrogen Price | Q7: UK£/te | R7: ='Input Data'!G85 -> 1307.189542
G8: Contingencies | I8: ='Input Data'!E64 -> 0.25 | K8: Labour Cost | N8: UK£/year (million)
K9: Number of operations personnel | N9: ='Input Data'!G78 -> 128 | P9: Discounted Rate: | R9: ='Input Data'!G86 -> 0.1
B10: =IF('Input Data'!G10>0.001,"Performance Data: User Adjusted","") ->  | G10: Total Investment Cost | I10: =I5+(I6*I5)+(I5*I7)+(I5*I8) -> 1556.1 | K10: Average salary options personnel | N10: ='Input Data'!G79 -> 0.05 | P10: Insurance | R10: ='Input Data'!G81 -> 0.02 | S10: Installed Cost
K11: Admin | N11: ='Input Data'!G80 -> 0.3
K12: Total Labour Cost | N12: =(N9*N10)*(1+N11) -> 8.32
G13: =IF('Input Data'!G47>0.001,"Capital and Cost Data: User Adjusted","") ->  | P13: =IF('Input Data'!G83>0.001,"Revenue Variables: User Adjusted","") -> 
K14: =IF('Input Data'!G70>0.001,"Operating Data: User Adjusted","") -> 
F17: YEAR
B18: CASH FLOW ANALYSIS | F18: =G18-1 -> 2009 | G18: =H18-1 -> 2010 | H18: =I18-1 -> 2011 | I18: ='Input Data'!D102 -> 2012 | J18: ='Input Data'!D103 -> 2013 | K18: ='Input Data'!D104 -> 2014 | L18: ='Input Data'!D105 -> 2015 | M18: ='Input Data'!D106 -> 2016 | N18: ='Input Data'!D107 -> 2017 | O18: ='Input Data'!D108 -> 2018 | P18: ='Input Data'!D109 -> 2019 | Q18: ='Input Data'!D110 -> 2020 | R18: ='Input Data'!D111 -> 2021 | S18: ='Input Data'!D112 -> 2022 | T18: ='Input Data'!D113 -> 2023 | U18: ='Input Data'!D114 -> 2024 | V18: ='Input Data'!D115 -> 2025 | W18: ='Input Data'!D116 -> 2026 | X18: ='Input Data'!D117 -> 2027 | Y18: ='Input Data'!D118 -> 2028 | Z18: ='Input Data'!D119 -> 2029 | AA18: ='Input Data'!D120 -> 2030 | AB18: ='Input Data'!D121 -> 2031 | AC18: ='Input Data'!D122 -> 2032 | AD18: ='Input Data'!D123 -> 2033 | AE18: ='Input Data'!D124 -> 2034 | AF18: ='Input Data'!D125 -> 2035 | AG18: ='Input Data'!D126 -> 2036 | AH18: ='Input Data'!D127 -> 2037 | AI18: ='Input Data'!D128 -> 2038 | AJ18: ='Input Data'!D129 -> 2039 | AK18: ='Input Data'!D130 -> 2040 | AL18: ='Input Data'!D131 -> 2041 | AM18: ='Input Data'!D132 -> 2042
B19: UK£ (million) | F19: Year -3 | G19: Year -2 | H19: Year -1 | I19: ='Input Data'!C102 -> Year 1 | J19: ='Input Data'!C103 -> Year 2 | K19: ='Input Data'!C104 -> Year 3 | L19: ='Input Data'!C105 -> Year 4 | M19: ='Input Data'!C106 -> Year 5 | N19: ='Input Data'!C107 -> Year 6 | O19: ='Input Data'!C108 -> Year 7 | P19: ='Input Data'!C109 -> Year 8 | Q19: ='Input Data'!C110 -> Year 9 | R19: ='Input Data'!C111 -> Year 10 | S19: ='Input Data'!C112 -> Year 11 | T19: ='Input Data'!C113 -> Year 12 | U19: ='Input Data'!C114 -> Year 13 | V19: ='Input Data'!C115 -> Year 14 | W19: ='Input Data'!C116 -> Year 15 | X19: ='Input Data'!C117 -> Year 16 | Y19: ='Input Data'!C118 -> Year 17 | Z19: ='Input Data'!C119 -> Year 18 | AA19: ='Input Data'!C120 -> Year 19 | AB19: ='Input Data'!C121 -> Year 20 | AC19: ='Input Data'!C122 -> Year 21 | AD19: ='Input Data'!C123 -> Year 22 | AE19: ='Input Data'!C124 -> Year 23 | AF19: ='Input Data'!C125 -> Year 24 | AG19: ='Input Data'!C126 -> Year 25 | AH19: ='Input Data'!C127 -> Year 26 | AI19: ='Input Data'!C128 -> Year 27 | AJ19: ='Input Data'!C129 -> Year 28 | AK19: ='Input Data'!C130 -> Year 29 | AL19: ='Input Data'!C131 -> Year 30 | AM19: ='Input Data'!C132 -> Year 31
B22: Load factor - Hydrogen Production | I22: =IF(I19="Year 1",'Input Data'!E102,"") -> 1 | J22: ='Input Data'!E103 -> 1 | K22: ='Input Data'!E104 -> 1 | L22: ='Input Data'!E105 -> 1 | M22: ='Input Data'!E106 -> 1 | N22: ='Input Data'!E107 -> 1 | O22: ='Input Data'!E108 -> 1 | P22: ='Input Data'!E109 -> 1 | Q22: ='Input Data'!E110 -> 1 | R22: ='Input Data'!E111 -> 1 | S22: ='Input Data'!E112 -> 1 | T22: ='Input Data'!E113 -> 1 | U22: ='Input Data'!E114 -> 1 | V22: ='Input Data'!E115 -> 1 | W22: ='Input Data'!E116 -> 1 | X22: ='Input Data'!E117 -> 1 | Y22: ='Input Data'!E118 -> 1 | Z22: ='Input Data'!E119 -> 1 | AA22: ='Input Data'!E120 -> 1 | AB22: =IF(AB19="Year 20",'Input Data'!E121,"") -> 1 | AC22: =IF('Input Data'!G89>20,'Input Data'!E122,"") -> 1 | AD22: =IF(AD19="Year 22",'Input Data'!E123,"") -> 1 | AE22: =IF(AE19="Year 23",'Input Data'!E124,"") -> 1 | AF22: =IF(AF19="Year 24",'Input Data'!E125,"") -> 1 | AG22: =IF(AG19="Year 25",'Input Data'!E126,"") -> 1 | AH22: =IF('Input Data'!G89>25,'Input Data'!E127,"") -> 1 | AI22: =IF(AI19="Year 27",'Input Data'!E128,"") -> 1 | AJ22: =IF(AJ19="Year 28",'Input Data'!E129,"") -> 1 | AK22: =IF(AK19="Year 29",'Input Data'!E130,"") -> 1 | AL22: =IF(AL19="Year 30",'Input Data'!E131,"") -> 1 | AM22: =IF('Input Data'!G89>30,'Input Data'!E132,"") -> 
B23: Load factor - Power Island | I23: =IF(I19="Year 1",'Input Data'!F102,"") -> 1 | J23: ='Input Data'!F103 -> 1 | K23: ='Input Data'!F104 -> 1 | L23: ='Input Data'!F105 -> 1 | M23: ='Input Data'!F106 -> 1 | N23: ='Input Data'!F107 -> 1 | O23: ='Input Data'!F108 -> 1 | P23: ='Input Data'!F109 -> 1 | Q23: ='Input Data'!F110 -> 1 | R23: ='Input Data'!F111 -> 1 | S23: ='Input Data'!F112 -> 1 | T23: ='Input Data'!F113 -> 1 | U23: ='Input Data'!F114 -> 1 | V23: ='Input Data'!F115 -> 1 | W23: ='Input Data'!F116 -> 1 | X23: ='Input Data'!F117 -> 1 | Y23: ='Input Data'!F118 -> 1 | Z23: ='Input Data'!F119 -> 1 | AA23: ='Input Data'!F120 -> 1 | AB23: =IF(AB19="Year 20",'Input Data'!F121,"") -> 1 | AC23: =IF('Input Data'!G89>20,'Input Data'!F122,"") -> 1 | AD23: =IF(AD19="Year 22",'Input Data'!F123,"") -> 1 | AE23: =IF(AE19="Year 23",'Input Data'!F124,"") -> 1 | AF23: =IF(AF19="Year 24",'Input Data'!F125,"") -> 1 | AG23: =IF(AG19="Year 25",'Input Data'!F126,"") -> 1 | AH23: =IF('Input Data'!G89>25,'Input Data'!F127,"") -> 1 | AI23: =IF(AI19="Year 27",'Input Data'!F128,"") -> 1 | AJ23: =IF(AJ19="Year 28",'Input Data'!F129,"") -> 1 | AK23: =IF(AK19="Year 29",'Input Data'!F130,"") -> 1 | AL23: =IF(AL19="Year 30",'Input Data'!F131,"") -> 1 | AM23: =IF('Input Data'!G89>30,'Input Data'!F132,"") -> 
B24: Availability - Hydrogen Production | I24: =IF(I19="Year 1",'Input Data'!G102,"") -> 0.65 | J24: ='Input Data'!G103 -> 0.75 | K24: ='Input Data'!G104 -> 0.85 | L24: ='Input Data'!G105 -> 0.85 | M24: ='Input Data'!G106 -> 0.85 | N24: ='Input Data'!G107 -> 0.85 | O24: ='Input Data'!G108 -> 0.85 | P24: ='Input Data'!G109 -> 0.85 | Q24: ='Input Data'!G110 -> 0.85 | R24: ='Input Data'!G111 -> 0.85 | S24: ='Input Data'!G112 -> 0.85 | T24: ='Input Data'!G113 -> 0.85 | U24: ='Input Data'!G114 -> 0.85 | V24: ='Input Data'!G115 -> 0.85 | W24: ='Input Data'!G116 -> 0.85 | X24: ='Input Data'!G117 -> 0.85 | Y24: ='Input Data'!G118 -> 0.85 | Z24: ='Input Data'!G119 -> 0.85 | AA24: ='Input Data'!G120 -> 0.85 | AB24: =IF(AB19="Year 20",'Input Data'!G121,"") -> 0.85 | AC24: =IF('Input Data'!G89>20,'Input Data'!G122,"") -> 0.85 | AD24: =IF(AD19="Year 22",'Input Data'!G123,"") -> 0.85 | AE24: =IF(AE19="Year 23",'Input Data'!G124,"") -> 0.85 | AF24: =IF(AF19="Year 24",'Input Data'!G125,"") -> 0.85 | AG24: =IF(AG19="Year 25",'Input Data'!G126,"") -> 0.85 | AH24: =IF('Input Data'!G89>25,'Input Data'!G127,"") -> 0.85 | AI24: =IF(AI19="Year 27",'Input Data'!G128,"") -> 0.85 | AJ24: =IF(AJ19="Year 28",'Input Data'!G129,"") -> 0.85 | AK24: =IF(AK19="Year 29",'Input Data'!G130,"") -> 0.85 | AL24: =IF(AL19="Year 30",'Input Data'!G131,"") -> 0.85 | AM24: =IF('Input Data'!G89>30,'Input Data'!G132,"") -> 
B25: Availability - Power Island | I25: =IF(I19="Year 1",'Input Data'!H102,"") -> 0.65 | J25: ='Input Data'!H103 -> 0.75 | K25: ='Input Data'!H104 -> 0.85 | L25: ='Input Data'!H105 -> 0.85 | M25: ='Input Data'!H106 -> 0.85 | N25: ='Input Data'!H107 -> 0.85 | O25: ='Input Data'!H108 -> 0.85 | P25: ='Input Data'!H109 -> 0.85 | Q25: ='Input Data'!H110 -> 0.85 | R25: ='Input Data'!H111 -> 0.85 | S25: ='Input Data'!H112 -> 0.85 | T25: ='Input Data'!H113 -> 0.85 | U25: ='Input Data'!H114 -> 0.85 | V25: ='Input Data'!H115 -> 0.85 | W25: ='Input Data'!H116 -> 0.85 | X25: ='Input Data'!H117 -> 0.85 | Y25: ='Input Data'!H118 -> 0.85 | Z25: ='Input Data'!H119 -> 0.85 | AA25: ='Input Data'!H120 -> 0.85 | AB25: =IF(AB19="Year 20",'Input Data'!H121,"") -> 0.85 | AC25: =IF('Input Data'!G89>20,'Input Data'!H122,"") -> 0.85 | AD25: =IF(AD19="Year 22",'Input Data'!H123,"") -> 0.85 | AE25: =IF(AE19="Year 23",'Input Data'!H124,"") -> 0.85 | AF25: =IF(AF19="Year 24",'Input Data'!H125,"") -> 0.85 | AG25: =IF(AG19="Year 25",'Input Data'!H126,"") -> 0.85 | AH25: =IF('Input Data'!G89>25,'Input Data'!H127,"") -> 0.85 | AI25: =IF(AI19="Year 27",'Input Data'!H128,"") -> 0.85 | AJ25: =IF(AJ19="Year 28",'Input Data'!H129,"") -> 0.85 | AK25: =IF(AK19="Year 29",'Input Data'!H130,"") -> 0.85 | AL25: =IF(AL19="Year 30",'Input Data'!H131,"") -> 0.85 | AM25: =IF('Input Data'!G89>30,'Input Data'!H132,"") -> 
B26: Equivalent yearly hours - Hydrogen Production | I26: =I22*8760*I24 -> 5694 | J26: 6570 | K26: 7446 | L26: =L22*8760*L24 -> 7446 | M26: 7446 | N26: 7446 | O26: 7446 | P26: 7446 | Q26: 7446 | R26: 7446 | S26: 7446 | T26: 7446 | U26: 7446 | V26: 7446 | W26: 7446 | X26: 7446 | Y26: 7446 | Z26: 7446 | AA26: 7446 | AB26: =IF(AB19="Year 20",AB22*8760*AB24,"") -> 7446 | AC26: =IF('Input Data'!G89>20,AC22*8760*AC24,"") -> 7446 | AD26: =IF(AD19="Year 22",AD22*8760*AD24,"") -> 7446 | AE26: =IF(AE19="Year 23",AE22*8760*AE24,"") -> 7446 | AF26: =IF(AF19="Year 24",AF22*8760*AF24,"") -> 7446 | AG26: =IF(AG19="Year 25",AG22*8760*AG24,"") -> 7446 | AH26: =IF('Input Data'!G89>25,AH22*8760*AH24,"") -> 7446 | AI26: =IF(AI19="Year 27",AI22*8760*AI24,"") -> 7446 | AJ26: =IF(AJ19="Year 28",AJ22*8760*AJ24,"") -> 7446 | AK26: =IF(AK19="Year 29",AK22*8760*AK24,"") -> 7446 | AL26: =IF(AL19="Year 30",AL22*8760*AL24,"") -> 7446 | AM26: =IF('Input Data'!G89>30,AM22*8760*AM24,"") -> 
B27: Equivalent yearly hours - Power Island | I27: 5694 | J27: 6570 | K27: 7446 | L27: =L23*8760*L25 -> 7446 | M27: 7446 | N27: 7446 | O27: 7446 | P27: 7446 | Q27: 7446 | R27: 7446 | S27: 7446 | T27: 7446 | U27: 7446 | V27: 7446 | W27: 7446 | X27: 7446 | Y27: 7446 | Z27: 7446 | AA27: 7446 | AB27: =IF(AB19="Year 20",AB23*8760*AB25,"") -> 7446 | AC27: =IF('Input Data'!G89>20,AC23*8760*AC25,"") -> 7446 | AD27: =IF(AD19="Year 22",AD23*8760*AD25,"") -> 7446 | AE27: =IF(AE19="Year 23",AE23*8760*AE25,"") -> 7446 | AF27: =IF(AF19="Year 24",AF23*8760*AF25,"") -> 7446 | AG27: =IF(AG19="Year 25",AG23*8760*AG25,"") -> 7446 | AH27: =IF('Input Data'!G89>25,AH23*8760*AH25,"") -> 7446 | AI27: =IF(AI19="Year 27",AI23*8760*AI25,"") -> 7446 | AJ27: =IF(AJ19="Year 28",AJ23*8760*AJ25,"") -> 7446 | AK27: =IF(AK19="Year 29",AK23*8760*AK25,"") -> 7446 | AL27: =IF(AL19="Year 30",AL23*8760*AL25,"") -> 7446 | AM27: =IF('Input Data'!G89>30,AM23*8760*AM25,"") -> 
B28: Hydrogen Exported | E28: tpa | I28: =IF(((I26-I27)*'Input Data'!$G$38>0),(I26-I27)*'Input Data'!$G$38,0) -> 0 | J28: =IF(((J26-J27)*'Input Data'!$G$38>0),(J26-J27)*'Input Data'!$G$38,0) -> 0 | K28: =IF(((K26-K27)*'Input Data'!$G$38>0),(K26-K27)*'Input Data'!$G$38,0) -> 0 | L28: =IF(((L26-L27)*'Input Data'!$G$38>0),(L26-L27)*'Input Data'!$G$38,0) -> 0 | M28: =IF(((M26-M27)*'Input Data'!$G$38>0),(M26-M27)*'Input Data'!$G$38,0) -> 0 | N28: =IF(((N26-N27)*'Input Data'!$G$38>0),(N26-N27)*'Input Data'!$G$38,0) -> 0 | O28: =IF(((O26-O27)*'Input Data'!$G$38>0),(O26-O27)*'Input Data'!$G$38,0) -> 0 | P28: =IF(((P26-P27)*'Input Data'!$G$38>0),(P26-P27)*'Input Data'!$G$38,0) -> 0 | Q28: =IF(((Q26-Q27)*'Input Data'!$G$38>0),(Q26-Q27)*'Input Data'!$G$38,0) -> 0 | R28: =IF(((R26-R27)*'Input Data'!$G$38>0),(R26-R27)*'Input Data'!$G$38,0) -> 0 | S28: =IF(((S26-S27)*'Input Data'!$G$38>0),(S26-S27)*'Input Data'!$G$38,0) -> 0 | T28: =IF(((T26-T27)*'Input Data'!$G$38>0),(T26-T27)*'Input Data'!$G$38,0) -> 0 | U28: =IF(((U26-U27)*'Input Data'!$G$38>0),(U26-U27)*'Input Data'!$G$38,0) -> 0 | V28: =IF(((V26-V27)*'Input Data'!$G$38>0),(V26-V27)*'Input Data'!$G$38,0) -> 0 | W28: =IF(((W26-W27)*'Input Data'!$G$38>0),(W26-W27)*'Input Data'!$G$38,0) -> 0 | X28: =IF(((X26-X27)*'Input Data'!$G$38>0),(X26-X27)*'Input Data'!$G$38,0) -> 0 | Y28: =IF(((Y26-Y27)*'Input Data'!$G$38>0),(Y26-Y27)*'Input Data'!$G$38,0) -> 0 | Z28: =IF(((Z26-Z27)*'Input Data'!$G$38>0),(Z26-Z27)*'Input Data'!$G$38,0) -> 0 | AA28: =IF(((AA26-AA27)*'Input Data'!$G$38>0),(AA26-AA27)*'Input Data'!$G$38,0) -> 0 | AB28: =IF(((AB26-AB27)*'Input Data'!$G$38>0),(AB26-AB27)*'Input Data'!$G$38,0) -> 0 | AC28: =IF('Input Data'!$G$89>20,IF(((AC26-AC27)*'Input Data'!$G$38>0),(AC26-AC27)*'Input Data'!$G$38,0),"") -> 0 | AD28: =IF('Input Data'!$G$89>20,IF(((AD26-AD27)*'Input Data'!$G$38>0),(AD26-AD27)*'Input Data'!$G$38,0),"") -> 0 | AE28: =IF('Input Data'!$G$89>20,IF(((AE26-AE27)*'Input Data'!$G$38>0),(AE26-AE27)*'Input Data'!$G$38,0),"") -> 0 | AF28: =IF('Input Data'!$G$89>20,IF(((AF26-AF27)*'Input Data'!$G$38>0),(AF26-AF27)*'Input Data'!$G$38,0),"") -> 0 | AG28: =IF('Input Data'!$G$89>20,IF(((AG26-AG27)*'Input Data'!$G$38>0),(AG26-AG27)*'Input Data'!$G$38,0),"") -> 0 | AH28: =IF('Input Data'!$G$89>25,IF(((AH26-AH27)*'Input Data'!$G$38>0),(AH26-AH27)*'Input Data'!$G$38,0),"") -> 0 | AI28: =IF('Input Data'!$G$89>25,IF(((AI26-AI27)*'Input Data'!$G$38>0),(AI26-AI27)*'Input Data'!$G$38,0),"") -> 0 | AJ28: =IF('Input Data'!$G$89>25,IF(((AJ26-AJ27)*'Input Data'!$G$38>0),(AJ26-AJ27)*'Input Data'!$G$38,0),"") -> 0 | AK28: =IF('Input Data'!$G$89>25,IF(((AK26-AK27)*'Input Data'!$G$38>0),(AK26-AK27)*'Input Data'!$G$38,0),"") -> 0 | AL28: =IF('Input Data'!$G$89>25,IF(((AL26-AL27)*'Input Data'!$G$38>0),(AL26-AL27)*'Input Data'!$G$38,0),"") -> 0 | AM28: =IF('Input Data'!$G$89>30,IF(((AM26-AM27)*'Input Data'!$G$38>0),(AM26-AM27)*'Input Data'!$G$38,0),"") -> 
B29: Expenditure factor | F29: ='Input Data'!G96 -> 0.25 | G29: ='Input Data'!G97 -> 0.45 | H29: ='Input Data'!G98 -> 0.3
B30: Revenues
B31: Electricity | I31: =$E$6*I27*$R$5/1000 -> 303.7930122 | J31: =$E$6*J27*$R$5/1000 -> 350.5303987 | K31: =$E$6*K27*$R$5/1000 -> 397.2677852 | L31: 397.2677852 | M31: 397.2677852 | N31: 397.2677852 | O31: 397.2677852 | P31: 397.2677852 | Q31: 397.2677852 | R31: 397.2677852 | S31: 397.2677852 | T31: 397.2677852 | U31: 397.2677852 | V31: 397.2677852 | W31: 397.2677852 | X31: 397.2677852 | Y31: 397.2677852 | Z31: 397.2677852 | AA31: 397.2677852 | AB31: =IF(AB19="Year 20",$E$6*AB27*$R$5/1000,"") -> 397.2677852 | AC31: =IF('Input Data'!G89>20,$E$6*AC27*$R$5/1000,"") -> 397.2677852 | AD31: =IF(AD19="Year 22",$E$6*AD27*$R$5/1000,"") -> 397.2677852 | AE31: =IF(AE19="Year 23",$E$6*AE27*$R$5/1000,"") -> 397.2677852 | AF31: =IF(AF19="Year 24",$E$6*AF27*$R$5/1000,"") -> 397.2677852 | AG31: =IF(AG19="Year 25",$E$6*AG27*$R$5/1000,"") -> 397.2677852 | AH31: =IF('Input Data'!G89>25,$E$6*AH27*$R$5/1000,"") -> 397.2677852 | AI31: =IF(AI19="Year 27",$E$6*AI27*$R$5/1000,"") -> 397.2677852 | AJ31: =IF(AJ19="Year 28",$E$6*AJ27*$R$5/1000,"") -> 397.2677852 | AK31: =IF(AK19="Year 29",$E$6*AK27*$R$5/1000,"") -> 397.2677852 | AL31: =IF(AL19="Year 30",$E$6*AL27*$R$5/1000,"") -> 397.2677852 | AM31: =IF('Input Data'!G89>30,$E$6*AM27*$R$5/1000,"") -> 
B32: Sulphur | I32: =$E$7*I26*$R$6/1000000 -> 0.523848 | J32: =$E$7*J26*$R$6/1000000 -> 0.60444 | K32: 0.685032 | L32: 0.685032 | M32: 0.685032 | N32: 0.685032 | O32: 0.685032 | P32: 0.685032 | Q32: 0.685032 | R32: 0.685032 | S32: 0.685032 | T32: 0.685032 | U32: 0.685032 | V32: 0.685032 | W32: 0.685032 | X32: 0.685032 | Y32: 0.685032 | Z32: 0.685032 | AA32: 0.685032 | AB32: =IF(AB19="Year 20",$E$7*AB26*$R$6/1000000,"") -> 0.685032 | AC32: =IF('Input Data'!G89>20,$E$7*AC26*$R$6/1000000,"") -> 0.685032 | AD32: =IF(AD19="Year 22",$E$7*AD26*$R$6/1000000,"") -> 0.685032 | AE32: =IF(AE19="Year 23",$E$7*AE26*$R$6/1000000,"") -> 0.685032 | AF32: =IF(AF19="Year 24",$E$7*AF26*$R$6/1000000,"") -> 0.685032 | AG32: =IF(AG19="Year 25",$E$7*AG26*$R$6/1000000,"") -> 0.685032 | AH32: =IF('Input Data'!G89>25,$E$7*AH26*$R$6/1000000,"") -> 0.685032 | AI32: =IF(AI19="Year 27",$E$7*AI26*$R$6/1000000,"") -> 0.685032 | AJ32: =IF(AJ19="Year 28",$E$7*AJ26*$R$6/1000000,"") -> 0.685032 | AK32: =IF(AK19="Year 29",$E$7*AK26*$R$6/1000000,"") -> 0.685032 | AL32: =IF(AL19="Year 30",$E$7*AL26*$R$6/1000000,"") -> 0.685032 | AM32: =IF('Input Data'!G89>30,$E$7*AM26*$R$6/1000000,"") -> 
B33: Hydrogen | I33: =IF(((I26-I27)*R7*'Input Data'!G38/1000000>0),(I26-I27)*R7*'Input Data'!G38/1000000,0) -> 0 | J33: =IF(((J26-J27)*R7*'Input Data'!G38/1000000>0),(J26-J27)*R7*'Input Data'!G38/1000000,0) -> 0 | K33: =IF(((K26-K27)*R7*'Input Data'!G38/1000000>0),(K26-K27)*R7*'Input Data'!G38/1000000,0) -> 0 | L33: =IF(((L26-L27)*R7*'Input Data'!G38/1000000>0),(L26-L27)*R7*'Input Data'!G38/1000000,0) -> 0 | M33: =IF(((M26-M27)*R7*'Input Data'!G38/1000000>0),(M26-M27)*R7*'Input Data'!G38/1000000,0) -> 0 | N33: =IF(((N26-N27)*R7*'Input Data'!G38/1000000>0),(N26-N27)*R7*'Input Data'!G38/1000000,0) -> 0 | O33: =IF(((O26-O27)*R7*'Input Data'!G38/1000000>0),(O26-O27)*R7*'Input Data'!G38/1000000,0) -> 0 | P33: =IF(((P26-P27)*R7*'Input Data'!G38/1000000>0),(P26-P27)*R7*'Input Data'!G38/1000000,0) -> 0 | Q33: =IF(((Q26-Q27)*R7*'Input Data'!G38/1000000>0),(Q26-Q27)*R7*'Input Data'!G38/1000000,0) -> 0 | R33: =IF(((R26-R27)*R7*'Input Data'!G38/1000000>0),(R26-R27)*R7*'Input Data'!G38/1000000,0) -> 0 | S33: =IF(((S26-S27)*R7*'Input Data'!G38/1000000>0),(S26-S27)*R7*'Input Data'!G38/1000000,0) -> 0 | T33: =IF(((T26-T27)*R7*'Input Data'!G38/1000000>0),(T26-T27)*R7*'Input Data'!G38/1000000,0) -> 0 | U33: =IF(((U26-U27)*R7*'Input Data'!G38/1000000>0),(U26-U27)*R7*'Input Data'!G38/1000000,0) -> 0 | V33: =IF(((V26-V27)*R7*'Input Data'!G38/1000000>0),(V26-V27)*R7*'Input Data'!G38/1000000,0) -> 0 | W33: =IF(((W26-W27)*R7*'Input Data'!G38/1000000>0),(W26-W27)*R7*'Input Data'!G38/1000000,0) -> 0 | X33: =IF(((X26-X27)*R7*'Input Data'!G38/1000000>0),(X26-X27)*R7*'Input Data'!G38/1000000,0) -> 0 | Y33: =IF(((Y26-Y27)*R7*'Input Data'!G38/1000000>0),(Y26-Y27)*R7*'Input Data'!G38/1000000,0) -> 0 | Z33: =IF(((Z26-Z27)*R7*'Input Data'!G38/1000000>0),(Z26-Z27)*R7*'Input Data'!G38/1000000,0) -> 0 | AA33: =IF(((AA26-AA27)*R7*'Input Data'!G38/1000000>0),(AA26-AA27)*R7*'Input Data'!G38/1000000,0) -> 0 | AB33: =IF(AB19="Year 20",IF(((AB26-AB27)*R7*'Input Data'!G38/1000000>0),(AB26-AB27)*R7*'Input Data'!G38/1000000,0),"") -> 0 | AC33: =IF('Input Data'!G89>20,IF(((AC26-AC27)*R7*'Input Data'!G38/1000000>0),(AC26-AC27)*R7*'Input Data'!G38/1000000,0),"") -> 0 | AD33: =IF(AD19="Year 22",IF(((AD26-AD27)*R7*'Input Data'!G38/1000000>0),(AD26-AD27)*R7*'Input Data'!G38/1000000,0),"") -> 0 | AE33: =IF(AE19="Year 23",IF(((AE26-AE27)*R7*'Input Data'!G38/1000000>0),(AE26-AE27)*R7*'Input Data'!G38/1000000,0),"") -> 0 | AF33: =IF(AF19="Year 24",IF(((AF26-AF27)*R7*'Input Data'!G38/1000000>0),(AF26-AF27)*R7*'Input Data'!G38/1000000,0),"") -> 0 | AG33: =IF(AG19="Year 25",IF(((AG26-AG27)*R7*'Input Data'!G38/1000000>0),(AG26-AG27)*R7*'Input Data'!G38/1000000,0),"") -> 0 | AH33: =IF('Input Data'!G89>25,IF(((AH26-AH27)*R7*'Input Data'!G38/1000000>0),(AH26-AH27)*R7*'Input Data'!G38/1000000,0),"") -> 0 | AI33: =IF(AI19="Year 27",IF(((AI26-AI27)*R7*'Input Data'!G38/1000000>0),(AI26-AI27)*R7*'Input Data'!G38/1000000,0),"") -> 0 | AJ33: =IF(AJ19="Year 28",IF(((AJ26-AJ27)*R7*'Input Data'!G38/1000000>0),(AJ26-AJ27)*R7*'Input Data'!G38/1000000,0),"") -> 0 | AK33: =IF(AK19="Year 29",IF(((AK26-AK27)*R7*'Input Data'!G38/1000000>0),(AK26-AK27)*R7*'Input Data'!G38/1000000,0),"") -> 0 | AL33: =IF(AL19="Year 30",IF(((AL26-AL27)*R7*'Input Data'!G38/1000000>0),(AL26-AL27)*R7*'Input Data'!G38/1000000,0),"") -> 0 | AM33: =IF('Input Data'!G89>30,IF(((AM26-AM27)*R7*'Input Data'!G38/1000000>0),(AM26-AM27)*R7*'Input Data'!G38/1000000,0),"") -> 
B34: Operating costs
B35: Fuel (Coal) | I35: =$M$5*$E$5*I26/1000000 -> 101.1479788 | J35: =$M$5*$E$5*J26/1000000 -> 116.7092063 | K35: 132.2704338 | L35: 132.2704338 | M35: 132.2704338 | N35: 132.2704338 | O35: 132.2704338 | P35: 132.2704338 | Q35: 132.2704338 | R35: 132.2704338 | S35: 132.2704338 | T35: 132.2704338 | U35: 132.2704338 | V35: 132.2704338 | W35: 132.2704338 | X35: 132.2704338 | Y35: 132.2704338 | Z35: 132.2704338 | AA35: 132.2704338 | AB35: =IF(AB19="Year 20",$M$5*$E$5*AB26/1000000,"") -> 132.2704338 | AC35: =IF('Input Data'!G89>20,$M$5*$E$5*AC26/1000000,"") -> 132.2704338 | AD35: =IF(AD19="Year 22",$M$5*$E$5*AD26/1000000,"") -> 132.2704338 | AE35: =IF(AE19="Year 23",$M$5*$E$5*AE26/1000000,"") -> 132.2704338 | AF35: =IF(AF19="Year 24",$M$5*$E$5*AF26/1000000,"") -> 132.2704338 | AG35: =IF(AG19="Year 25",$M$5*$E$5*AG26/1000000,"") -> 132.2704338 | AH35: =IF('Input Data'!G89>25,$M$5*$E$5*AH26/1000000,"") -> 132.2704338 | AI35: =IF(AI19="Year 27",$M$5*$E$5*AI26/1000000,"") -> 132.2704338 | AJ35: =IF(AJ19="Year 28",$M$5*$E$5*AJ26/1000000,"") -> 132.2704338 | AK35: =IF(AK19="Year 29",$M$5*$E$5*AK26/1000000,"") -> 132.2704338 | AL35: =IF(AL19="Year 30",$M$5*$E$5*AL26/1000000,"") -> 132.2704338 | AM35: =IF('Input Data'!G89>30,$M$5*$E$5*AM26/1000000,"") -> 
B36: Maintenance | I36: =$M$6 -> 39.72 | J36: =$M$6 -> 39.72 | K36: 39.72 | L36: 39.72 | M36: 39.72 | N36: 39.72 | O36: 39.72 | P36: 39.72 | Q36: 39.72 | R36: 39.72 | S36: 39.72 | T36: 39.72 | U36: 39.72 | V36: 39.72 | W36: 39.72 | X36: 39.72 | Y36: 39.72 | Z36: 39.72 | AA36: 39.72 | AB36: =IF(AB19="Year 20",$M$6,"") -> 39.72 | AC36: =IF('Input Data'!G89>20,$M$6,"") -> 39.72 | AD36: =IF(AD19="Year 22",$M$6,"") -> 39.72 | AE36: =IF(AE19="Year 23",$M$6,"") -> 39.72 | AF36: =IF(AF19="Year 24",$M$6,"") -> 39.72 | AG36: =IF(AG19="Year 25",$M$6,"") -> 39.72 | AH36: =IF('Input Data'!G89>25,$M$6,"") -> 39.72 | AI36: =IF(AI19="Year 27",$M$6,"") -> 39.72 | AJ36: =IF(AJ19="Year 28",$M$6,"") -> 39.72 | AK36: =IF(AK19="Year 29",$M$6,"") -> 39.72 | AL36: =IF(AL19="Year 30",$M$6,"") -> 39.72 | AM36: =IF('Input Data'!G89>30,$M$6,"") -> 
B37: Labour | I37: =$N$12 -> 8.32 | J37: 8.32 | K37: 8.32 | L37: 8.32 | M37: 8.32 | N37: 8.32 | O37: 8.32 | P37: 8.32 | Q37: 8.32 | R37: 8.32 | S37: 8.32 | T37: 8.32 | U37: 8.32 | V37: 8.32 | W37: 8.32 | X37: 8.32 | Y37: 8.32 | Z37: 8.32 | AA37: 8.32 | AB37: =IF(AB19="Year 20",$N$12,"") -> 8.32 | AC37: =IF('Input Data'!G89>20,$N$12,"") -> 8.32 | AD37: =IF(AD19="Year 22",$N$12,"") -> 8.32 | AE37: =IF(AE19="Year 23",$N$12,"") -> 8.32 | AF37: =IF(AF19="Year 24",$N$12,"") -> 8.32 | AG37: =IF(AG19="Year 25",$N$12,"") -> 8.32 | AH37: =IF('Input Data'!G89>25,$N$12,"") -> 8.32 | AI37: =IF(AI19="Year 27",$N$12,"") -> 8.32 | AJ37: =IF(AJ19="Year 28",$N$12,"") -> 8.32 | AK37: =IF(AK19="Year 29",$N$12,"") -> 8.32 | AL37: =IF(AL19="Year 30",$N$12,"") -> 8.32 | AM37: =IF('Input Data'!G89>30,$N$12,"") -> 
B38: Chemicals and Consumables | I38: =I22*'Input Data'!$G$74*I24/0.85 -> 2.898235294 | J38: =J22*'Input Data'!$G$74*J24/0.85 -> 3.344117647 | K38: =K22*'Input Data'!$G$74*K24/0.85 -> 3.79 | L38: =L22*'Input Data'!$G$74*L24/0.85 -> 3.79 | M38: =M22*'Input Data'!$G$74*M24/0.85 -> 3.79 | N38: =N22*'Input Data'!$G$74*N24/0.85 -> 3.79 | O38: =O22*'Input Data'!$G$74*O24/0.85 -> 3.79 | P38: =P22*'Input Data'!$G$74*P24/0.85 -> 3.79 | Q38: =Q22*'Input Data'!$G$74*Q24/0.85 -> 3.79 | R38: =R22*'Input Data'!$G$74*R24/0.85 -> 3.79 | S38: =S22*'Input Data'!$G$74*S24/0.85 -> 3.79 | T38: =T22*'Input Data'!$G$74*T24/0.85 -> 3.79 | U38: =U22*'Input Data'!$G$74*U24/0.85 -> 3.79 | V38: =V22*'Input Data'!$G$74*V24/0.85 -> 3.79 | W38: =W22*'Input Data'!$G$74*W24/0.85 -> 3.79 | X38: =X22*'Input Data'!$G$74*X24/0.85 -> 3.79 | Y38: =Y22*'Input Data'!$G$74*Y24/0.85 -> 3.79 | Z38: =Z22*'Input Data'!$G$74*Z24/0.85 -> 3.79 | AA38: =AA22*'Input Data'!$G$74*AA24/0.85 -> 3.79 | AB38: =IF(AB19="Year 20",AB22*AB24*'Input Data'!$G$74/0.85,"") -> 3.79 | AC38: =IF('Input Data'!G89>20,AC22*AC24*'Input Data'!$G$74/0.85,"") -> 3.79 | AD38: =IF(AD19="Year 22",AD22*AD24*'Input Data'!$G$74/0.85,"") -> 3.79 | AE38: =IF(AE19="Year 23",AE24*AE22*'Input Data'!$G$74/0.85,"") -> 3.79 | AF38: =IF(AF19="Year 24",AF22*AF24*'Input Data'!$G$74/0.85,"") -> 3.79 | AG38: =IF(AG19="Year 25",AG22*AG24*'Input Data'!$G$74/0.85,"") -> 3.79 | AH38: =IF('Input Data'!G89>25,AH22*AH24*'Input Data'!$G$74/0.85,"") -> 3.79 | AI38: =IF(AI19="Year 27",AI24*AI22*'Input Data'!$G$74/0.85,"") -> 3.79 | AJ38: =IF(AJ19="Year 28",AJ24*AJ22*'Input Data'!$G$74/0.85,"") -> 3.79 | AK38: =IF(AK19="Year 29",AK22*AK24*'Input Data'!$G$74/0.85,"") -> 3.79 | AL38: =IF(AL19="Year 30",AL22*AL24*'Input Data'!$G$74/0.85,"") -> 3.79 | AM38: =IF('Input Data'!G89>30,AM22*AM24*'Input Data'!$G$74/0.85,"") -> 
B39: Waste Disposal | I39: =I26*'Input Data'!$G$40*'Input Data'!$G$73/1000000 -> 1.434888 | J39: =J26*'Input Data'!$G$40*'Input Data'!$G$73/1000000 -> 1.65564 | K39: =K26*'Input Data'!$G$40*'Input Data'!$G$73/1000000 -> 1.876392 | L39: =L26*'Input Data'!$G$40*'Input Data'!$G$73/1000000 -> 1.876392 | M39: =M26*'Input Data'!$G$40*'Input Data'!$G$73/1000000 -> 1.876392 | N39: =N26*'Input Data'!$G$40*'Input Data'!$G$73/1000000 -> 1.876392 | O39: =O26*'Input Data'!$G$40*'Input Data'!$G$73/1000000 -> 1.876392 | P39: =P26*'Input Data'!$G$40*'Input Data'!$G$73/1000000 -> 1.876392 | Q39: =Q26*'Input Data'!$G$40*'Input Data'!$G$73/1000000 -> 1.876392 | R39: =R26*'Input Data'!$G$40*'Input Data'!$G$73/1000000 -> 1.876392 | S39: =S26*'Input Data'!$G$40*'Input Data'!$G$73/1000000 -> 1.876392 | T39: =T26*'Input Data'!$G$40*'Input Data'!$G$73/1000000 -> 1.876392 | U39: =U26*'Input Data'!$G$40*'Input Data'!$G$73/1000000 -> 1.876392 | V39: =V26*'Input Data'!$G$40*'Input Data'!$G$73/1000000 -> 1.876392 | W39: =W26*'Input Data'!$G$40*'Input Data'!$G$73/1000000 -> 1.876392 | X39: =X26*'Input Data'!$G$40*'Input Data'!$G$73/1000000 -> 1.876392 | Y39: =Y26*'Input Data'!$G$40*'Input Data'!$G$73/1000000 -> 1.876392 | Z39: =Z26*'Input Data'!$G$40*'Input Data'!$G$73/1000000 -> 1.876392 | AA39: =AA26*'Input Data'!$G$40*'Input Data'!$G$73/1000000 -> 1.876392 | AB39: =IF(AB19="Year 20",AB26*'Input Data'!$G$40*'Input Data'!$G$73/1000000,"") -> 1.876392 | AC39: =IF('Input Data'!G89>20,AC26*'Input Data'!$G$40*'Input Data'!$G$73/1000000,"") -> 1.876392 | AD39: =IF(AD19="Year 22",AD26*'Input Data'!$G$40*'Input Data'!$G$73/1000000,"") -> 1.876392 | AE39: =IF(AE19="Year 23",AE26*'Input Data'!$G$40*'Input Data'!$G$73/1000000,"") -> 1.876392 | AF39: =IF(AF19="Year 24",AF26*'Input Data'!$G$40*'Input Data'!$G$73/1000000,"") -> 1.876392 | AG39: =IF(AG19="Year 25",AG26*'Input Data'!$G$40*'Input Data'!$G$73/1000000,"") -> 1.876392 | AH39: =IF('Input Data'!G89>25,AH26*'Input Data'!$G$40*'Input Data'!$G$73/1000000,"") -> 1.876392 | AI39: =IF(AI19="Year 27",AI26*'Input Data'!$G$40*'Input Data'!$G$73/1000000,"") -> 1.876392 | AJ39: =IF(AJ19="Year 28",AJ26*'Input Data'!$G$40*'Input Data'!$G$73/1000000,"") -> 1.876392 | AK39: =IF(AK19="Year 29",AK26*'Input Data'!$G$40*'Input Data'!$G$73/1000000,"") -> 1.876392 | AL39: =IF(AL19="Year 30",AL26*'Input Data'!$G$40*'Input Data'!$G$73/1000000,"") -> 1.876392 | AM39: =IF('Input Data'!G89>30,AM26*'Input Data'!$G$40*'Input Data'!$G$73/1000000,"") -> 
B40: Insurance + Local Taxes | I40: =I5*R10 -> 22.23 | J40: =I5*R10 -> 22.23 | K40: =I5*R10 -> 22.23 | L40: =I5*R10 -> 22.23 | M40: =I5*R10 -> 22.23 | N40: =I5*R10 -> 22.23 | O40: =I5*R10 -> 22.23 | P40: =I5*R10 -> 22.23 | Q40: =I5*R10 -> 22.23 | R40: =I5*R10 -> 22.23 | S40: =I5*R10 -> 22.23 | T40: =I5*R10 -> 22.23 | U40: =I5*R10 -> 22.23 | V40: =I5*R10 -> 22.23 | W40: =I5*R10 -> 22.23 | X40: =I5*R10 -> 22.23 | Y40: =I5*R10 -> 22.23 | Z40: =I5*R10 -> 22.23 | AA40: =I5*R10 -> 22.23 | AB40: =IF(AB19="Year 20",I5*R10,"") -> 22.23 | AC40: =IF('Input Data'!G89>20,I5*R10,"") -> 22.23 | AD40: =IF(AD19="Year 22",I5*R10,"") -> 22.23 | AE40: =IF(AE19="Year 23",I5*R10,"") -> 22.23 | AF40: =IF(AF19="Year 24",I5*R10,"") -> 22.23 | AG40: =IF(AG19="Year 25",I5*R10,"") -> 22.23 | AH40: =IF('Input Data'!G89>25,I5*R10,"") -> 22.23 | AI40: =IF(AI19="Year 27",I5*R10,"") -> 22.23 | AJ40: =IF(AJ19="Year 28",I5*R10,"") -> 22.23 | AK40: =IF(AK19="Year 29",I5*R10,"") -> 22.23 | AL40: =IF(AL19="Year 30",I5*R10,"") -> 22.23 | AM40: =IF('Input Data'!G89>30,I5*R10,"") -> 
B41: CO2 Emissions | I41: ='Input Data'!$G$33*'Input Data'!$G$77*I26/1000000 -> 0 | J41: ='Input Data'!$G$33*'Input Data'!$G$77*J26/1000000 -> 0 | K41: ='Input Data'!$G$33*'Input Data'!$G$77*K26/1000000 -> 0 | L41: ='Input Data'!$G$33*'Input Data'!$G$77*L26/1000000 -> 0 | M41: ='Input Data'!$G$33*'Input Data'!$G$77*M26/1000000 -> 0 | N41: ='Input Data'!$G$33*'Input Data'!$G$77*N26/1000000 -> 0 | O41: ='Input Data'!$G$33*'Input Data'!$G$77*O26/1000000 -> 0 | P41: ='Input Data'!$G$33*'Input Data'!$G$77*P26/1000000 -> 0 | Q41: ='Input Data'!$G$33*'Input Data'!$G$77*Q26/1000000 -> 0 | R41: ='Input Data'!$G$33*'Input Data'!$G$77*R26/1000000 -> 0 | S41: ='Input Data'!$G$33*'Input Data'!$G$77*S26/1000000 -> 0 | T41: ='Input Data'!$G$33*'Input Data'!$G$77*T26/1000000 -> 0 | U41: ='Input Data'!$G$33*'Input Data'!$G$77*U26/1000000 -> 0 | V41: ='Input Data'!$G$33*'Input Data'!$G$77*V26/1000000 -> 0 | W41: ='Input Data'!$G$33*'Input Data'!$G$77*W26/1000000 -> 0 | X41: ='Input Data'!$G$33*'Input Data'!$G$77*X26/1000000 -> 0 | Y41: ='Input Data'!$G$33*'Input Data'!$G$77*Y26/1000000 -> 0 | Z41: ='Input Data'!$G$33*'Input Data'!$G$77*Z26/1000000 -> 0 | AA41: ='Input Data'!$G$33*'Input Data'!$G$77*AA26/1000000 -> 0 | AB41: ='Input Data'!$G$33*'Input Data'!$G$77*AB26/1000000 -> 0 | AC41: =IF('Input Data'!G89>20,'Input Data'!$G$33*'Input Data'!$G$77*AC26/1000000,"") -> 0 | AD41: =IF(AD19="Year 22",'Input Data'!$G$33*'Input Data'!$G$77*AD26/1000000,"") -> 0 | AE41: =IF(AE19="Year 23",'Input Data'!$G$33*'Input Data'!$G$77*AE26/1000000,"") -> 0 | AF41: =IF(AF19="Year 24",'Input Data'!$G$33*'Input Data'!$G$77*AF26/1000000,"") -> 0 | AG41: =IF(AG19="Year 25",'Input Data'!$G$33*'Input Data'!$G$77*AG26/1000000,"") -> 0 | AH41: =IF('Input Data'!G89>25,'Input Data'!$G$33*'Input Data'!$G$77*AH26/1000000,"") -> 0 | AI41: =IF(AI19="Year 27",'Input Data'!$G$33*'Input Data'!$G$77*AI26/1000000,"") -> 0 | AJ41: =IF(AJ19="Year 28",'Input Data'!$G$33*'Input Data'!$G$77*AJ26/1000000,"") -> 0 | AK41: =IF(AK19="Year 29",'Input Data'!$G$33*'Input Data'!$G$77*AK26/1000000,"") -> 0 | AL41: =IF(AL19="Year 30",'Input Data'!$G$33*'Input Data'!$G$77*AL26/1000000,"") -> 0 | AM41: =IF('Input Data'!G89>30,'Input Data'!$G$33*'Input Data'!$G$77*AM26/1000000,"") -> 
B42: Fixed Capital Expenditure | F42: =I10*F29 -> 389.025 | G42: =I10*G29 -> 700.245 | H42: =H29*I10 -> 466.83
B44: Total Cash Flow (yearly) | F44: =SUM(F31:F33)-SUM(F35:F41)-F42 -> -389.025 | G44: -700.245 | H44: -466.83 | I44: 128.5657582 | J44: 159.1558748 | K44: 189.7459915 | L44: 189.7459915 | M44: 189.7459915 | N44: 189.7459915 | O44: 189.7459915 | P44: 189.7459915 | Q44: 189.7459915 | R44: 189.7459915 | S44: 189.7459915 | T44: 189.7459915 | U44: 189.7459915 | V44: 189.7459915 | W44: 189.7459915 | X44: 189.7459915 | Y44: 189.7459915 | Z44: 189.7459915 | AA44: 189.7459915 | AB44: 189.7459915 | AC44: =IF(AC19="Year 21",SUM(AC31:AC33)-SUM(AC35:AC41)-AC42,"") -> 189.7459915 | AD44: =IF(AD19="Year 22",SUM(AD31:AD33)-SUM(AD35:AD41)-AD42,"") -> 189.7459915 | AE44: =IF(AE19="Year 23",SUM(AE31:AE33)-SUM(AE35:AE41)-AE42,"") -> 189.7459915 | AF44: =IF(AF19="Year 24",SUM(AF31:AF33)-SUM(AF35:AF41)-AF42,"") -> 189.7459915 | AG44: =IF(AG19="Year 25",SUM(AG31:AG33)-SUM(AG35:AG41)-AG42,"") -> 189.7459915 | AH44: =IF(AH19="Year 26",SUM(AH31:AH33)-SUM(AH35:AH41)-AH42,"") -> 189.7459915 | AI44: =IF(AI19="Year 27",SUM(AI31:AI33)-SUM(AI35:AI41)-AI42,"") -> 189.7459915 | AJ44: =IF(AJ19="Year 28",SUM(AJ31:AJ33)-SUM(AJ35:AJ41)-AJ42,"") -> 189.7459915 | AK44: =IF(AK19="Year 29",SUM(AK31:AK33)-SUM(AK35:AK41)-AK42,"") -> 189.7459915 | AL44: =IF(AL19="Year 30",SUM(AL31:AL33)-SUM(AL35:AL41)-AL42,"") -> 189.7459915 | AM44: =IF(AM19="Year 31",SUM(AM31:AM33)-SUM(AM35:AM41)-AM42,"") -> 0
B45: Total Cash Flow (accumulated) | F45: =F44 -> -389.025 | G45: =-1*(ABS(G44)+ABS(F45)) -> -1089.27 | H45: =-1*(ABS(H44)+ABS(G45)) -> -1556.1 | I45: =H45+I44 -> -1427.534242 | J45: =I45+J44 -> -1268.378367 | K45: -1078.632376 | L45: -888.8863841 | M45: -699.1403926 | N45: -509.3944011 | O45: -319.6484096 | P45: -129.9024182 | Q45: =P45+Q44 -> 59.84357329 | R45: 249.5895648 | S45: 439.3355562 | T45: 629.0815477 | U45: 818.8275392 | V45: 1008.573531 | W45: 1198.319522 | X45: 1388.065514 | Y45: 1577.811505 | Z45: 1767.557497 | AA45: 1957.303488 | AB45: =IF(AB19="Year 20",AA45+AB44,"") -> 2147.049479 | AC45: =IF(AC19="Year 21",AB45+AC44,"") -> 2336.795471 | AD45: =IF(AD19="Year 22",AC45+AD44,"") -> 2526.541462 | AE45: =IF(AE19="Year 23",AD45+AE44,"") -> 2716.287454 | AF45: =IF(AF19="Year 24",AE45+AF44,"") -> 2906.033445 | AG45: =IF(AG19="Year 25",AF45+AG44,"") -> 3095.779437 | AH45: =IF(AH19="Year 26",AG45+AH44,"") -> 3285.525428 | AI45: =IF(AI19="Year 27",AH45+AI44,"") -> 3475.27142 | AJ45: =IF(AJ19="Year 28",AI45+AJ44,"") -> 3665.017411 | AK45: =IF(AK19="Year 29",AJ45+AK44,"") -> 3854.763403 | AL45: =IF(AL19="Year 30",AK45+AL44,"") -> 4044.509394 | AM45: =IF(AM19="Year 31",AL45+AM44,"") -> 4044.509394
B47: Discounted Cash Flow (yearly) | F47: =F45/(1+R9) -> -353.6590909 | G47: =G44/(1+R9)^2 -> -578.714876 | H47: =H44/(1+R9)^3 -> -350.7362885 | I47: =I44/(1+R9)^4 -> 87.81214274 | J47: =J44/(1+R9)^5 -> 98.82327637 | K47: =K44/(1+R9)^6 -> 107.1066655 | L47: =L44/(1+R9)^7 -> 97.36969592 | M47: =M44/(1+R9)^8 -> 88.51790539 | N47: =N44/(1+R9)^9 -> 80.47082308 | O47: =O44/(1+R9)^10 -> 73.15529371 | P47: =P44/(1+R9)^11 -> 66.50481246 | Q47: =Q44/(1+R9)^12 -> 60.45892042 | R47: =R44/(1+R9)^13 -> 54.96265493 | S47: =S44/(1+R9)^14 -> 49.96604993 | T47: =T44/(1+R9)^15 -> 45.42368176 | U47: =U44/(1+R9)^16 -> 41.29425614 | V47: =V44/(1+R9)^17 -> 37.54023286 | W47: =W44/(1+R9)^18 -> 34.12748442 | X47: =X44/(1+R9)^19 -> 31.02498583 | Y47: =Y44/(1+R9)^20 -> 28.20453257 | Z47: =Z44/(1+R9)^21 -> 25.64048416 | AA47: =AA44/(1+R9)^22 -> 23.30953105 | AB47: =IF(AB19="Year 20",AB44/(1+R9)^23,"") -> 21.19048278 | AC47: =IF(AC19="Year 21",AC44/(1+R9)^24,"") -> 19.26407525 | AD47: =IF(AD19="Year 22",AD44/(1+R9)^25,"") -> 17.51279568 | AE47: =IF(AE19="Year 23",AE44/(1+R9)^26,"") -> 15.92072335 | AF47: =IF(AF19="Year 24",AF44/(1+R9)^27,"") -> 14.47338486 | AG47: =IF(AG19="Year 25",AG44/(1+R9)^28,"") -> 13.1576226 | AH47: =IF(AH19="Year 26",AH44/(1+R9)^29,"") -> 11.96147509 | AI47: =IF(AI19="Year 27",AI44/(1+R9)^30,"") -> 10.87406827 | AJ47: =IF(AJ19="Year 28",AJ44/(1+R9)^31,"") -> 9.885516605 | AK47: =IF(AK19="Year 29",AK44/(1+R9)^32,"") -> 8.986833278 | AL47: =IF(AL19="Year 30",AL44/(1+R9)^33,"") -> 8.169848434 | AM47: =IF(AM19="Year 31",AM44/(1+R9)^34,"") -> 0
B48: Discounted Cash Flow (accumulated) | F48: =F47 -> -353.6590909 | G48: =SUM(G47+F48) -> -932.3739669 | H48: -1283.110255 | I48: -1195.298113 | J48: -1096.474836 | K48: -989.3681708 | L48: -891.9984749 | M48: -803.4805695 | N48: -723.0097464 | O48: -649.8544527 | P48: -583.3496403 | Q48: -522.8907198 | R48: -467.9280649 | S48: -417.962015 | T48: -372.5383332 | U48: -331.2440771 | V48: -293.7038442 | W48: -259.5763598 | X48: -228.551374 | Y48: -200.3468414 | Z48: -174.7063572 | AA48: -151.3968262 | AB48: =IF(AB19="Year 20",SUM(AB47+AA48),"") -> -130.2063434 | AC48: =IF(AC19="Year 21",SUM(AC47+AB48),"") -> -110.9422682 | AD48: =IF(AD19="Year 22",SUM(AD47+AC48),"") -> -93.42947249 | AE48: =IF(AE19="Year 23",SUM(AE47+AD48),"") -> -77.50874914 | AF48: =IF(AF19="Year 24",SUM(AF47+AE48),"") -> -63.03536428 | AG48: =IF(AG19="Year 25",SUM(AG47+AF48),"") -> -49.87774168 | AH48: =IF(AH19="Year 26",SUM(AH47+AG48),"") -> -37.91626658 | AI48: =IF(AI19="Year 27",SUM(AI47+AH48),"") -> -27.04219832 | AJ48: =IF(AJ19="Year 28",SUM(AJ47+AI48),"") -> -17.15668171 | AK48: =IF(AK19="Year 29",SUM(AK47+AJ48),"") -> -8.169848434 | AL48: =IF(AL19="Year 30",SUM(AL47+AK48),"") -> -9.414691249e-14 | AM48: =IF(AM19="Year 31",SUM(AM47+AL48),"") -> -9.414691249e-14
AA50: Hidden acc cf | AC50: =SUM(AC47+AB48) -> -110.9422682 | AD50: =IF(AD47="",AC48,SUM(AD47+AC48)) -> -93.42947249 | AE50: =IF(AE47="",AD50,SUM(AE47+AD50)) -> -77.50874914 | AF50: =IF(AF47="",AE50,SUM(AF47+AE50)) -> -63.03536428 | AG50: =IF(AG47="",AF50,SUM(AG47+AF50)) -> -49.87774168 | AH50: -37.91626658 | AI50: -27.04219832 | AJ50: -17.15668171 | AK50: -8.169848434 | AL50: -9.414691249e-14 | AM50: -9.414691249e-14 | AN50: -9.414691249e-14

Sheet IGCC wo CC
B4: Production | G4: Capital Expenditure | I4: UK£ (million) | K4: Operating Costs | L4: UK£ (million/year) | P4: Revenues
B5: Coal feedrate | D5: te/h | E5: ='Input Data'!N26 -> 230.7916667 | G5: Installed cost | I5: ='Input Data'!N60 -> 910 | K5: Fuel Cost | M5: ='Input Data'!N71 -> 65 | N5: UK£/te | P5: Electricity Price | R5: 0.05949350412 | S5: UK£/kWh
B6: Net power ouput | D6: MW | E6: ='Input Data'!N23 -> 746.1 | G6: Land purchase, surveys | I6: ='Input Data'!N65 -> 0.05 | K6: Maintenance | M6: ='Input Data'!N72 -> 34.22 | N6: UK£/year | P6: Sulphur Price | R6: ='Input Data'!N84 -> 40 | S6: UK£/te
B7: Sulphur for export | D7: te/h | E7: ='Input Data'!N37 -> 1.95 | G7: Fees | I7: ='Input Data'!N66 -> 0.1 | K7: CO2 Emissions | M7: ='Input Data'!N77 -> 0 | N7: UK£/te | P7: Hydrogen Price | R7: ='Input Data'!N85 -> 1307.189542 | S7: UK£/te
G8: Contingencies | I8: ='Input Data'!N64 -> 0.25 | K8: Labour Cost | N8: UK£/year (million)
K9: Number of operations personnel | N9: ='Input Data'!N78 -> 115 | P9: Discounted Rate: | R9: ='Input Data'!N86 -> 0.1
B10: =IF('Input Data'!N10>0.001,"Performance Data: User Adjusted","") ->  | G10: Total Investment Cost | I10: =I5+(I6*I5)+(I5*I7)+(I5*I8) -> 1274 | K10: Average salary options personnel | N10: ='Input Data'!N79 -> 0.05 | P10: Insurance | R10: ='Input Data'!N81 -> 0.02 | S10: Installed Cost
K11: Admin | N11: ='Input Data'!N80 -> 0.3
K12: Total Labour Cost | N12: =(N9*N10)*(1+N11) -> 7.475
G13: =IF('Input Data'!N47>0.001,"Capital and Cost Data: User Adjusted","") ->  | P13: =IF('Input Data'!N83>0.001,"Revenue Data: User Adjusted","") -> 
K14: =IF('Input Data'!N70>0.001,"Operating Data: User Adjusted","") -> 
F17: YEAR
B18: CASH FLOW ANALYSIS | F18: =G18-1 -> 2009 | G18: =H18-1 -> 2010 | H18: =I18-1 -> 2011 | I18: ='Input Data'!K102 -> 2012 | J18: ='Input Data'!K103 -> 2013 | K18: ='Input Data'!K104 -> 2014 | L18: ='Input Data'!K105 -> 2015 | M18: ='Input Data'!K106 -> 2016 | N18: ='Input Data'!K107 -> 2017 | O18: ='Input Data'!K108 -> 2018 | P18: ='Input Data'!K109 -> 2019 | Q18: ='Input Data'!K110 -> 2020 | R18: ='Input Data'!K111 -> 2021 | S18: ='Input Data'!K112 -> 2022 | T18: ='Input Data'!K113 -> 2023 | U18: ='Input Data'!K114 -> 2024 | V18: ='Input Data'!K115 -> 2025 | W18: ='Input Data'!K116 -> 2026 | X18: ='Input Data'!K117 -> 2027 | Y18: ='Input Data'!K118 -> 2028 | Z18: ='Input Data'!K119 -> 2029 | AA18: ='Input Data'!K120 -> 2030 | AB18: ='Input Data'!K121 -> 2031 | AC18: ='Input Data'!K122 -> 2032 | AD18: ='Input Data'!K123 -> 2033 | AE18: ='Input Data'!K124 -> 2034 | AF18: ='Input Data'!K125 -> 2035 | AG18: ='Input Data'!K126 -> 2036 | AH18: ='Input Data'!K127 -> 2037 | AI18: ='Input Data'!K128 -> 2038 | AJ18: ='Input Data'!K129 -> 2039 | AK18: ='Input Data'!K130 -> 2040 | AL18: ='Input Data'!K131 -> 2041 | AM18: ='Input Data'!K132 -> 2042
B19: UK£ (million) | F19: Year -3 | G19: Year -2 | H19: Year -1 | I19: ='Input Data'!J102 -> Year 1 | J19: ='Input Data'!J103 -> Year 2 | K19: ='Input Data'!J104 -> Year 3 | L19: ='Input Data'!J105 -> Year 4 | M19: ='Input Data'!J106 -> Year 5 | N19: ='Input Data'!J107 -> Year 6 | O19: ='Input Data'!J108 -> Year 7 | P19: ='Input Data'!J109 -> Year 8 | Q19: ='Input Data'!J110 -> Year 9 | R19: ='Input Data'!J111 -> Year 10 | S19: ='Input Data'!J112 -> Year 11 | T19: ='Input Data'!J113 -> Year 12 | U19: ='Input Data'!J114 -> Year 13 | V19: ='Input Data'!J115 -> Year 14 | W19: ='Input Data'!J116 -> Year 15 | X19: ='Input Data'!J117 -> Year 16 | Y19: ='Input Data'!J118 -> Year 17 | Z19: ='Input Data'!J119 -> Year 18 | AA19: ='Input Data'!J120 -> Year 19 | AB19: ='Input Data'!J121 -> Year 20 | AC19: ='Input Data'!J122 -> Year 21 | AD19: ='Input Data'!J123 -> Year 22 | AE19: ='Input Data'!J124 -> Year 23 | AF19: ='Input Data'!J125 -> Year 24 | AG19: ='Input Data'!J126 -> Year 25 | AH19: ='Input Data'!J127 -> Year 26 | AI19: ='Input Data'!J128 -> Year 27 | AJ19: ='Input Data'!J129 -> Year 28 | AK19: ='Input Data'!J130 -> Year 29 | AL19: ='Input Data'!J131 -> Year 30 | AM19: ='Input Data'!J132 -> Year 31
B22: Load factor - Hydrogen Production | I22: ='Input Data'!L102 -> 1 | J22: ='Input Data'!L103 -> 1 | K22: ='Input Data'!L104 -> 1 | L22: ='Input Data'!L105 -> 1 | M22: ='Input Data'!L106 -> 1 | N22: ='Input Data'!L107 -> 1 | O22: ='Input Data'!L108 -> 1 | P22: ='Input Data'!L109 -> 1 | Q22: ='Input Data'!L110 -> 1 | R22: ='Input Data'!L111 -> 1 | S22: ='Input Data'!L112 -> 1 | T22: ='Input Data'!L113 -> 1 | U22: ='Input Data'!L114 -> 1 | V22: ='Input Data'!L115 -> 1 | W22: ='Input Data'!L116 -> 1 | X22: ='Input Data'!L117 -> 1 | Y22: ='Input Data'!L118 -> 1 | Z22: ='Input Data'!L119 -> 1 | AA22: ='Input Data'!L120 -> 1 | AB22: ='Input Data'!L121 -> 1 | AC22: =IF('Input Data'!N89>20,'Input Data'!L122,"") -> 1 | AD22: =IF(AD19="Year 22",'Input Data'!L123,"") -> 1 | AE22: =IF(AE19="Year 23",'Input Data'!L124,"") -> 1 | AF22: =IF(AF19="Year 24",'Input Data'!L125,"") -> 1 | AG22: =IF(AG19="Year 25",'Input Data'!L126,"") -> 1 | AH22: =IF('Input Data'!N89>25,'Input Data'!L127,"") -> 1 | AI22: =IF(AI19="Year 27",'Input Data'!L128,"") -> 1 | AJ22: =IF(AJ19="Year 28",'Input Data'!L129,"") -> 1 | AK22: =IF(AK19="Year 29",'Input Data'!L130,"") -> 1 | AL22: =IF(AL19="Year 30",'Input Data'!L131,"") -> 1 | AM22: =IF('Input Data'!N89>30,'Input Data'!L132,"") -> 
B23: Load factor - Power Island | I23: ='Input Data'!M102 -> 1 | J23: ='Input Data'!M103 -> 1 | K23: ='Input Data'!M104 -> 1 | L23: ='Input Data'!M105 -> 1 | M23: ='Input Data'!M106 -> 1 | N23: ='Input Data'!M107 -> 1 | O23: ='Input Data'!M108 -> 1 | P23: ='Input Data'!M109 -> 1 | Q23: ='Input Data'!M110 -> 1 | R23: ='Input Data'!M111 -> 1 | S23: ='Input Data'!M112 -> 1 | T23: ='Input Data'!M113 -> 1 | U23: ='Input Data'!M114 -> 1 | V23: ='Input Data'!M115 -> 1 | W23: ='Input Data'!M116 -> 1 | X23: ='Input Data'!M117 -> 1 | Y23: ='Input Data'!M118 -> 1 | Z23: ='Input Data'!M119 -> 1 | AA23: ='Input Data'!M120 -> 1 | AB23: ='Input Data'!M121 -> 1 | AC23: =IF('Input Data'!N89>20,'Input Data'!M122,"") -> 1 | AD23: =IF(AD19="Year 22",'Input Data'!M123,"") -> 1 | AE23: =IF(AE19="Year 23",'Input Data'!M124,"") -> 1 | AF23: =IF(AF19="Year 24",'Input Data'!M125,"") -> 1 | AG23: =IF(AG19="Year 25",'Input Data'!M126,"") -> 1 | AH23: =IF('Input Data'!N89>25,'Input Data'!M127,"") -> 1 | AI23: =IF(AI19="Year 27",'Input Data'!M128,"") -> 1 | AJ23: =IF(AJ19="Year 28",'Input Data'!M129,"") -> 1 | AK23: =IF(AK19="Year 29",'Input Data'!M130,"") -> 1 | AL23: =IF(AL19="Year 30",'Input Data'!M131,"") -> 1 | AM23: =IF('Input Data'!N89>30,'Input Data'!M132,"") -> 
B24: Availability - Hydrogen Production | I24: ='Input Data'!N102 -> 0.65 | J24: ='Input Data'!N103 -> 0.75 | K24: ='Input Data'!N104 -> 0.85 | L24: ='Input Data'!N105 -> 0.85 | M24: ='Input Data'!N106 -> 0.85 | N24: ='Input Data'!N107 -> 0.85 | O24: ='Input Data'!N108 -> 0.85 | P24: ='Input Data'!N109 -> 0.85 | Q24: ='Input Data'!N110 -> 0.85 | R24: ='Input Data'!N111 -> 0.85 | S24: ='Input Data'!N112 -> 0.85 | T24: ='Input Data'!N113 -> 0.85 | U24: ='Input Data'!N114 -> 0.85 | V24: ='Input Data'!N115 -> 0.85 | W24: ='Input Data'!N116 -> 0.85 | X24: ='Input Data'!N117 -> 0.85 | Y24: ='Input Data'!N118 -> 0.85 | Z24: ='Input Data'!N119 -> 0.85 | AA24: ='Input Data'!N120 -> 0.85 | AB24: ='Input Data'!N121 -> 0.85 | AC24: =IF('Input Data'!N89>20,'Input Data'!N122,"") -> 0.85 | AD24: =IF(AD19="Year 22",'Input Data'!N123,"") -> 0.85 | AE24: =IF(AE19="Year 23",'Input Data'!N124,"") -> 0.85 | AF24: =IF(AF19="Year 24",'Input Data'!N125,"") -> 0.85 | AG24: =IF(AG19="Year 25",'Input Data'!N126,"") -> 0.85 | AH24: =IF('Input Data'!N89>25,'Input Data'!N127,"") -> 0.85 | AI24: =IF(AI19="Year 27",'Input Data'!N128,"") -> 0.85 | AJ24: =IF(AJ19="Year 28",'Input Data'!N129,"") -> 0.85 | AK24: =IF(AK19="Year 29",'Input Data'!N130,"") -> 0.85 | AL24: =IF(AL19="Year 30",'Input Data'!N131,"") -> 0.85 | AM24: =IF('Input Data'!N89>30,'Input Data'!N132,"") -> 
B25: Availability - Power Island | I25: ='Input Data'!O102 -> 0.65 | J25: ='Input Data'!O103 -> 0.75 | K25: ='Input Data'!O104 -> 0.85 | L25: ='Input Data'!O105 -> 0.85 | M25: ='Input Data'!O106 -> 0.85 | N25: ='Input Data'!O107 -> 0.85 | O25: ='Input Data'!O108 -> 0.85 | P25: ='Input Data'!O109 -> 0.85 | Q25: ='Input Data'!O110 -> 0.85 | R25: ='Input Data'!O111 -> 0.85 | S25: ='Input Data'!O112 -> 0.85 | T25: ='Input Data'!O113 -> 0.85 | U25: ='Input Data'!O114 -> 0.85 | V25: ='Input Data'!O115 -> 0.85 | W25: ='Input Data'!O116 -> 0.85 | X25: ='Input Data'!O117 -> 0.85 | Y25: ='Input Data'!O118 -> 0.85 | Z25: ='Input Data'!O119 -> 0.85 | AA25: ='Input Data'!O120 -> 0.85 | AB25: ='Input Data'!O121 -> 0.85 | AC25: =IF('Input Data'!N89>20,'Input Data'!O122,"") -> 0.85 | AD25: =IF(AD19="Year 22",'Input Data'!O123,"") -> 0.85 | AE25: =IF(AE19="Year 23",'Input Data'!O124,"") -> 0.85 | AF25: =IF(AF19="Year 24",'Input Data'!O125,"") -> 0.85 | AG25: =IF(AG19="Year 25",'Input Data'!O126,"") -> 0.85 | AH25: =IF('Input Data'!N89>25,'Input Data'!O127,"") -> 0.85 | AI25: =IF(AI19="Year 27",'Input Data'!O128,"") -> 0.85 | AJ25: =IF(AJ19="Year 28",'Input Data'!O129,"") -> 0.85 | AK25: =IF(AK19="Year 29",'Input Data'!O130,"") -> 0.85 | AL25: =IF(AL19="Year 30",'Input Data'!O131,"") -> 0.85 | AM25: =IF('Input Data'!N89>30,'Input Data'!O132,"") -> 
B26: Equivalent yearly hours - Hydrogen Production | I26: =I22*8760*I24 -> 5694 | J26: 6570 | K26: 7446 | L26: 7446 | M26: 7446 | N26: 7446 | O26: 7446 | P26: 7446 | Q26: 7446 | R26: 7446 | S26: 7446 | T26: 7446 | U26: 7446 | V26: 7446 | W26: 7446 | X26: 7446 | Y26: 7446 | Z26: 7446 | AA26: 7446 | AB26: 7446 | AC26: =IF('Input Data'!N89>20,AC22*8760*AC24,"") -> 7446 | AD26: =IF(AD19="Year 22",AD22*8760*AD24,"") -> 7446 | AE26: =IF(AE19="Year 23",AE22*8760*AE24,"") -> 7446 | AF26: =IF(AF19="Year 24",AF22*8760*AF24,"") -> 7446 | AG26: =IF(AG19="Year 25",AG22*8760*AG24,"") -> 7446 | AH26: =IF('Input Data'!N89>25,AH22*8760*AH24,"") -> 7446 | AI26: =IF(AI19="Year 27",AI22*8760*AI24,"") -> 7446 | AJ26: =IF(AJ19="Year 28",AJ22*8760*AJ24,"") -> 7446 | AK26: =IF(AK19="Year 29",AK22*8760*AK24,"") -> 7446 | AL26: =IF(AL19="Year 30",AL22*8760*AL24,"") -> 7446 | AM26: =IF('Input Data'!N89>30,AM22*8760*AM24,"") -> 
B27: Equivalent yearly hours - Power Island | I27: =I23*8760*I25 -> 5694 | J27: 6570 | K27: 7446 | L27: 7446 | M27: 7446 | N27: 7446 | O27: 7446 | P27: 7446 | Q27: 7446 | R27: 7446 | S27: 7446 | T27: 7446 | U27: 7446 | V27: 7446 | W27: 7446 | X27: 7446 | Y27: 7446 | Z27: 7446 | AA27: 7446 | AB27: 7446 | AC27: =IF('Input Data'!N89>20,AC23*8760*AC25,"") -> 7446 | AD27: =IF(AD19="Year 22",AD23*8760*AD25,"") -> 7446 | AE27: =IF(AE19="Year 23",AE23*8760*AE25,"") -> 7446 | AF27: =IF(AF19="Year 24",AF23*8760*AF25,"") -> 7446 | AG27: =IF(AG19="Year 25",AG23*8760*AG25,"") -> 7446 | AH27: =IF('Input Data'!N89>25,AH23*8760*AH25,"") -> 7446 | AI27: =IF(AI19="Year 27",AI23*8760*AI25,"") -> 7446 | AJ27: =IF(AJ19="Year 28",AJ23*8760*AJ25,"") -> 7446 | AK27: =IF(AK19="Year 29",AK23*8760*AK25,"") -> 7446 | AL27: =IF(AL19="Year 30",AL23*8760*AL25,"") -> 7446 | AM27: =IF('Input Data'!N89>30,AM23*8760*AM25,"") -> 
B28: Hydrogen Exported | E28: tpa | I28: =IF(((I26-I27)*'Input Data'!$N$38>0),(I26-I27)*'Input Data'!$N$38,0) -> 0 | J28: =IF(((J26-J27)*'Input Data'!$N$38>0),(J26-J27)*'Input Data'!$N$38,0) -> 0 | K28: =IF(((K26-K27)*'Input Data'!$N$38>0),(K26-K27)*'Input Data'!$N$38,0) -> 0 | L28: =IF(((L26-L27)*'Input Data'!$N$38>0),(L26-L27)*'Input Data'!$N$38,0) -> 0 | M28: =IF(((M26-M27)*'Input Data'!$N$38>0),(M26-M27)*'Input Data'!$N$38,0) -> 0 | N28: =IF(((N26-N27)*'Input Data'!$N$38>0),(N26-N27)*'Input Data'!$N$38,0) -> 0 | O28: =IF(((O26-O27)*'Input Data'!$N$38>0),(O26-O27)*'Input Data'!$N$38,0) -> 0 | P28: =IF(((P26-P27)*'Input Data'!$N$38>0),(P26-P27)*'Input Data'!$N$38,0) -> 0 | Q28: =IF(((Q26-Q27)*'Input Data'!$N$38>0),(Q26-Q27)*'Input Data'!$N$38,0) -> 0 | R28: =IF(((R26-R27)*'Input Data'!$N$38>0),(R26-R27)*'Input Data'!$N$38,0) -> 0 | S28: =IF(((S26-S27)*'Input Data'!$N$38>0),(S26-S27)*'Input Data'!$N$38,0) -> 0 | T28: =IF(((T26-T27)*'Input Data'!$N$38>0),(T26-T27)*'Input Data'!$N$38,0) -> 0 | U28: =IF(((U26-U27)*'Input Data'!$N$38>0),(U26-U27)*'Input Data'!$N$38,0) -> 0 | V28: =IF(((V26-V27)*'Input Data'!$N$38>0),(V26-V27)*'Input Data'!$N$38,0) -> 0 | W28: =IF(((W26-W27)*'Input Data'!$N$38>0),(W26-W27)*'Input Data'!$N$38,0) -> 0 | X28: =IF(((X26-X27)*'Input Data'!$N$38>0),(X26-X27)*'Input Data'!$N$38,0) -> 0 | Y28: =IF(((Y26-Y27)*'Input Data'!$N$38>0),(Y26-Y27)*'Input Data'!$N$38,0) -> 0 | Z28: =IF(((Z26-Z27)*'Input Data'!$N$38>0),(Z26-Z27)*'Input Data'!$N$38,0) -> 0 | AA28: =IF(((AA26-AA27)*'Input Data'!$N$38>0),(AA26-AA27)*'Input Data'!$N$38,0) -> 0 | AB28: =IF(((AB26-AB27)*'Input Data'!$N$38>0),(AB26-AB27)*'Input Data'!$N$38,0) -> 0 | AC28: =IF('Input Data'!$N$89>20,IF(((AC26-AC27)*'Input Data'!$N$38>0),(AC26-AC27)*'Input Data'!$N$38,0),"") -> 0 | AD28: =IF('Input Data'!$N$89>20,IF(((AD26-AD27)*'Input Data'!$N$38>0),(AD26-AD27)*'Input Data'!$N$38,0),"") -> 0 | AE28: =IF('Input Data'!$N$89>20,IF(((AE26-AE27)*'Input Data'!$N$38>0),(AE26-AE27)*'Input Data'!$N$38,0),"") -> 0 | AF28: =IF('Input Data'!$N$89>20,IF(((AF26-AF27)*'Input Data'!$N$38>0),(AF26-AF27)*'Input Data'!$N$38,0),"") -> 0 | AG28: =IF('Input Data'!$N$89>20,IF(((AG26-AG27)*'Input Data'!$N$38>0),(AG26-AG27)*'Input Data'!$N$38,0),"") -> 0 | AH28: =IF('Input Data'!$N$89>25,IF(((AH26-AH27)*'Input Data'!$N$38>0),(AH26-AH27)*'Input Data'!$N$38,0),"") -> 0 | AI28: =IF('Input Data'!$N$89>25,IF(((AI26-AI27)*'Input Data'!$N$38>0),(AI26-AI27)*'Input Data'!$N$38,0),"") -> 0 | AJ28: =IF('Input Data'!$N$89>25,IF(((AJ26-AJ27)*'Input Data'!$N$38>0),(AJ26-AJ27)*'Input Data'!$N$38,0),"") -> 0 | AK28: =IF('Input Data'!$N$89>25,IF(((AK26-AK27)*'Input Data'!$N$38>0),(AK26-AK27)*'Input Data'!$N$38,0),"") -> 0 | AL28: =IF('Input Data'!$N$89>25,IF(((AL26-AL27)*'Input Data'!$N$38>0),(AL26-AL27)*'Input Data'!$N$38,0),"") -> 0 | AM28: =IF('Input Data'!$N$89>30,IF(((AM26-AM27)*'Input Data'!$N$38>0),(AM26-AM27)*'Input Data'!$N$38,0),"") -> 
B29: Expenditure factor | F29: ='Input Data'!N96 -> 0.25 | G29: ='Input Data'!N97 -> 0.45 | H29: ='Input Data'!N98 -> 0.3
B30: Revenues
B31: Electricity | I31: =$E$6*I27*$R$5/1000 -> 252.7458609 | J31: =$E$6*J27*$R$5/1000 -> 291.6298395 | K31: 330.5138181 | L31: 330.5138181 | M31: 330.5138181 | N31: 330.5138181 | O31: 330.5138181 | P31: 330.5138181 | Q31: 330.5138181 | R31: 330.5138181 | S31: 330.5138181 | T31: 330.5138181 | U31: 330.5138181 | V31: 330.5138181 | W31: 330.5138181 | X31: 330.5138181 | Y31: 330.5138181 | Z31: 330.5138181 | AA31: 330.5138181 | AB31: 330.5138181 | AC31: =IF('Input Data'!N89>20,$E$6*AC27*$R$5/1000,"") -> 330.5138181 | AD31: =IF(AD19="Year 22",$E$6*AD27*$R$5/1000,"") -> 330.5138181 | AE31: =IF(AE19="Year 23",$E$6*AE27*$R$5/1000,"") -> 330.5138181 | AF31: =IF(AF19="Year 24",$E$6*AF27*$R$5/1000,"") -> 330.5138181 | AG31: =IF(AG19="Year 25",$E$6*AG27*$R$5/1000,"") -> 330.5138181 | AH31: =IF('Input Data'!N89>25,$E$6*AH27*$R$5/1000,"") -> 330.5138181 | AI31: =IF(AI19="Year 27",$E$6*AI27*$R$5/1000,"") -> 330.5138181 | AJ31: =IF(AJ19="Year 28",$E$6*AJ27*$R$5/1000,"") -> 330.5138181 | AK31: =IF(AK19="Year 29",$E$6*AK27*$R$5/1000,"") -> 330.5138181 | AL31: =IF(AL19="Year 30",$E$6*AL27*$R$5/1000,"") -> 330.5138181 | AM31: =IF('Input Data'!N89>30,$E$6*AM27*$R$5/1000,"") -> 
B32: Sulphur | I32: =$E$7*I26*$R$6/1000000 -> 0.444132 | J32: 0.51246 | K32: 0.580788 | L32: 0.580788 | M32: 0.580788 | N32: 0.580788 | O32: 0.580788 | P32: 0.580788 | Q32: 0.580788 | R32: 0.580788 | S32: 0.580788 | T32: 0.580788 | U32: 0.580788 | V32: 0.580788 | W32: 0.580788 | X32: 0.580788 | Y32: 0.580788 | Z32: 0.580788 | AA32: 0.580788 | AB32: 0.580788 | AC32: =IF('Input Data'!N89>20,$E$7*AC26*$R$6/1000000,"") -> 0.580788 | AD32: =IF(AD19="Year 22",$E$7*AD26*$R$6/1000000,"") -> 0.580788 | AE32: =IF(AE19="Year 23",$E$7*AE26*$R$6/1000000,"") -> 0.580788 | AF32: =IF(AF19="Year 24",$E$7*AF26*$R$6/1000000,"") -> 0.580788 | AG32: =IF(AG19="Year 25",$E$7*AG26*$R$6/1000000,"") -> 0.580788 | AH32: =IF('Input Data'!N89>25,$E$7*AH26*$R$6/1000000,"") -> 0.580788 | AI32: =IF(AI19="Year 27",$E$7*AI26*$R$6/1000000,"") -> 0.580788 | AJ32: =IF(AJ19="Year 28",$E$7*AJ26*$R$6/1000000,"") -> 0.580788 | AK32: =IF(AK19="Year 29",$E$7*AK26*$R$6/1000000,"") -> 0.580788 | AL32: =IF(AL19="Year 30",$E$7*AL26*$R$6/1000000,"") -> 0.580788 | AM32: =IF('Input Data'!N89>30,$E$7*AM26*$R$6/1000000,"") -> 
B33: Hydrogen | I33: =IF(((I26-I27)*R7*'Input Data'!N38/1000000>0),(I26-I27)*R7*'Input Data'!N38/1000000,0) -> 0 | J33: =IF(((J26-J27)*R7*'Input Data'!N38/1000000>0),(J26-J27)*R7*'Input Data'!N38/1000000,0) -> 0 | K33: =IF(((K26-K27)*R7*'Input Data'!N38/1000000>0),(K26-K27)*R7*'Input Data'!N38/1000000,0) -> 0 | L33: =IF(((L26-L27)*R7*'Input Data'!N38/1000000>0),(L26-L27)*R7*'Input Data'!N38/1000000,0) -> 0 | M33: =IF(((M26-M27)*R7*'Input Data'!N38/1000000>0),(M26-M27)*R7*'Input Data'!N38/1000000,0) -> 0 | N33: =IF(((N26-N27)*R7*'Input Data'!N38/1000000>0),(N26-N27)*R7*'Input Data'!N38/1000000,0) -> 0 | O33: =IF(((O26-O27)*R7*'Input Data'!N38/1000000>0),(O26-O27)*R7*'Input Data'!N38/1000000,0) -> 0 | P33: =IF(((P26-P27)*R7*'Input Data'!N38/1000000>0),(P26-P27)*R7*'Input Data'!N38/1000000,0) -> 0 | Q33: =IF(((Q26-Q27)*R7*'Input Data'!N38/1000000>0),(Q26-Q27)*R7*'Input Data'!N38/1000000,0) -> 0 | R33: =IF(((R26-R27)*R7*'Input Data'!N38/1000000>0),(R26-R27)*R7*'Input Data'!N38/1000000,0) -> 0 | S33: =IF(((S26-S27)*R7*'Input Data'!N38/1000000>0),(S26-S27)*R7*'Input Data'!N38/1000000,0) -> 0 | T33: =IF(((T26-T27)*R7*'Input Data'!N38/1000000>0),(T26-T27)*R7*'Input Data'!N38/1000000,0) -> 0 | U33: =IF(((U26-U27)*R7*'Input Data'!N38/1000000>0),(U26-U27)*R7*'Input Data'!N38/1000000,0) -> 0 | V33: =IF(((V26-V27)*R7*'Input Data'!N38/1000000>0),(V26-V27)*R7*'Input Data'!N38/1000000,0) -> 0 | W33: =IF(((W26-W27)*R7*'Input Data'!N38/1000000>0),(W26-W27)*R7*'Input Data'!N38/1000000,0) -> 0 | X33: =IF(((X26-X27)*R7*'Input Data'!N38/1000000>0),(X26-X27)*R7*'Input Data'!N38/1000000,0) -> 0 | Y33: =IF(((Y26-Y27)*R7*'Input Data'!N38/1000000>0),(Y26-Y27)*R7*'Input Data'!N38/1000000,0) -> 0 | Z33: =IF(((Z26-Z27)*R7*'Input Data'!N38/1000000>0),(Z26-Z27)*R7*'Input Data'!N38/1000000,0) -> 0 | AA33: =IF(((AA26-AA27)*R7*'Input Data'!N38/1000000>0),(AA26-AA27)*R7*'Input Data'!N38/1000000,0) -> 0 | AB33: =IF(AB19="Year 20",IF(((AB26-AB27)*R7*'Input Data'!N38/1000000>0),(AB26-AB27)*R7*'Input Data'!N38/1000000,0),"") -> 0 | AC33: =IF('Input Data'!N89>20,IF(((AC26-AC27)*R7*'Input Data'!N38/1000000>0),(AC26-AC27)*R7*'Input Data'!N38/1000000,0),"") -> 0 | AD33: =IF(AD19="Year 22",IF(((AD26-AD27)*R7*'Input Data'!N38/1000000>0),(AD26-AD27)*R7*'Input Data'!N38/1000000,0),"") -> 0 | AE33: =IF(AE19="Year 23",IF(((AE26-AE27)*R7*'Input Data'!N38/1000000>0),(AE26-AE27)*R7*'Input Data'!N38/1000000,0),"") -> 0 | AF33: =IF(AF19="Year 24",IF(((AF26-AF27)*R7*'Input Data'!N38/1000000>0),(AF26-AF27)*R7*'Input Data'!N38/1000000,0),"") -> 0 | AG33: =IF(AG19="Year 25",IF(((AG26-AG27)*R7*'Input Data'!N38/1000000>0),(AG26-AG27)*R7*'Input Data'!N38/1000000,0),"") -> 0 | AH33: =IF('Input Data'!N89>25,IF(((AH26-AH27)*R7*'Input Data'!N38/1000000>0),(AH26-AH27)*R7*'Input Data'!N38/1000000,0),"") -> 0 | AI33: =IF(AI19="Year 27",IF(((AI26-AI27)*R7*'Input Data'!N38/1000000>0),(AI26-AI27)*R7*'Input Data'!N38/1000000,0),"") -> 0 | AJ33: =IF(AJ19="Year 28",IF(((AJ26-AJ27)*R7*'Input Data'!N38/1000000>0),(AJ26-AJ27)*R7*'Input Data'!N38/1000000,0),"") -> 0 | AK33: =IF(AK19="Year 29",IF(((AK26-AK27)*R7*'Input Data'!N38/1000000>0),(AK26-AK27)*R7*'Input Data'!N38/1000000,0),"") -> 0 | AL33: =IF(AL19="Year 30",IF(((AL26-AL27)*R7*'Input Data'!N38/1000000>0),(AL26-AL27)*R7*'Input Data'!N38/1000000,0),"") -> 0 | AM33: =IF('Input Data'!N89>30,IF(((AM26-AM27)*R7*'Input Data'!N38/1000000>0),(AM26-AM27)*R7*'Input Data'!N38/1000000,0),"") -> 
B34: Operating costs
B35: Fuel (Coal) | I35: =$M$5*$E$5*I26/1000000 -> 85.41830375 | J35: =$M$5*$E$5*J26/1000000 -> 98.55958125 | K35: =$M$5*$E$5*K26/1000000 -> 111.7008587 | L35: 111.7008587 | M35: 111.7008587 | N35: 111.7008587 | O35: 111.7008587 | P35: 111.7008587 | Q35: 111.7008587 | R35: 111.7008587 | S35: 111.7008587 | T35: 111.7008587 | U35: 111.7008587 | V35: 111.7008587 | W35: 111.7008587 | X35: 111.7008587 | Y35: 111.7008587 | Z35: 111.7008587 | AA35: 111.7008587 | AB35: 111.7008587 | AC35: =IF('Input Data'!N89>20,$M$5*$E$5*AC26/1000000,"") -> 111.7008587 | AD35: =IF(AD19="Year 22",$M$5*$E$5*AD26/1000000,"") -> 111.7008587 | AE35: =IF(AE19="Year 23",$M$5*$E$5*AE26/1000000,"") -> 111.7008587 | AF35: =IF(AF19="Year 24",$M$5*$E$5*AF26/1000000,"") -> 111.7008587 | AG35: =IF(AG19="Year 25",$M$5*$E$5*AG26/1000000,"") -> 111.7008587 | AH35: =IF('Input Data'!N89>25,$M$5*$E$5*AH26/1000000,"") -> 111.7008587 | AI35: =IF(AI19="Year 27",$M$5*$E$5*AI26/1000000,"") -> 111.7008587 | AJ35: =IF(AJ19="Year 28",$M$5*$E$5*AJ26/1000000,"") -> 111.7008587 | AK35: =IF(AK19="Year 29",$M$5*$E$5*AK26/1000000,"") -> 111.7008587 | AL35: =IF(AL19="Year 30",$M$5*$E$5*AL26/1000000,"") -> 111.7008587 | AM35: =IF('Input Data'!N89>30,$M$5*$E$5*AM26/1000000,"") -> 
B36: Maintenance | I36: =$M$6 -> 34.22 | J36: 34.22 | K36: 34.22 | L36: 34.22 | M36: 34.22 | N36: 34.22 | O36: 34.22 | P36: 34.22 | Q36: 34.22 | R36: 34.22 | S36: 34.22 | T36: 34.22 | U36: 34.22 | V36: 34.22 | W36: 34.22 | X36: 34.22 | Y36: 34.22 | Z36: 34.22 | AA36: 34.22 | AB36: 34.22 | AC36: =IF('Input Data'!N89>20,$M$6,"") -> 34.22 | AD36: =IF(AD19="Year 22",$M$6,"") -> 34.22 | AE36: =IF(AE19="Year 23",$M$6,"") -> 34.22 | AF36: =IF(AF19="Year 24",$M$6,"") -> 34.22 | AG36: =IF(AG19="Year 25",$M$6,"") -> 34.22 | AH36: =IF('Input Data'!N89>25,$M$6,"") -> 34.22 | AI36: =IF(AI19="Year 27",$M$6,"") -> 34.22 | AJ36: =IF(AJ19="Year 28",$M$6,"") -> 34.22 | AK36: =IF(AK19="Year 29",$M$6,"") -> 34.22 | AL36: =IF(AL19="Year 30",$M$6,"") -> 34.22 | AM36: =IF('Input Data'!N89>30,$M$6,"") -> 
B37: Labour | I37: =$N$12 -> 7.475 | J37: 7.475 | K37: 7.475 | L37: 7.475 | M37: 7.475 | N37: 7.475 | O37: 7.475 | P37: 7.475 | Q37: 7.475 | R37: 7.475 | S37: 7.475 | T37: 7.475 | U37: 7.475 | V37: 7.475 | W37: 7.475 | X37: 7.475 | Y37: 7.475 | Z37: 7.475 | AA37: 7.475 | AB37: 7.475 | AC37: =IF('Input Data'!N89>20,$N$12,"") -> 7.475 | AD37: =IF(AD19="Year 22",$N$12,"") -> 7.475 | AE37: =IF(AE19="Year 23",$N$12,"") -> 7.475 | AF37: =IF(AF19="Year 24",$N$12,"") -> 7.475 | AG37: =IF(AG19="Year 25",$N$12,"") -> 7.475 | AH37: =IF('Input Data'!N89>25,$N$12,"") -> 7.475 | AI37: =IF(AI19="Year 27",$N$12,"") -> 7.475 | AJ37: =IF(AJ19="Year 28",$N$12,"") -> 7.475 | AK37: =IF(AK19="Year 29",$N$12,"") -> 7.475 | AL37: =IF(AL19="Year 30",$N$12,"") -> 7.475 | AM37: =IF('Input Data'!N89>30,$N$12,"") -> 
B38: Chemicals and Consumables | I38: =I22*'Input Data'!$N$74*I24/0.85 -> 1.896470588 | J38: =J22*'Input Data'!$N$74*J24/0.85 -> 2.188235294 | K38: =K22*'Input Data'!$N$74*K24/0.85 -> 2.48 | L38: =L22*'Input Data'!$N$74*L24/0.85 -> 2.48 | M38: =M22*'Input Data'!$N$74*M24/0.85 -> 2.48 | N38: =N22*'Input Data'!$N$74*N24/0.85 -> 2.48 | O38: =O22*'Input Data'!$N$74*O24/0.85 -> 2.48 | P38: =P22*'Input Data'!$N$74*P24/0.85 -> 2.48 | Q38: =Q22*'Input Data'!$N$74*Q24/0.85 -> 2.48 | R38: =R22*'Input Data'!$N$74*R24/0.85 -> 2.48 | S38: =S22*'Input Data'!$N$74*S24/0.85 -> 2.48 | T38: =T22*'Input Data'!$N$74*T24/0.85 -> 2.48 | U38: =U22*'Input Data'!$N$74*U24/0.85 -> 2.48 | V38: =V22*'Input Data'!$N$74*V24/0.85 -> 2.48 | W38: =W22*'Input Data'!$N$74*W24/0.85 -> 2.48 | X38: =X22*'Input Data'!$N$74*X24/0.85 -> 2.48 | Y38: =Y22*'Input Data'!$N$74*Y24/0.85 -> 2.48 | Z38: =Z22*'Input Data'!$N$74*Z24/0.85 -> 2.48 | AA38: =AA22*'Input Data'!$N$74*AA24/0.85 -> 2.48 | AB38: =IF(AB19="Year 20",AB22*AB24*'Input Data'!$N$74/0.85,"") -> 2.48 | AC38: =IF('Input Data'!N89>20,AC22*AC24*'Input Data'!$N$74/0.85,"") -> 2.48 | AD38: =IF(AD19="Year 22",AD22*AD24*'Input Data'!$N$74/0.85,"") -> 2.48 | AE38: =IF(AE19="Year 23",AE24*AE22*'Input Data'!$N$74/0.85,"") -> 2.48 | AF38: =IF(AF19="Year 24",AF22*AF24*'Input Data'!$N$74/0.85,"") -> 2.48 | AG38: =IF(AG19="Year 25",AG22*AG24*'Input Data'!$N$74/0.85,"") -> 2.48 | AH38: =IF('Input Data'!N89>25,AH22*AH24*'Input Data'!$N$74/0.85,"") -> 2.48 | AI38: =IF(AI19="Year 27",AI24*AI22*'Input Data'!$N$74/0.85,"") -> 2.48 | AJ38: =IF(AJ19="Year 28",AJ24*AJ22*'Input Data'!$N$74/0.85,"") -> 2.48 | AK38: =IF(AK19="Year 29",AK22*AK24*'Input Data'!$N$74/0.85,"") -> 2.48 | AL38: =IF(AL19="Year 30",AL22*AL24*'Input Data'!$N$74/0.85,"") -> 2.48 | AM38: =IF('Input Data'!N89>30,AM22*AM24*'Input Data'!$N$74/0.85,"") -> 
B39: Waste Disposal | I39: =I26*'Input Data'!$N$40*'Input Data'!$N$73/1000000 -> 1.2162384 | J39: =J26*'Input Data'!$N$40*'Input Data'!$N$73/1000000 -> 1.403352 | K39: =K26*'Input Data'!$N$40*'Input Data'!$N$73/1000000 -> 1.5904656 | L39: =L26*'Input Data'!$N$40*'Input Data'!$N$73/1000000 -> 1.5904656 | M39: =M26*'Input Data'!$N$40*'Input Data'!$N$73/1000000 -> 1.5904656 | N39: =N26*'Input Data'!$N$40*'Input Data'!$N$73/1000000 -> 1.5904656 | O39: =O26*'Input Data'!$N$40*'Input Data'!$N$73/1000000 -> 1.5904656 | P39: =P26*'Input Data'!$N$40*'Input Data'!$N$73/1000000 -> 1.5904656 | Q39: =Q26*'Input Data'!$N$40*'Input Data'!$N$73/1000000 -> 1.5904656 | R39: =R26*'Input Data'!$N$40*'Input Data'!$N$73/1000000 -> 1.5904656 | S39: =S26*'Input Data'!$N$40*'Input Data'!$N$73/1000000 -> 1.5904656 | T39: =T26*'Input Data'!$N$40*'Input Data'!$N$73/1000000 -> 1.5904656 | U39: =U26*'Input Data'!$N$40*'Input Data'!$N$73/1000000 -> 1.5904656 | V39: =V26*'Input Data'!$N$40*'Input Data'!$N$73/1000000 -> 1.5904656 | W39: =W26*'Input Data'!$N$40*'Input Data'!$N$73/1000000 -> 1.5904656 | X39: =X26*'Input Data'!$N$40*'Input Data'!$N$73/1000000 -> 1.5904656 | Y39: =Y26*'Input Data'!$N$40*'Input Data'!$N$73/1000000 -> 1.5904656 | Z39: =Z26*'Input Data'!$N$40*'Input Data'!$N$73/1000000 -> 1.5904656 | AA39: =AA26*'Input Data'!$N$40*'Input Data'!$N$73/1000000 -> 1.5904656 | AB39: =IF(AB19="Year 20",AB26*'Input Data'!$N$40*'Input Data'!$N$73/1000000,"") -> 1.5904656 | AC39: =IF('Input Data'!N89>20,AC26*'Input Data'!$N$40*'Input Data'!$N$73/1000000,"") -> 1.5904656 | AD39: =IF(AD19="Year 22",AD26*'Input Data'!$N$40*'Input Data'!$N$73/1000000,"") -> 1.5904656 | AE39: =IF(AE19="Year 23",AE26*'Input Data'!$N$40*'Input Data'!$N$73/1000000,"") -> 1.5904656 | AF39: =IF(AF19="Year 24",AF26*'Input Data'!$N$40*'Input Data'!$N$73/1000000,"") -> 1.5904656 | AG39: =IF(AG19="Year 25",AG26*'Input Data'!$N$40*'Input Data'!$N$73/1000000,"") -> 1.5904656 | AH39: =IF('Input Data'!N89>25,AH26*'Input Data'!$N$40*'Input Data'!$N$73/1000000,"") -> 1.5904656 | AI39: =IF(AI19="Year 27",AI26*'Input Data'!$N$40*'Input Data'!$N$73/1000000,"") -> 1.5904656 | AJ39: =IF(AJ19="Year 28",AJ26*'Input Data'!$N$40*'Input Data'!$N$73/1000000,"") -> 1.5904656 | AK39: =IF(AK19="Year 29",AK26*'Input Data'!$N$40*'Input Data'!$N$73/1000000,"") -> 1.5904656 | AL39: =IF(AL19="Year 30",AL26*'Input Data'!$N$40*'Input Data'!$N$73/1000000,"") -> 1.5904656 | AM39: =IF('Input Data'!N89>30,AM26*'Input Data'!$N$40*'Input Data'!$N$73/1000000,"") -> 
B40: Insurance + Local Taxes | I40: =I5*R10 -> 18.2 | J40: =I5*R10 -> 18.2 | K40: =I5*R10 -> 18.2 | L40: =I5*R10 -> 18.2 | M40: =I5*R10 -> 18.2 | N40: =I5*R10 -> 18.2 | O40: =I5*R10 -> 18.2 | P40: =I5*R10 -> 18.2 | Q40: =I5*R10 -> 18.2 | R40: =I5*R10 -> 18.2 | S40: =I5*R10 -> 18.2 | T40: =I5*R10 -> 18.2 | U40: =I5*R10 -> 18.2 | V40: =I5*R10 -> 18.2 | W40: =I5*R10 -> 18.2 | X40: =I5*R10 -> 18.2 | Y40: =I5*R10 -> 18.2 | Z40: =I5*R10 -> 18.2 | AA40: =I5*R10 -> 18.2 | AB40: =I5*R10 -> 18.2 | AC40: =IF('Input Data'!N89>20,I5*R10,"") -> 18.2 | AD40: =IF(AD19="Year 22",I5*R10,"") -> 18.2 | AE40: =IF(AE19="Year 23",I5*R10,"") -> 18.2 | AF40: =IF(AF19="Year 24",I5*R10,"") -> 18.2 | AG40: =IF(AG19="Year 25",I5*R10,"") -> 18.2 | AH40: =IF('Input Data'!N89>25,I5*R10,"") -> 18.2 | AI40: =IF(AI19="Year 27",I5*R10,"") -> 18.2 | AJ40: =IF(AJ19="Year 28",I5*R10,"") -> 18.2 | AK40: =IF(AK19="Year 29",I5*R10,"") -> 18.2 | AL40: =IF(AL19="Year 30",I5*R10,"") -> 18.2 | AM40: =IF('Input Data'!N89>30,I5*R10,"") -> 
B41: CO2 Emissions | I41: ='Input Data'!$N$33*'Input Data'!$N$77*I26/1000000 -> 0 | J41: ='Input Data'!$N$33*'Input Data'!$N$77*J26/1000000 -> 0 | K41: ='Input Data'!$N$33*'Input Data'!$N$77*K26/1000000 -> 0 | L41: ='Input Data'!$N$33*'Input Data'!$N$77*L26/1000000 -> 0 | M41: ='Input Data'!$N$33*'Input Data'!$N$77*M26/1000000 -> 0 | N41: ='Input Data'!$N$33*'Input Data'!$N$77*N26/1000000 -> 0 | O41: ='Input Data'!$N$33*'Input Data'!$N$77*O26/1000000 -> 0 | P41: ='Input Data'!$N$33*'Input Data'!$N$77*P26/1000000 -> 0 | Q41: ='Input Data'!$N$33*'Input Data'!$N$77*Q26/1000000 -> 0 | R41: ='Input Data'!$N$33*'Input Data'!$N$77*R26/1000000 -> 0 | S41: ='Input Data'!$N$33*'Input Data'!$N$77*S26/1000000 -> 0 | T41: ='Input Data'!$N$33*'Input Data'!$N$77*T26/1000000 -> 0 | U41: ='Input Data'!$N$33*'Input Data'!$N$77*U26/1000000 -> 0 | V41: ='Input Data'!$N$33*'Input Data'!$N$77*V26/1000000 -> 0 | W41: ='Input Data'!$N$33*'Input Data'!$N$77*W26/1000000 -> 0 | X41: ='Input Data'!$N$33*'Input Data'!$N$77*X26/1000000 -> 0 | Y41: ='Input Data'!$N$33*'Input Data'!$N$77*Y26/1000000 -> 0 | Z41: ='Input Data'!$N$33*'Input Data'!$N$77*Z26/1000000 -> 0 | AA41: ='Input Data'!$N$33*'Input Data'!$N$77*AA26/1000000 -> 0 | AB41: ='Input Data'!$N$33*'Input Data'!$N$77*AB26/1000000 -> 0 | AC41: =IF('Input Data'!N89>20,'Input Data'!$N$33*'Input Data'!$N$77*AC26/1000000,"") -> 0 | AD41: =IF(AD19="Year 22",'Input Data'!$N$33*'Input Data'!$N$77*AD26/1000000,"") -> 0 | AE41: =IF(AE19="Year 23",'Input Data'!$N$33*'Input Data'!$N$77*AE26/1000000,"") -> 0 | AF41: =IF(AF19="Year 24",'Input Data'!$N$33*'Input Data'!$N$77*AF26/1000000,"") -> 0 | AG41: =IF(AG19="Year 25",'Input Data'!$N$33*'Input Data'!$N$77*AG26/1000000,"") -> 0 | AH41: =IF('Input Data'!N89>25,'Input Data'!$N$33*'Input Data'!$N$77*AH26/1000000,"") -> 0 | AI41: =IF(AI19="Year 27",'Input Data'!$N$33*'Input Data'!$N$77*AI26/1000000,"") -> 0 | AJ41: =IF(AJ19="Year 28",'Input Data'!$N$33*'Input Data'!$N$77*AJ26/1000000,"") -> 0 | AK41: =IF(AK19="Year 29",'Input Data'!$N$33*'Input Data'!$N$77*AK26/1000000,"") -> 0 | AL41: =IF(AL19="Year 30",'Input Data'!$N$33*'Input Data'!$N$77*AL26/1000000,"") -> 0 | AM41: =IF('Input Data'!N89>30,'Input Data'!$N$33*'Input Data'!$N$77*AM26/1000000,"") -> 
B42: Fixed Capital Expenditure | F42: =I10*F29 -> 318.5 | G42: =I10*G29 -> 573.3 | H42: =H29*I10 -> 382.2
B44: Total Cash Flow (yearly) | F44: =SUM(F31:F33)-SUM(F35:F41)-F42 -> -318.5 | G44: -573.3 | H44: -382.2 | I44: 104.7639802 | J44: 130.096131 | K44: 155.4282817 | L44: 155.4282817 | M44: 155.4282817 | N44: 155.4282817 | O44: 155.4282817 | P44: 155.4282817 | Q44: 155.4282817 | R44: 155.4282817 | S44: 155.4282817 | T44: 155.4282817 | U44: 155.4282817 | V44: 155.4282817 | W44: 155.4282817 | X44: 155.4282817 | Y44: 155.4282817 | Z44: 155.4282817 | AA44: 155.4282817 | AB44: 155.4282817 | AC44: =IF(AC19="Year 21",SUM(AC31:AC33)-SUM(AC35:AC41)-AC42,"") -> 155.4282817 | AD44: =IF(AD19="Year 22",SUM(AD31:AD33)-SUM(AD35:AD41)-AD42,"") -> 155.4282817 | AE44: =IF(AE19="Year 23",SUM(AE31:AE33)-SUM(AE35:AE41)-AE42,"") -> 155.4282817 | AF44: =IF(AF19="Year 24",SUM(AF31:AF33)-SUM(AF35:AF41)-AF42,"") -> 155.4282817 | AG44: =IF(AG19="Year 25",SUM(AG31:AG33)-SUM(AG35:AG41)-AG42,"") -> 155.4282817 | AH44: =IF(AH19="Year 26",SUM(AH31:AH33)-SUM(AH35:AH41)-AH42,"") -> 155.4282817 | AI44: =IF(AI19="Year 27",SUM(AI31:AI33)-SUM(AI35:AI41)-AI42,"") -> 155.4282817 | AJ44: =IF(AJ19="Year 28",SUM(AJ31:AJ33)-SUM(AJ35:AJ41)-AJ42,"") -> 155.4282817 | AK44: =IF(AK19="Year 29",SUM(AK31:AK33)-SUM(AK35:AK41)-AK42,"") -> 155.4282817 | AL44: =IF(AL19="Year 30",SUM(AL31:AL33)-SUM(AL35:AL41)-AL42,"") -> 155.4282817 | AM44: =IF(AM19="Year 31",SUM(AM31:AM33)-SUM(AM35:AM41)-AM42,"") -> 0
B45: Total Cash Flow (accumulated) | F45: =F44 -> -318.5 | G45: =-1*(ABS(G44)+ABS(F45)) -> -891.8 | H45: =-1*(ABS(H44)+ABS(G45)) -> -1274 | I45: =H45+I44 -> -1169.23602 | J45: -1039.139889 | K45: -883.7116071 | L45: -728.2833254 | M45: -572.8550436 | N45: -417.4267619 | O45: -261.9984801 | P45: -106.5701984 | Q45: 48.85808336 | R45: 204.2863651 | S45: 359.7146469 | T45: 515.1429286 | U45: 670.5712104 | V45: 825.9994921 | W45: 981.4277739 | X45: 1136.856056 | Y45: 1292.284337 | Z45: 1447.712619 | AA45: 1603.140901 | AB45: 1758.569183 | AC45: =IF(AC19="Year 21",AB45+AC44,"") -> 1913.997464 | AD45: =IF(AD19="Year 22",AC45+AD44,"") -> 2069.425746 | AE45: =IF(AE19="Year 23",AD45+AE44,"") -> 2224.854028 | AF45: =IF(AF19="Year 24",AE45+AF44,"") -> 2380.28231 | AG45: =IF(AG19="Year 25",AF45+AG44,"") -> 2535.710591 | AH45: =IF(AH19="Year 26",AG45+AH44,"") -> 2691.138873 | AI45: =IF(AI19="Year 27",AH45+AI44,"") -> 2846.567155 | AJ45: =IF(AJ19="Year 28",AI45+AJ44,"") -> 3001.995437 | AK45: =IF(AK19="Year 29",AJ45+AK44,"") -> 3157.423718 | AL45: =IF(AL19="Year 30",AK45+AL44,"") -> 3312.852 | AM45: =IF(AM19="Year 31",AL45+AM44,"") -> 3312.852
B47: Discounted Cash Flow (yearly) | F47: =F45/(1+R9) -> -289.5454545 | G47: =G44/(1+R9)^2 -> -473.8016529 | H47: =H44/(1+R9)^3 -> -287.1525169 | I47: =I44/(1+R9)^4 -> 71.55520809 | J47: =J44/(1+R9)^5 -> 80.77946176 | K47: =K44/(1+R9)^6 -> 87.73521304 | L47: =L44/(1+R9)^7 -> 79.75928458 | M47: =M44/(1+R9)^8 -> 72.50844053 | N47: =N44/(1+R9)^9 -> 65.91676412 | O47: =O44/(1+R9)^10 -> 59.92433102 | P47: =P44/(1+R9)^11 -> 54.47666456 | Q47: =Q44/(1+R9)^12 -> 49.52424051 | R47: =R44/(1+R9)^13 -> 45.02203683 | S47: =S44/(1+R9)^14 -> 40.92912439 | T47: =T44/(1+R9)^15 -> 37.2082949 | U47: =U44/(1+R9)^16 -> 33.82572263 | V47: =V44/(1+R9)^17 -> 30.75065694 | W47: =W44/(1+R9)^18 -> 27.95514267 | X47: =X44/(1+R9)^19 -> 25.41376607 | Y47: =Y44/(1+R9)^20 -> 23.1034237 | Z47: =Z44/(1+R9)^21 -> 21.00311245 | AA47: =AA44/(1+R9)^22 -> 19.09373859 | AB47: =AB44/(1+R9)^23 -> 17.35794417 | AC47: =IF(AC19="Year 21",AC44/(1+R9)^24,"") -> 15.77994925 | AD47: =IF(AD19="Year 22",AD44/(1+R9)^25,"") -> 14.34540841 | AE47: =IF(AE19="Year 23",AE44/(1+R9)^26,"") -> 13.04128037 | AF47: =IF(AF19="Year 24",AF44/(1+R9)^27,"") -> 11.85570943 | AG47: =IF(AG19="Year 25",AG44/(1+R9)^28,"") -> 10.77791766 | AH47: =IF(AH19="Year 26",AH44/(1+R9)^29,"") -> 9.798106966 | AI47: =IF(AI19="Year 27",AI44/(1+R9)^30,"") -> 8.907369969 | AJ47: =IF(AJ19="Year 28",AJ44/(1+R9)^31,"") -> 8.097609063 | AK47: =IF(AK19="Year 29",AK44/(1+R9)^32,"") -> 7.361462784 | AL47: =IF(AL19="Year 30",AL44/(1+R9)^33,"") -> 6.692238895 | AM47: =IF(AM19="Year 31",AM44/(1+R9)^34,"") -> 0
B48: Discounted Cash Flow (accumulated) | F48: =F47 -> -289.5454545 | G48: =SUM(G47+F48) -> -763.3471074 | H48: -1050.499624 | I48: -978.9444163 | J48: -898.1649545 | K48: -810.4297415 | L48: -730.6704569 | M48: -658.1620163 | N48: -592.2452522 | O48: -532.3209212 | P48: -477.8442567 | Q48: -428.3200161 | R48: -383.2979793 | S48: -342.3688549 | T48: -305.16056 | U48: -271.3348374 | V48: -240.5841805 | W48: -212.6290378 | X48: -187.2152717 | Y48: -164.111848 | Z48: -143.1087356 | AA48: -124.014997 | AB48: -106.6570528 | AC48: =IF(AC19="Year 21",SUM(AC47+AB48),"") -> -90.87710355 | AD48: =IF(AD19="Year 22",SUM(AD47+AC48),"") -> -76.53169514 | AE48: =IF(AE19="Year 23",SUM(AE47+AD48),"") -> -63.49041477 | AF48: =IF(AF19="Year 24",SUM(AF47+AE48),"") -> -51.63470534 | AG48: =IF(AG19="Year 25",SUM(AG47+AF48),"") -> -40.85678768 | AH48: =IF(AH19="Year 26",SUM(AH47+AG48),"") -> -31.05868071 | AI48: =IF(AI19="Year 27",SUM(AI47+AH48),"") -> -22.15131074 | AJ48: =IF(AJ19="Year 28",SUM(AJ47+AI48),"") -> -14.05370168 | AK48: =IF(AK19="Year 29",SUM(AK47+AJ48),"") -> -6.692238895 | AL48: =IF(AL19="Year 30",SUM(AL47+AK48),"") -> -4.495959161e-12 | AM48: =IF(AM19="Year 31",SUM(AM47+AL48),"") -> -4.495959161e-12
AA50: Hidden acc cf | AC50: =SUM(AC47+AB48) -> -90.87710355 | AD50: =IF(AD47="",AC48,SUM(AD47+AC48)) -> -76.53169514 | AE50: =IF(AE47="",AD50,SUM(AE47+AD50)) -> -63.49041477 | AF50: =IF(AF47="",AE50,SUM(AF47+AE50)) -> -51.63470534 | AG50: =IF(AG47="",AF50,SUM(AG47+AF50)) -> -40.85678768 | AH50: -31.05868071 | AI50: -22.15131074 | AJ50: -14.05370168 | AK50: -6.692238895 | AL50: -4.495959161e-12 | AM50: -4.495959161e-12 | AN50: -4.495959161e-12

Sheet CCGT w 90% CC
B4: Production | G4: Capital Expenditure | I4: UK£ (million) | K4: Operating Costs | L4: UK£ (million/year) | P4: Revenues
B5: Nat Gas Feedrate | D5: te/h | E5: ='Input Data'!U27 -> 127.9166667 | G5: Installed cost | I5: ='Input Data'!U60 -> 731.4 | K5: Fuel Cost | M5: ='Input Data'!U76 -> 265 | N5: UK£/te | P5: Electricity Price | R5: 0.06956727155 | S5: UK£/kWh
B6: Net power ouput | D6: MW | E6: ='Input Data'!U23 -> 842.3 | G6: Land purchase, surveys | I6: ='Input Data'!U65 -> 0.05 | K6: Maintenance | M6: ='Input Data'!U72 -> 25.5 | N6: UK£/year
G7: Fees | I7: ='Input Data'!U66 -> 0.1 | K7: CO2 Emissions | M7: ='Input Data'!U77 -> 0 | N7: UK£/te
G8: Contingencies | I8: ='Input Data'!U64 -> 0.25 | K8: Labour Cost | N8: UK£/year (million)
K9: Number of operations personnel | N9: ='Input Data'!U78 -> 60 | P9: Discounted Rate: | R9: ='Input Data'!U86 -> 0.1
B10: =IF('Input Data'!U9>0.001,"Performance Data: User Adjusted","") ->  | G10: Total Investment Cost | I10: =I5+(I6*I5)+(I5*I7)+(I5*I8) -> 1023.96 | K10: Average salary options personnel | N10: ='Input Data'!U79 -> 0.05 | P10: Insurance | R10: ='Input Data'!U81 -> 0.02 | S10: Installed Cost
K11: Admin | N11: ='Input Data'!U80 -> 0.3
K12: Total Labour Cost | N12: =(N9*N10)*(1+N11) -> 3.9
G13: =IF('Input Data'!U47>0.001,"Capital and Cost Data: User Adjusted","") ->  | P13: =IF('Input Data'!U83>0.001,"Revenue Data: User Adjusted","") -> 
K14: =IF('Input Data'!U70>0.001,"Operating Data: User Adjusted","") -> 
F17: YEAR
B18: CASH FLOW ANALYSIS | F18: =G18-1 -> 2009 | G18: =H18-1 -> 2010 | H18: =I18-1 -> 2011 | I18: ='Input Data'!R102 -> 2012 | J18: ='Input Data'!R103 -> 2013 | K18: ='Input Data'!R104 -> 2014 | L18: ='Input Data'!R105 -> 2015 | M18: ='Input Data'!R106 -> 2016 | N18: ='Input Data'!R107 -> 2017 | O18: ='Input Data'!R108 -> 2018 | P18: ='Input Data'!R109 -> 2019 | Q18: ='Input Data'!R110 -> 2020 | R18: ='Input Data'!R111 -> 2021 | S18: ='Input Data'!R112 -> 2022 | T18: ='Input Data'!R113 -> 2023 | U18: ='Input Data'!R114 -> 2024 | V18: ='Input Data'!R115 -> 2025 | W18: ='Input Data'!R116 -> 2026 | X18: ='Input Data'!R117 -> 2027 | Y18: ='Input Data'!R118 -> 2028 | Z18: ='Input Data'!R119 -> 2029 | AA18: ='Input Data'!R120 -> 2030 | AB18: ='Input Data'!R121 -> 2031 | AC18: ='Input Data'!R122 -> 2032 | AD18: ='Input Data'!R123 ->  | AE18: ='Input Data'!R124 ->  | AF18: ='Input Data'!R125 ->  | AG18: ='Input Data'!R126 ->  | AH18: ='Input Data'!R127 ->  | AI18: ='Input Data'!R128 ->  | AJ18: ='Input Data'!R129 ->  | AK18: ='Input Data'!R130 ->  | AL18: ='Input Data'!R131 ->  | AM18: ='Input Data'!R132 -> 
B19: UK£ (million) | F19: Year -3 | G19: Year -2 | H19: Year -1 | I19: ='Input Data'!Q102 -> Year 1 | J19: ='Input Data'!Q103 -> Year 2 | K19: ='Input Data'!Q104 -> Year 3 | L19: ='Input Data'!Q105 -> Year 4 | M19: ='Input Data'!Q106 -> Year 5 | N19: ='Input Data'!Q107 -> Year 6 | O19: ='Input Data'!Q108 -> Year 7 | P19: ='Input Data'!Q109 -> Year 8 | Q19: ='Input Data'!Q110 -> Year 9 | R19: ='Input Data'!Q111 -> Year 10 | S19: ='Input Data'!Q112 -> Year 11 | T19: ='Input Data'!Q113 -> Year 12 | U19: ='Input Data'!Q114 -> Year 13 | V19: ='Input Data'!Q115 -> Year 14 | W19: ='Input Data'!Q116 -> Year 15 | X19: ='Input Data'!Q117 -> Year 16 | Y19: ='Input Data'!Q118 -> Year 17 | Z19: ='Input Data'!Q119 -> Year 18 | AA19: ='Input Data'!Q120 -> Year 19 | AB19: ='Input Data'!Q121 -> Year 20 | AC19: ='Input Data'!Q122 -> Year 21 | AD19: ='Input Data'!Q123 ->  | AE19: ='Input Data'!Q124 ->  | AF19: ='Input Data'!Q125 ->  | AG19: ='Input Data'!Q126 ->  | AH19: ='Input Data'!Q127 ->  | AI19: ='Input Data'!Q128 ->  | AJ19: ='Input Data'!Q129 ->  | AK19: ='Input Data'!Q130 ->  | AL19: ='Input Data'!Q131 ->  | AM19: ='Input Data'!Q132 -> 
B22: Load factor | I22: ='Input Data'!S102 -> 1 | J22: ='Input Data'!S103 -> 1 | K22: ='Input Data'!S104 -> 1 | L22: ='Input Data'!S105 -> 1 | M22: ='Input Data'!S106 -> 1 | N22: ='Input Data'!S107 -> 1 | O22: ='Input Data'!S108 -> 1 | P22: ='Input Data'!S109 -> 1 | Q22: ='Input Data'!S110 -> 1 | R22: ='Input Data'!S111 -> 1 | S22: ='Input Data'!S112 -> 1 | T22: ='Input Data'!S113 -> 1 | U22: ='Input Data'!S114 -> 1 | V22: ='Input Data'!S115 -> 1 | W22: ='Input Data'!S116 -> 1 | X22: ='Input Data'!S117 -> 1 | Y22: ='Input Data'!S118 -> 1 | Z22: ='Input Data'!S119 -> 1 | AA22: ='Input Data'!S120 -> 1 | AB22: ='Input Data'!S121 -> 1 | AC22: =IF('Input Data'!U89>20,'Input Data'!S122,"") ->  | AD22: =IF(AD19="Year 22",'Input Data'!S123,"") ->  | AE22: =IF(AE19="Year 23",'Input Data'!S124,"") ->  | AF22: =IF(AF19="Year 24",'Input Data'!S125,"") ->  | AG22: =IF(AG19="Year 25",'Input Data'!S126,"") ->  | AH22: =IF('Input Data'!U89>25,'Input Data'!S127,"") ->  | AI22: =IF(AI19="Year 27",'Input Data'!S128,"") ->  | AJ22: =IF(AJ19="Year 28",'Input Data'!S129,"") ->  | AK22: =IF(AK19="Year 29",'Input Data'!S130,"") ->  | AL22: =IF(AL19="Year 30",'Input Data'!S131,"") ->  | AM22: =IF('Input Data'!U89>30,'Input Data'!S132,"") -> 
B23: Availability | I23: ='Input Data'!T102 -> 0.65 | J23: ='Input Data'!T103 -> 0.75 | K23: ='Input Data'!T104 -> 0.85 | L23: ='Input Data'!T105 -> 0.85 | M23: ='Input Data'!T106 -> 0.85 | N23: ='Input Data'!T107 -> 0.85 | O23: ='Input Data'!T108 -> 0.85 | P23: ='Input Data'!T109 -> 0.85 | Q23: ='Input Data'!T110 -> 0.85 | R23: ='Input Data'!T111 -> 0.85 | S23: ='Input Data'!T112 -> 0.85 | T23: ='Input Data'!T113 -> 0.85 | U23: ='Input Data'!T114 -> 0.85 | V23: ='Input Data'!T115 -> 0.85 | W23: ='Input Data'!T116 -> 0.85 | X23: ='Input Data'!T117 -> 0.85 | Y23: ='Input Data'!T118 -> 0.85 | Z23: ='Input Data'!T119 -> 0.85 | AA23: ='Input Data'!T120 -> 0.85 | AB23: ='Input Data'!T121 -> 0.85 | AC23: =IF('Input Data'!U89>20,'Input Data'!T122,"") ->  | AD23: =IF(AD19="Year 22",'Input Data'!T123,"") ->  | AE23: =IF(AE19="Year 23",'Input Data'!T124,"") ->  | AF23: =IF(AF19="Year 24",'Input Data'!T125,"") ->  | AG23: =IF(AG19="Year 25",'Input Data'!T126,"") ->  | AH23: =IF('Input Data'!U89>25,'Input Data'!T127,"") ->  | AI23: =IF(AI19="Year 27",'Input Data'!T128,"") ->  | AJ23: =IF(AJ19="Year 28",'Input Data'!T129,"") ->  | AK23: =IF(AK19="Year 29",'Input Data'!T130,"") ->  | AL23: =IF(AL19="Year 30",'Input Data'!T131,"") ->  | AM23: =IF('Input Data'!U89>30,'Input Data'!T132,"") -> 
B24: Equivalent yearly hours | I24: =I22*8760*I23 -> 5694 | J24: 6570 | K24: 7446 | L24: 7446 | M24: 7446 | N24: 7446 | O24: 7446 | P24: 7446 | Q24: 7446 | R24: 7446 | S24: 7446 | T24: 7446 | U24: 7446 | V24: 7446 | W24: 7446 | X24: 7446 | Y24: 7446 | Z24: 7446 | AA24: 7446 | AB24: 7446 | AC24: =IF('Input Data'!U89>20, AC22*8760*AC23,"") ->  | AD24: =IF(AD19="Year 22",AD22*8760*AD23,"") ->  | AE24: =IF(AE19="Year 23",AE22*8760*AE23,"") ->  | AF24: =IF(AF19="Year 24",AF22*8760*AF23,"") ->  | AG24: =IF(AG19="Year 25",AG22*8760*AG23,"") ->  | AH24: =IF('Input Data'!U89>25,AH22*8760*AH23,"") ->  | AI24: =IF(AI19="Year 27",AI22*8760*AI23,"") ->  | AJ24: =IF(AJ19="Year 28",AJ22*8760*AJ23,"") ->  | AK24: =IF(AK19="Year 29",AK22*8760*AK23,"") ->  | AL24: =IF(AL19="Year 30",AL22*8760*AL23,"") ->  | AM24: =IF('Input Data'!U89>30,AM22*8760*AM23,"") -> 
B25: Expenditure factor | F25: ='Input Data'!U96 -> 0.25 | G25: ='Input Data'!U97 -> 0.45 | H25: ='Input Data'!U98 -> 0.3
B26: Revenues
B27: Electricity | I27: =$E$6*I24*$R$5/1000 -> 333.648544 | J27: =$E$6*J24*$R$5/1000 -> 384.9790893 | K27: 436.3096345 | L27: 436.3096345 | M27: 436.3096345 | N27: 436.3096345 | O27: 436.3096345 | P27: 436.3096345 | Q27: 436.3096345 | R27: 436.3096345 | S27: =$E$6*S24*$R$5/1000 -> 436.3096345 | T27: 436.3096345 | U27: 436.3096345 | V27: 436.3096345 | W27: 436.3096345 | X27: 436.3096345 | Y27: 436.3096345 | Z27: 436.3096345 | AA27: 436.3096345 | AB27: 436.3096345 | AC27: =IF('Input Data'!U89>20,$E$6*AC24*$R$5/1000,"") ->  | AD27: =IF(AD19="Year 22",$E$6*AD24*$R$5/1000,"") ->  | AE27: =IF(AE19="Year 23",$E$6*AE24*$R$5/1000,"") ->  | AF27: =IF(AF19="Year 24",$E$6*AF24*$R$5/1000,"") ->  | AG27: =IF(AG19="Year 25",$E$6*AG24*$R$5/1000,"") ->  | AH27: =IF('Input Data'!U89>25,$E$6*AH24*$R$5/1000,"") ->  | AI27: =IF(AI19="Year 27",$E$6*AI24*$R$5/1000,"") ->  | AJ27: =IF(AJ19="Year 28",$E$6*AJ24*$R$5/1000,"") ->  | AK27: =IF(AK19="Year 29",$E$6*AK24*$R$5/1000,"") ->  | AL27: =IF(AL19="Year 30",$E$6*AL24*$R$5/1000,"") ->  | AM27: =IF('Input Data'!U89>30,$E$6*AM24*$R$5/1000,"") -> 
B28: Operating costs
B29: Fuel (Natural Gas) | I29: =$M$5*$E$5*I24/1000000 -> 193.0147375 | J29: =$M$5*$E$5*J24/1000000 -> 222.7093125 | K29: 252.4038875 | L29: =$M$5*$E$5*L24/1000000 -> 252.4038875 | M29: 252.4038875 | N29: 252.4038875 | O29: 252.4038875 | P29: 252.4038875 | Q29: 252.4038875 | R29: 252.4038875 | S29: 252.4038875 | T29: 252.4038875 | U29: 252.4038875 | V29: 252.4038875 | W29: 252.4038875 | X29: 252.4038875 | Y29: 252.4038875 | Z29: 252.4038875 | AA29: 252.4038875 | AB29: 252.4038875 | AC29: =IF('Input Data'!U89>20,$M$5*$E$5*AC24/1000000,"") ->  | AD29: =IF(AD19="Year 22",$M$5*$E$5*AD24/1000000,"") ->  | AE29: =IF(AE19="Year 23",$M$5*$E$5*AE24/1000000,"") ->  | AF29: =IF(AF19="Year 24",$M$5*$E$5*AF24/1000000,"") ->  | AG29: =IF(AG19="Year 25",$M$5*$E$5*AG24/1000000,"") ->  | AH29: =IF('Input Data'!U89>25,$M$5*$E$5*AH24/1000000,"") ->  | AI29: =IF(AI19="Year 27",$M$5*$E$5*AI24/1000000,"") ->  | AJ29: =IF(AJ19="Year 28",$M$5*$E$5*AJ24/1000000,"") ->  | AK29: =IF(AK19="Year 29",$M$5*$E$5*AK24/1000000,"") ->  | AL29: =IF(AL19="Year 30",$M$5*$E$5*AL24/1000000,"") ->  | AM29: =IF('Input Data'!U89>30,$M$5*$E$5*AM24/1000000,"") -> 
B30: Maintenance | I30: =$M$6 -> 25.5 | J30: 25.5 | K30: 25.5 | L30: 25.5 | M30: 25.5 | N30: 25.5 | O30: 25.5 | P30: 25.5 | Q30: 25.5 | R30: 25.5 | S30: 25.5 | T30: 25.5 | U30: 25.5 | V30: 25.5 | W30: 25.5 | X30: 25.5 | Y30: 25.5 | Z30: 25.5 | AA30: 25.5 | AB30: 25.5 | AC30: =IF('Input Data'!U89>20,$M$6,"") ->  | AD30: =IF(AD19="Year 22",$M$6,"") ->  | AE30: =IF(AE19="Year 23",$M$6,"") ->  | AF30: =IF(AF19="Year 24",$M$6,"") ->  | AG30: =IF(AG19="Year 25",$M$6,"") ->  | AH30: =IF('Input Data'!U89>25,$M$6,"") ->  | AI30: =IF(AI19="Year 27",$M$6,"") ->  | AJ30: =IF(AJ19="Year 28",$M$6,"") ->  | AK30: =IF(AK19="Year 29",$M$6,"") ->  | AL30: =IF(AL19="Year 30",$M$6,"") ->  | AM30: =IF('Input Data'!U89>30,$M$6,"") -> 
B31: Labour | I31: =$N$12 -> 3.9 | J31: 3.9 | K31: 3.9 | L31: 3.9 | M31: 3.9 | N31: 3.9 | O31: 3.9 | P31: 3.9 | Q31: 3.9 | R31: 3.9 | S31: 3.9 | T31: 3.9 | U31: 3.9 | V31: 3.9 | W31: 3.9 | X31: 3.9 | Y31: 3.9 | Z31: 3.9 | AA31: 3.9 | AB31: 3.9 | AC31: =IF('Input Data'!U89>20,$N$12,"") ->  | AD31: =IF(AD19="Year 22",$N$12,"") ->  | AE31: =IF(AE19="Year 23",$N$12,"") ->  | AF31: =IF(AF19="Year 24",$N$12,"") ->  | AG31: =IF(AG19="Year 25",$N$12,"") ->  | AH31: =IF('Input Data'!U89>25,$N$12,"") ->  | AI31: =IF(AI19="Year 27",$N$12,"") ->  | AJ31: =IF(AJ19="Year 28",$N$12,"") ->  | AK31: =IF(AK19="Year 29",$N$12,"") ->  | AL31: =IF(AL19="Year 30",$N$12,"") ->  | AM31: =IF('Input Data'!U89>30,$N$12,"") -> 
B32: Chemicals and Consumables | I32: =I22*I23*'Input Data'!$U$74/0.85 -> 0.9176470588 | J32: =J22*J23*'Input Data'!$U$74/0.85 -> 1.058823529 | K32: =K22*K23*'Input Data'!$U$74/0.85 -> 1.2 | L32: =L22*L23*'Input Data'!$U$74/0.85 -> 1.2 | M32: =M22*M23*'Input Data'!$U$74/0.85 -> 1.2 | N32: =N22*N23*'Input Data'!$U$74/0.85 -> 1.2 | O32: =O22*O23*'Input Data'!$U$74/0.85 -> 1.2 | P32: =P22*P23*'Input Data'!$U$74/0.85 -> 1.2 | Q32: =Q22*Q23*'Input Data'!$U$74/0.85 -> 1.2 | R32: =R22*R23*'Input Data'!$U$74/0.85 -> 1.2 | S32: =S22*S23*'Input Data'!$U$74/0.85 -> 1.2 | T32: =T22*T23*'Input Data'!$U$74/0.85 -> 1.2 | U32: =U22*U23*'Input Data'!$U$74/0.85 -> 1.2 | V32: =V22*V23*'Input Data'!$U$74/0.85 -> 1.2 | W32: =W22*W23*'Input Data'!$U$74/0.85 -> 1.2 | X32: =X22*X23*'Input Data'!$U$74/0.85 -> 1.2 | Y32: =Y22*Y23*'Input Data'!$U$74/0.85 -> 1.2 | Z32: =Z22*Z23*'Input Data'!$U$74/0.85 -> 1.2 | AA32: =AA22*AA23*'Input Data'!$U$74/0.85 -> 1.2 | AB32: =AB22*AB23*'Input Data'!$U$74/0.85 -> 1.2 | AC32: =IF('Input Data'!U89>20,AC22*AC23*'Input Data'!$U$74/0.85,"") ->  | AD32: =IF(AD19="Year 22",AD22*AD23*'Input Data'!$U$74/0.85,"") ->  | AE32: =IF(AE19="Year 23",AE22*AE23*'Input Data'!$U$74/0.85,"") ->  | AF32: =IF(AF19="Year 24",AF22*AF23*'Input Data'!$U$74/0.85,"") ->  | AG32: =IF(AG19="Year 25",AG22*AG23*'Input Data'!$U$74/0.85,"") ->  | AH32: =IF('Input Data'!U89>25,AH22*AH23*'Input Data'!$U$74/0.85,"") ->  | AI32: =IF(AI19="Year 27",AI22*AI23*'Input Data'!$U$74/0.85,"") ->  | AJ32: =IF(AJ19="Year 28",AJ22*AJ23*'Input Data'!$U$74/0.85,"") ->  | AK32: =IF(AK19="Year 29",AK22*AK23*'Input Data'!$U$74/0.85,"") ->  | AL32: =IF(AL19="Year 30",AL22*AL23*'Input Data'!$U$74/0.85,"") ->  | AM32: =IF('Input Data'!U89>30,AM22*AM23*'Input Data'!$U$74/0.85,"") -> 
B33: Insurance + Local Taxes | I33: =I5*R10 -> 14.628 | J33: =I5*R10 -> 14.628 | K33: =I5*R10 -> 14.628 | L33: =I5*R10 -> 14.628 | M33: =I5*R10 -> 14.628 | N33: =I5*R10 -> 14.628 | O33: =I5*R10 -> 14.628 | P33: =I5*R10 -> 14.628 | Q33: =I5*R10 -> 14.628 | R33: =I5*R10 -> 14.628 | S33: =I5*R10 -> 14.628 | T33: =I5*R10 -> 14.628 | U33: =I5*R10 -> 14.628 | V33: =I5*R10 -> 14.628 | W33: =I5*R10 -> 14.628 | X33: =I5*R10 -> 14.628 | Y33: =I5*R10 -> 14.628 | Z33: =I5*R10 -> 14.628 | AA33: =I5*R10 -> 14.628 | AB33: =I5*R10 -> 14.628 | AC33: =IF('Input Data'!U89>20,I5*R10,"") ->  | AD33: =IF(AD19="Year 22",R10*I5,"") ->  | AE33: =IF(AE19="Year 23",I5*R10,"") ->  | AF33: =IF(AF19="Year 24",I5*R10,"") ->  | AG33: =IF(AG19="Year 25",I5*R10,"") ->  | AH33: =IF('Input Data'!U89>25,I5*R10,"") ->  | AI33: =IF(AI19="Year 27",I5*R10,"") ->  | AJ33: =IF(AJ19="Year 28",I5*R10,"") ->  | AK33: =IF(AK19="Year 29",I5*R10,"") ->  | AL33: =IF(AL19="Year 30",I5*R10,"") ->  | AM33: =IF('Input Data'!U89>30,I5*R10,"") -> 
B34: CO2 Emissions | I34: ='Input Data'!$U$33*'Input Data'!$U$77*I24/1000000 -> 0 | J34: ='Input Data'!$U$33*'Input Data'!$U$77*J24/1000000 -> 0 | K34: ='Input Data'!$U$33*'Input Data'!$U$77*K24/1000000 -> 0 | L34: ='Input Data'!$U$33*'Input Data'!$U$77*L24/1000000 -> 0 | M34: ='Input Data'!$U$33*'Input Data'!$U$77*M24/1000000 -> 0 | N34: ='Input Data'!$U$33*'Input Data'!$U$77*N24/1000000 -> 0 | O34: ='Input Data'!$U$33*'Input Data'!$U$77*O24/1000000 -> 0 | P34: ='Input Data'!$U$33*'Input Data'!$U$77*P24/1000000 -> 0 | Q34: ='Input Data'!$U$33*'Input Data'!$U$77*Q24/1000000 -> 0 | R34: ='Input Data'!$U$33*'Input Data'!$U$77*R24/1000000 -> 0 | S34: ='Input Data'!$U$33*'Input Data'!$U$77*S24/1000000 -> 0 | T34: ='Input Data'!$U$33*'Input Data'!$U$77*T24/1000000 -> 0 | U34: ='Input Data'!$U$33*'Input Data'!$U$77*U24/1000000 -> 0 | V34: ='Input Data'!$U$33*'Input Data'!$U$77*V24/1000000 -> 0 | W34: ='Input Data'!$U$33*'Input Data'!$U$77*W24/1000000 -> 0 | X34: ='Input Data'!$U$33*'Input Data'!$U$77*X24/1000000 -> 0 | Y34: ='Input Data'!$U$33*'Input Data'!$U$77*Y24/1000000 -> 0 | Z34: ='Input Data'!$U$33*'Input Data'!$U$77*Z24/1000000 -> 0 | AA34: ='Input Data'!$U$33*'Input Data'!$U$77*AA24/1000000 -> 0 | AB34: ='Input Data'!$U$33*'Input Data'!$U$77*AB24/1000000 -> 0 | AC34: =IF('Input Data'!U89>20,'Input Data'!$U$33*'Input Data'!$U$77*AC24/1000000,"") ->  | AD34: =IF(AD19="Year 22",'Input Data'!$U$33*'Input Data'!$U$77*AD24/1000000,"") ->  | AE34: =IF(AE19="Year 23",'Input Data'!$U$33*'Input Data'!$U$77*AE24/1000000,"") ->  | AF34: =IF(AF19="Year 24",'Input Data'!$U$33*'Input Data'!$U$77*AF24/1000000,"") ->  | AG34: =IF(AG19="Year 25",'Input Data'!$U$33*'Input Data'!$U$77*AG24/1000000,"") ->  | AH34: =IF('Input Data'!U89>25,'Input Data'!$U$33*'Input Data'!$U$77*AH24/1000000,"") ->  | AI34: =IF(AI19="Year 27",'Input Data'!$U$33*'Input Data'!$U$77*AI24/1000000,"") ->  | AJ34: =IF(AJ19="Year 28",'Input Data'!$U$33*'Input Data'!$U$77*AJ24/1000000,"") ->  | AK34: =IF(AK19="Year 29",'Input Data'!$U$33*'Input Data'!$U$77*AK24/1000000,"") ->  | AL34: =IF(AL19="Year 30",'Input Data'!$U$33*'Input Data'!$U$77*AL24/1000000,"") ->  | AM34: =IF('Input Data'!U89>30,'Input Data'!$U$33*'Input Data'!$U$77*AM24/1000000,"") -> 
B35: Fixed Capital Expenditure | F35: =I10*F25 -> 255.99 | G35: =I10*G25 -> 460.782 | H35: =H25*I10 -> 307.188
B37: Total Cash Flow (yearly) | F37: =SUM(F27:F27)-SUM(F29:F34)-F35 -> -255.99 | G37: -460.782 | H37: -307.188 | I37: 95.68815947 | J37: 117.1829532 | K37: 138.677747 | L37: 138.677747 | M37: 138.677747 | N37: 138.677747 | O37: 138.677747 | P37: 138.677747 | Q37: 138.677747 | R37: 138.677747 | S37: 138.677747 | T37: 138.677747 | U37: 138.677747 | V37: 138.677747 | W37: 138.677747 | X37: 138.677747 | Y37: 138.677747 | Z37: 138.677747 | AA37: 138.677747 | AB37: 138.677747 | AC37: =IF(AC19="Year 21",SUM(AC27:AC27)-SUM(AC29:AC34)-AC35,"") -> 0 | AD37: =IF(AD19="Year 22",SUM(AD27:AD27)-SUM(AD29:AD34)-AD35,"") ->  | AE37: =IF(AE19="Year 23",SUM(AE27:AE27)-SUM(AE29:AE34)-AE35,"") ->  | AF37: =IF(AF19="Year 24",SUM(AF27:AF27)-SUM(AF29:AF34)-AF35,"") ->  | AG37: =IF(AG19="Year 25",SUM(AG27:AG27)-SUM(AG29:AG34)-AG35,"") ->  | AH37: =IF(AH19="Year 26",SUM(AH27:AH27)-SUM(AH29:AH34)-AH35,"") ->  | AI37: =IF(AI19="Year 27",SUM(AI27:AI27)-SUM(AI29:AI34)-AI35,"") ->  | AJ37: =IF(AJ19="Year 28",SUM(AJ27:AJ27)-SUM(AJ29:AJ34)-AJ35,"") ->  | AK37: =IF(AK19="Year 29",SUM(AK27:AK27)-SUM(AK29:AK34)-AK35,"") ->  | AL37: =IF(AL19="Year 30",SUM(AL27:AL27)-SUM(AL29:AL34)-AL35,"") ->  | AM37: =IF(AM19="Year 31",SUM(AM27:AM27)-SUM(AM29:AM34)-AM35,"") -> 
B38: Total Cash Flow (accumulated) | F38: =F37 -> -255.99 | G38: =-1*(ABS(G37)+ABS(F38)) -> -716.772 | H38: =-1*(ABS(H37)+ABS(G38)) -> -1023.96 | I38: =H38+I37 -> -928.2718405 | J38: -811.0888873 | K38: -672.4111403 | L38: -533.7333933 | M38: -395.0556463 | N38: -256.3778993 | O38: -117.7001523 | P38: 20.97759469 | Q38: 159.6553417 | R38: 298.3330887 | S38: 437.0108357 | T38: 575.6885827 | U38: 714.3663297 | V38: 853.0440767 | W38: 991.7218237 | X38: 1130.399571 | Y38: 1269.077318 | Z38: 1407.755065 | AA38: 1546.432812 | AB38: 1685.110559 | AC38: =IF(AC19="Year 21",AB38+AC37,"") -> 1685.110559 | AD38: =IF(AD19="Year 22",AC38+AD37,"") ->  | AE38: =IF(AE19="Year 23",AD38+AE37,"") ->  | AF38: =IF(AF19="Year 24",AE38+AF37,"") ->  | AG38: =IF(AG19="Year 25",AF38+AG37,"") ->  | AH38: =IF(AH19="Year 26",AG38+AH37,"") ->  | AI38: =IF(AI19="Year 27",AH38+AI37,"") ->  | AJ38: =IF(AJ19="Year 28",AI38+AJ37,"") ->  | AK38: =IF(AK19="Year 29",AJ38+AK37,"") ->  | AL38: =IF(AL19="Year 30",AK38+AL37,"") ->  | AM38: =IF(AM19="Year 31",AL38+AM37,"") -> 
B40: Discounted Cash Flow (yearly) | F40: =F38/(1+R9) -> -232.7181818 | G40: =G37/(1+R9)^2 -> -380.8115702 | H40: =H37/(1+R9)^3 -> -230.7948911 | I40: =I37/(1+R9)^4 -> 65.35630044 | J40: =J37/(1+R9)^5 -> 72.76139436 | K40: =K37/(1+R9)^6 -> 78.27997286 | L40: =L37/(1+R9)^7 -> 71.16361169 | M40: =M37/(1+R9)^8 -> 64.69419245 | N40: =N37/(1+R9)^9 -> 58.81290222 | O40: =O37/(1+R9)^10 -> 53.46627475 | P40: =P37/(1+R9)^11 -> 48.60570432 | Q40: =Q37/(1+R9)^12 -> 44.18700392 | R40: =R37/(1+R9)^13 -> 40.17000357 | S40: =S37/(1+R9)^14 -> 36.51818506 | T40: =T37/(1+R9)^15 -> 33.19835006 | U40: =U37/(1+R9)^16 -> 30.18031823 | V40: =V37/(1+R9)^17 -> 27.43665294 | W40: =W37/(1+R9)^18 -> 24.94241176 | X40: =X37/(1+R9)^19 -> 22.67491978 | Y40: =Y37/(1+R9)^20 -> 20.61356344 | Z40: =Z37/(1+R9)^21 -> 18.73960313 | AA40: =AA37/(1+R9)^22 -> 17.03600284 | AB40: =AB37/(1+R9)^23 -> 15.48727531 | AC40: =IF(AC19="Year 21",AC37/(1+R9)^24,"") -> 0 | AD40: =IF(AD19="Year 22",AD37/(1+R9)^25,"") ->  | AE40: =IF(AE19="Year 23",AE37/(1+R9)^26,"") ->  | AF40: =IF(AF19="Year 24",AF37/(1+R9)^27,"") ->  | AG40: =IF(AG19="Year 25",AG37/(1+R9)^28,"") ->  | AH40: =IF(AH19="Year 26",AH37/(1+R9)^29,"") ->  | AI40: =IF(AI19="Year 27",AI37/(1+R9)^30,"") ->  | AJ40: =IF(AJ19="Year 28",AJ37/(1+R9)^31,"") ->  | AK40: =IF(AK19="Year 29",AK37/(1+R9)^32,"") ->  | AL40: =IF(AL19="Year 30",AL37/(1+R9)^33,"") ->  | AM40: =IF(AM19="Year 31",AM37/(1+R9)^34,"") -> 
B41: Discounted Cash Flow (accumulated) | F41: =F40 -> -232.7181818 | G41: =SUM(G40+F41) -> -613.5297521 | H41: -844.3246431 | I41: -778.9683427 | J41: -706.2069483 | K41: -627.9269755 | L41: -556.7633638 | M41: -492.0691713 | N41: -433.2562691 | O41: -379.7899944 | P41: -331.18429 | Q41: -286.9972861 | R41: -246.8272826 | S41: -210.3090975 | T41: -177.1107474 | U41: -146.9304292 | V41: -119.4937763 | W41: -94.55136451 | X41: -71.87644472 | Y41: -51.26288128 | Z41: -32.52327815 | AA41: -15.48727531 | AB41: 8.331113577e-13 | AC41: =IF(AC19="Year 21",SUM(AC40+AB41),"") -> 8.331113577e-13 | AD41: =IF(AD19="Year 22",SUM(AD40+AC41),"") ->  | AE41: =IF(AE19="Year 23",SUM(AE40+AD41),"") ->  | AF41: =IF(AF19="Year 24",SUM(AF40+AE41),"") ->  | AG41: =IF(AG19="Year 25",SUM(AG40+AF41),"") ->  | AH41: =IF(AH19="Year 26",SUM(AH40+AG41),"") ->  | AI41: =IF(AI19="Year 27",SUM(AI40+AH41),"") ->  | AJ41: =IF(AJ19="Year 28",SUM(AJ40+AI41),"") ->  | AK41: =IF(AK19="Year 29",SUM(AK40+AJ41),"") ->  | AL41: =IF(AL19="Year 30",SUM(AL40+AK41),"") ->  | AM41: =IF(AM19="Year 31",SUM(AM40+AL41),"") -> 
AA43: Hidden acc cf | AC43: =SUM(AC40+AB41) -> 8.331113577e-13 | AD43: =IF(AD40="",AC41,SUM(AD40+AC41)) -> 8.331113577e-13 | AE43: =IF(AE40="",AD43,SUM(AE40+AD43)) -> 8.331113577e-13 | AF43: =IF(AF40="",AE43,SUM(AF40+AE43)) -> 8.331113577e-13 | AG43: =IF(AG40="",AF43,SUM(AG40+AF43)) -> 8.331113577e-13 | AH43: 8.331113577e-13 | AI43: 8.331113577e-13 | AJ43: 8.331113577e-13 | AK43: 8.331113577e-13 | AL43: 8.331113577e-13 | AM43: 8.331113577e-13 | AN43: 8.331113577e-13

Sheet CCGT w 75% CC
B4: Production | G4: Capital Expenditure | I4: UK£ (million) | K4: Operating Costs | L4: UK£ (million/year) | P4: Revenues
B5: Nat Gas Feedrate | D5: te/h | E5: ='Input Data'!BF27 -> 127.9166667 | G5: Installed cost | I5: ='Input Data'!BF60 -> 696.9 | K5: Fuel Cost | M5: ='Input Data'!BF76 -> 265 | N5: UK£/te | P5: Electricity Price | R5: 0.06589177663 | S5: UK£/kWh
B6: Net power ouput | D6: MW | E6: ='Input Data'!BF23 -> 872.3 | G6: Land purchase, surveys | I6: ='Input Data'!BF65 -> 0.05 | K6: Maintenance | M6: ='Input Data'!BF72 -> 24.6 | N6: UK£/year
G7: Fees | I7: ='Input Data'!BF66 -> 0.1 | K7: CO2 Emissions | M7: ='Input Data'!BF77 -> 0 | N7: UK£/te
G8: Contingencies | I8: ='Input Data'!BF64 -> 0.25 | K8: Labour Cost | N8: UK£/year (million)
K9: Number of operations personnel | N9: ='Input Data'!BF78 -> 60 | P9: Discounted Rate: | R9: ='Input Data'!BF86 -> 0.1
B10: =IF('Input Data'!BF9>0.001,"Performance Data: User Adjusted","") ->  | G10: Total Investment Cost | I10: =I5+(I6*I5)+(I5*I7)+(I5*I8) -> 975.66 | K10: Average salary options personnel | N10: ='Input Data'!BF79 -> 0.05 | P10: Insurance | R10: ='Input Data'!BF81 -> 0.02 | S10: Installed Cost
K11: Admin | N11: ='Input Data'!BF80 -> 0.3
K12: Total Labour Cost | N12: =(N9*N10)*(1+N11) -> 3.9
G13: =IF('Input Data'!BF47>0.001,"Capital and Cost Data: User Adjusted","") ->  | P13: =IF('Input Data'!BF83>0.001,"Revenue Data: User Adjusted","") -> 
K14: =IF('Input Data'!BF70>0.001,"Operating Data: User Adjusted","") -> 
F17: YEAR
B18: CASH FLOW ANALYSIS | F18: =G18-1 -> 2009 | G18: =H18-1 -> 2010 | H18: =I18-1 -> 2011 | I18: ='Input Data'!R102 -> 2012 | J18: ='Input Data'!R103 -> 2013 | K18: ='Input Data'!R104 -> 2014 | L18: ='Input Data'!R105 -> 2015 | M18: ='Input Data'!R106 -> 2016 | N18: ='Input Data'!R107 -> 2017 | O18: ='Input Data'!R108 -> 2018 | P18: ='Input Data'!R109 -> 2019 | Q18: ='Input Data'!R110 -> 2020 | R18: ='Input Data'!R111 -> 2021 | S18: ='Input Data'!R112 -> 2022 | T18: ='Input Data'!R113 -> 2023 | U18: ='Input Data'!R114 -> 2024 | V18: ='Input Data'!R115 -> 2025 | W18: ='Input Data'!R116 -> 2026 | X18: ='Input Data'!R117 -> 2027 | Y18: ='Input Data'!R118 -> 2028 | Z18: ='Input Data'!R119 -> 2029 | AA18: ='Input Data'!R120 -> 2030 | AB18: ='Input Data'!R121 -> 2031 | AC18: ='Input Data'!R122 -> 2032 | AD18: ='Input Data'!R123 ->  | AE18: ='Input Data'!R124 ->  | AF18: ='Input Data'!R125 ->  | AG18: ='Input Data'!R126 ->  | AH18: ='Input Data'!R127 ->  | AI18: ='Input Data'!R128 ->  | AJ18: ='Input Data'!R129 ->  | AK18: ='Input Data'!R130 ->  | AL18: ='Input Data'!R131 ->  | AM18: ='Input Data'!R132 -> 
B19: UK£ (million) | F19: Year -3 | G19: Year -2 | H19: Year -1 | I19: ='Input Data'!Q102 -> Year 1 | J19: ='Input Data'!Q103 -> Year 2 | K19: ='Input Data'!Q104 -> Year 3 | L19: ='Input Data'!Q105 -> Year 4 | M19: ='Input Data'!Q106 -> Year 5 | N19: ='Input Data'!Q107 -> Year 6 | O19: ='Input Data'!Q108 -> Year 7 | P19: ='Input Data'!Q109 -> Year 8 | Q19: ='Input Data'!Q110 -> Year 9 | R19: ='Input Data'!Q111 -> Year 10 | S19: ='Input Data'!Q112 -> Year 11 | T19: ='Input Data'!Q113 -> Year 12 | U19: ='Input Data'!Q114 -> Year 13 | V19: ='Input Data'!Q115 -> Year 14 | W19: ='Input Data'!Q116 -> Year 15 | X19: ='Input Data'!Q117 -> Year 16 | Y19: ='Input Data'!Q118 -> Year 17 | Z19: ='Input Data'!Q119 -> Year 18 | AA19: ='Input Data'!Q120 -> Year 19 | AB19: ='Input Data'!Q121 -> Year 20 | AC19: ='Input Data'!Q122 -> Year 21 | AD19: ='Input Data'!Q123 ->  | AE19: ='Input Data'!Q124 ->  | AF19: ='Input Data'!Q125 ->  | AG19: ='Input Data'!Q126 ->  | AH19: ='Input Data'!Q127 ->  | AI19: ='Input Data'!Q128 ->  | AJ19: ='Input Data'!Q129 ->  | AK19: ='Input Data'!Q130 ->  | AL19: ='Input Data'!Q131 ->  | AM19: ='Input Data'!Q132 -> 
B22: Load factor | I22: ='Input Data'!$BD102 -> 1 | J22: ='Input Data'!$BD103 -> 1 | K22: ='Input Data'!$BD104 -> 1 | L22: ='Input Data'!$BD105 -> 1 | M22: ='Input Data'!$BD106 -> 1 | N22: ='Input Data'!$BD107 -> 1 | O22: ='Input Data'!$BD108 -> 1 | P22: ='Input Data'!$BD109 -> 1 | Q22: ='Input Data'!$BD110 -> 1 | R22: ='Input Data'!$BD111 -> 1 | S22: ='Input Data'!$BD112 -> 1 | T22: ='Input Data'!$BD113 -> 1 | U22: ='Input Data'!$BD114 -> 1 | V22: ='Input Data'!$BD115 -> 1 | W22: ='Input Data'!$BD116 -> 1 | X22: ='Input Data'!$BD117 -> 1 | Y22: ='Input Data'!$BD118 -> 1 | Z22: ='Input Data'!$BD119 -> 1 | AA22: ='Input Data'!$BD120 -> 1 | AB22: ='Input Data'!$BD121 -> 1 | AC22: =IF('Input Data'!BF89>20,'Input Data'!BD122,"") ->  | AD22: =IF(AD19="Year 22",'Input Data'!BD123,"") ->  | AE22: =IF(AE19="Year 23",'Input Data'!BD124,"") ->  | AF22: =IF(AF19="Year 24",'Input Data'!BD125,"") ->  | AG22: =IF(AG19="Year 25",'Input Data'!BD126,"") ->  | AH22: =IF('Input Data'!BF89>25,'Input Data'!BD127,"") ->  | AI22: =IF(AI19="Year 27",'Input Data'!BD128,"") ->  | AJ22: =IF(AJ19="Year 28",'Input Data'!BD129,"") ->  | AK22: =IF(AK19="Year 29",'Input Data'!BD130,"") ->  | AL22: =IF(AL19="Year 30",'Input Data'!BD131,"") ->  | AM22: =IF('Input Data'!BF89>30,'Input Data'!BD132,"") -> 
B23: Availability | I23: ='Input Data'!$BE102 -> 0.65 | J23: ='Input Data'!$BE103 -> 0.75 | K23: ='Input Data'!$BE104 -> 0.85 | L23: ='Input Data'!$BE105 -> 0.85 | M23: ='Input Data'!$BE106 -> 0.85 | N23: ='Input Data'!$BE107 -> 0.85 | O23: ='Input Data'!$BE108 -> 0.85 | P23: ='Input Data'!$BE109 -> 0.85 | Q23: ='Input Data'!$BE110 -> 0.85 | R23: ='Input Data'!$BE111 -> 0.85 | S23: ='Input Data'!$BE112 -> 0.85 | T23: ='Input Data'!$BE113 -> 0.85 | U23: ='Input Data'!$BE114 -> 0.85 | V23: ='Input Data'!$BE115 -> 0.85 | W23: ='Input Data'!$BE116 -> 0.85 | X23: ='Input Data'!$BE117 -> 0.85 | Y23: ='Input Data'!$BE118 -> 0.85 | Z23: ='Input Data'!$BE119 -> 0.85 | AA23: ='Input Data'!$BE120 -> 0.85 | AB23: ='Input Data'!$BE121 -> 0.85 | AC23: =IF('Input Data'!BF89>20,'Input Data'!BE122,"") ->  | AD23: =IF(AD19="Year 22",'Input Data'!BE123,"") ->  | AE23: =IF(AE19="Year 23",'Input Data'!BE124,"") ->  | AF23: =IF(AF19="Year 24",'Input Data'!BE125,"") ->  | AG23: =IF(AG19="Year 25",'Input Data'!BE126,"") ->  | AH23: =IF('Input Data'!BF89>25,'Input Data'!BE127,"") ->  | AI23: =IF(AI19="Year 27",'Input Data'!BE128,"") ->  | AJ23: =IF(AJ19="Year 28",'Input Data'!BE129,"") ->  | AK23: =IF(AK19="Year 29",'Input Data'!BE130,"") ->  | AL23: =IF(AL19="Year 30",'Input Data'!BE131,"") ->  | AM23: =IF('Input Data'!BF89>30,'Input Data'!BE132,"") -> 
B24: Equivalent yearly hours | I24: =I22*8760*I23 -> 5694 | J24: 6570 | K24: 7446 | L24: 7446 | M24: 7446 | N24: 7446 | O24: 7446 | P24: 7446 | Q24: 7446 | R24: 7446 | S24: 7446 | T24: 7446 | U24: 7446 | V24: 7446 | W24: 7446 | X24: 7446 | Y24: 7446 | Z24: 7446 | AA24: 7446 | AB24: 7446 | AC24: =IF('Input Data'!BF89>20, AC22*8760*AC23,"") ->  | AD24: =IF(AD19="Year 22",AD22*8760*AD23,"") ->  | AE24: =IF(AE19="Year 23",AE22*8760*AE23,"") ->  | AF24: =IF(AF19="Year 24",AF22*8760*AF23,"") ->  | AG24: =IF(AG19="Year 25",AG22*8760*AG23,"") ->  | AH24: =IF('Input Data'!BF89>25,AH22*8760*AH23,"") ->  | AI24: =IF(AI19="Year 27",AI22*8760*AI23,"") ->  | AJ24: =IF(AJ19="Year 28",AJ22*8760*AJ23,"") ->  | AK24: =IF(AK19="Year 29",AK22*8760*AK23,"") ->  | AL24: =IF(AL19="Year 30",AL22*8760*AL23,"") ->  | AM24: =IF('Input Data'!BF89>30,AM22*8760*AM23,"") -> 
B25: Expenditure factor | F25: ='Input Data'!U96 -> 0.25 | G25: ='Input Data'!U97 -> 0.45 | H25: ='Input Data'!U98 -> 0.3
B26: Revenues
B27: Electricity | I27: =$E$6*I24*$R$5/1000 -> 327.2762971 | J27: 377.6264967 | K27: 427.9766962 | L27: 427.9766962 | M27: 427.9766962 | N27: 427.9766962 | O27: 427.9766962 | P27: 427.9766962 | Q27: 427.9766962 | R27: 427.9766962 | S27: 427.9766962 | T27: 427.9766962 | U27: 427.9766962 | V27: 427.9766962 | W27: 427.9766962 | X27: 427.9766962 | Y27: 427.9766962 | Z27: 427.9766962 | AA27: 427.9766962 | AB27: 427.9766962 | AC27: =IF('Input Data'!BF89>20,$E$6*AC24*$R$5/1000,"") ->  | AD27: =IF(AD19="Year 22",$E$6*AD24*$R$5/1000,"") ->  | AE27: =IF(AE19="Year 23",$E$6*AE24*$R$5/1000,"") ->  | AF27: =IF(AF19="Year 24",$E$6*AF24*$R$5/1000,"") ->  | AG27: =IF(AG19="Year 25",$E$6*AG24*$R$5/1000,"") ->  | AH27: =IF('Input Data'!BF89>25,$E$6*AH24*$R$5/1000,"") ->  | AI27: =IF(AI19="Year 27",$E$6*AI24*$R$5/1000,"") ->  | AJ27: =IF(AJ19="Year 28",$E$6*AJ24*$R$5/1000,"") ->  | AK27: =IF(AK19="Year 29",$E$6*AK24*$R$5/1000,"") ->  | AL27: =IF(AL19="Year 30",$E$6*AL24*$R$5/1000,"") ->  | AM27: =IF('Input Data'!BF89>30,$E$6*AM24*$R$5/1000,"") -> 
B28: Operating costs
B29: Fuel (Natural Gas) | I29: =$M$5*$E$5*I24/1000000 -> 193.0147375 | J29: 222.7093125 | K29: 252.4038875 | L29: 252.4038875 | M29: 252.4038875 | N29: 252.4038875 | O29: 252.4038875 | P29: 252.4038875 | Q29: 252.4038875 | R29: 252.4038875 | S29: 252.4038875 | T29: 252.4038875 | U29: 252.4038875 | V29: 252.4038875 | W29: 252.4038875 | X29: 252.4038875 | Y29: 252.4038875 | Z29: 252.4038875 | AA29: 252.4038875 | AB29: 252.4038875 | AC29: =IF('Input Data'!BF89>20,$M$5*$E$5*AC24/1000000,"") ->  | AD29: =IF(AD19="Year 22",$M$5*$E$5*AD24/1000000,"") ->  | AE29: =IF(AE19="Year 23",$M$5*$E$5*AE24/1000000,"") ->  | AF29: =IF(AF19="Year 24",$M$5*$E$5*AF24/1000000,"") ->  | AG29: =IF(AG19="Year 25",$M$5*$E$5*AG24/1000000,"") ->  | AH29: =IF('Input Data'!BF89>25,$M$5*$E$5*AH24/1000000,"") ->  | AI29: =IF(AI19="Year 27",$M$5*$E$5*AI24/1000000,"") ->  | AJ29: =IF(AJ19="Year 28",$M$5*$E$5*AJ24/1000000,"") ->  | AK29: =IF(AK19="Year 29",$M$5*$E$5*AK24/1000000,"") ->  | AL29: =IF(AL19="Year 30",$M$5*$E$5*AL24/1000000,"") ->  | AM29: =IF('Input Data'!BF89>30,$M$5*$E$5*AM24/1000000,"") -> 
B30: Maintenance | I30: =$M$6 -> 24.6 | J30: 24.6 | K30: 24.6 | L30: 24.6 | M30: 24.6 | N30: 24.6 | O30: 24.6 | P30: 24.6 | Q30: 24.6 | R30: 24.6 | S30: 24.6 | T30: 24.6 | U30: 24.6 | V30: 24.6 | W30: 24.6 | X30: 24.6 | Y30: 24.6 | Z30: 24.6 | AA30: 24.6 | AB30: 24.6 | AC30: =IF('Input Data'!BF89>20,$M$6,"") ->  | AD30: =IF(AD19="Year 22",$M$6,"") ->  | AE30: =IF(AE19="Year 23",$M$6,"") ->  | AF30: =IF(AF19="Year 24",$M$6,"") ->  | AG30: =IF(AG19="Year 25",$M$6,"") ->  | AH30: =IF('Input Data'!BF89>25,$M$6,"") ->  | AI30: =IF(AI19="Year 27",$M$6,"") ->  | AJ30: =IF(AJ19="Year 28",$M$6,"") ->  | AK30: =IF(AK19="Year 29",$M$6,"") ->  | AL30: =IF(AL19="Year 30",$M$6,"") ->  | AM30: =IF('Input Data'!BF89>30,$M$6,"") -> 
B31: Labour | I31: =$N$12 -> 3.9 | J31: 3.9 | K31: 3.9 | L31: 3.9 | M31: 3.9 | N31: 3.9 | O31: 3.9 | P31: 3.9 | Q31: 3.9 | R31: 3.9 | S31: 3.9 | T31: 3.9 | U31: 3.9 | V31: 3.9 | W31: 3.9 | X31: 3.9 | Y31: 3.9 | Z31: 3.9 | AA31: 3.9 | AB31: 3.9 | AC31: =IF('Input Data'!BF89>20,$N$12,"") ->  | AD31: =IF(AD19="Year 22",$N$12,"") ->  | AE31: =IF(AE19="Year 23",$N$12,"") ->  | AF31: =IF(AF19="Year 24",$N$12,"") ->  | AG31: =IF(AG19="Year 25",$N$12,"") ->  | AH31: =IF('Input Data'!BF89>25,$N$12,"") ->  | AI31: =IF(AI19="Year 27",$N$12,"") ->  | AJ31: =IF(AJ19="Year 28",$N$12,"") ->  | AK31: =IF(AK19="Year 29",$N$12,"") ->  | AL31: =IF(AL19="Year 30",$N$12,"") ->  | AM31: =IF('Input Data'!BF89>30,$N$12,"") -> 
B32: Chemicals and Consumables | I32: =I22*I23*'Input Data'!$BF$74/0.85 -> 0.7494117647 | J32: =J22*J23*'Input Data'!$BF$74/0.85 -> 0.8647058824 | K32: =K22*K23*'Input Data'!$BF$74/0.85 -> 0.98 | L32: =L22*L23*'Input Data'!$BF$74/0.85 -> 0.98 | M32: =M22*M23*'Input Data'!$BF$74/0.85 -> 0.98 | N32: =N22*N23*'Input Data'!$BF$74/0.85 -> 0.98 | O32: =O22*O23*'Input Data'!$BF$74/0.85 -> 0.98 | P32: =P22*P23*'Input Data'!$BF$74/0.85 -> 0.98 | Q32: =Q22*Q23*'Input Data'!$BF$74/0.85 -> 0.98 | R32: =R22*R23*'Input Data'!$BF$74/0.85 -> 0.98 | S32: =S22*S23*'Input Data'!$BF$74/0.85 -> 0.98 | T32: =T22*T23*'Input Data'!$BF$74/0.85 -> 0.98 | U32: =U22*U23*'Input Data'!$BF$74/0.85 -> 0.98 | V32: =V22*V23*'Input Data'!$BF$74/0.85 -> 0.98 | W32: =W22*W23*'Input Data'!$BF$74/0.85 -> 0.98 | X32: =X22*X23*'Input Data'!$BF$74/0.85 -> 0.98 | Y32: =Y22*Y23*'Input Data'!$BF$74/0.85 -> 0.98 | Z32: =Z22*Z23*'Input Data'!$BF$74/0.85 -> 0.98 | AA32: =AA22*AA23*'Input Data'!$BF$74/0.85 -> 0.98 | AB32: =AB22*AB23*'Input Data'!$BF$74/0.85 -> 0.98 | AC32: =IF('Input Data'!BF89>20,AC22*AC23*'Input Data'!$BF$74/0.85,"") ->  | AD32: =IF(AD19="Year 22",AD22*AD23*'Input Data'!$BF$74/0.85,"") ->  | AE32: =IF(AE19="Year 23",AE22*AE23*'Input Data'!$BF$74/0.85,"") ->  | AF32: =IF(AF19="Year 24",AF22*AF23*'Input Data'!$BF$74/0.85,"") ->  | AG32: =IF(AG19="Year 25",AG22*AG23*'Input Data'!$BF$74/0.85,"") ->  | AH32: =IF('Input Data'!BF89>25,AH22*AH23*'Input Data'!$BF$74/0.85,"") ->  | AI32: =IF(AI19="Year 27",AI22*AI23*'Input Data'!$BF$74/0.85,"") ->  | AJ32: =IF(AJ19="Year 28",AJ22*AJ23*'Input Data'!$BF$74/0.85,"") ->  | AK32: =IF(AK19="Year 29",AK22*AK23*'Input Data'!$BF$74/0.85,"") ->  | AL32: =IF(AL19="Year 30",AL22*AL23*'Input Data'!$BF$74/0.85,"") ->  | AM32: =IF('Input Data'!BF89>30,AM22*AM23*'Input Data'!$BF$74/0.85,"") -> 
B33: Insurance + Local Taxes | I33: =I5*R10 -> 13.938 | J33: =I5*R10 -> 13.938 | K33: =I5*R10 -> 13.938 | L33: =I5*R10 -> 13.938 | M33: =I5*R10 -> 13.938 | N33: =I5*R10 -> 13.938 | O33: =I5*R10 -> 13.938 | P33: =I5*R10 -> 13.938 | Q33: =I5*R10 -> 13.938 | R33: =I5*R10 -> 13.938 | S33: =I5*R10 -> 13.938 | T33: =I5*R10 -> 13.938 | U33: =I5*R10 -> 13.938 | V33: =I5*R10 -> 13.938 | W33: =I5*R10 -> 13.938 | X33: =I5*R10 -> 13.938 | Y33: =I5*R10 -> 13.938 | Z33: =I5*R10 -> 13.938 | AA33: =I5*R10 -> 13.938 | AB33: =I5*R10 -> 13.938 | AC33: =IF('Input Data'!BF89>20,I5*R10,"") ->  | AD33: =IF(AD19="Year 22",R10*I5,"") ->  | AE33: =IF(AE19="Year 23",I5*R10,"") ->  | AF33: =IF(AF19="Year 24",I5*R10,"") ->  | AG33: =IF(AG19="Year 25",I5*R10,"") ->  | AH33: =IF('Input Data'!BF89>25,I5*R10,"") ->  | AI33: =IF(AI19="Year 27",I5*R10,"") ->  | AJ33: =IF(AJ19="Year 28",I5*R10,"") ->  | AK33: =IF(AK19="Year 29",I5*R10,"") ->  | AL33: =IF(AL19="Year 30",I5*R10,"") ->  | AM33: =IF('Input Data'!BF89>30,I5*R10,"") -> 
B34: CO2 Emissions | I34: ='Input Data'!$BF$33*'Input Data'!$BF$77*I24/1000000 -> 0 | J34: ='Input Data'!$BF$33*'Input Data'!$BF$77*J24/1000000 -> 0 | K34: ='Input Data'!$BF$33*'Input Data'!$BF$77*K24/1000000 -> 0 | L34: ='Input Data'!$BF$33*'Input Data'!$BF$77*L24/1000000 -> 0 | M34: ='Input Data'!$BF$33*'Input Data'!$BF$77*M24/1000000 -> 0 | N34: ='Input Data'!$BF$33*'Input Data'!$BF$77*N24/1000000 -> 0 | O34: ='Input Data'!$BF$33*'Input Data'!$BF$77*O24/1000000 -> 0 | P34: ='Input Data'!$BF$33*'Input Data'!$BF$77*P24/1000000 -> 0 | Q34: ='Input Data'!$BF$33*'Input Data'!$BF$77*Q24/1000000 -> 0 | R34: ='Input Data'!$BF$33*'Input Data'!$BF$77*R24/1000000 -> 0 | S34: ='Input Data'!$BF$33*'Input Data'!$BF$77*S24/1000000 -> 0 | T34: ='Input Data'!$BF$33*'Input Data'!$BF$77*T24/1000000 -> 0 | U34: ='Input Data'!$BF$33*'Input Data'!$BF$77*U24/1000000 -> 0 | V34: ='Input Data'!$BF$33*'Input Data'!$BF$77*V24/1000000 -> 0 | W34: ='Input Data'!$BF$33*'Input Data'!$BF$77*W24/1000000 -> 0 | X34: ='Input Data'!$BF$33*'Input Data'!$BF$77*X24/1000000 -> 0 | Y34: ='Input Data'!$BF$33*'Input Data'!$BF$77*Y24/1000000 -> 0 | Z34: ='Input Data'!$BF$33*'Input Data'!$BF$77*Z24/1000000 -> 0 | AA34: ='Input Data'!$BF$33*'Input Data'!$BF$77*AA24/1000000 -> 0 | AB34: ='Input Data'!$BF$33*'Input Data'!$BF$77*AB24/1000000 -> 0 | AC34: =IF('Input Data'!BF89>20,'Input Data'!$BF$33*'Input Data'!$BF$77*AC24/1000000,"") ->  | AD34: =IF(AD19="Year 22",'Input Data'!$BF$33*'Input Data'!$BF$77*AD24/1000000,"") ->  | AE34: =IF(AE19="Year 23",'Input Data'!$BF$33*'Input Data'!$BF$77*AE24/1000000,"") ->  | AF34: =IF(AF19="Year 24",'Input Data'!$BF$33*'Input Data'!$BF$77*AF24/1000000,"") ->  | AG34: =IF(AG19="Year 25",'Input Data'!$BF$33*'Input Data'!$BF$77*AG24/1000000,"") ->  | AH34: =IF('Input Data'!BF89>25,'Input Data'!$BF$33*'Input Data'!$BF$77*AH24/1000000,"") ->  | AI34: =IF(AI19="Year 27",'Input Data'!$BF$33*'Input Data'!$BF$77*AI24/1000000,"") ->  | AJ34: =IF(AJ19="Year 28",'Input Data'!$BF$33*'Input Data'!$BF$77*AJ24/1000000,"") ->  | AK34: =IF(AK19="Year 29",'Input Data'!$BF$33*'Input Data'!$BF$77*AK24/1000000,"") ->  | AL34: =IF(AL19="Year 30",'Input Data'!$BF$33*'Input Data'!$BF$77*AL24/1000000,"") ->  | AM34: =IF('Input Data'!BF89>30,'Input Data'!$BF$33*'Input Data'!$BF$77*AM24/1000000,"") -> 
B35: Fixed Capital Expenditure | F35: =I10*F25 -> 243.915 | G35: =I10*G25 -> 439.047 | H35: =H25*I10 -> 292.698
B37: Total Cash Flow (yearly) | F37: =SUM(F27:F27)-SUM(F29:F34)-F35 -> -243.915 | G37: -439.047 | H37: -292.698 | I37: 91.07414786 | J37: 111.6144783 | K37: 132.1548087 | L37: 132.1548087 | M37: 132.1548087 | N37: 132.1548087 | O37: 132.1548087 | P37: 132.1548087 | Q37: 132.1548087 | R37: 132.1548087 | S37: 132.1548087 | T37: 132.1548087 | U37: 132.1548087 | V37: 132.1548087 | W37: 132.1548087 | X37: 132.1548087 | Y37: 132.1548087 | Z37: 132.1548087 | AA37: 132.1548087 | AB37: 132.1548087 | AC37: =IF(AC19="Year 21",SUM(AC27:AC27)-SUM(AC29:AC34)-AC35,"") -> 0 | AD37: =IF(AD19="Year 22",SUM(AD27:AD27)-SUM(AD29:AD34)-AD35,"") ->  | AE37: =IF(AE19="Year 23",SUM(AE27:AE27)-SUM(AE29:AE34)-AE35,"") ->  | AF37: =IF(AF19="Year 24",SUM(AF27:AF27)-SUM(AF29:AF34)-AF35,"") ->  | AG37: =IF(AG19="Year 25",SUM(AG27:AG27)-SUM(AG29:AG34)-AG35,"") ->  | AH37: =IF(AH19="Year 26",SUM(AH27:AH27)-SUM(AH29:AH34)-AH35,"") ->  | AI37: =IF(AI19="Year 27",SUM(AI27:AI27)-SUM(AI29:AI34)-AI35,"") ->  | AJ37: =IF(AJ19="Year 28",SUM(AJ27:AJ27)-SUM(AJ29:AJ34)-AJ35,"") ->  | AK37: =IF(AK19="Year 29",SUM(AK27:AK27)-SUM(AK29:AK34)-AK35,"") ->  | AL37: =IF(AL19="Year 30",SUM(AL27:AL27)-SUM(AL29:AL34)-AL35,"") ->  | AM37: =IF(AM19="Year 31",SUM(AM27:AM27)-SUM(AM29:AM34)-AM35,"") -> 
B38: Total Cash Flow (accumulated) | F38: =F37 -> -243.915 | G38: =-1*(ABS(G37)+ABS(F38)) -> -682.962 | H38: =-1*(ABS(H37)+ABS(G38)) -> -975.66 | I38: =H38+I37 -> -884.5858521 | J38: -772.9713738 | K38: -640.8165651 | L38: -508.6617564 | M38: -376.5069476 | N38: -244.3521389 | O38: -112.1973302 | P38: 19.95747857 | Q38: 152.1122873 | R38: 284.267096 | S38: 416.4219048 | T38: 548.5767135 | U38: 680.7315222 | V38: 812.886331 | W38: 945.0411397 | X38: 1077.195948 | Y38: 1209.350757 | Z38: 1341.505566 | AA38: 1473.660375 | AB38: 1605.815183 | AC38: =IF(AC19="Year 21",AB38+AC37,"") -> 1605.815183 | AD38: =IF(AD19="Year 22",AC38+AD37,"") ->  | AE38: =IF(AE19="Year 23",AD38+AE37,"") ->  | AF38: =IF(AF19="Year 24",AE38+AF37,"") ->  | AG38: =IF(AG19="Year 25",AF38+AG37,"") ->  | AH38: =IF(AH19="Year 26",AG38+AH37,"") ->  | AI38: =IF(AI19="Year 27",AH38+AI37,"") ->  | AJ38: =IF(AJ19="Year 28",AI38+AJ37,"") ->  | AK38: =IF(AK19="Year 29",AJ38+AK37,"") ->  | AL38: =IF(AL19="Year 30",AK38+AL37,"") ->  | AM38: =IF(AM19="Year 31",AL38+AM37,"") -> 
B40: Discounted Cash Flow (yearly) | F40: =F38/(1+R9) -> -221.7409091 | G40: =G37/(1+R9)^2 -> -362.8487603 | H40: =H37/(1+R9)^3 -> -219.9083396 | I40: =I37/(1+R9)^4 -> 62.20486842 | J40: =J37/(1+R9)^5 -> 69.30380954 | K40: =K37/(1+R9)^6 -> 74.59794426 | L40: =L37/(1+R9)^7 -> 67.81631297 | M40: =M37/(1+R9)^8 -> 61.65119361 | N40: =N37/(1+R9)^9 -> 56.04653964 | O40: =O37/(1+R9)^10 -> 50.95139967 | P40: =P37/(1+R9)^11 -> 46.31945425 | Q40: =Q37/(1+R9)^12 -> 42.10859477 | R40: =R37/(1+R9)^13 -> 38.2805407 | S40: =S37/(1+R9)^14 -> 34.80049155 | T40: =T37/(1+R9)^15 -> 31.6368105 | U40: =U37/(1+R9)^16 -> 28.76073682 | V40: =V37/(1+R9)^17 -> 26.14612438 | W40: =W37/(1+R9)^18 -> 23.76920398 | X40: =X37/(1+R9)^19 -> 21.60836725 | Y40: =Y37/(1+R9)^20 -> 19.64397023 | Z40: =Z37/(1+R9)^21 -> 17.85815476 | AA40: =AA37/(1+R9)^22 -> 16.23468614 | AB40: =AB37/(1+R9)^23 -> 14.75880558 | AC40: =IF(AC19="Year 21",AC37/(1+R9)^24,"") -> 0 | AD40: =IF(AD19="Year 22",AD37/(1+R9)^25,"") ->  | AE40: =IF(AE19="Year 23",AE37/(1+R9)^26,"") ->  | AF40: =IF(AF19="Year 24",AF37/(1+R9)^27,"") ->  | AG40: =IF(AG19="Year 25",AG37/(1+R9)^28,"") ->  | AH40: =IF(AH19="Year 26",AH37/(1+R9)^29,"") ->  | AI40: =IF(AI19="Year 27",AI37/(1+R9)^30,"") ->  | AJ40: =IF(AJ19="Year 28",AJ37/(1+R9)^31,"") ->  | AK40: =IF(AK19="Year 29",AK37/(1+R9)^32,"") ->  | AL40: =IF(AL19="Year 30",AL37/(1+R9)^33,"") ->  | AM40: =IF(AM19="Year 31",AM37/(1+R9)^34,"") -> 
B41: Discounted Cash Flow (accumulated) | F41: =F40 -> -221.7409091 | G41: =SUM(G40+F41) -> -584.5896694 | H41: -804.498009 | I41: -742.2931406 | J41: -672.9893311 | K41: -598.3913868 | L41: -530.5750738 | M41: -468.9238802 | N41: -412.8773406 | O41: -361.9259409 | P41: -315.6064867 | Q41: -273.4978919 | R41: -235.2173512 | S41: -200.4168596 | T41: -168.7800491 | U41: -140.0193123 | V41: -113.8731879 | W41: -90.10398397 | X41: -68.49561671 | Y41: -48.85164648 | Z41: -30.99349172 | AA41: -14.75880558 | AB41: 2.909672503e-12 | AC41: =IF(AC19="Year 21",SUM(AC40+AB41),"") -> 2.909672503e-12 | AD41: =IF(AD19="Year 22",SUM(AD40+AC41),"") ->  | AE41: =IF(AE19="Year 23",SUM(AE40+AD41),"") ->  | AF41: =IF(AF19="Year 24",SUM(AF40+AE41),"") ->  | AG41: =IF(AG19="Year 25",SUM(AG40+AF41),"") ->  | AH41: =IF(AH19="Year 26",SUM(AH40+AG41),"") ->  | AI41: =IF(AI19="Year 27",SUM(AI40+AH41),"") ->  | AJ41: =IF(AJ19="Year 28",SUM(AJ40+AI41),"") ->  | AK41: =IF(AK19="Year 29",SUM(AK40+AJ41),"") ->  | AL41: =IF(AL19="Year 30",SUM(AL40+AK41),"") ->  | AM41: =IF(AM19="Year 31",SUM(AM40+AL41),"") -> 
AA43: Hidden acc cf | AC43: =SUM(AC40+AB41) -> 2.909672503e-12 | AD43: =IF(AD40="",AC41,SUM(AD40+AC41)) -> 2.909672503e-12 | AE43: =IF(AE40="",AD43,SUM(AE40+AD43)) -> 2.909672503e-12 | AF43: 2.909672503e-12 | AG43: 2.909672503e-12 | AH43: 2.909672503e-12 | AI43: 2.909672503e-12 | AJ43: 2.909672503e-12 | AK43: 2.909672503e-12 | AL43: 2.909672503e-12 | AM43: 2.909672503e-12 | AN43: 2.909672503e-12

Sheet CCGT wo CC
B4: Production | G4: Capital Expenditure | I4: UK£ (million) | K4: Operating Costs | L4: UK£ (million/year) | P4: Revenues
B5: Nat Gas Feedrate | D5: te/h | E5: ='Input Data'!AB27 -> 127.9166667 | G5: Installed cost | I5: ='Input Data'!AB60 -> 388.9 | K5: Fuel Cost | M5: ='Input Data'!AB76 -> 265 | N5: UK£/te | P5: Electricity Price | R5: 0.04788289934 | S5: UK£/kWh
B6: Net power ouput | D6: MW | E6: ='Input Data'!AB23 -> 990.8 | G6: Land purchase, surveys | I6: ='Input Data'!AB65 -> 0.05 | K6: Maintenance | M6: ='Input Data'!AB72 -> 16.6 | N6: UK£/year
G7: Fees | I7: ='Input Data'!AB66 -> 0.1 | K7: CO2 Emissions | M7: ='Input Data'!AB77 -> 0 | N7: UK£/te
G8: Contingencies | I8: ='Input Data'!AB64 -> 0.25 | K8: Labour Cost | N8: UK£/year (million)
K9: Number of operations personnel | N9: ='Input Data'!AB78 -> 40 | P9: Discounted Rate: | R9: ='Input Data'!AB86 -> 0.1
B10: =IF('Input Data'!AB9>0.001,"Performance Data: User Adjusted","") ->  | G10: Total Investment Cost | I10: =I5+(I6*I5)+(I5*I7)+(I5*I8) -> 544.46 | K10: Average salary options personnel | N10: ='Input Data'!AB79 -> 0.05 | P10: Insurance | R10: ='Input Data'!AB81 -> 0.02 | S10: Installed Cost
K11: Admin | N11: ='Input Data'!AB80 -> 0.3
K12: Total Labour Cost | N12: =(N9*N10)*(1+N11) -> 2.6
G13: =IF('Input Data'!AB47>0.001,"Capital and Cost Data: User Adjusted","") ->  | P13: =IF('Input Data'!AB83>0.001,"Revenue Data: User Adjusted","") -> 
K14: =IF('Input Data'!AB70>0.001,"Operating Data: User Adjusted","") -> 
F17: YEAR
B18: CASH FLOW ANALYSIS | F18: =G18-1 -> 2009 | G18: =H18-1 -> 2010 | H18: =I18-1 -> 2011 | I18: ='Input Data'!Y102 -> 2012 | J18: ='Input Data'!Y103 -> 2013 | K18: ='Input Data'!Y104 -> 2014 | L18: ='Input Data'!Y105 -> 2015 | M18: ='Input Data'!Y106 -> 2016 | N18: ='Input Data'!Y107 -> 2017 | O18: ='Input Data'!Y108 -> 2018 | P18: ='Input Data'!Y109 -> 2019 | Q18: ='Input Data'!Y110 -> 2020 | R18: ='Input Data'!Y111 -> 2021 | S18: ='Input Data'!Y112 -> 2022 | T18: ='Input Data'!Y113 -> 2023 | U18: ='Input Data'!Y114 -> 2024 | V18: ='Input Data'!Y115 -> 2025 | W18: ='Input Data'!Y116 -> 2026 | X18: ='Input Data'!Y117 -> 2027 | Y18: ='Input Data'!Y118 -> 2028 | Z18: ='Input Data'!Y119 -> 2029 | AA18: ='Input Data'!Y120 -> 2030 | AB18: ='Input Data'!Y121 -> 2031 | AC18: ='Input Data'!Y122 -> 2032 | AD18: ='Input Data'!Y123 ->  | AE18: ='Input Data'!Y124 ->  | AF18: ='Input Data'!Y125 ->  | AG18: ='Input Data'!Y126 ->  | AH18: ='Input Data'!Y127 ->  | AI18: ='Input Data'!Y128 ->  | AJ18: ='Input Data'!Y129 ->  | AK18: ='Input Data'!Y130 ->  | AL18: ='Input Data'!Y131 ->  | AM18: ='Input Data'!Y132 -> 
B19: UK£ (million) | F19: Year -3 | G19: Year -2 | H19: Year -1 | I19: ='Input Data'!X102 -> Year 1 | J19: ='Input Data'!X103 -> Year 2 | K19: ='Input Data'!X104 -> Year 3 | L19: ='Input Data'!X105 -> Year 4 | M19: ='Input Data'!X106 -> Year 5 | N19: ='Input Data'!X107 -> Year 6 | O19: ='Input Data'!X108 -> Year 7 | P19: ='Input Data'!X109 -> Year 8 | Q19: ='Input Data'!X110 -> Year 9 | R19: ='Input Data'!X111 -> Year 10 | S19: ='Input Data'!X112 -> Year 11 | T19: ='Input Data'!X113 -> Year 12 | U19: ='Input Data'!X114 -> Year 13 | V19: ='Input Data'!X115 -> Year 14 | W19: ='Input Data'!X116 -> Year 15 | X19: ='Input Data'!X117 -> Year 16 | Y19: ='Input Data'!X118 -> Year 17 | Z19: ='Input Data'!X119 -> Year 18 | AA19: ='Input Data'!X120 -> Year 19 | AB19: ='Input Data'!X121 -> Year 20 | AC19: ='Input Data'!X122 -> Year 21 | AD19: ='Input Data'!X123 ->  | AE19: ='Input Data'!X124 ->  | AF19: ='Input Data'!X125 ->  | AG19: ='Input Data'!X126 ->  | AH19: ='Input Data'!X127 ->  | AI19: ='Input Data'!X128 ->  | AJ19: ='Input Data'!X129 ->  | AK19: ='Input Data'!X130 ->  | AL19: ='Input Data'!X131 ->  | AM19: ='Input Data'!X132 -> 
B22: Load factor | I22: ='Input Data'!Z102 -> 1 | J22: ='Input Data'!Z103 -> 1 | K22: ='Input Data'!Z104 -> 1 | L22: ='Input Data'!Z105 -> 1 | M22: ='Input Data'!Z106 -> 1 | N22: ='Input Data'!Z107 -> 1 | O22: ='Input Data'!Z108 -> 1 | P22: ='Input Data'!Z109 -> 1 | Q22: ='Input Data'!Z110 -> 1 | R22: ='Input Data'!Z111 -> 1 | S22: ='Input Data'!Z112 -> 1 | T22: ='Input Data'!Z113 -> 1 | U22: ='Input Data'!Z114 -> 1 | V22: ='Input Data'!Z115 -> 1 | W22: ='Input Data'!Z116 -> 1 | X22: ='Input Data'!Z117 -> 1 | Y22: ='Input Data'!Z118 -> 1 | Z22: ='Input Data'!Z119 -> 1 | AA22: ='Input Data'!Z120 -> 1 | AB22: ='Input Data'!Z121 -> 1 | AC22: =IF('Input Data'!AB89>20,'Input Data'!Z122,"") ->  | AD22: =IF(AD19="Year 22",'Input Data'!Z123,"") ->  | AE22: =IF(AE19="Year 23",'Input Data'!Z124,"") ->  | AF22: =IF(AF19="Year 24",'Input Data'!Z125,"") ->  | AG22: =IF(AG19="Year 25",'Input Data'!Z126,"") ->  | AH22: =IF('Input Data'!AB89>25,'Input Data'!Z127,"") ->  | AI22: =IF(AI19="Year 27",'Input Data'!Z128,"") ->  | AJ22: =IF(AJ19="Year 28",'Input Data'!Z129,"") ->  | AK22: =IF(AK19="Year 29",'Input Data'!Z130,"") ->  | AL22: =IF(AL19="Year 30",'Input Data'!Z131,"") ->  | AM22: =IF('Input Data'!AB89>30,'Input Data'!Z132,"") -> 
B23: Availability | I23: ='Input Data'!AA102 -> 0.65 | J23: ='Input Data'!AA103 -> 0.75 | K23: ='Input Data'!AA104 -> 0.85 | L23: ='Input Data'!AA105 -> 0.85 | M23: ='Input Data'!AA106 -> 0.85 | N23: ='Input Data'!AA107 -> 0.85 | O23: ='Input Data'!AA108 -> 0.85 | P23: ='Input Data'!AA109 -> 0.85 | Q23: ='Input Data'!AA110 -> 0.85 | R23: ='Input Data'!AA111 -> 0.85 | S23: ='Input Data'!AA112 -> 0.85 | T23: ='Input Data'!AA113 -> 0.85 | U23: ='Input Data'!AA114 -> 0.85 | V23: ='Input Data'!AA115 -> 0.85 | W23: ='Input Data'!AA116 -> 0.85 | X23: ='Input Data'!AA117 -> 0.85 | Y23: ='Input Data'!AA118 -> 0.85 | Z23: ='Input Data'!AA119 -> 0.85 | AA23: ='Input Data'!AA120 -> 0.85 | AB23: ='Input Data'!AA121 -> 0.85 | AC23: =IF('Input Data'!AB89>20,'Input Data'!AA122,"") ->  | AD23: =IF(AD19="Year 22",'Input Data'!AA123,"") ->  | AE23: =IF(AE19="Year 23",'Input Data'!AA124,"") ->  | AF23: =IF(AF19="Year 24",'Input Data'!AA125,"") ->  | AG23: =IF(AG19="Year 25",'Input Data'!AA126,"") ->  | AH23: =IF('Input Data'!AB89>25,'Input Data'!AA127,"") ->  | AI23: =IF(AI19="Year 27",'Input Data'!AA128,"") ->  | AJ23: =IF(AJ19="Year 28",'Input Data'!AA129,"") ->  | AK23: =IF(AK19="Year 29",'Input Data'!AA130,"") ->  | AL23: =IF(AL19="Year 30",'Input Data'!AA131,"") ->  | AM23: =IF('Input Data'!AB89>30,'Input Data'!AA132,"") -> 
B24: Equivalent yearly hours | I24: =I22*8760*I23 -> 5694 | J24: =J22*8760*J23 -> 6570 | K24: 7446 | L24: 7446 | M24: 7446 | N24: 7446 | O24: 7446 | P24: 7446 | Q24: 7446 | R24: 7446 | S24: 7446 | T24: 7446 | U24: 7446 | V24: 7446 | W24: 7446 | X24: 7446 | Y24: 7446 | Z24: 7446 | AA24: 7446 | AB24: 7446 | AC24: =IF('Input Data'!AB89>20, AC22*8760*AC23,"") ->  | AD24: =IF(AD19="Year 22",AD22*8760*AD23,"") ->  | AE24: =IF(AE19="Year 23",AE22*8760*AE23,"") ->  | AF24: =IF(AF19="Year 24",AF22*8760*AF23,"") ->  | AG24: =IF(AG19="Year 25",AG22*8760*AG23,"") ->  | AH24: =IF('Input Data'!AB89>25,AH22*8760*AH23,"") ->  | AI24: =IF(AI19="Year 27",AI22*8760*AI23,"") ->  | AJ24: =IF(AJ19="Year 28",AJ22*8760*AJ23,"") ->  | AK24: =IF(AK19="Year 29",AK22*8760*AK23,"") ->  | AL24: =IF(AL19="Year 30",AL22*8760*AL23,"") ->  | AM24: =IF('Input Data'!AB89>30,AM22*8760*AM23,"") -> 
B25: Expenditure factor | F25: ='Input Data'!AB96 -> 0.25 | G25: ='Input Data'!AB97 -> 0.45 | H25: ='Input Data'!AB98 -> 0.3
B26: Revenues
B27: Electricity | I27: =$E$6*I24*$R$5/1000 -> 270.1368927 | J27: 311.6964147 | K27: 353.2559366 | L27: 353.2559366 | M27: 353.2559366 | N27: 353.2559366 | O27: 353.2559366 | P27: 353.2559366 | Q27: 353.2559366 | R27: 353.2559366 | S27: 353.2559366 | T27: 353.2559366 | U27: 353.2559366 | V27: 353.2559366 | W27: 353.2559366 | X27: 353.2559366 | Y27: 353.2559366 | Z27: 353.2559366 | AA27: 353.2559366 | AB27: 353.2559366 | AC27: =IF('Input Data'!AB89>20,$E$6*AC24*$R$5/1000,"") ->  | AD27: =IF(AD19="Year 22",$E$6*AD24*$R$5/1000,"") ->  | AE27: =IF(AE19="Year 23",$E$6*AE24*$R$5/1000,"") ->  | AF27: =IF(AF19="Year 24",$E$6*AF24*$R$5/1000,"") ->  | AG27: =IF(AG19="Year 25",$E$6*AG24*$R$5/1000,"") ->  | AH27: =IF('Input Data'!AB89>25,$E$6*AH24*$R$5/1000,"") ->  | AI27: =IF(AI19="Year 27",$E$6*AI24*$R$5/1000,"") ->  | AJ27: =IF(AJ19="Year 28",$E$6*AJ24*$R$5/1000,"") ->  | AK27: =IF(AK19="Year 29",$E$6*AK24*$R$5/1000,"") ->  | AL27: =IF(AL19="Year 30",$E$6*AL24*$R$5/1000,"") ->  | AM27: =IF('Input Data'!AB89>30,$E$6*AM24*$R$5/1000,"") -> 
B28: Operating costs
B29: Fuel (Natural Gas) | I29: =$M$5*$E$5*I24/1000000 -> 193.0147375 | J29: =$M$5*$E$5*J24/1000000 -> 222.7093125 | K29: 252.4038875 | L29: 252.4038875 | M29: 252.4038875 | N29: 252.4038875 | O29: 252.4038875 | P29: 252.4038875 | Q29: 252.4038875 | R29: 252.4038875 | S29: 252.4038875 | T29: 252.4038875 | U29: 252.4038875 | V29: 252.4038875 | W29: 252.4038875 | X29: 252.4038875 | Y29: 252.4038875 | Z29: 252.4038875 | AA29: 252.4038875 | AB29: 252.4038875 | AC29: =IF('Input Data'!AB89>20,$M$5*$E$5*AC24/1000000,"") ->  | AD29: =IF(AD19="Year 22",$M$5*$E$5*AD24/1000000,"") ->  | AE29: =IF(AE19="Year 23",$M$5*$E$5*AE24/1000000,"") ->  | AF29: =IF(AF19="Year 24",$M$5*$E$5*AF24/1000000,"") ->  | AG29: =IF(AG19="Year 25",$M$5*$E$5*AG24/1000000,"") ->  | AH29: =IF('Input Data'!AB89>25,$M$5*$E$5*AH24/1000000,"") ->  | AI29: =IF(AI19="Year 27",$M$5*$E$5*AI24/1000000,"") ->  | AJ29: =IF(AJ19="Year 28",$M$5*$E$5*AJ24/1000000,"") ->  | AK29: =IF(AK19="Year 29",$M$5*$E$5*AK24/1000000,"") ->  | AL29: =IF(AL19="Year 30",$M$5*$E$5*AL24/1000000,"") ->  | AM29: =IF('Input Data'!AB89>30,$M$5*$E$5*AM24/1000000,"") -> 
B30: Maintenance | I30: =$M$6 -> 16.6 | J30: 16.6 | K30: 16.6 | L30: 16.6 | M30: 16.6 | N30: 16.6 | O30: 16.6 | P30: 16.6 | Q30: 16.6 | R30: 16.6 | S30: 16.6 | T30: 16.6 | U30: 16.6 | V30: 16.6 | W30: 16.6 | X30: 16.6 | Y30: 16.6 | Z30: 16.6 | AA30: 16.6 | AB30: 16.6 | AC30: =IF('Input Data'!AB89>20,$M$6,"") ->  | AD30: =IF(AD19="Year 22",$M$6,"") ->  | AE30: =IF(AE19="Year 23",$M$6,"") ->  | AF30: =IF(AF19="Year 24",$M$6,"") ->  | AG30: =IF(AG19="Year 25",$M$6,"") ->  | AH30: =IF('Input Data'!AB89>25,$M$6,"") ->  | AI30: =IF(AI19="Year 27",$M$6,"") ->  | AJ30: =IF(AJ19="Year 28",$M$6,"") ->  | AK30: =IF(AK19="Year 29",$M$6,"") ->  | AL30: =IF(AL19="Year 30",$M$6,"") ->  | AM30: =IF('Input Data'!AB89>30,$M$6,"") -> 
B31: Labour | I31: =$N$12 -> 2.6 | J31: 2.6 | K31: 2.6 | L31: 2.6 | M31: 2.6 | N31: 2.6 | O31: 2.6 | P31: 2.6 | Q31: 2.6 | R31: 2.6 | S31: 2.6 | T31: 2.6 | U31: 2.6 | V31: 2.6 | W31: 2.6 | X31: 2.6 | Y31: 2.6 | Z31: 2.6 | AA31: 2.6 | AB31: 2.6 | AC31: =IF('Input Data'!AB89>20,$N$12,"") ->  | AD31: =IF(AD19="Year 22",$N$12,"") ->  | AE31: =IF(AE19="Year 23",$N$12,"") ->  | AF31: =IF(AF19="Year 24",$N$12,"") ->  | AG31: =IF(AG19="Year 25",$N$12,"") ->  | AH31: =IF('Input Data'!AB89>25,$N$12,"") ->  | AI31: =IF(AI19="Year 27",$N$12,"") ->  | AJ31: =IF(AJ19="Year 28",$N$12,"") ->  | AK31: =IF(AK19="Year 29",$N$12,"") ->  | AL31: =IF(AL19="Year 30",$N$12,"") ->  | AM31: =IF('Input Data'!AB89>30,$N$12,"") -> 
B32: Chemicals and Consumables | I32: =I22*I23*'Input Data'!$AB$74/0.85 -> 0.0007647058824 | J32: =J22*J23*'Input Data'!$AB$74/0.85 -> 0.0008823529412 | K32: =K22*K23*'Input Data'!$AB$74/0.85 -> 0.001 | L32: =L22*L23*'Input Data'!$AB$74/0.85 -> 0.001 | M32: =M22*M23*'Input Data'!$AB$74/0.85 -> 0.001 | N32: =N22*N23*'Input Data'!$AB$74/0.85 -> 0.001 | O32: =O22*O23*'Input Data'!$AB$74/0.85 -> 0.001 | P32: =P22*P23*'Input Data'!$AB$74/0.85 -> 0.001 | Q32: =Q22*Q23*'Input Data'!$AB$74/0.85 -> 0.001 | R32: =R22*R23*'Input Data'!$AB$74/0.85 -> 0.001 | S32: =S22*S23*'Input Data'!$AB$74/0.85 -> 0.001 | T32: =T22*T23*'Input Data'!$AB$74/0.85 -> 0.001 | U32: =U22*U23*'Input Data'!$AB$74/0.85 -> 0.001 | V32: =V22*V23*'Input Data'!$AB$74/0.85 -> 0.001 | W32: =W22*W23*'Input Data'!$AB$74/0.85 -> 0.001 | X32: =X22*X23*'Input Data'!$AB$74/0.85 -> 0.001 | Y32: =Y22*Y23*'Input Data'!$AB$74/0.85 -> 0.001 | Z32: =Z22*Z23*'Input Data'!$AB$74/0.85 -> 0.001 | AA32: =AA22*AA23*'Input Data'!$AB$74/0.85 -> 0.001 | AB32: =AB22*AB23*'Input Data'!$AB$74/0.85 -> 0.001 | AC32: =IF('Input Data'!AB89>20,AC22*AC23*'Input Data'!$AB$74/0.85,"") ->  | AD32: =IF(AD19="Year 22",AD22*AD23*'Input Data'!$AB$74/0.85,"") ->  | AE32: =IF(AE19="Year 23",AE22*AE23*'Input Data'!$AB$74/0.85,"") ->  | AF32: =IF(AF19="Year 24",AF22*AF23*'Input Data'!$AB$74/0.85,"") ->  | AG32: =IF(AG19="Year 25",AG22*AG23*'Input Data'!$AB$74/0.85,"") ->  | AH32: =IF('Input Data'!AB89>25,AH22*AH23*'Input Data'!$AB$74/0.85,"") ->  | AI32: =IF(AI19="Year 27",AI22*AI23*'Input Data'!$AB$74/0.85,"") ->  | AJ32: =IF(AJ19="Year 28",AJ22*AJ23*'Input Data'!$AB$74/0.85,"") ->  | AK32: =IF(AK19="Year 29",AK22*AK23*'Input Data'!$AB$74/0.85,"") ->  | AL32: =IF(AL19="Year 30",AL22*AL23*'Input Data'!$AB$74/0.85,"") ->  | AM32: =IF('Input Data'!AB89>30,AM22*AM23*'Input Data'!$AB$74/0.85,"") -> 
B33: Insurance + Local Taxes | I33: =I5*R10 -> 7.778 | J33: =I5*R10 -> 7.778 | K33: =I5*R10 -> 7.778 | L33: =I5*R10 -> 7.778 | M33: =I5*R10 -> 7.778 | N33: =I5*R10 -> 7.778 | O33: =I5*R10 -> 7.778 | P33: =I5*R10 -> 7.778 | Q33: =I5*R10 -> 7.778 | R33: =I5*R10 -> 7.778 | S33: =I5*R10 -> 7.778 | T33: =I5*R10 -> 7.778 | U33: =I5*R10 -> 7.778 | V33: =I5*R10 -> 7.778 | W33: =I5*R10 -> 7.778 | X33: =I5*R10 -> 7.778 | Y33: =I5*R10 -> 7.778 | Z33: =I5*R10 -> 7.778 | AA33: =I5*R10 -> 7.778 | AB33: =I5*R10 -> 7.778 | AC33: =IF('Input Data'!AB89>20,I5*R10,"") ->  | AD33: =IF(AD19="Year 22",R10*I5,"") ->  | AE33: =IF(AE19="Year 23",I5*R10,"") ->  | AF33: =IF(AF19="Year 24",I5*R10,"") ->  | AG33: =IF(AG19="Year 25",I5*R10,"") ->  | AH33: =IF('Input Data'!AB89>25,I5*R10,"") ->  | AI33: =IF(AI19="Year 27",I5*R10,"") ->  | AJ33: =IF(AJ19="Year 28",I5*R10,"") ->  | AK33: =IF(AK19="Year 29",I5*R10,"") ->  | AL33: =IF(AL19="Year 30",I5*R10,"") ->  | AM33: =IF('Input Data'!AB89>30,I5*R10,"") -> 
B34: CO2 Emissions | I34: ='Input Data'!$AB$33*'Input Data'!$AB$77*I24/1000000 -> 0 | J34: ='Input Data'!$AB$33*'Input Data'!$AB$77*J24/1000000 -> 0 | K34: ='Input Data'!$AB$33*'Input Data'!$AB$77*K24/1000000 -> 0 | L34: ='Input Data'!$AB$33*'Input Data'!$AB$77*L24/1000000 -> 0 | M34: ='Input Data'!$AB$33*'Input Data'!$AB$77*M24/1000000 -> 0 | N34: ='Input Data'!$AB$33*'Input Data'!$AB$77*N24/1000000 -> 0 | O34: ='Input Data'!$AB$33*'Input Data'!$AB$77*O24/1000000 -> 0 | P34: ='Input Data'!$AB$33*'Input Data'!$AB$77*P24/1000000 -> 0 | Q34: ='Input Data'!$AB$33*'Input Data'!$AB$77*Q24/1000000 -> 0 | R34: ='Input Data'!$AB$33*'Input Data'!$AB$77*R24/1000000 -> 0 | S34: ='Input Data'!$AB$33*'Input Data'!$AB$77*S24/1000000 -> 0 | T34: ='Input Data'!$AB$33*'Input Data'!$AB$77*T24/1000000 -> 0 | U34: ='Input Data'!$AB$33*'Input Data'!$AB$77*U24/1000000 -> 0 | V34: ='Input Data'!$AB$33*'Input Data'!$AB$77*V24/1000000 -> 0 | W34: ='Input Data'!$AB$33*'Input Data'!$AB$77*W24/1000000 -> 0 | X34: ='Input Data'!$AB$33*'Input Data'!$AB$77*X24/1000000 -> 0 | Y34: ='Input Data'!$AB$33*'Input Data'!$AB$77*Y24/1000000 -> 0 | Z34: ='Input Data'!$AB$33*'Input Data'!$AB$77*Z24/1000000 -> 0 | AA34: ='Input Data'!$AB$33*'Input Data'!$AB$77*AA24/1000000 -> 0 | AB34: ='Input Data'!$AB$33*'Input Data'!$AB$77*AB24/1000000 -> 0 | AC34: =IF('Input Data'!AB89>20,'Input Data'!$AB$33*'Input Data'!$AB$77*AC24/1000000,"") ->  | AD34: =IF(AD19="Year 22",'Input Data'!$AB$33*'Input Data'!$AB$77*AD24/1000000,"") ->  | AE34: =IF(AE19="Year 23",'Input Data'!$AB$33*'Input Data'!$AB$77*AE24/1000000,"") ->  | AF34: =IF(AF19="Year 24",'Input Data'!$AB$33*'Input Data'!$AB$77*AF24/1000000,"") ->  | AG34: =IF(AG19="Year 25",'Input Data'!$AB$33*'Input Data'!$AB$77*AG24/1000000,"") ->  | AH34: =IF('Input Data'!AB89>25,'Input Data'!$AB$33*'Input Data'!$AB$77*AH24/1000000,"") ->  | AI34: =IF(AI19="Year 27",'Input Data'!$AB$33*'Input Data'!$AB$77*AI24/1000000,"") ->  | AJ34: =IF(AJ19="Year 28",'Input Data'!$AB$33*'Input Data'!$AB$77*AJ24/1000000,"") ->  | AK34: =IF(AK19="Year 29",'Input Data'!$AB$33*'Input Data'!$AB$77*AK24/1000000,"") ->  | AL34: =IF(AL19="Year 30",'Input Data'!$AB$33*'Input Data'!$AB$77*AL24/1000000,"") ->  | AM34: =IF('Input Data'!AB89>30,'Input Data'!$AB$33*'Input Data'!$AB$77*AM24/1000000,"") -> 
B35: Fixed Capital Expenditure | F35: =I10*F25 -> 136.115 | G35: =I10*G25 -> 245.007 | H35: =H25*I10 -> 163.338
B37: Total Cash Flow (yearly) | F37: =SUM(F27:F27)-SUM(F29:F34)-F35 -> -136.115 | G37: -245.007 | H37: -163.338 | I37: 50.14339052 | J37: 62.00821983 | K37: 73.87304914 | L37: 73.87304914 | M37: 73.87304914 | N37: 73.87304914 | O37: 73.87304914 | P37: 73.87304914 | Q37: 73.87304914 | R37: 73.87304914 | S37: 73.87304914 | T37: 73.87304914 | U37: 73.87304914 | V37: 73.87304914 | W37: 73.87304914 | X37: 73.87304914 | Y37: 73.87304914 | Z37: 73.87304914 | AA37: 73.87304914 | AB37: 73.87304914 | AC37: =IF(AC19="Year 21",SUM(AC27:AC27)-SUM(AC29:AC34)-AC35,"") -> 0 | AD37: =IF(AD19="Year 22",SUM(AD27:AD27)-SUM(AD29:AD34)-AD35,"") ->  | AE37: =IF(AE19="Year 23",SUM(AE27:AE27)-SUM(AE29:AE34)-AE35,"") ->  | AF37: =IF(AF19="Year 24",SUM(AF27:AF27)-SUM(AF29:AF34)-AF35,"") ->  | AG37: =IF(AG19="Year 25",SUM(AG27:AG27)-SUM(AG29:AG34)-AG35,"") ->  | AH37: =IF(AH19="Year 26",SUM(AH27:AH27)-SUM(AH29:AH34)-AH35,"") ->  | AI37: =IF(AI19="Year 27",SUM(AI27:AI27)-SUM(AI29:AI34)-AI35,"") ->  | AJ37: =IF(AJ19="Year 28",SUM(AJ27:AJ27)-SUM(AJ29:AJ34)-AJ35,"") ->  | AK37: =IF(AK19="Year 29",SUM(AK27:AK27)-SUM(AK29:AK34)-AK35,"") ->  | AL37: =IF(AL19="Year 30",SUM(AL27:AL27)-SUM(AL29:AL34)-AL35,"") ->  | AM37: =IF(AM19="Year 31",SUM(AM27:AM27)-SUM(AM29:AM34)-AM35,"") -> 
B38: Total Cash Flow (accumulated) | F38: =F37 -> -136.115 | G38: =-1*(ABS(G37)+ABS(F38)) -> -381.122 | H38: =-1*(ABS(H37)+ABS(G38)) -> -544.46 | I38: =H38+I37 -> -494.3166095 | J38: -432.3083897 | K38: -358.4353405 | L38: -284.5622914 | M38: -210.6892423 | N38: -136.8161931 | O38: -62.94314398 | P38: 10.92990515 | Q38: 84.80295429 | R38: 158.6760034 | S38: 232.5490526 | T38: 306.4221017 | U38: 380.2951508 | V38: 454.1682 | W38: 528.0412491 | X38: 601.9142982 | Y38: 675.7873474 | Z38: 749.6603965 | AA38: 823.5334456 | AB38: 897.4064948 | AC38: =IF(AC19="Year 21",AB38+AC37,"") -> 897.4064948 | AD38: =IF(AD19="Year 22",AC38+AD37,"") ->  | AE38: =IF(AE19="Year 23",AD38+AE37,"") ->  | AF38: =IF(AF19="Year 24",AE38+AF37,"") ->  | AG38: =IF(AG19="Year 25",AF38+AG37,"") ->  | AH38: =IF(AH19="Year 26",AG38+AH37,"") ->  | AI38: =IF(AI19="Year 27",AH38+AI37,"") ->  | AJ38: =IF(AJ19="Year 28",AI38+AJ37,"") ->  | AK38: =IF(AK19="Year 29",AJ38+AK37,"") ->  | AL38: =IF(AL19="Year 30",AK38+AL37,"") ->  | AM38: =IF(AM19="Year 31",AL38+AM37,"") -> 
B40: Discounted Cash Flow (yearly) | F40: =F38/(1+R9) -> -123.7409091 | G40: =G37/(1+R9)^2 -> -202.485124 | H40: =H37/(1+R9)^3 -> -122.7182569 | I40: =I37/(1+R9)^4 -> 34.24861042 | J40: =J37/(1+R9)^5 -> 38.50222589 | K40: =K37/(1+R9)^6 -> 41.69941037 | L40: =L37/(1+R9)^7 -> 37.90855488 | M40: =M37/(1+R9)^8 -> 34.46232262 | N40: =N37/(1+R9)^9 -> 31.3293842 | O40: =O37/(1+R9)^10 -> 28.48125836 | P40: =P37/(1+R9)^11 -> 25.89205306 | Q40: =Q37/(1+R9)^12 -> 23.53823005 | R40: =R37/(1+R9)^13 -> 21.39839096 | S40: =S37/(1+R9)^14 -> 19.45308269 | T40: =T37/(1+R9)^15 -> 17.68462063 | U40: =U37/(1+R9)^16 -> 16.07692784 | V40: =V37/(1+R9)^17 -> 14.61538895 | W40: =W37/(1+R9)^18 -> 13.28671722 | X40: =X37/(1+R9)^19 -> 12.07883384 | Y40: =Y37/(1+R9)^20 -> 10.98075804 | Z40: =Z37/(1+R9)^21 -> 9.982507306 | AA40: =AA37/(1+R9)^22 -> 9.075006642 | AB40: =AB37/(1+R9)^23 -> 8.250006038 | AC40: =IF(AC19="Year 21",AC37/(1+R9)^24,"") -> 0 | AD40: =IF(AD19="Year 22",AD37/(1+R9)^25,"") ->  | AE40: =IF(AE19="Year 23",AE37/(1+R9)^26,"") ->  | AF40: =IF(AF19="Year 24",AF37/(1+R9)^27,"") ->  | AG40: =IF(AG19="Year 25",AG37/(1+R9)^28,"") ->  | AH40: =IF(AH19="Year 26",AH37/(1+R9)^29,"") ->  | AI40: =IF(AI19="Year 27",AI37/(1+R9)^30,"") ->  | AJ40: =IF(AJ19="Year 28",AJ37/(1+R9)^31,"") ->  | AK40: =IF(AK19="Year 29",AK37/(1+R9)^32,"") ->  | AL40: =IF(AL19="Year 30",AL37/(1+R9)^33,"") ->  | AM40: =IF(AM19="Year 31",AM37/(1+R9)^34,"") -> 
B41: Discounted Cash Flow (accumulated) | F41: =F40 -> -123.7409091 | G41: =SUM(G40+F41) -> -326.2260331 | H41: =SUM(H40+G41) -> -448.94429 | I41: =SUM(I40+H41) -> -414.6956796 | J41: =SUM(J40+I41) -> -376.1934537 | K41: -334.4940433 | L41: -296.5854884 | M41: -262.1231658 | N41: -230.7937816 | O41: -202.3125233 | P41: -176.4204702 | Q41: -152.8822401 | R41: -131.4838492 | S41: -112.0307665 | T41: -94.34614588 | U41: -78.26921803 | V41: -63.65382909 | W41: -50.36711186 | X41: -38.28827802 | Y41: -27.30751999 | Z41: -17.32501268 | AA41: -8.250006038 | AB41: 1.065814104e-13 | AC41: =IF(AC19="Year 21",SUM(AC40+AB41),"") -> 1.065814104e-13 | AD41: =IF(AD19="Year 22",SUM(AD40+AC41),"") ->  | AE41: =IF(AE19="Year 23",SUM(AE40+AD41),"") ->  | AF41: =IF(AF19="Year 24",SUM(AF40+AE41),"") ->  | AG41: =IF(AG19="Year 25",SUM(AG40+AF41),"") ->  | AH41: =IF(AH19="Year 26",SUM(AH40+AG41),"") ->  | AI41: =IF(AI19="Year 27",SUM(AI40+AH41),"") ->  | AJ41: =IF(AJ19="Year 28",SUM(AJ40+AI41),"") ->  | AK41: =IF(AK19="Year 29",SUM(AK40+AJ41),"") ->  | AL41: =IF(AL19="Year 30",SUM(AL40+AK41),"") ->  | AM41: =IF(AM19="Year 31",SUM(AM40+AL41),"") -> 
AA43: Hidden acc cf | AC43: =SUM(AC40+AB41) -> 1.065814104e-13 | AD43: =IF(AD40="",AC41,SUM(AD40+AC41)) -> 1.065814104e-13 | AE43: =IF(AE40="",AD43,SUM(AE40+AD43)) -> 1.065814104e-13 | AF43: =IF(AF40="",AE43,SUM(AF40+AE43)) -> 1.065814104e-13 | AG43: =IF(AG40="",AF43,SUM(AG40+AF43)) -> 1.065814104e-13 | AH43: 1.065814104e-13 | AI43: 1.065814104e-13 | AJ43: 1.065814104e-13 | AK43: 1.065814104e-13 | AL43: 1.065814104e-13 | AM43: 1.065814104e-13 | AN43: 1.065814104e-13

Sheet USCPC w CC
B4: Production | G4: Capital Expenditure | I4: UK£ (million) | K4: Operating Costs | L4: UK£ (million/year) | P4: Revenues
B5: Coal Feedrate | D5: te/h | E5: ='Input Data'!AI26 -> 256.7916667 | G5: Installed cost | I5: ='Input Data'!AI60 -> 1148.2 | K5: Fuel Cost | M5: ='Input Data'!AI71 -> 65 | N5: UK£/te | P5: Electricity Price | R5: 0.0873131942 | S5: UK£/kWh
B6: Net Power Ouput | D6: MW | E6: ='Input Data'!AI23 -> 626.7 | G6: Land purchase, surveys | I6: ='Input Data'!AI65 -> 0.05 | K6: Maintenance | M6: ='Input Data'!AI72 -> 40.1 | N6: UK£/year
G7: Fees | I7: ='Input Data'!AI66 -> 0.1 | K7: CO2 Emissions | M7: ='Input Data'!AI77 -> 0 | N7: UK£/te
G8: Contingencies | I8: ='Input Data'!AI64 -> 0.25 | K8: Labour Cost | N8: UK£/year (million)
K9: Number of operations personnel | N9: ='Input Data'!AI78 -> 115 | P9: Discounted Rate: | R9: ='Input Data'!AI86 -> 0.1
B10: =IF('Input Data'!AI9>0.001,"Performance Data: User Adjusted","") ->  | G10: Total Investment Cost | I10: =I5+(I6*I5)+(I5*I7)+(I5*I8) -> 1607.48 | K10: Average salary options personnel | N10: ='Input Data'!AI79 -> 0.05 | P10: Insurance | R10: ='Input Data'!AI81 -> 0.02 | S10: Installed Cost
K11: Admin | N11: ='Input Data'!AI80 -> 0.3
K12: Total Labour Cost | N12: =(N9*N10)*(1+N11) -> 7.475
G13: =IF('Input Data'!AI47>0.001,"Capital and Cost Data: User Adjusted","") ->  | P13: =IF('Input Data'!AI83>0.001,"Revenue Data: User Adjusted","") -> 
K14: =IF('Input Data'!AI70>0.001,"Operating Data: User Adjusted","") -> 
F17: YEAR
B18: CASH FLOW ANALYSIS | F18: =G18-1 -> 2009 | G18: =H18-1 -> 2010 | H18: =I18-1 -> 2011 | I18: ='Input Data'!AF102 -> 2012 | J18: ='Input Data'!AF103 -> 2013 | K18: ='Input Data'!AF104 -> 2014 | L18: ='Input Data'!AF105 -> 2015 | M18: ='Input Data'!AF106 -> 2016 | N18: ='Input Data'!AF107 -> 2017 | O18: ='Input Data'!AF108 -> 2018 | P18: ='Input Data'!AF109 -> 2019 | Q18: ='Input Data'!AF110 -> 2020 | R18: ='Input Data'!AF111 -> 2021 | S18: ='Input Data'!AF112 -> 2022 | T18: ='Input Data'!AF113 -> 2023 | U18: ='Input Data'!AF114 -> 2024 | V18: ='Input Data'!AF115 -> 2025 | W18: ='Input Data'!AF116 -> 2026 | X18: ='Input Data'!AF117 -> 2027 | Y18: ='Input Data'!AF118 -> 2028 | Z18: ='Input Data'!AF119 -> 2029 | AA18: ='Input Data'!AF120 -> 2030 | AB18: ='Input Data'!AF121 -> 2031 | AC18: ='Input Data'!AF122 -> 2032 | AD18: ='Input Data'!AF123 -> 2033 | AE18: ='Input Data'!AF124 -> 2034 | AF18: ='Input Data'!AF125 -> 2035 | AG18: ='Input Data'!AF126 -> 2036 | AH18: ='Input Data'!AF127 -> 2037 | AI18: ='Input Data'!AF128 -> 2038 | AJ18: ='Input Data'!AF129 -> 2039 | AK18: ='Input Data'!AF130 -> 2040 | AL18: ='Input Data'!AF131 -> 2041 | AM18: ='Input Data'!AF132 -> 2042
B19: UK£ (million) | F19: Year -3 | G19: Year -2 | H19: Year -1 | I19: ='Input Data'!AE102 -> Year 1 | J19: ='Input Data'!AE103 -> Year 2 | K19: ='Input Data'!AE104 -> Year 3 | L19: ='Input Data'!AE105 -> Year 4 | M19: ='Input Data'!AE106 -> Year 5 | N19: ='Input Data'!AE107 -> Year 6 | O19: ='Input Data'!AE108 -> Year 7 | P19: ='Input Data'!AE109 -> Year 8 | Q19: ='Input Data'!AE110 -> Year 9 | R19: ='Input Data'!AE111 -> Year 10 | S19: ='Input Data'!AE112 -> Year 11 | T19: ='Input Data'!AE113 -> Year 12 | U19: ='Input Data'!AE114 -> Year 13 | V19: ='Input Data'!AE115 -> Year 14 | W19: ='Input Data'!AE116 -> Year 15 | X19: ='Input Data'!AE117 -> Year 16 | Y19: ='Input Data'!AE118 -> Year 17 | Z19: ='Input Data'!AE119 -> Year 18 | AA19: ='Input Data'!AE120 -> Year 19 | AB19: ='Input Data'!AE121 -> Year 20 | AC19: ='Input Data'!AE122 -> Year 21 | AD19: ='Input Data'!AE123 -> Year 22 | AE19: ='Input Data'!AE124 -> Year 23 | AF19: ='Input Data'!AE125 -> Year 24 | AG19: ='Input Data'!AE126 -> Year 25 | AH19: ='Input Data'!AE127 -> Year 26 | AI19: ='Input Data'!AE128 -> Year 27 | AJ19: ='Input Data'!AE129 -> Year 28 | AK19: ='Input Data'!AE130 -> Year 29 | AL19: ='Input Data'!AE131 -> Year 30 | AM19: ='Input Data'!AE132 -> Year 31
B22: Load factor | I22: ='Input Data'!AG102 -> 1 | J22: ='Input Data'!AG103 -> 1 | K22: ='Input Data'!AG104 -> 1 | L22: ='Input Data'!AG105 -> 1 | M22: ='Input Data'!AG106 -> 1 | N22: ='Input Data'!AG107 -> 1 | O22: ='Input Data'!AG108 -> 1 | P22: ='Input Data'!AG109 -> 1 | Q22: ='Input Data'!AG110 -> 1 | R22: ='Input Data'!AG111 -> 1 | S22: ='Input Data'!AG112 -> 1 | T22: ='Input Data'!AG113 -> 1 | U22: ='Input Data'!AG114 -> 1 | V22: ='Input Data'!AG115 -> 1 | W22: ='Input Data'!AG116 -> 1 | X22: ='Input Data'!AG117 -> 1 | Y22: ='Input Data'!AG118 -> 1 | Z22: ='Input Data'!AG119 -> 1 | AA22: ='Input Data'!AG120 -> 1 | AB22: ='Input Data'!AG121 -> 1 | AC22: =IF('Input Data'!AI89>20,'Input Data'!AG122,"") -> 1 | AD22: =IF(AD19="Year 22",'Input Data'!AG123,"") -> 1 | AE22: =IF(AE19="Year 23",'Input Data'!AG124,"") -> 1 | AF22: =IF(AF19="Year 24",'Input Data'!AG125,"") -> 1 | AG22: =IF(AG19="Year 25",'Input Data'!AG126,"") -> 1 | AH22: =IF('Input Data'!AI89>25,'Input Data'!AG127,"") -> 1 | AI22: =IF(AI19="Year 27",'Input Data'!AG128,"") -> 1 | AJ22: =IF(AJ19="Year 28",'Input Data'!AG129,"") -> 1 | AK22: =IF(AK19="Year 29",'Input Data'!AG130,"") -> 1 | AL22: =IF(AL19="Year 30",'Input Data'!AG131,"") -> 1 | AM22: =IF('Input Data'!AI89>30,'Input Data'!AG132,"") -> 
B23: Availability | I23: ='Input Data'!AH102 -> 0.65 | J23: ='Input Data'!AH103 -> 0.75 | K23: ='Input Data'!AH104 -> 0.85 | L23: ='Input Data'!AH105 -> 0.85 | M23: ='Input Data'!AH106 -> 0.85 | N23: ='Input Data'!AH107 -> 0.85 | O23: ='Input Data'!AH108 -> 0.85 | P23: ='Input Data'!AH109 -> 0.85 | Q23: ='Input Data'!AH110 -> 0.85 | R23: ='Input Data'!AH111 -> 0.85 | S23: ='Input Data'!AH112 -> 0.85 | T23: ='Input Data'!AH113 -> 0.85 | U23: ='Input Data'!AH114 -> 0.85 | V23: ='Input Data'!AH115 -> 0.85 | W23: ='Input Data'!AH116 -> 0.85 | X23: ='Input Data'!AH117 -> 0.85 | Y23: ='Input Data'!AH118 -> 0.85 | Z23: ='Input Data'!AH119 -> 0.85 | AA23: ='Input Data'!AH120 -> 0.85 | AB23: ='Input Data'!AH121 -> 0.85 | AC23: =IF('Input Data'!AI89>20,'Input Data'!AH122,"") -> 0.85 | AD23: =IF(AD19="Year 22",'Input Data'!AH123,"") -> 0.85 | AE23: =IF(AE19="Year 23",'Input Data'!AH124,"") -> 0.85 | AF23: =IF(AF19="Year 24",'Input Data'!AH125,"") -> 0.85 | AG23: =IF(AG19="Year 25",'Input Data'!AH126,"") -> 0.85 | AH23: =IF('Input Data'!AI89>25,'Input Data'!AH127,"") -> 0.85 | AI23: =IF(AI19="Year 27",'Input Data'!AH128,"") -> 0.85 | AJ23: =IF(AJ19="Year 28",'Input Data'!AH129,"") -> 0.85 | AK23: =IF(AK19="Year 29",'Input Data'!AH130,"") -> 0.85 | AL23: =IF(AL19="Year 30",'Input Data'!AH131,"") -> 0.85 | AM23: =IF('Input Data'!AI89>30,'Input Data'!AH132,"") -> 
B24: Equivalent yearly hours | I24: =I22*8760*I23 -> 5694 | J24: 6570 | K24: 7446 | L24: 7446 | M24: 7446 | N24: 7446 | O24: 7446 | P24: 7446 | Q24: 7446 | R24: 7446 | S24: 7446 | T24: 7446 | U24: 7446 | V24: 7446 | W24: 7446 | X24: 7446 | Y24: 7446 | Z24: 7446 | AA24: =AA22*8760*AA23 -> 7446 | AB24: =AB22*8760*AB23 -> 7446 | AC24: =IF('Input Data'!AI89>20, AC22*8760*AC23,"") -> 7446 | AD24: =IF(AD19="Year 22",AD22*8760*AD23,"") -> 7446 | AE24: =IF(AE19="Year 23",AE22*8760*AE23,"") -> 7446 | AF24: =IF(AF19="Year 24",AF22*8760*AF23,"") -> 7446 | AG24: =IF(AG19="Year 25",AG22*8760*AG23,"") -> 7446 | AH24: =IF('Input Data'!AI89>25,AH22*8760*AH23,"") -> 7446 | AI24: =IF(AI19="Year 27",AI22*8760*AI23,"") -> 7446 | AJ24: =IF(AJ19="Year 28",AJ22*8760*AJ23,"") -> 7446 | AK24: =IF(AK19="Year 29",AK22*8760*AK23,"") -> 7446 | AL24: =IF(AL19="Year 30",AL22*8760*AL23,"") -> 7446 | AM24: =IF('Input Data'!AI89>30,AM22*8760*AM23,"") -> 
B25: Expenditure factor | F25: ='Input Data'!AI96 -> 0.25 | G25: ='Input Data'!AI97 -> 0.45 | H25: ='Input Data'!AI98 -> 0.3
B26: Revenues
B27: Electricity | I27: =$E$6*I24*$R$5/1000 -> 311.5710041 | J27: =$E$6*J24*$R$5/1000 -> 359.5050047 | K27: 407.4390054 | L27: 407.4390054 | M27: 407.4390054 | N27: 407.4390054 | O27: 407.4390054 | P27: 407.4390054 | Q27: 407.4390054 | R27: 407.4390054 | S27: 407.4390054 | T27: 407.4390054 | U27: 407.4390054 | V27: 407.4390054 | W27: 407.4390054 | X27: 407.4390054 | Y27: 407.4390054 | Z27: 407.4390054 | AA27: =$E$6*AA24*$R$5/1000 -> 407.4390054 | AB27: =$E$6*AB24*$R$5/1000 -> 407.4390054 | AC27: =IF('Input Data'!AI89>20,$E$6*AC24*$R$5/1000,"") -> 407.4390054 | AD27: =IF(AD19="Year 22",$E$6*AD24*$R$5/1000,"") -> 407.4390054 | AE27: =IF(AE19="Year 23",$E$6*AE24*$R$5/1000,"") -> 407.4390054 | AF27: =IF(AF19="Year 24",$E$6*AF24*$R$5/1000,"") -> 407.4390054 | AG27: =IF(AG19="Year 25",$E$6*AG24*$R$5/1000,"") -> 407.4390054 | AH27: =IF('Input Data'!AI89>25,$E$6*AH24*$R$5/1000,"") -> 407.4390054 | AI27: =IF(AI19="Year 27",$E$6*AI24*$R$5/1000,"") -> 407.4390054 | AJ27: =IF(AJ19="Year 28",$E$6*AJ24*$R$5/1000,"") -> 407.4390054 | AK27: =IF(AK19="Year 29",$E$6*AK24*$R$5/1000,"") -> 407.4390054 | AL27: =IF(AL19="Year 30",$E$6*AL24*$R$5/1000,"") -> 407.4390054 | AM27: =IF('Input Data'!AI89>30,$E$6*AM24*$R$5/1000,"") -> 
B28: Operating costs
B29: Fuel (Coal) | I29: =$M$5*$E$5*I24/1000000 -> 95.04116375 | J29: 109.6628813 | K29: 124.2845988 | L29: 124.2845988 | M29: 124.2845988 | N29: 124.2845988 | O29: 124.2845988 | P29: 124.2845988 | Q29: 124.2845988 | R29: 124.2845988 | S29: 124.2845988 | T29: 124.2845988 | U29: 124.2845988 | V29: 124.2845988 | W29: 124.2845988 | X29: 124.2845988 | Y29: 124.2845988 | Z29: 124.2845988 | AA29: 124.2845988 | AB29: =$M$5*$E$5*AB24/1000000 -> 124.2845988 | AC29: =IF('Input Data'!AI89>20,$M$5*$E$5*AC24/1000000,"") -> 124.2845988 | AD29: =IF(AD19="Year 22",$M$5*$E$5*AD24/1000000,"") -> 124.2845988 | AE29: =IF(AE19="Year 23",$M$5*$E$5*AE24/1000000,"") -> 124.2845988 | AF29: =IF(AF19="Year 24",$M$5*$E$5*AF24/1000000,"") -> 124.2845988 | AG29: =IF(AG19="Year 25",$M$5*$E$5*AG24/1000000,"") -> 124.2845988 | AH29: =IF('Input Data'!AI89>25,$M$5*$E$5*AH24/1000000,"") -> 124.2845988 | AI29: =IF(AI19="Year 27",$M$5*$E$5*AI24/1000000,"") -> 124.2845988 | AJ29: =IF(AJ19="Year 28",$M$5*$E$5*AJ24/1000000,"") -> 124.2845988 | AK29: =IF(AK19="Year 29",$M$5*$E$5*AK24/1000000,"") -> 124.2845988 | AL29: =IF(AL19="Year 30",$M$5*$E$5*AL24/1000000,"") -> 124.2845988 | AM29: =IF('Input Data'!AI89>30,$M$5*$E$5*AM24/1000000,"") -> 
B30: Maintenance | I30: =$M$6 -> 40.1 | J30: 40.1 | K30: 40.1 | L30: 40.1 | M30: 40.1 | N30: 40.1 | O30: 40.1 | P30: 40.1 | Q30: 40.1 | R30: 40.1 | S30: 40.1 | T30: 40.1 | U30: 40.1 | V30: 40.1 | W30: 40.1 | X30: 40.1 | Y30: 40.1 | Z30: 40.1 | AA30: 40.1 | AB30: 40.1 | AC30: =IF('Input Data'!AI89>20,$M$6,"") -> 40.1 | AD30: =IF(AD19="Year 22",$M$6,"") -> 40.1 | AE30: =IF(AE19="Year 23",$M$6,"") -> 40.1 | AF30: =IF(AF19="Year 24",$M$6,"") -> 40.1 | AG30: =IF(AG19="Year 25",$M$6,"") -> 40.1 | AH30: =IF('Input Data'!AI89>25,$M$6,"") -> 40.1 | AI30: =IF(AI19="Year 27",$M$6,"") -> 40.1 | AJ30: =IF(AJ19="Year 28",$M$6,"") -> 40.1 | AK30: =IF(AK19="Year 29",$M$6,"") -> 40.1 | AL30: =IF(AL19="Year 30",$M$6,"") -> 40.1 | AM30: =IF('Input Data'!AI89>30,$M$6,"") -> 
B31: Labour | I31: =$N$12 -> 7.475 | J31: 7.475 | K31: 7.475 | L31: 7.475 | M31: 7.475 | N31: 7.475 | O31: 7.475 | P31: 7.475 | Q31: 7.475 | R31: 7.475 | S31: 7.475 | T31: 7.475 | U31: 7.475 | V31: 7.475 | W31: 7.475 | X31: 7.475 | Y31: 7.475 | Z31: 7.475 | AA31: 7.475 | AB31: 7.475 | AC31: =IF('Input Data'!AI89>20,$N$12,"") -> 7.475 | AD31: =IF(AD19="Year 22",$N$12,"") -> 7.475 | AE31: =IF(AE19="Year 23",$N$12,"") -> 7.475 | AF31: =IF(AF19="Year 24",$N$12,"") -> 7.475 | AG31: =IF(AG19="Year 25",$N$12,"") -> 7.475 | AH31: =IF('Input Data'!AI89>25,$N$12,"") -> 7.475 | AI31: =IF(AI19="Year 27",$N$12,"") -> 7.475 | AJ31: =IF(AJ19="Year 28",$N$12,"") -> 7.475 | AK31: =IF(AK19="Year 29",$N$12,"") -> 7.475 | AL31: =IF(AL19="Year 30",$N$12,"") -> 7.475 | AM31: =IF('Input Data'!AI89>30,$N$12,"") -> 
B32: Chemicals and Consumables | I32: =I22*I23*'Input Data'!$AI$74/0.85 -> 11.62352941 | J32: =J22*J23*'Input Data'!$AI$74/0.85 -> 13.41176471 | K32: =K22*K23*'Input Data'!$AI$74/0.85 -> 15.2 | L32: =L22*L23*'Input Data'!$AI$74/0.85 -> 15.2 | M32: =M22*M23*'Input Data'!$AI$74/0.85 -> 15.2 | N32: =N22*N23*'Input Data'!$AI$74/0.85 -> 15.2 | O32: =O22*O23*'Input Data'!$AI$74/0.85 -> 15.2 | P32: =P22*P23*'Input Data'!$AI$74/0.85 -> 15.2 | Q32: =Q22*Q23*'Input Data'!$AI$74/0.85 -> 15.2 | R32: =R22*R23*'Input Data'!$AI$74/0.85 -> 15.2 | S32: =S22*S23*'Input Data'!$AI$74/0.85 -> 15.2 | T32: =T22*T23*'Input Data'!$AI$74/0.85 -> 15.2 | U32: =U22*U23*'Input Data'!$AI$74/0.85 -> 15.2 | V32: =V22*V23*'Input Data'!$AI$74/0.85 -> 15.2 | W32: =W22*W23*'Input Data'!$AI$74/0.85 -> 15.2 | X32: =X22*X23*'Input Data'!$AI$74/0.85 -> 15.2 | Y32: =Y22*Y23*'Input Data'!$AI$74/0.85 -> 15.2 | Z32: =Z22*Z23*'Input Data'!$AI$74/0.85 -> 15.2 | AA32: =AA22*AA23*'Input Data'!$AI$74/0.85 -> 15.2 | AB32: =IF(AB19="Year 20",AB22*AB23*'Input Data'!$AI$74/0.85,"") -> 15.2 | AC32: =IF('Input Data'!AI89>20,AC22*AC23*'Input Data'!$AI$74/0.85,"") -> 15.2 | AD32: =IF(AD19="Year 22",AD22*AD23*'Input Data'!$AI$74/0.85,"") -> 15.2 | AE32: =IF(AE19="Year 23",AE22*AE23*'Input Data'!$AI$74/0.85,"") -> 15.2 | AF32: =IF(AF19="Year 24",AF22*AF23*'Input Data'!$AI$74/0.85,"") -> 15.2 | AG32: =IF(AG19="Year 25",AG22*AG23*'Input Data'!$AI$74/0.85,"") -> 15.2 | AH32: =IF('Input Data'!AI89>25,AH22*AH23*'Input Data'!$AI$74/0.85,"") -> 15.2 | AI32: =IF(AI19="Year 27",AI22*AI23*'Input Data'!$AI$74/0.85,"") -> 15.2 | AJ32: =IF(AJ19="Year 28",AJ22*AJ23*'Input Data'!$AI$74/0.85,"") -> 15.2 | AK32: =IF(AK19="Year 29",AK22*AK23*'Input Data'!$AI$74/0.85,"") -> 15.2 | AL32: =IF(AL19="Year 30",AL22*AL23*'Input Data'!$AI$74/0.85,"") -> 15.2 | AM32: =IF('Input Data'!AI89>30,AM22*AM23*'Input Data'!$AI$74/0.85,"") -> 
B33: Waste Disposal | I33: =I24*'Input Data'!$AI$40*'Input Data'!$AI$73/1000000 -> 1.127412 | J33: =J24*'Input Data'!$AI$40*'Input Data'!$AI$73/1000000 -> 1.30086 | K33: =K24*'Input Data'!$AI$40*'Input Data'!$AI$73/1000000 -> 1.474308 | L33: =L24*'Input Data'!$AI$40*'Input Data'!$AI$73/1000000 -> 1.474308 | M33: =M24*'Input Data'!$AI$40*'Input Data'!$AI$73/1000000 -> 1.474308 | N33: =N24*'Input Data'!$AI$40*'Input Data'!$AI$73/1000000 -> 1.474308 | O33: =O24*'Input Data'!$AI$40*'Input Data'!$AI$73/1000000 -> 1.474308 | P33: =P24*'Input Data'!$AI$40*'Input Data'!$AI$73/1000000 -> 1.474308 | Q33: =Q24*'Input Data'!$AI$40*'Input Data'!$AI$73/1000000 -> 1.474308 | R33: =R24*'Input Data'!$AI$40*'Input Data'!$AI$73/1000000 -> 1.474308 | S33: =S24*'Input Data'!$AI$40*'Input Data'!$AI$73/1000000 -> 1.474308 | T33: =T24*'Input Data'!$AI$40*'Input Data'!$AI$73/1000000 -> 1.474308 | U33: =U24*'Input Data'!$AI$40*'Input Data'!$AI$73/1000000 -> 1.474308 | V33: =V24*'Input Data'!$AI$40*'Input Data'!$AI$73/1000000 -> 1.474308 | W33: =W24*'Input Data'!$AI$40*'Input Data'!$AI$73/1000000 -> 1.474308 | X33: =X24*'Input Data'!$AI$40*'Input Data'!$AI$73/1000000 -> 1.474308 | Y33: =Y24*'Input Data'!$AI$40*'Input Data'!$AI$73/1000000 -> 1.474308 | Z33: =Z24*'Input Data'!$AI$40*'Input Data'!$AI$73/1000000 -> 1.474308 | AA33: =AA24*'Input Data'!$AI$40*'Input Data'!$AI$73/1000000 -> 1.474308 | AB33: =IF(AB19="Year 20",AB24*'Input Data'!$AI$40*'Input Data'!$AI$73/1000000,"") -> 1.474308 | AC33: =IF('Input Data'!AI89>20,AC24*'Input Data'!$AI$40*'Input Data'!$AI$73/1000000,"") -> 1.474308 | AD33: =IF(AD19="Year 22",AD24*'Input Data'!$AI$40*'Input Data'!$AI$73/1000000,"") -> 1.474308 | AE33: =IF(AE19="Year 23",AE24*'Input Data'!$AI$40*'Input Data'!$AI$73/1000000,"") -> 1.474308 | AF33: =IF(AF19="Year 24",AF24*'Input Data'!$AI$40*'Input Data'!$AI$73/1000000,"") -> 1.474308 | AG33: =IF(AG19="Year 25",AG24*'Input Data'!$AI$40*'Input Data'!$AI$73/1000000,"") -> 1.474308 | AH33: =IF('Input Data'!AI89>25,AH24*'Input Data'!$AI$40*'Input Data'!$AI$73/1000000,"") -> 1.474308 | AI33: =IF(AI19="Year 27",AI24*'Input Data'!$AI$40*'Input Data'!$AI$73/1000000,"") -> 1.474308 | AJ33: =IF(AJ19="Year 28",AJ24*'Input Data'!$AI$40*'Input Data'!$AI$73/1000000,"") -> 1.474308 | AK33: =IF(AK19="Year 29",AK24*'Input Data'!$AI$40*'Input Data'!$AI$73/1000000,"") -> 1.474308 | AL33: =IF(AL19="Year 30",AL24*'Input Data'!$AI$40*'Input Data'!$AI$73/1000000,"") -> 1.474308 | AM33: =IF('Input Data'!AI89>30,AM24*'Input Data'!$AI$40*'Input Data'!$AI$73/1000000,"") -> 
B34: Insurance + Local Taxes | I34: =I5*R10 -> 22.964 | J34: =I5*R10 -> 22.964 | K34: =I5*R10 -> 22.964 | L34: =I5*R10 -> 22.964 | M34: =I5*R10 -> 22.964 | N34: =I5*R10 -> 22.964 | O34: =I5*R10 -> 22.964 | P34: =I5*R10 -> 22.964 | Q34: =I5*R10 -> 22.964 | R34: =I5*R10 -> 22.964 | S34: =I5*R10 -> 22.964 | T34: =I5*R10 -> 22.964 | U34: =I5*R10 -> 22.964 | V34: =I5*R10 -> 22.964 | W34: =I5*R10 -> 22.964 | X34: =I5*R10 -> 22.964 | Y34: =I5*R10 -> 22.964 | Z34: =I5*R10 -> 22.964 | AA34: =I5*R10 -> 22.964 | AB34: =I5*R10 -> 22.964 | AC34: =IF('Input Data'!AI89>20,I5*R10,"") -> 22.964 | AD34: =IF(AD19="Year 22",R10*I5,"") -> 22.964 | AE34: =IF(AE19="Year 23",I5*R10,"") -> 22.964 | AF34: =IF(AF19="Year 24",I5*R10,"") -> 22.964 | AG34: =IF(AG19="Year 25",I5*R10,"") -> 22.964 | AH34: =IF('Input Data'!AI89>25,I5*R10,"") -> 22.964 | AI34: =IF(AI19="Year 27",I5*R10,"") -> 22.964 | AJ34: =IF(AJ19="Year 28",I5*R10,"") -> 22.964 | AK34: =IF(AK19="Year 29",I5*R10,"") -> 22.964 | AL34: =IF(AL19="Year 30",I5*R10,"") -> 22.964 | AM34: =IF('Input Data'!AI89>30,I5*R10,"") -> 
B35: CO2 Emissions | I35: ='Input Data'!$AI$33*'Input Data'!$AI$77*I24/1000000 -> 0 | J35: ='Input Data'!$AI$33*'Input Data'!$AI$77*J24/1000000 -> 0 | K35: ='Input Data'!$AI$33*'Input Data'!$AI$77*K24/1000000 -> 0 | L35: ='Input Data'!$AI$33*'Input Data'!$AI$77*L24/1000000 -> 0 | M35: ='Input Data'!$AI$33*'Input Data'!$AI$77*M24/1000000 -> 0 | N35: ='Input Data'!$AI$33*'Input Data'!$AI$77*N24/1000000 -> 0 | O35: ='Input Data'!$AI$33*'Input Data'!$AI$77*O24/1000000 -> 0 | P35: ='Input Data'!$AI$33*'Input Data'!$AI$77*P24/1000000 -> 0 | Q35: ='Input Data'!$AI$33*'Input Data'!$AI$77*Q24/1000000 -> 0 | R35: ='Input Data'!$AI$33*'Input Data'!$AI$77*R24/1000000 -> 0 | S35: ='Input Data'!$AI$33*'Input Data'!$AI$77*S24/1000000 -> 0 | T35: ='Input Data'!$AI$33*'Input Data'!$AI$77*T24/1000000 -> 0 | U35: ='Input Data'!$AI$33*'Input Data'!$AI$77*U24/1000000 -> 0 | V35: ='Input Data'!$AI$33*'Input Data'!$AI$77*V24/1000000 -> 0 | W35: ='Input Data'!$AI$33*'Input Data'!$AI$77*W24/1000000 -> 0 | X35: ='Input Data'!$AI$33*'Input Data'!$AI$77*X24/1000000 -> 0 | Y35: ='Input Data'!$AI$33*'Input Data'!$AI$77*Y24/1000000 -> 0 | Z35: ='Input Data'!$AI$33*'Input Data'!$AI$77*Z24/1000000 -> 0 | AA35: ='Input Data'!$AI$33*'Input Data'!$AI$77*AA24/1000000 -> 0 | AB35: ='Input Data'!$AI$33*'Input Data'!$AI$77*AB24/1000000 -> 0 | AC35: =IF('Input Data'!AI89>20,'Input Data'!$AI$33*'Input Data'!$AI$77*AC24/1000000,"") -> 0 | AD35: =IF(AD19="Year 22",'Input Data'!$AI$33*'Input Data'!$AI$77*AD24/1000000,"") -> 0 | AE35: =IF(AE19="Year 23",'Input Data'!$AI$33*'Input Data'!$AI$77*AE24/1000000,"") -> 0 | AF35: =IF(AF19="Year 24",'Input Data'!$AI$33*'Input Data'!$AI$77*AF24/1000000,"") -> 0 | AG35: =IF(AG19="Year 25",'Input Data'!$AI$33*'Input Data'!$AI$77*AG24/1000000,"") -> 0 | AH35: =IF('Input Data'!AI89>25,'Input Data'!$AI$33*'Input Data'!$AI$77*AH24/1000000,"") -> 0 | AI35: =IF(AI19="Year 27",'Input Data'!$AI$33*'Input Data'!$AI$77*AI24/1000000,"") -> 0 | AJ35: =IF(AJ19="Year 28",'Input Data'!$AI$33*'Input Data'!$AI$77*AJ24/1000000,"") -> 0 | AK35: =IF(AK19="Year 29",'Input Data'!$AI$33*'Input Data'!$AI$77*AK24/1000000,"") -> 0 | AL35: =IF(AL19="Year 30",'Input Data'!$AI$33*'Input Data'!$AI$77*AL24/1000000,"") -> 0 | AM35: =IF('Input Data'!AI89>30,'Input Data'!$AI$33*'Input Data'!$AI$77*AM24/1000000,"") -> 
B36: Fixed Capital Expenditure | F36: =I10*F25 -> 401.87 | G36: =I10*G25 -> 723.366 | H36: =H25*I10 -> 482.244
B38: Total Cash Flow (yearly) | F38: =SUM(F27:F27)-SUM(F29:F35)-F36 -> -401.87 | G38: -723.366 | H38: -482.244 | I38: 133.2398989 | J38: 164.5904988 | K38: 195.9410986 | L38: 195.9410986 | M38: 195.9410986 | N38: 195.9410986 | O38: 195.9410986 | P38: 195.9410986 | Q38: 195.9410986 | R38: 195.9410986 | S38: 195.9410986 | T38: 195.9410986 | U38: 195.9410986 | V38: 195.9410986 | W38: 195.9410986 | X38: 195.9410986 | Y38: 195.9410986 | Z38: 195.9410986 | AA38: 195.9410986 | AB38: 195.9410986 | AC38: =IF(AC19="Year 21",SUM(AC27:AC27)-SUM(AC29:AC35)-AC36,"") -> 195.9410986 | AD38: =IF(AD19="Year 22",SUM(AD27:AD27)-SUM(AD29:AD35)-AD36,"") -> 195.9410986 | AE38: =IF(AE19="Year 23",SUM(AE27:AE27)-SUM(AE29:AE35)-AE36,"") -> 195.9410986 | AF38: =IF(AF19="Year 24",SUM(AF27:AF27)-SUM(AF29:AF35)-AF36,"") -> 195.9410986 | AG38: =IF(AG19="Year 25",SUM(AG27:AG27)-SUM(AG29:AG35)-AG36,"") -> 195.9410986 | AH38: =IF(AH19="Year 26",SUM(AH27:AH27)-SUM(AH29:AH35)-AH36,"") -> 195.9410986 | AI38: =IF(AI19="Year 27",SUM(AI27:AI27)-SUM(AI29:AI35)-AI36,"") -> 195.9410986 | AJ38: =IF(AJ19="Year 28",SUM(AJ27:AJ27)-SUM(AJ29:AJ35)-AJ36,"") -> 195.9410986 | AK38: =IF(AK19="Year 29",SUM(AK27:AK27)-SUM(AK29:AK35)-AK36,"") -> 195.9410986 | AL38: =IF(AL19="Year 30",SUM(AL27:AL27)-SUM(AL29:AL35)-AL36,"") -> 195.9410986 | AM38: =IF(AM19="Year 31",SUM(AM27:AM27)-SUM(AM29:AM35)-AM36,"") -> 0
B39: Total Cash Flow (accumulated) | F39: =F38 -> -401.87 | G39: =-1*(ABS(G38)+ABS(F39)) -> -1125.236 | H39: =-1*(ABS(H38)+ABS(G39)) -> -1607.48 | I39: =H39+I38 -> -1474.240101 | J39: -1309.649602 | K39: -1113.708504 | L39: -917.767405 | M39: -721.8263064 | N39: -525.8852078 | O39: -329.9441092 | P39: -134.0030106 | Q39: 61.93808807 | R39: 257.8791867 | S39: 453.8202853 | T39: 649.7613839 | U39: 845.7024825 | V39: 1041.643581 | W39: 1237.58468 | X39: 1433.525778 | Y39: 1629.466877 | Z39: 1825.407976 | AA39: 2021.349074 | AB39: 2217.290173 | AC39: =IF(AC19="Year 21",AB39+AC38,"") -> 2413.231272 | AD39: =IF(AD19="Year 22",AC39+AD38,"") -> 2609.17237 | AE39: =IF(AE19="Year 23",AD39+AE38,"") -> 2805.113469 | AF39: =IF(AF19="Year 24",AE39+AF38,"") -> 3001.054567 | AG39: =IF(AG19="Year 25",AF39+AG38,"") -> 3196.995666 | AH39: =IF(AH19="Year 26",AG39+AH38,"") -> 3392.936765 | AI39: =IF(AI19="Year 27",AH39+AI38,"") -> 3588.877863 | AJ39: =IF(AJ19="Year 28",AI39+AJ38,"") -> 3784.818962 | AK39: =IF(AK19="Year 29",AJ39+AK38,"") -> 3980.76006 | AL39: =IF(AL19="Year 30",AK39+AL38,"") -> 4176.701159 | AM39: =IF(AM19="Year 31",AL39+AM38,"") -> 4176.701159
B41: Discounted Cash Flow (yearly) | F41: =F39/(1+R9) -> -365.3363636 | G41: =G38/(1+R9)^2 -> -597.8231405 | H41: =H38/(1+R9)^3 -> -362.3170548 | I41: =I38/(1+R9)^4 -> 91.00464377 | J41: =J38/(1+R9)^5 -> 102.1977503 | K41: =K38/(1+R9)^6 -> 110.603642 | L41: =L38/(1+R9)^7 -> 100.5487655 | M41: =M38/(1+R9)^8 -> 91.40796859 | N41: =N38/(1+R9)^9 -> 83.09815327 | O41: =O38/(1+R9)^10 -> 75.5437757 | P41: =P38/(1+R9)^11 -> 68.67615972 | Q41: =Q38/(1+R9)^12 -> 62.43287248 | R41: =R38/(1+R9)^13 -> 56.7571568 | S41: =S38/(1+R9)^14 -> 51.59741527 | T41: =T38/(1+R9)^15 -> 46.90674115 | U41: =U38/(1+R9)^16 -> 42.64249196 | V41: =V38/(1+R9)^17 -> 38.76590178 | W41: =W38/(1+R9)^18 -> 35.24172889 | X41: =X38/(1+R9)^19 -> 32.03793536 | Y41: =Y38/(1+R9)^20 -> 29.12539578 | Z41: =Z38/(1+R9)^21 -> 26.47763253 | AA41: =AA38/(1+R9)^22 -> 24.07057502 | AB41: =AB38/(1+R9)^23 -> 21.88234093 | AC41: =IF(AC19="Year 21",AC38/(1+R9)^24,"") -> 19.89303721 | AD41: =IF(AD19="Year 22",AD38/(1+R9)^25,"") -> 18.08457928 | AE41: =IF(AE19="Year 23",AE38/(1+R9)^26,"") -> 16.44052662 | AF41: =IF(AF19="Year 24",AF38/(1+R9)^27,"") -> 14.94593329 | AG41: =IF(AG19="Year 25",AG38/(1+R9)^28,"") -> 13.58721208 | AH41: =IF(AH19="Year 26",AH38/(1+R9)^29,"") -> 12.35201098 | AI41: =IF(AI19="Year 27",AI38/(1+R9)^30,"") -> 11.22910089 | AJ41: =IF(AJ19="Year 28",AJ38/(1+R9)^31,"") -> 10.20827354 | AK41: =IF(AK19="Year 29",AK38/(1+R9)^32,"") -> 9.280248673 | AL41: =IF(AL19="Year 30",AL38/(1+R9)^33,"") -> 8.436589703 | AM41: =IF(AM19="Year 31",AM38/(1+R9)^34,"") -> 0
B42: Discounted Cash Flow (accumulated) | F42: =F41 -> -365.3363636 | G42: =SUM(G41+F42) -> -963.1595041 | H42: -1325.476559 | I42: -1234.471915 | J42: -1132.274165 | K42: -1021.670523 | L42: -921.1217575 | M42: -829.7137889 | N42: -746.6156356 | O42: -671.0718599 | P42: -602.3957002 | Q42: -539.9628277 | R42: -483.2056709 | S42: -431.6082557 | T42: -384.7015145 | U42: -342.0590226 | V42: -303.2931208 | W42: -268.0513919 | X42: -236.0134565 | Y42: -206.8880608 | Z42: -180.4104282 | AA42: -156.3398532 | AB42: -134.4575123 | AC42: =IF(AC19="Year 21",SUM(AC41+AB42),"") -> -114.5644751 | AD42: =IF(AD19="Year 22",SUM(AD41+AC42),"") -> -96.47989578 | AE42: =IF(AE19="Year 23",SUM(AE41+AD42),"") -> -80.03936917 | AF42: =IF(AF19="Year 24",SUM(AF41+AE42),"") -> -65.09343588 | AG42: =IF(AG19="Year 25",SUM(AG41+AF42),"") -> -51.50622379 | AH42: =IF(AH19="Year 26",SUM(AH41+AG42),"") -> -39.15421281 | AI42: =IF(AI19="Year 27",SUM(AI41+AH42),"") -> -27.92511192 | AJ42: =IF(AJ19="Year 28",SUM(AJ41+AI42),"") -> -17.71683838 | AK42: =IF(AK19="Year 29",SUM(AK41+AJ42),"") -> -8.436589703 | AL42: =IF(AL19="Year 30",SUM(AL41+AK42),"") -> -2.822631018e-12 | AM42: =IF(AM19="Year 31",SUM(AM41+AL42),"") -> -2.822631018e-12
AA44: Hidden acc cf | AC44: =SUM(AC41+AB42) -> -114.5644751 | AD44: =IF(AD41="",AC42,SUM(AD41+AC42)) -> -96.47989578 | AE44: =IF(AE41="",AD44,SUM(AE41+AD44)) -> -80.03936917 | AF44: =IF(AF41="",AE44,SUM(AF41+AE44)) -> -65.09343588 | AG44: =IF(AG41="",AF44,SUM(AG41+AF44)) -> -51.50622379 | AH44: -39.15421281 | AI44: -27.92511192 | AJ44: -17.71683838 | AK44: -8.436589703 | AL44: -2.822631018e-12 | AM44: -2.822631018e-12 | AN44: -2.822631018e-12

Sheet USCPC wo CC
B4: Production | G4: Capital Expenditure | I4: UK£ (million) | K4: Operating Costs | L4: UK£ (million/year) | P4: Revenues
B5: Coal feedrate | D5: te/h | E5: ='Input Data'!AP26 -> 256.7916667 | G5: Installed cost | I5: ='Input Data'!AP60 -> 814.1 | K5: Fuel Cost | M5: ='Input Data'!AP71 -> 65 | N5: UK£/te | P5: Electricity Price | R5: 0.05623772026 | S5: UK£/kWh
B6: Net power ouput | D6: MW | E6: ='Input Data'!AP23 -> 779.2 | G6: Land purchase, surveys | I6: ='Input Data'!AP65 -> 0.05 | K6: Maintenance | M6: ='Input Data'!AP72 -> 32.6 | N6: UK£/year
G7: Fees | I7: ='Input Data'!AP66 -> 0.1 | K7: CO2 Emissions | M7: ='Input Data'!AP77 -> 0 | N7: UK£/te
G8: Contingencies | I8: ='Input Data'!AP64 -> 0.25 | K8: Labour Cost | N8: UK£/year (million)
K9: Number of operations personnel | N9: ='Input Data'!AP78 -> 105 | P9: Discounted Rate: | R9: ='Input Data'!AP86 -> 0.1
B10: =IF('Input Data'!AP9>0.001,"Performance Data: User Adjusted","") ->  | G10: Total Investment Cost | I10: =I5+(I6*I5)+(I5*I7)+(I5*I8) -> 1139.74 | K10: Average salary options personnel | N10: ='Input Data'!AP79 -> 0.05 | P10: Insurance | R10: ='Input Data'!AP81 -> 0.02 | S10: Installed Cost
K11: Admin | N11: ='Input Data'!AP80 -> 0.3
K12: Total Labour Cost | N12: =(N9*N10)*(1+N11) -> 6.825
G13: =IF('Input Data'!AP47>0.001,"Capital and Cost Data: User Adjusted","") ->  | P13: =IF('Input Data'!AP83>0.001,"Revenue Data: User Adjusted","") -> 
K14: =IF('Input Data'!AP70>0.001,"Operating Data: User Adjusted","") -> 
F17: YEAR
B18: CASH FLOW ANALYSIS | F18: =G18-1 -> 2009 | G18: =H18-1 -> 2010 | H18: =I18-1 -> 2011 | I18: ='Input Data'!AM102 -> 2012 | J18: ='Input Data'!AM103 -> 2013 | K18: ='Input Data'!AM104 -> 2014 | L18: ='Input Data'!AM105 -> 2015 | M18: ='Input Data'!AM106 -> 2016 | N18: ='Input Data'!AM107 -> 2017 | O18: ='Input Data'!AM108 -> 2018 | P18: ='Input Data'!AM109 -> 2019 | Q18: ='Input Data'!AM110 -> 2020 | R18: ='Input Data'!AM111 -> 2021 | S18: ='Input Data'!AM112 -> 2022 | T18: ='Input Data'!AM113 -> 2023 | U18: ='Input Data'!AM114 -> 2024 | V18: ='Input Data'!AM115 -> 2025 | W18: ='Input Data'!AM116 -> 2026 | X18: ='Input Data'!AM117 -> 2027 | Y18: ='Input Data'!AM118 -> 2028 | Z18: ='Input Data'!AM119 -> 2029 | AA18: ='Input Data'!AM120 -> 2030 | AB18: ='Input Data'!AM121 -> 2031 | AC18: ='Input Data'!AM122 -> 2032 | AD18: ='Input Data'!AM123 -> 2033 | AE18: ='Input Data'!AM124 -> 2034 | AF18: ='Input Data'!AM125 -> 2035 | AG18: ='Input Data'!AM126 -> 2036 | AH18: ='Input Data'!AM127 -> 2037 | AI18: ='Input Data'!AM128 -> 2038 | AJ18: ='Input Data'!AM129 -> 2039 | AK18: ='Input Data'!AM130 -> 2040 | AL18: ='Input Data'!AM131 -> 2041 | AM18: ='Input Data'!AM132 -> 2042
B19: UK£ (million) | F19: Year -3 | G19: Year -2 | H19: Year -1 | I19: ='Input Data'!AL102 -> Year 1 | J19: ='Input Data'!AL103 -> Year 2 | K19: ='Input Data'!AL104 -> Year 3 | L19: ='Input Data'!AL105 -> Year 4 | M19: ='Input Data'!AL106 -> Year 5 | N19: ='Input Data'!AL107 -> Year 6 | O19: ='Input Data'!AL108 -> Year 7 | P19: ='Input Data'!AL109 -> Year 8 | Q19: ='Input Data'!AL110 -> Year 9 | R19: ='Input Data'!AL111 -> Year 10 | S19: ='Input Data'!AL112 -> Year 11 | T19: ='Input Data'!AL113 -> Year 12 | U19: ='Input Data'!AL114 -> Year 13 | V19: ='Input Data'!AL115 -> Year 14 | W19: ='Input Data'!AL116 -> Year 15 | X19: ='Input Data'!AL117 -> Year 16 | Y19: ='Input Data'!AL118 -> Year 17 | Z19: ='Input Data'!AL119 -> Year 18 | AA19: ='Input Data'!AL120 -> Year 19 | AB19: ='Input Data'!AL121 -> Year 20 | AC19: ='Input Data'!AL122 -> Year 21 | AD19: ='Input Data'!AL123 -> Year 22 | AE19: ='Input Data'!AL124 -> Year 23 | AF19: ='Input Data'!AL125 -> Year 24 | AG19: ='Input Data'!AL126 -> Year 25 | AH19: ='Input Data'!AL127 -> Year 26 | AI19: ='Input Data'!AL128 -> Year 27 | AJ19: ='Input Data'!AL129 -> Year 28 | AK19: ='Input Data'!AL130 -> Year 29 | AL19: ='Input Data'!AL131 -> Year 30 | AM19: ='Input Data'!AL132 -> Year 31
B22: Load factor | I22: ='Input Data'!AN102 -> 1 | J22: ='Input Data'!AN103 -> 1 | K22: ='Input Data'!AN104 -> 1 | L22: ='Input Data'!AN105 -> 1 | M22: ='Input Data'!AN106 -> 1 | N22: ='Input Data'!AN107 -> 1 | O22: ='Input Data'!AN108 -> 1 | P22: ='Input Data'!AN109 -> 1 | Q22: ='Input Data'!AN110 -> 1 | R22: ='Input Data'!AN111 -> 1 | S22: ='Input Data'!AN112 -> 1 | T22: ='Input Data'!AN113 -> 1 | U22: ='Input Data'!AN114 -> 1 | V22: ='Input Data'!AN115 -> 1 | W22: ='Input Data'!AN116 -> 1 | X22: ='Input Data'!AN117 -> 1 | Y22: ='Input Data'!AN118 -> 1 | Z22: ='Input Data'!AN119 -> 1 | AA22: ='Input Data'!AN120 -> 1 | AB22: ='Input Data'!AN121 -> 1 | AC22: =IF('Input Data'!AP89>20,'Input Data'!AN122,"") -> 1 | AD22: =IF(AD19="Year 22",'Input Data'!AN123,"") -> 1 | AE22: =IF(AE19="Year 23",'Input Data'!AN124,"") -> 1 | AF22: =IF(AF19="Year 24",'Input Data'!AN125,"") -> 1 | AG22: =IF(AG19="Year 25",'Input Data'!AN126,"") -> 1 | AH22: =IF('Input Data'!AP89>25,'Input Data'!AN127,"") -> 1 | AI22: =IF(AI19="Year 27",'Input Data'!AN128,"") -> 1 | AJ22: =IF(AJ19="Year 28",'Input Data'!AN129,"") -> 1 | AK22: =IF(AK19="Year 29",'Input Data'!AN130,"") -> 1 | AL22: =IF(AL19="Year 30",'Input Data'!AN131,"") -> 1 | AM22: =IF('Input Data'!AP89>30,'Input Data'!AN132,"") -> 
B23: Availability | I23: ='Input Data'!AO102 -> 0.65 | J23: ='Input Data'!AO103 -> 0.75 | K23: ='Input Data'!AO104 -> 0.85 | L23: ='Input Data'!AO105 -> 0.85 | M23: ='Input Data'!AO106 -> 0.85 | N23: ='Input Data'!AO107 -> 0.85 | O23: ='Input Data'!AO108 -> 0.85 | P23: ='Input Data'!AO109 -> 0.85 | Q23: ='Input Data'!AO110 -> 0.85 | R23: ='Input Data'!AO111 -> 0.85 | S23: ='Input Data'!AO112 -> 0.85 | T23: ='Input Data'!AO113 -> 0.85 | U23: ='Input Data'!AO114 -> 0.85 | V23: ='Input Data'!AO115 -> 0.85 | W23: ='Input Data'!AO116 -> 0.85 | X23: ='Input Data'!AO117 -> 0.85 | Y23: ='Input Data'!AO118 -> 0.85 | Z23: ='Input Data'!AO119 -> 0.85 | AA23: ='Input Data'!AO120 -> 0.85 | AB23: ='Input Data'!AO121 -> 0.85 | AC23: =IF('Input Data'!AP89>20,'Input Data'!AO122,"") -> 0.85 | AD23: =IF(AD19="Year 22",'Input Data'!AO123,"") -> 0.85 | AE23: =IF(AE19="Year 23",'Input Data'!AO124,"") -> 0.85 | AF23: =IF(AF19="Year 24",'Input Data'!AO125,"") -> 0.85 | AG23: =IF(AG19="Year 25",'Input Data'!AO126,"") -> 0.85 | AH23: =IF('Input Data'!AP89>25,'Input Data'!AO127,"") -> 0.85 | AI23: =IF(AI19="Year 27",'Input Data'!AO128,"") -> 0.85 | AJ23: =IF(AJ19="Year 28",'Input Data'!AO129,"") -> 0.85 | AK23: =IF(AK19="Year 29",'Input Data'!AO130,"") -> 0.85 | AL23: =IF(AL19="Year 30",'Input Data'!AO131,"") -> 0.85 | AM23: =IF('Input Data'!AP89>30,'Input Data'!AO132,"") -> 
B24: Equivalent yearly hours | I24: =I22*8760*I23 -> 5694 | J24: =J22*8760*J23 -> 6570 | K24: 7446 | L24: 7446 | M24: 7446 | N24: 7446 | O24: 7446 | P24: 7446 | Q24: 7446 | R24: 7446 | S24: 7446 | T24: 7446 | U24: 7446 | V24: 7446 | W24: 7446 | X24: 7446 | Y24: 7446 | Z24: 7446 | AA24: 7446 | AB24: 7446 | AC24: =IF('Input Data'!AP89>20, AC22*8760*AC23,"") -> 7446 | AD24: =IF(AD19="Year 22",AD22*8760*AD23,"") -> 7446 | AE24: =IF(AE19="Year 23",AE22*8760*AE23,"") -> 7446 | AF24: =IF(AF19="Year 24",AF22*8760*AF23,"") -> 7446 | AG24: =IF(AG19="Year 25",AG22*8760*AG23,"") -> 7446 | AH24: =IF('Input Data'!AP89>25,AH22*8760*AH23,"") -> 7446 | AI24: =IF(AI19="Year 27",AI22*8760*AI23,"") -> 7446 | AJ24: =IF(AJ19="Year 28",AJ22*8760*AJ23,"") -> 7446 | AK24: =IF(AK19="Year 29",AK22*8760*AK23,"") -> 7446 | AL24: =IF(AL19="Year 30",AL22*8760*AL23,"") -> 7446 | AM24: =IF('Input Data'!AP89>30,AM22*8760*AM23,"") -> 
B25: Expenditure factor | F25: ='Input Data'!AP96 -> 0.25 | G25: ='Input Data'!AP97 -> 0.45 | H25: ='Input Data'!AP98 -> 0.3
B26: Revenues
B27: Electricity | I27: =$E$6*I24*$R$5/1000 -> 249.5135377 | J27: 287.9002358 | K27: 326.2869339 | L27: 326.2869339 | M27: 326.2869339 | N27: 326.2869339 | O27: 326.2869339 | P27: 326.2869339 | Q27: 326.2869339 | R27: 326.2869339 | S27: 326.2869339 | T27: 326.2869339 | U27: 326.2869339 | V27: 326.2869339 | W27: 326.2869339 | X27: 326.2869339 | Y27: 326.2869339 | Z27: 326.2869339 | AA27: 326.2869339 | AB27: 326.2869339 | AC27: =IF('Input Data'!AP89>20,$E$6*AC24*$R$5/1000,"") -> 326.2869339 | AD27: =IF(AD19="Year 22",$E$6*AD24*$R$5/1000,"") -> 326.2869339 | AE27: =IF(AE19="Year 23",$E$6*AE24*$R$5/1000,"") -> 326.2869339 | AF27: =IF(AF19="Year 24",$E$6*AF24*$R$5/1000,"") -> 326.2869339 | AG27: =IF(AG19="Year 25",$E$6*AG24*$R$5/1000,"") -> 326.2869339 | AH27: =IF('Input Data'!AP89>25,$E$6*AH24*$R$5/1000,"") -> 326.2869339 | AI27: =IF(AI19="Year 27",$E$6*AI24*$R$5/1000,"") -> 326.2869339 | AJ27: =IF(AJ19="Year 28",$E$6*AJ24*$R$5/1000,"") -> 326.2869339 | AK27: =IF(AK19="Year 29",$E$6*AK24*$R$5/1000,"") -> 326.2869339 | AL27: =IF(AL19="Year 30",$E$6*AL24*$R$5/1000,"") -> 326.2869339 | AM27: =IF('Input Data'!AP89>30,$E$6*AM24*$R$5/1000,"") -> 
B28: Operating costs
B29: Fuel (Coal) | I29: =$M$5*$E$5*I24/1000000 -> 95.04116375 | J29: =$M$5*$E$5*J24/1000000 -> 109.6628813 | K29: 124.2845988 | L29: 124.2845988 | M29: 124.2845988 | N29: 124.2845988 | O29: 124.2845988 | P29: 124.2845988 | Q29: 124.2845988 | R29: 124.2845988 | S29: 124.2845988 | T29: 124.2845988 | U29: 124.2845988 | V29: 124.2845988 | W29: 124.2845988 | X29: 124.2845988 | Y29: 124.2845988 | Z29: 124.2845988 | AA29: 124.2845988 | AB29: 124.2845988 | AC29: =IF('Input Data'!AP89>20,$M$5*$E$5*AC24/1000000,"") -> 124.2845988 | AD29: =IF(AD19="Year 22",$M$5*$E$5*AD24/1000000,"") -> 124.2845988 | AE29: =IF(AE19="Year 23",$M$5*$E$5*AE24/1000000,"") -> 124.2845988 | AF29: =IF(AF19="Year 24",$M$5*$E$5*AF24/1000000,"") -> 124.2845988 | AG29: =IF(AG19="Year 25",$M$5*$E$5*AG24/1000000,"") -> 124.2845988 | AH29: =IF('Input Data'!AP89>25,$M$5*$E$5*AH24/1000000,"") -> 124.2845988 | AI29: =IF(AI19="Year 27",$M$5*$E$5*AI24/1000000,"") -> 124.2845988 | AJ29: =IF(AJ19="Year 28",$M$5*$E$5*AJ24/1000000,"") -> 124.2845988 | AK29: =IF(AK19="Year 29",$M$5*$E$5*AK24/1000000,"") -> 124.2845988 | AL29: =IF(AL19="Year 30",$M$5*$E$5*AL24/1000000,"") -> 124.2845988 | AM29: =IF('Input Data'!AP89>30,$M$5*$E$5*AM24/1000000,"") -> 
B30: Maintenance | I30: =$M$6 -> 32.6 | J30: 32.6 | K30: 32.6 | L30: 32.6 | M30: 32.6 | N30: 32.6 | O30: 32.6 | P30: 32.6 | Q30: 32.6 | R30: 32.6 | S30: 32.6 | T30: 32.6 | U30: 32.6 | V30: 32.6 | W30: 32.6 | X30: 32.6 | Y30: 32.6 | Z30: 32.6 | AA30: 32.6 | AB30: 32.6 | AC30: =IF('Input Data'!AP89>20,$M$6,"") -> 32.6 | AD30: =IF(AD19="Year 22",$M$6,"") -> 32.6 | AE30: =IF(AE19="Year 23",$M$6,"") -> 32.6 | AF30: =IF(AF19="Year 24",$M$6,"") -> 32.6 | AG30: =IF(AG19="Year 25",$M$6,"") -> 32.6 | AH30: =IF('Input Data'!AP89>25,$M$6,"") -> 32.6 | AI30: =IF(AI19="Year 27",$M$6,"") -> 32.6 | AJ30: =IF(AJ19="Year 28",$M$6,"") -> 32.6 | AK30: =IF(AK19="Year 29",$M$6,"") -> 32.6 | AL30: =IF(AL19="Year 30",$M$6,"") -> 32.6 | AM30: =IF('Input Data'!AP89>30,$M$6,"") -> 
B31: Labour | I31: =$N$12 -> 6.825 | J31: 6.825 | K31: 6.825 | L31: 6.825 | M31: 6.825 | N31: 6.825 | O31: 6.825 | P31: 6.825 | Q31: 6.825 | R31: 6.825 | S31: 6.825 | T31: 6.825 | U31: 6.825 | V31: 6.825 | W31: 6.825 | X31: 6.825 | Y31: 6.825 | Z31: 6.825 | AA31: 6.825 | AB31: 6.825 | AC31: =IF('Input Data'!AP89>20,$N$12,"") -> 6.825 | AD31: =IF(AD19="Year 22",$N$12,"") -> 6.825 | AE31: =IF(AE19="Year 23",$N$12,"") -> 6.825 | AF31: =IF(AF19="Year 24",$N$12,"") -> 6.825 | AG31: =IF(AG19="Year 25",$N$12,"") -> 6.825 | AH31: =IF('Input Data'!AP89>25,$N$12,"") -> 6.825 | AI31: =IF(AI19="Year 27",$N$12,"") -> 6.825 | AJ31: =IF(AJ19="Year 28",$N$12,"") -> 6.825 | AK31: =IF(AK19="Year 29",$N$12,"") -> 6.825 | AL31: =IF(AL19="Year 30",$N$12,"") -> 6.825 | AM31: =IF('Input Data'!AP89>30,$N$12,"") -> 
B32: Chemicals and Consumables | I32: =I22*I23*'Input Data'!$AP$74/0.85 -> 4.358823529 | J32: =J22*J23*'Input Data'!$AP$74/0.85 -> 5.029411765 | K32: =K22*K23*'Input Data'!$AP$74/0.85 -> 5.7 | L32: =L22*L23*'Input Data'!$AP$74/0.85 -> 5.7 | M32: =M22*M23*'Input Data'!$AP$74/0.85 -> 5.7 | N32: =N22*N23*'Input Data'!$AP$74/0.85 -> 5.7 | O32: =O22*O23*'Input Data'!$AP$74/0.85 -> 5.7 | P32: =P22*P23*'Input Data'!$AP$74/0.85 -> 5.7 | Q32: =Q22*Q23*'Input Data'!$AP$74/0.85 -> 5.7 | R32: =R22*R23*'Input Data'!$AP$74/0.85 -> 5.7 | S32: =S22*S23*'Input Data'!$AP$74/0.85 -> 5.7 | T32: =T22*T23*'Input Data'!$AP$74/0.85 -> 5.7 | U32: =U22*U23*'Input Data'!$AP$74/0.85 -> 5.7 | V32: =V22*V23*'Input Data'!$AP$74/0.85 -> 5.7 | W32: =W22*W23*'Input Data'!$AP$74/0.85 -> 5.7 | X32: =X22*X23*'Input Data'!$AP$74/0.85 -> 5.7 | Y32: =Y22*Y23*'Input Data'!$AP$74/0.85 -> 5.7 | Z32: =Z22*Z23*'Input Data'!$AP$74/0.85 -> 5.7 | AA32: =AA22*AA23*'Input Data'!$AP$74/0.85 -> 5.7 | AB32: =IF(AB19="Year 20",AB22*AB23*'Input Data'!$AP$74/0.85,"") -> 5.7 | AC32: =IF('Input Data'!AP89>20,AC22*AC23*'Input Data'!$AP$74/0.85,"") -> 5.7 | AD32: =IF(AD19="Year 22",AD22*AD23*'Input Data'!$AP$74/0.85,"") -> 5.7 | AE32: =IF(AE19="Year 23",AE22*AE23*'Input Data'!$AP$74/0.85,"") -> 5.7 | AF32: =IF(AF19="Year 24",AF22*AF23*'Input Data'!$AP$74/0.85,"") -> 5.7 | AG32: =IF(AG19="Year 25",AG22*AG23*'Input Data'!$AP$74/0.85,"") -> 5.7 | AH32: =IF('Input Data'!AP89>25,AH22*AH23*'Input Data'!$AP$74/0.85,"") -> 5.7 | AI32: =IF(AI19="Year 27",AI22*AI23*'Input Data'!$AP$74/0.85,"") -> 5.7 | AJ32: =IF(AJ19="Year 28",AJ22*AJ23*'Input Data'!$AP$74/0.85,"") -> 5.7 | AK32: =IF(AK19="Year 29",AK22*AK23*'Input Data'!$AP$74/0.85,"") -> 5.7 | AL32: =IF(AL19="Year 30",AL22*AL23*'Input Data'!$AP$74/0.85,"") -> 5.7 | AM32: =IF('Input Data'!AP89>30,AM22*AM23*'Input Data'!$AP$74/0.85,"") -> 
B33: Waste Disposal | I33: =I24*'Input Data'!$AP$40*'Input Data'!$AP$73/1000000 -> 1.127412 | J33: =J24*'Input Data'!$AP$40*'Input Data'!$AP$73/1000000 -> 1.30086 | K33: =K24*'Input Data'!$AP$40*'Input Data'!$AP$73/1000000 -> 1.474308 | L33: =L24*'Input Data'!$AP$40*'Input Data'!$AP$73/1000000 -> 1.474308 | M33: =M24*'Input Data'!$AP$40*'Input Data'!$AP$73/1000000 -> 1.474308 | N33: =N24*'Input Data'!$AP$40*'Input Data'!$AP$73/1000000 -> 1.474308 | O33: =O24*'Input Data'!$AP$40*'Input Data'!$AP$73/1000000 -> 1.474308 | P33: =P24*'Input Data'!$AP$40*'Input Data'!$AP$73/1000000 -> 1.474308 | Q33: =Q24*'Input Data'!$AP$40*'Input Data'!$AP$73/1000000 -> 1.474308 | R33: =R24*'Input Data'!$AP$40*'Input Data'!$AP$73/1000000 -> 1.474308 | S33: =S24*'Input Data'!$AP$40*'Input Data'!$AP$73/1000000 -> 1.474308 | T33: =T24*'Input Data'!$AP$40*'Input Data'!$AP$73/1000000 -> 1.474308 | U33: =U24*'Input Data'!$AP$40*'Input Data'!$AP$73/1000000 -> 1.474308 | V33: =V24*'Input Data'!$AP$40*'Input Data'!$AP$73/1000000 -> 1.474308 | W33: =W24*'Input Data'!$AP$40*'Input Data'!$AP$73/1000000 -> 1.474308 | X33: =X24*'Input Data'!$AP$40*'Input Data'!$AP$73/1000000 -> 1.474308 | Y33: =Y24*'Input Data'!$AP$40*'Input Data'!$AP$73/1000000 -> 1.474308 | Z33: =Z24*'Input Data'!$AP$40*'Input Data'!$AP$73/1000000 -> 1.474308 | AA33: =AA24*'Input Data'!$AP$40*'Input Data'!$AP$73/1000000 -> 1.474308 | AB33: =IF(AB19="Year 20",AB24*'Input Data'!$AP$40*'Input Data'!$AP$73/1000000,"") -> 1.474308 | AC33: =IF('Input Data'!AP89>20,AC24*'Input Data'!$AP$40*'Input Data'!$AP$73/1000000,"") -> 1.474308 | AD33: =IF(AD19="Year 22",AD24*'Input Data'!$AP$40*'Input Data'!$AP$73/1000000,"") -> 1.474308 | AE33: =IF(AE19="Year 23",AE24*'Input Data'!$AP$40*'Input Data'!$AP$73/1000000,"") -> 1.474308 | AF33: =IF(AF19="Year 24",AF24*'Input Data'!$AP$40*'Input Data'!$AP$73/1000000,"") -> 1.474308 | AG33: =IF(AG19="Year 25",AG24*'Input Data'!$AP$40*'Input Data'!$AP$73/1000000,"") -> 1.474308 | AH33: =IF('Input Data'!AP89>25,AH24*'Input Data'!$AP$40*'Input Data'!$AP$73/1000000,"") -> 1.474308 | AI33: =IF(AI19="Year 27",AI24*'Input Data'!$AP$40*'Input Data'!$AP$73/1000000,"") -> 1.474308 | AJ33: =IF(AJ19="Year 28",AJ24*'Input Data'!$AP$40*'Input Data'!$AP$73/1000000,"") -> 1.474308 | AK33: =IF(AK19="Year 29",AK24*'Input Data'!$AP$40*'Input Data'!$AP$73/1000000,"") -> 1.474308 | AL33: =IF(AL19="Year 30",AL24*'Input Data'!$AP$40*'Input Data'!$AP$73/1000000,"") -> 1.474308 | AM33: =IF('Input Data'!AP89>30,AM24*'Input Data'!$AP$40*'Input Data'!$AP$73/1000000,"") -> 
B34: Insurance + Local Taxes | I34: =I5*R10 -> 16.282 | J34: =I5*R10 -> 16.282 | K34: =I5*R10 -> 16.282 | L34: =I5*R10 -> 16.282 | M34: =I5*R10 -> 16.282 | N34: =I5*R10 -> 16.282 | O34: =I5*R10 -> 16.282 | P34: =I5*R10 -> 16.282 | Q34: =I5*R10 -> 16.282 | R34: =I5*R10 -> 16.282 | S34: =I5*R10 -> 16.282 | T34: =I5*R10 -> 16.282 | U34: =I5*R10 -> 16.282 | V34: =I5*R10 -> 16.282 | W34: =I5*R10 -> 16.282 | X34: =I5*R10 -> 16.282 | Y34: =I5*R10 -> 16.282 | Z34: =I5*R10 -> 16.282 | AA34: =I5*R10 -> 16.282 | AB34: =I5*R10 -> 16.282 | AC34: =IF('Input Data'!AP89>20,I5*R10,"") -> 16.282 | AD34: =IF(AD19="Year 22",R10*I5,"") -> 16.282 | AE34: =IF(AE19="Year 23",I5*R10,"") -> 16.282 | AF34: =IF(AF19="Year 24",I5*R10,"") -> 16.282 | AG34: =IF(AG19="Year 25",I5*R10,"") -> 16.282 | AH34: =IF('Input Data'!AP89>25,I5*R10,"") -> 16.282 | AI34: =IF(AI19="Year 27",I5*R10,"") -> 16.282 | AJ34: =IF(AJ19="Year 28",I5*R10,"") -> 16.282 | AK34: =IF(AK19="Year 29",I5*R10,"") -> 16.282 | AL34: =IF(AL19="Year 30",I5*R10,"") -> 16.282 | AM34: =IF('Input Data'!AP89>30,I5*R10,"") -> 
B35: CO2 Emissions | I35: ='Input Data'!$AP$33*'Input Data'!$AP$77*I24/1000000 -> 0 | J35: ='Input Data'!$AP$33*'Input Data'!$AP$77*J24/1000000 -> 0 | K35: ='Input Data'!$AP$33*'Input Data'!$AP$77*K24/1000000 -> 0 | L35: ='Input Data'!$AP$33*'Input Data'!$AP$77*L24/1000000 -> 0 | M35: ='Input Data'!$AP$33*'Input Data'!$AP$77*M24/1000000 -> 0 | N35: ='Input Data'!$AP$33*'Input Data'!$AP$77*N24/1000000 -> 0 | O35: ='Input Data'!$AP$33*'Input Data'!$AP$77*O24/1000000 -> 0 | P35: ='Input Data'!$AP$33*'Input Data'!$AP$77*P24/1000000 -> 0 | Q35: ='Input Data'!$AP$33*'Input Data'!$AP$77*Q24/1000000 -> 0 | R35: ='Input Data'!$AP$33*'Input Data'!$AP$77*R24/1000000 -> 0 | S35: ='Input Data'!$AP$33*'Input Data'!$AP$77*S24/1000000 -> 0 | T35: ='Input Data'!$AP$33*'Input Data'!$AP$77*T24/1000000 -> 0 | U35: ='Input Data'!$AP$33*'Input Data'!$AP$77*U24/1000000 -> 0 | V35: ='Input Data'!$AP$33*'Input Data'!$AP$77*V24/1000000 -> 0 | W35: ='Input Data'!$AP$33*'Input Data'!$AP$77*W24/1000000 -> 0 | X35: ='Input Data'!$AP$33*'Input Data'!$AP$77*X24/1000000 -> 0 | Y35: ='Input Data'!$AP$33*'Input Data'!$AP$77*Y24/1000000 -> 0 | Z35: ='Input Data'!$AP$33*'Input Data'!$AP$77*Z24/1000000 -> 0 | AA35: ='Input Data'!$AP$33*'Input Data'!$AP$77*AA24/1000000 -> 0 | AB35: ='Input Data'!$AP$33*'Input Data'!$AP$77*AB24/1000000 -> 0 | AC35: =IF('Input Data'!AP89>20,'Input Data'!$AP$33*'Input Data'!$AP$77*AC24/1000000,"") -> 0 | AD35: =IF(AD19="Year 22",'Input Data'!$AP$33*'Input Data'!$AP$77*AD24/1000000,"") -> 0 | AE35: =IF(AE19="Year 23",'Input Data'!$AP$33*'Input Data'!$AP$77*AE24/1000000,"") -> 0 | AF35: =IF(AF19="Year 24",'Input Data'!$AP$33*'Input Data'!$AP$77*AF24/1000000,"") -> 0 | AG35: =IF(AG19="Year 25",'Input Data'!$AP$33*'Input Data'!$AP$77*AG24/1000000,"") -> 0 | AH35: =IF('Input Data'!AP89>25,'Input Data'!$AP$33*'Input Data'!$AP$77*AH24/1000000,"") -> 0 | AI35: =IF(AI19="Year 27",'Input Data'!$AP$33*'Input Data'!$AP$77*AI24/1000000,"") -> 0 | AJ35: =IF(AJ19="Year 28",'Input Data'!$AP$33*'Input Data'!$AP$77*AJ24/1000000,"") -> 0 | AK35: =IF(AK19="Year 29",'Input Data'!$AP$33*'Input Data'!$AP$77*AK24/1000000,"") -> 0 | AL35: =IF(AL19="Year 30",'Input Data'!$AP$33*'Input Data'!$AP$77*AL24/1000000,"") -> 0 | AM35: =IF('Input Data'!AP89>30,'Input Data'!$AP$33*'Input Data'!$AP$77*AM24/1000000,"") -> 
B36: Fixed Capital Expenditure | F36: =I10*F25 -> 284.935 | G36: =I10*G25 -> 512.883 | H36: =H25*I10 -> 341.922
B38: Total Cash Flow (yearly) | F38: =SUM(F27:F27)-SUM(F29:F35)-F36 -> -284.935 | G38: -512.883 | H38: -341.922 | I38: 93.27913841 | J38: 116.2000828 | K38: 139.1210272 | L38: 139.1210272 | M38: 139.1210272 | N38: 139.1210272 | O38: 139.1210272 | P38: 139.1210272 | Q38: 139.1210272 | R38: 139.1210272 | S38: 139.1210272 | T38: 139.1210272 | U38: 139.1210272 | V38: 139.1210272 | W38: 139.1210272 | X38: 139.1210272 | Y38: 139.1210272 | Z38: 139.1210272 | AA38: 139.1210272 | AB38: 139.1210272 | AC38: =IF(AC19="Year 21",SUM(AC27:AC27)-SUM(AC29:AC35)-AC36,"") -> 139.1210272 | AD38: =IF(AD19="Year 22",SUM(AD27:AD27)-SUM(AD29:AD35)-AD36,"") -> 139.1210272 | AE38: =IF(AE19="Year 23",SUM(AE27:AE27)-SUM(AE29:AE35)-AE36,"") -> 139.1210272 | AF38: =IF(AF19="Year 24",SUM(AF27:AF27)-SUM(AF29:AF35)-AF36,"") -> 139.1210272 | AG38: =IF(AG19="Year 25",SUM(AG27:AG27)-SUM(AG29:AG35)-AG36,"") -> 139.1210272 | AH38: =IF(AH19="Year 26",SUM(AH27:AH27)-SUM(AH29:AH35)-AH36,"") -> 139.1210272 | AI38: =IF(AI19="Year 27",SUM(AI27:AI27)-SUM(AI29:AI35)-AI36,"") -> 139.1210272 | AJ38: =IF(AJ19="Year 28",SUM(AJ27:AJ27)-SUM(AJ29:AJ35)-AJ36,"") -> 139.1210272 | AK38: =IF(AK19="Year 29",SUM(AK27:AK27)-SUM(AK29:AK35)-AK36,"") -> 139.1210272 | AL38: =IF(AL19="Year 30",SUM(AL27:AL27)-SUM(AL29:AL35)-AL36,"") -> 139.1210272 | AM38: =IF(AM19="Year 31",SUM(AM27:AM27)-SUM(AM29:AM35)-AM36,"") -> 0
B39: Total Cash Flow (accumulated) | F39: =F38 -> -284.935 | G39: =-1*(ABS(G38)+ABS(F39)) -> -797.818 | H39: =-1*(ABS(H38)+ABS(G39)) -> -1139.74 | I39: =H39+I38 -> -1046.460862 | J39: -930.2607788 | K39: -791.1397517 | L39: -652.0187245 | M39: -512.8976973 | N39: -373.7766702 | O39: -234.655643 | P39: -95.53461588 | Q39: 43.58641128 | R39: 182.7074384 | S39: 321.8284656 | T39: 460.9494927 | U39: 600.0705199 | V39: 739.191547 | W39: 878.3125742 | X39: 1017.433601 | Y39: 1156.554629 | Z39: 1295.675656 | AA39: 1434.796683 | AB39: 1573.91771 | AC39: =IF(AC19="Year 21",AB39+AC38,"") -> 1713.038737 | AD39: =IF(AD19="Year 22",AC39+AD38,"") -> 1852.159764 | AE39: =IF(AE19="Year 23",AD39+AE38,"") -> 1991.280791 | AF39: =IF(AF19="Year 24",AE39+AF38,"") -> 2130.401819 | AG39: =IF(AG19="Year 25",AF39+AG38,"") -> 2269.522846 | AH39: =IF(AH19="Year 26",AG39+AH38,"") -> 2408.643873 | AI39: =IF(AI19="Year 27",AH39+AI38,"") -> 2547.7649 | AJ39: =IF(AJ19="Year 28",AI39+AJ38,"") -> 2686.885927 | AK39: =IF(AK19="Year 29",AJ39+AK38,"") -> 2826.006954 | AL39: =IF(AL19="Year 30",AK39+AL38,"") -> 2965.127982 | AM39: =IF(AM19="Year 31",AL39+AM38,"") -> 2965.127982
B41: Discounted Cash Flow (yearly) | F41: =F39/(1+R9) -> -259.0318182 | G41: =G38/(1+R9)^2 -> -423.8702479 | H41: =H38/(1+R9)^3 -> -256.8910594 | I41: =I38/(1+R9)^4 -> 63.71090664 | J41: =J38/(1+R9)^5 -> 72.15110914 | K41: =K38/(1+R9)^6 -> 78.53019295 | L41: =L38/(1+R9)^7 -> 71.3910845 | M41: =M38/(1+R9)^8 -> 64.90098591 | N41: =N38/(1+R9)^9 -> 59.00089628 | O41: =O38/(1+R9)^10 -> 53.63717844 | P41: =P38/(1+R9)^11 -> 48.76107131 | Q41: =Q38/(1+R9)^12 -> 44.32824664 | R41: =R38/(1+R9)^13 -> 40.29840604 | S41: =S38/(1+R9)^14 -> 36.63491458 | T41: =T38/(1+R9)^15 -> 33.3044678 | U41: =U38/(1+R9)^16 -> 30.27678891 | V41: =V38/(1+R9)^17 -> 27.52435355 | W41: =W38/(1+R9)^18 -> 25.02213959 | X41: =X38/(1+R9)^19 -> 22.74739963 | Y41: =Y38/(1+R9)^20 -> 20.67945421 | Z41: =Z38/(1+R9)^21 -> 18.79950383 | AA41: =AA38/(1+R9)^22 -> 17.09045803 | AB41: =AB38/(1+R9)^23 -> 15.53678002 | AC41: =IF(AC19="Year 21",AC38/(1+R9)^24,"") -> 14.12434548 | AD41: =IF(AD19="Year 22",AD38/(1+R9)^25,"") -> 12.84031407 | AE41: =IF(AE19="Year 23",AE38/(1+R9)^26,"") -> 11.67301279 | AF41: =IF(AF19="Year 24",AF38/(1+R9)^27,"") -> 10.61182981 | AG41: =IF(AG19="Year 25",AG38/(1+R9)^28,"") -> 9.647118008 | AH41: =IF(AH19="Year 26",AH38/(1+R9)^29,"") -> 8.77010728 | AI41: =IF(AI19="Year 27",AI38/(1+R9)^30,"") -> 7.9728248 | AJ41: =IF(AJ19="Year 28",AJ38/(1+R9)^31,"") -> 7.248022545 | AK41: =IF(AK19="Year 29",AK38/(1+R9)^32,"") -> 6.589111405 | AL41: =IF(AL19="Year 30",AL38/(1+R9)^33,"") -> 5.990101277 | AM41: =IF(AM19="Year 31",AM38/(1+R9)^34,"") -> 0
B42: Discounted Cash Flow (accumulated) | F42: =F41 -> -259.0318182 | G42: =SUM(G41+F42) -> -682.9020661 | H42: -939.7931255 | I42: -876.0822188 | J42: -803.9311097 | K42: -725.4009167 | L42: -654.0098322 | M42: -589.1088463 | N42: -530.10795 | O42: -476.4707716 | P42: -427.7097003 | Q42: -383.3814537 | R42: -343.0830476 | S42: -306.448133 | T42: -273.1436652 | U42: -242.8668763 | V42: -215.3425228 | W42: -190.3203832 | X42: -167.5729835 | Y42: -146.8935293 | Z42: -128.0940255 | AA42: -111.0035675 | AB42: -95.46678746 | AC42: =IF(AC19="Year 21",SUM(AC41+AB42),"") -> -81.34244198 | AD42: =IF(AD19="Year 22",SUM(AD41+AC42),"") -> -68.50212791 | AE42: =IF(AE19="Year 23",SUM(AE41+AD42),"") -> -56.82911512 | AF42: =IF(AF19="Year 24",SUM(AF41+AE42),"") -> -46.21728532 | AG42: =IF(AG19="Year 25",SUM(AG41+AF42),"") -> -36.57016731 | AH42: =IF(AH19="Year 26",SUM(AH41+AG42),"") -> -27.80006003 | AI42: =IF(AI19="Year 27",SUM(AI41+AH42),"") -> -19.82723523 | AJ42: =IF(AJ19="Year 28",SUM(AJ41+AI42),"") -> -12.57921268 | AK42: =IF(AK19="Year 29",SUM(AK41+AJ42),"") -> -5.990101277 | AL42: =IF(AL19="Year 30",SUM(AL41+AK42),"") -> -5.373479439e-13 | AM42: =IF(AM19="Year 31",SUM(AM41+AL42),"") -> -5.373479439e-13
AA44: Hidden acc cf | AC44: =SUM(AC41+AB42) -> -81.34244198 | AD44: =IF(AD41="",AC42,SUM(AD41+AC42)) -> -68.50212791 | AE44: =IF(AE41="",AD44,SUM(AE41+AD44)) -> -56.82911512 | AF44: =IF(AF41="",AE44,SUM(AF41+AE44)) -> -46.21728532 | AG44: =IF(AG41="",AF44,SUM(AG41+AF44)) -> -36.57016731 | AH44: -27.80006003 | AI44: -19.82723523 | AJ44: -12.57921268 | AK44: -5.990101277 | AL44: -5.373479439e-13 | AM44: -5.373479439e-13 | AN44: -5.373479439e-13

Sheet OXYFUEL with CC
B4: Production | G4: Capital Expenditure | I4: UK£ (million) | K4: Operating Costs | L4: UK£ (million/year) | P4: Revenues
B5: Coal feedrate | D5: te/h | E5: ='Input Data'!AW26 -> 257 | G5: Installed cost | I5: ='Input Data'!AW60 -> 1354.7 | K5: Fuel Cost | M5: ='Input Data'!AW71 -> 65 | N5: UK£/te | P5: Electricity Price | R5: 0.09689783711 | S5: UK£/kWh
B6: Net power ouput | D6: MW | E6: ='Input Data'!AW23 -> 605.6 | G6: Land purchase, surveys | I6: ='Input Data'!AW65 -> 0.05 | K6: Maintenance | M6: ='Input Data'!AW72 -> 44.5 | N6: UK£/year
G7: Fees | I7: ='Input Data'!AW66 -> 0.1 | K7: CO2 Emissions | M7: ='Input Data'!AW77 -> 0 | N7: UK£/te
G8: Contingencies | I8: ='Input Data'!AW64 -> 0.25 | K8: Labour Cost | N8: UK£/year (million)
K9: Number of operations personnel | N9: ='Input Data'!AW78 -> 128 | P9: Discounted Rate: | R9: ='Input Data'!AW86 -> 0.1
B10: =IF('Input Data'!AW9>0.001,"Performance Data: User Adjusted","") ->  | G10: Total Investment Cost | I10: =I5+(I6*I5)+(I5*I7)+(I5*I8) -> 1896.58 | K10: Average salary options personnel | N10: ='Input Data'!AW79 -> 0.05 | P10: Insurance | R10: ='Input Data'!AW81 -> 0.02 | S10: Installed Cost
K11: Admin | N11: ='Input Data'!AW80 -> 0.3
K12: Total Labour Cost | N12: =(N9*N10)*(1+N11) -> 8.32
G13: =IF('Input Data'!AW47>0.001,"Capital and Cost Data: User Adjusted","") ->  | P13: =IF('Input Data'!AW83>0.001,"Revenue Data: User Adjusted","") -> 
K14: =IF('Input Data'!AW70>0.001,"Operating Data: User Adjusted","") -> 
F17: YEAR
B18: CASH FLOW ANALYSIS | F18: =G18-1 -> 2009 | G18: =H18-1 -> 2010 | H18: =I18-1 -> 2011 | I18: ='Input Data'!AT102 -> 2012 | J18: ='Input Data'!AT103 -> 2013 | K18: ='Input Data'!AT104 -> 2014 | L18: ='Input Data'!AT105 -> 2015 | M18: ='Input Data'!AT106 -> 2016 | N18: ='Input Data'!AT107 -> 2017 | O18: ='Input Data'!AT108 -> 2018 | P18: ='Input Data'!AT109 -> 2019 | Q18: ='Input Data'!AT110 -> 2020 | R18: ='Input Data'!AT111 -> 2021 | S18: ='Input Data'!AT112 -> 2022 | T18: ='Input Data'!AT113 -> 2023 | U18: ='Input Data'!AT114 -> 2024 | V18: ='Input Data'!AT115 -> 2025 | W18: ='Input Data'!AT116 -> 2026 | X18: ='Input Data'!AT117 -> 2027 | Y18: ='Input Data'!AT118 -> 2028 | Z18: ='Input Data'!AT119 -> 2029 | AA18: ='Input Data'!AT120 -> 2030 | AB18: ='Input Data'!AT121 -> 2031 | AC18: ='Input Data'!AT122 -> 2032 | AD18: ='Input Data'!AT123 -> 2033 | AE18: ='Input Data'!AT124 -> 2034 | AF18: ='Input Data'!AT125 -> 2035 | AG18: ='Input Data'!AT126 -> 2036 | AH18: ='Input Data'!AT127 -> 2037 | AI18: ='Input Data'!AT128 -> 2038 | AJ18: ='Input Data'!AT129 -> 2039 | AK18: ='Input Data'!AT130 -> 2040 | AL18: ='Input Data'!AT131 -> 2041 | AM18: ='Input Data'!AT132 -> 2042
B19: UK£ (million) | F19: Year -3 | G19: Year -2 | H19: Year -1 | I19: ='Input Data'!AS102 -> Year 1 | J19: ='Input Data'!AS103 -> Year 2 | K19: ='Input Data'!AS104 -> Year 3 | L19: ='Input Data'!AS105 -> Year 4 | M19: ='Input Data'!AS106 -> Year 5 | N19: ='Input Data'!AS107 -> Year 6 | O19: ='Input Data'!AS108 -> Year 7 | P19: ='Input Data'!AS109 -> Year 8 | Q19: ='Input Data'!AS110 -> Year 9 | R19: ='Input Data'!AS111 -> Year 10 | S19: ='Input Data'!AS112 -> Year 11 | T19: ='Input Data'!AS113 -> Year 12 | U19: ='Input Data'!AS114 -> Year 13 | V19: ='Input Data'!AS115 -> Year 14 | W19: ='Input Data'!AS116 -> Year 15 | X19: ='Input Data'!AS117 -> Year 16 | Y19: ='Input Data'!AS118 -> Year 17 | Z19: ='Input Data'!AS119 -> Year 18 | AA19: ='Input Data'!AS120 -> Year 19 | AB19: ='Input Data'!AS121 -> Year 20 | AC19: ='Input Data'!AS122 -> Year 21 | AD19: ='Input Data'!AS123 -> Year 22 | AE19: ='Input Data'!AS124 -> Year 23 | AF19: ='Input Data'!AS125 -> Year 24 | AG19: ='Input Data'!AS126 -> Year 25 | AH19: ='Input Data'!AS127 -> Year 26 | AI19: ='Input Data'!AS128 -> Year 27 | AJ19: ='Input Data'!AS129 -> Year 28 | AK19: ='Input Data'!AS130 -> Year 29 | AL19: ='Input Data'!AS131 -> Year 30 | AM19: ='Input Data'!AS132 -> Year 31
B22: Load factor | I22: ='Input Data'!AU102 -> 1 | J22: ='Input Data'!AU103 -> 1 | K22: ='Input Data'!AU104 -> 1 | L22: ='Input Data'!AU105 -> 1 | M22: ='Input Data'!AU106 -> 1 | N22: ='Input Data'!AU107 -> 1 | O22: ='Input Data'!AU108 -> 1 | P22: ='Input Data'!AU109 -> 1 | Q22: ='Input Data'!AU110 -> 1 | R22: ='Input Data'!AU111 -> 1 | S22: ='Input Data'!AU112 -> 1 | T22: ='Input Data'!AU113 -> 1 | U22: ='Input Data'!AU114 -> 1 | V22: ='Input Data'!AU115 -> 1 | W22: ='Input Data'!AU116 -> 1 | X22: ='Input Data'!AU117 -> 1 | Y22: ='Input Data'!AU118 -> 1 | Z22: ='Input Data'!AU119 -> 1 | AA22: ='Input Data'!AU120 -> 1 | AB22: ='Input Data'!AU121 -> 1 | AC22: =IF('Input Data'!AW89>20,'Input Data'!AU122,"") -> 1 | AD22: =IF(AD19="Year 22",'Input Data'!AU123,"") -> 1 | AE22: =IF(AE19="Year 23",'Input Data'!AU124,"") -> 1 | AF22: =IF(AF19="Year 24",'Input Data'!AU125,"") -> 1 | AG22: =IF(AG19="Year 25",'Input Data'!AU126,"") -> 1 | AH22: =IF('Input Data'!AW89>25,'Input Data'!AU127,"") -> 1 | AI22: =IF(AI19="Year 27",'Input Data'!AU128,"") -> 1 | AJ22: =IF(AJ19="Year 28",'Input Data'!AU129,"") -> 1 | AK22: =IF(AK19="Year 29",'Input Data'!AU130,"") -> 1 | AL22: =IF(AL19="Year 30",'Input Data'!AU131,"") -> 1 | AM22: =IF('Input Data'!AW89>30,'Input Data'!AU132,"") -> 
B23: Availability | I23: ='Input Data'!AV102 -> 0.65 | J23: ='Input Data'!AV103 -> 0.75 | K23: ='Input Data'!AV104 -> 0.85 | L23: ='Input Data'!AV105 -> 0.85 | M23: ='Input Data'!AV106 -> 0.85 | N23: ='Input Data'!AV107 -> 0.85 | O23: ='Input Data'!AV108 -> 0.85 | P23: ='Input Data'!AV109 -> 0.85 | Q23: ='Input Data'!AV110 -> 0.85 | R23: ='Input Data'!AV111 -> 0.85 | S23: ='Input Data'!AV112 -> 0.85 | T23: ='Input Data'!AV113 -> 0.85 | U23: ='Input Data'!AV114 -> 0.85 | V23: ='Input Data'!AV115 -> 0.85 | W23: ='Input Data'!AV116 -> 0.85 | X23: ='Input Data'!AV117 -> 0.85 | Y23: ='Input Data'!AV118 -> 0.85 | Z23: ='Input Data'!AV119 -> 0.85 | AA23: ='Input Data'!AV120 -> 0.85 | AB23: ='Input Data'!AV121 -> 0.85 | AC23: =IF('Input Data'!AW89>20,'Input Data'!AV122,"") -> 0.85 | AD23: =IF(AD19="Year 22",'Input Data'!AV123,"") -> 0.85 | AE23: =IF(AE19="Year 23",'Input Data'!AV124,"") -> 0.85 | AF23: =IF(AF19="Year 24",'Input Data'!AV125,"") -> 0.85 | AG23: =IF(AG19="Year 25",'Input Data'!AV126,"") -> 0.85 | AH23: =IF('Input Data'!AW89>25,'Input Data'!AV127,"") -> 0.85 | AI23: =IF(AI19="Year 27",'Input Data'!AV128,"") -> 0.85 | AJ23: =IF(AJ19="Year 28",'Input Data'!AV129,"") -> 0.85 | AK23: =IF(AK19="Year 29",'Input Data'!AV130,"") -> 0.85 | AL23: =IF(AL19="Year 30",'Input Data'!AV131,"") -> 0.85 | AM23: =IF('Input Data'!AW89>30,'Input Data'!AV132,"") -> 
B24: Equivalent yearly hours | I24: =I22*8760*I23 -> 5694 | J24: =J22*8760*J23 -> 6570 | K24: 7446 | L24: 7446 | M24: 7446 | N24: 7446 | O24: 7446 | P24: 7446 | Q24: 7446 | R24: 7446 | S24: 7446 | T24: 7446 | U24: 7446 | V24: 7446 | W24: 7446 | X24: 7446 | Y24: 7446 | Z24: 7446 | AA24: 7446 | AB24: 7446 | AC24: =IF('Input Data'!AW89>20, AC22*8760*AC23,"") -> 7446 | AD24: =IF(AD19="Year 22",AD22*8760*AD23,"") -> 7446 | AE24: =IF(AE19="Year 23",AE22*8760*AE23,"") -> 7446 | AF24: =IF(AF19="Year 24",AF22*8760*AF23,"") -> 7446 | AG24: =IF(AG19="Year 25",AG22*8760*AG23,"") -> 7446 | AH24: =IF('Input Data'!AW89>25,AH22*8760*AH23,"") -> 7446 | AI24: =IF(AI19="Year 27",AI22*8760*AI23,"") -> 7446 | AJ24: =IF(AJ19="Year 28",AJ22*8760*AJ23,"") -> 7446 | AK24: =IF(AK19="Year 29",AK22*8760*AK23,"") -> 7446 | AL24: =IF(AL19="Year 30",AL22*8760*AL23,"") -> 7446 | AM24: =IF('Input Data'!AW89>30,AM22*8760*AM23,"") -> 
B25: Expenditure factor | F25: ='Input Data'!AW96 -> 0.25 | G25: ='Input Data'!AW97 -> 0.45 | H25: ='Input Data'!AW98 -> 0.3
B26: Revenues
B27: Electricity | I27: =$E$6*I24*$R$5/1000 -> 334.1314939 | J27: =$E$6*J24*$R$5/1000 -> 385.5363391 | K27: 436.9411843 | L27: 436.9411843 | M27: 436.9411843 | N27: 436.9411843 | O27: 436.9411843 | P27: 436.9411843 | Q27: 436.9411843 | R27: 436.9411843 | S27: 436.9411843 | T27: 436.9411843 | U27: 436.9411843 | V27: 436.9411843 | W27: 436.9411843 | X27: 436.9411843 | Y27: 436.9411843 | Z27: 436.9411843 | AA27: 436.9411843 | AB27: 436.9411843 | AC27: =IF('Input Data'!AW89>20,$E$6*AC24*$R$5/1000,"") -> 436.9411843 | AD27: =IF(AD19="Year 22",$E$6*AD24*$R$5/1000,"") -> 436.9411843 | AE27: =IF(AE19="Year 23",$E$6*AE24*$R$5/1000,"") -> 436.9411843 | AF27: =IF(AF19="Year 24",$E$6*AF24*$R$5/1000,"") -> 436.9411843 | AG27: =IF(AG19="Year 25",$E$6*AG24*$R$5/1000,"") -> 436.9411843 | AH27: =IF('Input Data'!AW89>25,$E$6*AH24*$R$5/1000,"") -> 436.9411843 | AI27: =IF(AI19="Year 27",$E$6*AI24*$R$5/1000,"") -> 436.9411843 | AJ27: =IF(AJ19="Year 28",$E$6*AJ24*$R$5/1000,"") -> 436.9411843 | AK27: =IF(AK19="Year 29",$E$6*AK24*$R$5/1000,"") -> 436.9411843 | AL27: =IF(AL19="Year 30",$E$6*AL24*$R$5/1000,"") -> 436.9411843 | AM27: =IF('Input Data'!AW89>30,$E$6*AM24*$R$5/1000,"") -> 
B28: Operating costs
B29: Fuel (Coal) | I29: =$M$5*$E$5*I24/1000000 -> 95.11827 | J29: =$M$5*$E$5*J24/1000000 -> 109.75185 | K29: 124.38543 | L29: 124.38543 | M29: 124.38543 | N29: 124.38543 | O29: 124.38543 | P29: 124.38543 | Q29: 124.38543 | R29: 124.38543 | S29: 124.38543 | T29: 124.38543 | U29: 124.38543 | V29: 124.38543 | W29: 124.38543 | X29: 124.38543 | Y29: 124.38543 | Z29: 124.38543 | AA29: 124.38543 | AB29: 124.38543 | AC29: =IF('Input Data'!AW89>20,$M$5*$E$5*AC24/1000000,"") -> 124.38543 | AD29: =IF(AD19="Year 22",$M$5*$E$5*AD24/1000000,"") -> 124.38543 | AE29: =IF(AE19="Year 23",$M$5*$E$5*AE24/1000000,"") -> 124.38543 | AF29: =IF(AF19="Year 24",$M$5*$E$5*AF24/1000000,"") -> 124.38543 | AG29: =IF(AG19="Year 25",$M$5*$E$5*AG24/1000000,"") -> 124.38543 | AH29: =IF('Input Data'!AW89>25,$M$5*$E$5*AH24/1000000,"") -> 124.38543 | AI29: =IF(AI19="Year 27",$M$5*$E$5*AI24/1000000,"") -> 124.38543 | AJ29: =IF(AJ19="Year 28",$M$5*$E$5*AJ24/1000000,"") -> 124.38543 | AK29: =IF(AK19="Year 29",$M$5*$E$5*AK24/1000000,"") -> 124.38543 | AL29: =IF(AL19="Year 30",$M$5*$E$5*AL24/1000000,"") -> 124.38543 | AM29: =IF('Input Data'!AW89>30,$M$5*$E$5*AM24/1000000,"") -> 
B30: Maintenance | I30: =$M$6 -> 44.5 | J30: =$M$6 -> 44.5 | K30: 44.5 | L30: 44.5 | M30: 44.5 | N30: 44.5 | O30: 44.5 | P30: 44.5 | Q30: 44.5 | R30: 44.5 | S30: 44.5 | T30: 44.5 | U30: 44.5 | V30: 44.5 | W30: 44.5 | X30: 44.5 | Y30: 44.5 | Z30: 44.5 | AA30: 44.5 | AB30: 44.5 | AC30: =IF('Input Data'!AW89>20,$M$6,"") -> 44.5 | AD30: =IF(AD19="Year 22",$M$6,"") -> 44.5 | AE30: =IF(AE19="Year 23",$M$6,"") -> 44.5 | AF30: =IF(AF19="Year 24",$M$6,"") -> 44.5 | AG30: =IF(AG19="Year 25",$M$6,"") -> 44.5 | AH30: =IF('Input Data'!AW89>25,$M$6,"") -> 44.5 | AI30: =IF(AI19="Year 27",$M$6,"") -> 44.5 | AJ30: =IF(AJ19="Year 28",$M$6,"") -> 44.5 | AK30: =IF(AK19="Year 29",$M$6,"") -> 44.5 | AL30: =IF(AL19="Year 30",$M$6,"") -> 44.5 | AM30: =IF('Input Data'!AW89>30,$M$6,"") -> 
B31: Labour | I31: =$N$12 -> 8.32 | J31: 8.32 | K31: 8.32 | L31: 8.32 | M31: 8.32 | N31: 8.32 | O31: 8.32 | P31: 8.32 | Q31: 8.32 | R31: 8.32 | S31: 8.32 | T31: 8.32 | U31: 8.32 | V31: 8.32 | W31: 8.32 | X31: 8.32 | Y31: 8.32 | Z31: 8.32 | AA31: 8.32 | AB31: 8.32 | AC31: =IF('Input Data'!AW89>20,$N$12,"") -> 8.32 | AD31: =IF(AD19="Year 22",$N$12,"") -> 8.32 | AE31: =IF(AE19="Year 23",$N$12,"") -> 8.32 | AF31: =IF(AF19="Year 24",$N$12,"") -> 8.32 | AG31: =IF(AG19="Year 25",$N$12,"") -> 8.32 | AH31: =IF('Input Data'!AW89>25,$N$12,"") -> 8.32 | AI31: =IF(AI19="Year 27",$N$12,"") -> 8.32 | AJ31: =IF(AJ19="Year 28",$N$12,"") -> 8.32 | AK31: =IF(AK19="Year 29",$N$12,"") -> 8.32 | AL31: =IF(AL19="Year 30",$N$12,"") -> 8.32 | AM31: =IF('Input Data'!AW89>30,$N$12,"") -> 
B32: Chemicals and Consumables | I32: =I22*I23*'Input Data'!$AW$74/0.85 -> 0.07647058824 | J32: =J22*J23*'Input Data'!$AW$74/0.85 -> 0.08823529412 | K32: =K22*K23*'Input Data'!$AW$74/0.85 -> 0.1 | L32: =L22*L23*'Input Data'!$AW$74/0.85 -> 0.1 | M32: =M22*M23*'Input Data'!$AW$74/0.85 -> 0.1 | N32: =N22*N23*'Input Data'!$AW$74/0.85 -> 0.1 | O32: =O22*O23*'Input Data'!$AW$74/0.85 -> 0.1 | P32: =P22*P23*'Input Data'!$AW$74/0.85 -> 0.1 | Q32: =Q22*Q23*'Input Data'!$AW$74/0.85 -> 0.1 | R32: =R22*R23*'Input Data'!$AW$74/0.85 -> 0.1 | S32: =S22*S23*'Input Data'!$AW$74/0.85 -> 0.1 | T32: =T22*T23*'Input Data'!$AW$74/0.85 -> 0.1 | U32: =U22*U23*'Input Data'!$AW$74/0.85 -> 0.1 | V32: =V22*V23*'Input Data'!$AW$74/0.85 -> 0.1 | W32: =W22*W23*'Input Data'!$AW$74/0.85 -> 0.1 | X32: =X22*X23*'Input Data'!$AW$74/0.85 -> 0.1 | Y32: =Y22*Y23*'Input Data'!$AW$74/0.85 -> 0.1 | Z32: =Z22*Z23*'Input Data'!$AW$74/0.85 -> 0.1 | AA32: =AA22*AA23*'Input Data'!$AW$74/0.85 -> 0.1 | AB32: =IF(AB19="Year 20",AB22*AB23*'Input Data'!$AW$74/0.85,"") -> 0.1 | AC32: =IF('Input Data'!AW89>20,AC22*AC23*'Input Data'!$AW$74/0.85,"") -> 0.1 | AD32: =IF(AD19="Year 22",AD22*AD23*'Input Data'!$AW$74/0.85,"") -> 0.1 | AE32: =IF(AE19="Year 23",AE22*AE23*'Input Data'!$AW$74/0.85,"") -> 0.1 | AF32: =IF(AF19="Year 24",AF22*AF23*'Input Data'!$AW$74/0.85,"") -> 0.1 | AG32: =IF(AG19="Year 25",AG22*AG23*'Input Data'!$AW$74/0.85,"") -> 0.1 | AH32: =IF('Input Data'!AW89>25,AH22*AH23*'Input Data'!$AW$74/0.85,"") -> 0.1 | AI32: =IF(AI19="Year 27",AI22*AI23*'Input Data'!$AW$74/0.85,"") -> 0.1 | AJ32: =IF(AJ19="Year 28",AJ22*AJ23*'Input Data'!$AW$74/0.85,"") -> 0.1 | AK32: =IF(AK19="Year 29",AK22*AK23*'Input Data'!$AW$74/0.85,"") -> 0.1 | AL32: =IF(AL19="Year 30",AL22*AL23*'Input Data'!$AW$74/0.85,"") -> 0.1 | AM32: =IF('Input Data'!AW89>30,AM22*AM23*'Input Data'!$AW$74/0.85,"") -> 
B33: Waste Disposal | I33: =I24*'Input Data'!$AW$40*'Input Data'!$AW$73/1000000 -> 1.127412 | J33: =J24*'Input Data'!$AW$40*'Input Data'!$AW$73/1000000 -> 1.30086 | K33: =K24*'Input Data'!$AW$40*'Input Data'!$AW$73/1000000 -> 1.474308 | L33: =L24*'Input Data'!$AW$40*'Input Data'!$AW$73/1000000 -> 1.474308 | M33: =M24*'Input Data'!$AW$40*'Input Data'!$AW$73/1000000 -> 1.474308 | N33: =N24*'Input Data'!$AW$40*'Input Data'!$AW$73/1000000 -> 1.474308 | O33: =O24*'Input Data'!$AW$40*'Input Data'!$AW$73/1000000 -> 1.474308 | P33: =P24*'Input Data'!$AW$40*'Input Data'!$AW$73/1000000 -> 1.474308 | Q33: =Q24*'Input Data'!$AW$40*'Input Data'!$AW$73/1000000 -> 1.474308 | R33: =R24*'Input Data'!$AW$40*'Input Data'!$AW$73/1000000 -> 1.474308 | S33: =S24*'Input Data'!$AW$40*'Input Data'!$AW$73/1000000 -> 1.474308 | T33: =T24*'Input Data'!$AW$40*'Input Data'!$AW$73/1000000 -> 1.474308 | U33: =U24*'Input Data'!$AW$40*'Input Data'!$AW$73/1000000 -> 1.474308 | V33: =V24*'Input Data'!$AW$40*'Input Data'!$AW$73/1000000 -> 1.474308 | W33: =W24*'Input Data'!$AW$40*'Input Data'!$AW$73/1000000 -> 1.474308 | X33: =X24*'Input Data'!$AW$40*'Input Data'!$AW$73/1000000 -> 1.474308 | Y33: =Y24*'Input Data'!$AW$40*'Input Data'!$AW$73/1000000 -> 1.474308 | Z33: =Z24*'Input Data'!$AW$40*'Input Data'!$AW$73/1000000 -> 1.474308 | AA33: =AA24*'Input Data'!$AW$40*'Input Data'!$AW$73/1000000 -> 1.474308 | AB33: =IF(AB19="Year 20",AB24*'Input Data'!$AW$40*'Input Data'!$AW$73/1000000,"") -> 1.474308 | AC33: =IF('Input Data'!AW89>20,AC24*'Input Data'!$AW$40*'Input Data'!$AW$73/1000000,"") -> 1.474308 | AD33: =IF(AD19="Year 22",AD24*'Input Data'!$AW$40*'Input Data'!$AW$73/1000000,"") -> 1.474308 | AE33: =IF(AE19="Year 23",AE24*'Input Data'!$AW$40*'Input Data'!$AW$73/1000000,"") -> 1.474308 | AF33: =IF(AF19="Year 24",AF24*'Input Data'!$AW$40*'Input Data'!$AW$73/1000000,"") -> 1.474308 | AG33: =IF(AG19="Year 25",AG24*'Input Data'!$AW$40*'Input Data'!$AW$73/1000000,"") -> 1.474308 | AH33: =IF('Input Data'!AW89>25,AH24*'Input Data'!$AW$40*'Input Data'!$AW$73/1000000,"") -> 1.474308 | AI33: =IF(AI19="Year 27",AI24*'Input Data'!$AW$40*'Input Data'!$AW$73/1000000,"") -> 1.474308 | AJ33: =IF(AJ19="Year 28",AJ24*'Input Data'!$AW$40*'Input Data'!$AW$73/1000000,"") -> 1.474308 | AK33: =IF(AK19="Year 29",AK24*'Input Data'!$AW$40*'Input Data'!$AW$73/1000000,"") -> 1.474308 | AL33: =IF(AL19="Year 30",AL24*'Input Data'!$AW$40*'Input Data'!$AW$73/1000000,"") -> 1.474308 | AM33: =IF('Input Data'!AW89>30,AM24*'Input Data'!$AW$40*'Input Data'!$AW$73/1000000,"") -> 
B34: Insurance + Local Taxes | I34: =I5*R10 -> 27.094 | J34: =I5*R10 -> 27.094 | K34: =I5*R10 -> 27.094 | L34: =I5*R10 -> 27.094 | M34: =I5*R10 -> 27.094 | N34: =I5*R10 -> 27.094 | O34: =I5*R10 -> 27.094 | P34: =I5*R10 -> 27.094 | Q34: =I5*R10 -> 27.094 | R34: =I5*R10 -> 27.094 | S34: =I5*R10 -> 27.094 | T34: =I5*R10 -> 27.094 | U34: =I5*R10 -> 27.094 | V34: =I5*R10 -> 27.094 | W34: =I5*R10 -> 27.094 | X34: =I5*R10 -> 27.094 | Y34: =I5*R10 -> 27.094 | Z34: =I5*R10 -> 27.094 | AA34: =I5*R10 -> 27.094 | AB34: =I5*R10 -> 27.094 | AC34: =IF('Input Data'!AW89>20,I5*R10,"") -> 27.094 | AD34: =IF(AD19="Year 22",R10*I5,"") -> 27.094 | AE34: =IF(AE19="Year 23",I5*R10,"") -> 27.094 | AF34: =IF(AF19="Year 24",I5*R10,"") -> 27.094 | AG34: =IF(AG19="Year 25",I5*R10,"") -> 27.094 | AH34: =IF('Input Data'!AW89>25,I5*R10,"") -> 27.094 | AI34: =IF(AI19="Year 27",I5*R10,"") -> 27.094 | AJ34: =IF(AJ19="Year 28",I5*R10,"") -> 27.094 | AK34: =IF(AK19="Year 29",I5*R10,"") -> 27.094 | AL34: =IF(AL19="Year 30",I5*R10,"") -> 27.094 | AM34: =IF('Input Data'!AW89>30,I5*R10,"") -> 
B35: CO2 Emissions | I35: ='Input Data'!$AW$33*'Input Data'!$AW$77*I24/1000000 -> 0 | J35: ='Input Data'!$AW$33*'Input Data'!$AW$77*J24/1000000 -> 0 | K35: ='Input Data'!$AW$33*'Input Data'!$AW$77*K24/1000000 -> 0 | L35: ='Input Data'!$AW$33*'Input Data'!$AW$77*L24/1000000 -> 0 | M35: ='Input Data'!$AW$33*'Input Data'!$AW$77*M24/1000000 -> 0 | N35: ='Input Data'!$AW$33*'Input Data'!$AW$77*N24/1000000 -> 0 | O35: ='Input Data'!$AW$33*'Input Data'!$AW$77*O24/1000000 -> 0 | P35: ='Input Data'!$AW$33*'Input Data'!$AW$77*P24/1000000 -> 0 | Q35: ='Input Data'!$AW$33*'Input Data'!$AW$77*Q24/1000000 -> 0 | R35: ='Input Data'!$AW$33*'Input Data'!$AW$77*R24/1000000 -> 0 | S35: ='Input Data'!$AW$33*'Input Data'!$AW$77*S24/1000000 -> 0 | T35: ='Input Data'!$AW$33*'Input Data'!$AW$77*T24/1000000 -> 0 | U35: ='Input Data'!$AW$33*'Input Data'!$AW$77*U24/1000000 -> 0 | V35: ='Input Data'!$AW$33*'Input Data'!$AW$77*V24/1000000 -> 0 | W35: ='Input Data'!$AW$33*'Input Data'!$AW$77*W24/1000000 -> 0 | X35: ='Input Data'!$AW$33*'Input Data'!$AW$77*X24/1000000 -> 0 | Y35: ='Input Data'!$AW$33*'Input Data'!$AW$77*Y24/1000000 -> 0 | Z35: ='Input Data'!$AW$33*'Input Data'!$AW$77*Z24/1000000 -> 0 | AA35: ='Input Data'!$AW$33*'Input Data'!$AW$77*AA24/1000000 -> 0 | AB35: ='Input Data'!$AW$33*'Input Data'!$AW$77*AB24/1000000 -> 0 | AC35: =IF('Input Data'!AW89>20,'Input Data'!$AW$33*'Input Data'!$AW$77*AC24/1000000,"") -> 0 | AD35: =IF(AD19="Year 22",'Input Data'!$AW$33*'Input Data'!$AW$77*AD24/1000000,"") -> 0 | AE35: =IF(AE19="Year 23",'Input Data'!$AW$33*'Input Data'!$AW$77*AE24/1000000,"") -> 0 | AF35: =IF(AF19="Year 24",'Input Data'!$AW$33*'Input Data'!$AW$77*AF24/1000000,"") -> 0 | AG35: =IF(AG19="Year 25",'Input Data'!$AW$33*'Input Data'!$AW$77*AG24/1000000,"") -> 0 | AH35: =IF('Input Data'!AW89>25,'Input Data'!$AW$33*'Input Data'!$AW$77*AH24/1000000,"") -> 0 | AI35: =IF(AI19="Year 27",'Input Data'!$AW$33*'Input Data'!$AW$77*AI24/1000000,"") -> 0 | AJ35: =IF(AJ19="Year 28",'Input Data'!$AW$33*'Input Data'!$AW$77*AJ24/1000000,"") -> 0 | AK35: =IF(AK19="Year 29",'Input Data'!$AW$33*'Input Data'!$AW$77*AK24/1000000,"") -> 0 | AL35: =IF(AL19="Year 30",'Input Data'!$AW$33*'Input Data'!$AW$77*AL24/1000000,"") -> 0 | AM35: =IF('Input Data'!AW89>30,'Input Data'!$AW$33*'Input Data'!$AW$77*AM24/1000000,"") -> 
B36: Fixed Capital Expenditure | F36: =I10*F25 -> 474.145 | G36: =I10*G25 -> 853.461 | H36: =H25*I10 -> 568.974
B38: Total Cash Flow (yearly) | F38: =SUM(F27:F27)-SUM(F29:F35)-F36 -> -474.145 | G38: -853.461 | H38: -568.974 | I38: 157.8953413 | J38: 194.4813938 | K38: 231.0674463 | L38: 231.0674463 | M38: 231.0674463 | N38: 231.0674463 | O38: 231.0674463 | P38: 231.0674463 | Q38: 231.0674463 | R38: 231.0674463 | S38: 231.0674463 | T38: 231.0674463 | U38: 231.0674463 | V38: 231.0674463 | W38: 231.0674463 | X38: 231.0674463 | Y38: 231.0674463 | Z38: 231.0674463 | AA38: 231.0674463 | AB38: 231.0674463 | AC38: =IF(AC19="Year 21",SUM(AC27:AC27)-SUM(AC29:AC35)-AC36,"") -> 231.0674463 | AD38: =IF(AD19="Year 22",SUM(AD27:AD27)-SUM(AD29:AD35)-AD36,"") -> 231.0674463 | AE38: =IF(AE19="Year 23",SUM(AE27:AE27)-SUM(AE29:AE35)-AE36,"") -> 231.0674463 | AF38: =IF(AF19="Year 24",SUM(AF27:AF27)-SUM(AF29:AF35)-AF36,"") -> 231.0674463 | AG38: =IF(AG19="Year 25",SUM(AG27:AG27)-SUM(AG29:AG35)-AG36,"") -> 231.0674463 | AH38: =IF(AH19="Year 26",SUM(AH27:AH27)-SUM(AH29:AH35)-AH36,"") -> 231.0674463 | AI38: =IF(AI19="Year 27",SUM(AI27:AI27)-SUM(AI29:AI35)-AI36,"") -> 231.0674463 | AJ38: =IF(AJ19="Year 28",SUM(AJ27:AJ27)-SUM(AJ29:AJ35)-AJ36,"") -> 231.0674463 | AK38: =IF(AK19="Year 29",SUM(AK27:AK27)-SUM(AK29:AK35)-AK36,"") -> 231.0674463 | AL38: =IF(AL19="Year 30",SUM(AL27:AL27)-SUM(AL29:AL35)-AL36,"") -> 231.0674463 | AM38: =IF(AM19="Year 31",SUM(AM27:AM27)-SUM(AM29:AM35)-AM36,"") -> 0
B39: Total Cash Flow (accumulated) | F39: =F38 -> -474.145 | G39: =-1*(ABS(G38)+ABS(F39)) -> -1327.606 | H39: =-1*(ABS(H38)+ABS(G39)) -> -1896.58 | I39: =H39+I38 -> -1738.684659 | J39: =I39+J38 -> -1544.203265 | K39: -1313.135819 | L39: -1082.068372 | M39: -851.000926 | N39: -619.9334796 | O39: -388.8660333 | P39: -157.798587 | Q39: 73.2688593 | R39: 304.3363056 | S39: 535.4037519 | T39: 766.4711982 | U39: 997.5386445 | V39: 1228.606091 | W39: 1459.673537 | X39: 1690.740983 | Y39: 1921.80843 | Z39: 2152.875876 | AA39: 2383.943322 | AB39: 2615.010769 | AC39: =IF(AC19="Year 21",AB39+AC38,"") -> 2846.078215 | AD39: =IF(AD19="Year 22",AC39+AD38,"") -> 3077.145661 | AE39: =IF(AE19="Year 23",AD39+AE38,"") -> 3308.213108 | AF39: =IF(AF19="Year 24",AE39+AF38,"") -> 3539.280554 | AG39: =IF(AG19="Year 25",AF39+AG38,"") -> 3770.348 | AH39: =IF(AH19="Year 26",AG39+AH38,"") -> 4001.415447 | AI39: =IF(AI19="Year 27",AH39+AI38,"") -> 4232.482893 | AJ39: =IF(AJ19="Year 28",AI39+AJ38,"") -> 4463.550339 | AK39: =IF(AK19="Year 29",AJ39+AK38,"") -> 4694.617786 | AL39: =IF(AL19="Year 30",AK39+AL38,"") -> 4925.685232 | AM39: =IF(AM19="Year 31",AL39+AM38,"") -> 4925.685232
B41: Discounted Cash Flow (yearly) | F41: =F39/(1+R9) -> -431.0409091 | G41: =G38/(1+R9)^2 -> -705.3396694 | H41: =H38/(1+R9)^3 -> -427.4785875 | I41: =I38/(1+R9)^4 -> 107.8446426 | J41: =J38/(1+R9)^5 -> 120.7576444 | K41: =K38/(1+R9)^6 -> 130.4315495 | L41: =L38/(1+R9)^7 -> 118.5741359 | M41: =M38/(1+R9)^8 -> 107.794669 | N41: =N38/(1+R9)^9 -> 97.99515366 | O41: =O38/(1+R9)^10 -> 89.08650333 | P41: =P38/(1+R9)^11 -> 80.9877303 | Q41: =Q38/(1+R9)^12 -> 73.62520936 | R41: =R38/(1+R9)^13 -> 66.93200851 | S41: =S38/(1+R9)^14 -> 60.84728047 | T41: =T38/(1+R9)^15 -> 55.31570952 | U41: =U38/(1+R9)^16 -> 50.28700865 | V41: =V38/(1+R9)^17 -> 45.71546241 | W41: =W38/(1+R9)^18 -> 41.55951128 | X41: =X38/(1+R9)^19 -> 37.78137389 | Y41: =Y38/(1+R9)^20 -> 34.34670354 | Z41: =Z38/(1+R9)^21 -> 31.22427594 | AA41: =AA38/(1+R9)^22 -> 28.3857054 | AB41: =AB38/(1+R9)^23 -> 25.80518673 | AC41: =IF(AC19="Year 21",AC38/(1+R9)^24,"") -> 23.45926066 | AD41: =IF(AD19="Year 22",AD38/(1+R9)^25,"") -> 21.3266006 | AE41: =IF(AE19="Year 23",AE38/(1+R9)^26,"") -> 19.38781873 | AF41: =IF(AF19="Year 24",AF38/(1+R9)^27,"") -> 17.62528976 | AG41: =IF(AG19="Year 25",AG38/(1+R9)^28,"") -> 16.02299069 | AH41: =IF(AH19="Year 26",AH38/(1+R9)^29,"") -> 14.56635517 | AI41: =IF(AI19="Year 27",AI38/(1+R9)^30,"") -> 13.24214106 | AJ41: =IF(AJ19="Year 28",AJ38/(1+R9)^31,"") -> 12.03831006 | AK41: =IF(AK19="Year 29",AK38/(1+R9)^32,"") -> 10.94391823 | AL41: =IF(AL19="Year 30",AL38/(1+R9)^33,"") -> 9.949016576 | AM41: =IF(AM19="Year 31",AM38/(1+R9)^34,"") -> 0
B42: Discounted Cash Flow (accumulated) | F42: =F41 -> -431.0409091 | G42: =SUM(G41+F42) -> -1136.380579 | H42: -1563.859166 | I42: -1456.014523 | J42: -1335.256879 | K42: -1204.82533 | L42: -1086.251194 | M42: -978.4565245 | N42: -880.4613709 | O42: -791.3748676 | P42: -710.3871373 | Q42: -636.7619279 | R42: -569.8299194 | S42: -508.9826389 | T42: -453.6669294 | U42: -403.3799207 | V42: -357.6644583 | W42: -316.104947 | X42: -278.3235732 | Y42: -243.9768696 | Z42: -212.7525937 | AA42: -184.3668883 | AB42: -158.5617015 | AC42: =IF(AC19="Year 21",SUM(AC41+AB42),"") -> -135.1024409 | AD42: =IF(AD19="Year 22",SUM(AD41+AC42),"") -> -113.7758403 | AE42: =IF(AE19="Year 23",SUM(AE41+AD42),"") -> -94.38802154 | AF42: =IF(AF19="Year 24",SUM(AF41+AE42),"") -> -76.76273179 | AG42: =IF(AG19="Year 25",SUM(AG41+AF42),"") -> -60.7397411 | AH42: =IF(AH19="Year 26",SUM(AH41+AG42),"") -> -46.17338593 | AI42: =IF(AI19="Year 27",SUM(AI41+AH42),"") -> -32.93124487 | AJ42: =IF(AJ19="Year 28",SUM(AJ41+AI42),"") -> -20.89293481 | AK42: =IF(AK19="Year 29",SUM(AK41+AJ42),"") -> -9.949016576 | AL42: =IF(AL19="Year 30",SUM(AL41+AK42),"") -> 5.186961971e-13 | AM42: =IF(AM19="Year 31",SUM(AM41+AL42),"") -> 5.186961971e-13
AA44: Hidden acc cf | AC44: =SUM(AC41+AB42) -> -135.1024409 | AD44: =IF(AD41="",AC42,SUM(AD41+AC42)) -> -113.7758403 | AE44: =IF(AE41="",AD44,SUM(AE41+AD44)) -> -94.38802154 | AF44: =IF(AF41="",AE44,SUM(AF41+AE44)) -> -76.76273179 | AG44: =IF(AG41="",AF44,SUM(AG41+AF44)) -> -60.7397411 | AH44: -46.17338593 | AI44: -32.93124487 | AJ44: -20.89293481 | AK44: -9.949016576 | AL44: 5.186961971e-13 | AM44: 5.186961971e-13 | AN44: 5.186961971e-13

Sheet Summary Results
C2: IGCC w CC | D2: IGCC w/o CC | E2: USCPC w CC | F2: USCPC wo CC | G2: CCGT w 90% CC | H2: CCGT w 75% CC | I2: CCGT w/o CC | J2: Oxyfuel
C3: Case 1A | D3: Case 1B | E3: Case 2A | F3: Case 2B | G3: Case 3A | H3: Case 3A(ii) | I3: Case 3B | J3: Case 4
A4: Power Production | B4: MWgross | C4: ='Input Data'!G22 -> 923.8 | D4: ='Input Data'!N22 -> 878.1 | E4: ='Input Data'!AI22 -> 745.7 | F4: ='Input Data'!AP22 -> 836.2 | G4: ='Input Data'!U22 -> 955.3 | H4: ='Input Data'!BF22 -> 970.7 | I4: ='Input Data'!AB22 -> 1037.6 | J4: ='Input Data'!AW22 -> 855.4
B5: MWnet | C5: ='Input Data'!G23 -> 700.1 | D5: ='Input Data'!N23 -> 746.1 | E5: ='Input Data'!AI23 -> 626.7 | F5: ='Input Data'!AP23 -> 779.2 | G5: ='Input Data'!U23 -> 842.3 | H5: ='Input Data'!BF23 -> 872.3 | I5: ='Input Data'!AB23 -> 990.8 | J5: ='Input Data'!AW23 -> 605.6
A6: Electricity Production Cost | B6: £ / MWh | C6: ='IGCC w CC'!R5*1000 -> 76.20794305 | D6: ='IGCC wo CC'!R5*1000 -> 59.49350412 | E6: ='USCPC w CC'!R5*1000 -> 87.3131942 | F6: ='USCPC wo CC'!R5*1000 -> 56.23772026 | G6: ='CCGT w 90% CC'!R5*1000 -> 69.56727155 | H6: ='CCGT w 75% CC'!R5*1000 -> 65.89177663 | I6: ='CCGT wo CC'!R5*1000 -> 47.88289934 | J6: ='OXYFUEL with CC'!R5*1000 -> 96.89783711
A7: CO2 Produced | B7: te/h | C7: ='Input Data'!G31 -> 647.2083333 | D7: ='Input Data'!N31 -> 548 | E7: ='Input Data'!AI31 -> 608.1666667 | F7: ='Input Data'!AP31 -> 608 | G7: ='Input Data'!U31 -> 346.8333333 | H7: ='Input Data'!BF31 -> 347.1 | I7: ='Input Data'!AB31 -> 347 | J7: ='Input Data'!AW31 -> 607.9
A8: CO2 Captured | B8: te/h | C8: ='Input Data'!G32 -> 582.3333333 | D8: 0 | E8: ='Input Data'!AI32 -> 547.1666667 | F8: 0 | G8: ='Input Data'!U32 -> 312.8333333 | H8: ='Input Data'!BF32 -> 261.1 | I8: 0 | J8: ='Input Data'!AW32 -> 549.3166667
A9: Carbon Capture Efficiency | B9: % | C9: 90 | D9: 0 | E9: 90 | F9: 0 | G9: 90 | H9: 75 | I9: 0 | J9: 90
A10: CO2 Emitted | B10: te/h | C10: ='Input Data'!G33 -> 64.875 | D10: ='Input Data'!N33 -> 548 | E10: ='Input Data'!AI33 -> 61 | F10: ='Input Data'!AP33 -> 608 | G10: ='Input Data'!U33 -> 34 | H10: ='Input Data'!BF33 -> 86 | I10: ='Input Data'!AB33 -> 347 | J10: ='Input Data'!AW33 -> 58.58333333
A11: CO2 Emissions Cost | B11: £ / te CO2 | C11: ='Input Data'!G77 -> 0 | D11: ='Input Data'!N77 -> 0 | E11: ='Input Data'!AI77 -> 0 | F11: ='Input Data'!AP77 -> 0 | G11: ='Input Data'!U77 -> 0 | H11: ='Input Data'!BF77 -> 0 | I11: ='Input Data'!AB77 -> 0 | J11: ='Input Data'!AW77 -> 0
A12: Specific CO2 Emissions (Gross) | B12: g / KWhgross | C12: =C10/C4*1000 -> 70.22623945 | D12: =D10/D4*1000 -> 624.0747068 | E12: 81.80233338 | F12: 727.0987802 | G12: 35.59091385 | H12: =H10/H4*1000 -> 88.59585866 | I12: 334.4255975 | J12: 68.48647806
A13: Specific CO2 Emissions (Net) | B13: g / Kwhnet | C13: =C10/C5*1000 -> 92.66533352 | D13: =D10/D5*1000 -> 734.4859938 | E13: 97.33524813 | F13: 780.2874743 | G13: 40.36566544 | H13: =H10/H5*1000 -> 98.58993466 | I13: =I10/I5*1000 -> 350.2220428 | J13: 96.73601937
A15: CO2 Captured (Removed) Cost | B15: £ / te | C15: =(C6-D6)/(C8/C5) -> 20.09464001 | D15: n/a | E15: =(E6-F6)/(E8/E5) -> 35.59244505 | F15: n/a | G15: =(G6-I6)/(G8/G5) -> 58.38491224 | H15: =(H6-I6)/(H8/H5) -> 60.16523808 | I15: n/a | J15: =(J6-F6)/(J8/J5) -> 44.82617815
A16: CO2 Avoided Cost | B16: £ / te | C16: =(C6-D6)/(D13-C13)*1000 -> 26.04222638 | D16: n/a | E16: =(E6-F6)/(F13-E13)*1000 -> 45.50168041 | F16: n/a | G16: =(G6-I6)/(I13-G13)*1000 -> 69.98201036 | H16: =(H6-I6)/(I13-H13)*1000 -> 71.56828048 | I16: n/a | J16: =(J6-F6)/(F13-J13)*1000 -> 59.4836227
A19: Cost of CO2 Captured (Removed) and Avoided
A21: CO2 Captured (Removed) costs are calculated using the following equation:
B24: CO2 Captured (Removed) [£ / te] = | E24: (Electricty Costw CO2 removal - Electricity Cost w/o CO2 removal) [ £ / kWh ]
F25: CO2 removed [ te / kWh ]
A28: CO2 Avoided costs are calculated using the following equation:
B31: CO2 Avoided [£ / te] = | E31: (Electricty Costw CO2 removal - Electricity Cost w/o CO2 removal) [ £ / kWh ]
E32: (Specific Emissionswo CO2 removal - Specifc Emissionsw CO2 removal) [ te / kWh ]
